Workbook

Sheet RNG (hidden)
A1: Producer Operational Data Summary (PODS) | C1: Applicant: | D1: ABC Company | E1: Landfill Location: | F1: XYZ Landfill in Any Town , Any State | H1: CNG Production Location: | I1: CNG Stations in California | K1: LNG Production Location: | L1: Any City, California | M1: L-CNG Production Location: | N1: LNG/CNG Stations in California
A2: Landfill Gas CI, g/MJ | C2: CNG CI | D2: =E38 -> 27.4213613 | E2: LNG CI | F2: =E39 -> 27.54093121 | G2: L-CNG CI | H2: =E40 -> 32.35523444 | J2: DRAFT - FOR DICUSSION ONLY - DO NOT USE
A3: Data Years | B3: Step 1) Select Feedstock Production Region | J3: Step 2) Select Region for CNG, LNG, and L-CNG Production
B4: Select Regional Electricity Mix for Biomethane | D4: 1-U.S Ave Mix | F4: Enter Maximum Pipeline Transmission Distance in miles | I4: 1925 | J4: Select Regional Electricity Mix for Fuel Production | M4: 3-CAMX Mix | Q4: =A145 -> 3-CAMX Mix
A5: Process | B5: Biogas Feedstock (at Inlet to Processing) | D5: Inputs to Biogas Processing | J5: Inputs for CNG | K5: Inputs for LNG | Q5: Inputs for L-CNG
A6: Monthly Data | B6: Inlet Raw LFG Extraction, (metered) | C6: Raw Biogas Quality (% Methane) | D6: Facility Total NG from Utility Invoices | E6: Facility Total Diesel from Invoices | F6: Facility Total Propane (LPG) from Invoices | G6: Other Fuel (note type and source documentation) | H6: Facility Total Electricity from Utility Invoices | I6: Biomethane Product Gas, (metered) | J6: CNG Production | K6: NG as feedstock | L6: LNG Production | M6: NG as process fuel | N6: Electricity from Utility Invoices | O6: LNG Transport and Distribution | Q6: L-CNG Production
A7: Unit | B7: SCF at 60o F | C7: % | D7: MMBtu | E7: Gallons | F7: MMBtu | G7: MMBtu | H7: kWh | I7: MMBtu | J7: Therms | K7: MMBtu | L7: Gallons | M7: MMBtu | N7: kWh | P7: miles | Q7: MMBtu
A8: Month 1 | B8: =1228.79*730/24 -> 37375.69583 | C8: 0.54 | D8: =103.74*730/24 -> 3155.425 | E8: 0 | F8: =9.2*730/24 -> 279.8333333 | G8: 0 | H8: =6904.47*24*730/30 -> 4032210.48 | I8: 999256 | J8: =10817642.69/24 -> 450735.1121 | K8: =184379 -> 184379 | L8: =2173772 -> 2173772 | M8: 0 | N8: 2955895 | O8: Select to affirm truck and storage tanks are equipped with Boil-Off Recovery | P8: No | Q8: 1000000
A9: Month 2 | B9: 24250.69583 | C9: 0.54 | D9: 2851.3 | E9: 0 | F9: 307.2083333 | G9: 0 | H9: 1112210.48 | I9: 5628943 | J9: 409068 | K9: 184379.341 | L9: 10173772 | M9: 0 | N9: 3055895 | Q9: 1000000
A10: Month 3 | B10: 54250.69583 | C10: 0.54 | D10: 2851.3 | E10: 0 | F10: 307.2083333 | G10: 0 | H10: 1112210.48 | I10: 46895123 | J10: 409068 | K10: 184379.341 | L10: 12173772 | M10: 0 | N10: 3155895 | Q10: 1000000
A11: Month 4 | B11: 16000 | C11: 0.54 | D11: 2851.3 | E11: 0 | F11: 307.2083333 | G11: 0 | H11: 1112210.48 | I11: 947014.1292 | J11: 409068 | K11: 184379.341 | L11: 2173772 | M11: 0 | N11: 2955895 | O11: Enter Maximum LNG Transport Distance by Heavy Duty Diesel Truck | P11: 5 | Q11: 1000000
A12: Month 5 | B12: 4250.695833 | C12: 0.54 | D12: 2851.3 | E12: 0 | F12: 307.2083333 | G12: 0 | H12: 1112210.48 | I12: 580000 | J12: 409068 | K12: 184379.341 | L12: 2173772 | M12: 0 | N12: 2955895 | Q12: 1000000
A13: Month 6 | B13: 54250.69583 | C13: 0.54 | D13: 2851.3 | E13: 0 | F13: 307.2083333 | G13: 0 | H13: 9112210.48 | I13: 198000 | J13: 400000 | K13: 184379.341 | L13: 2173772 | M13: 0 | N13: 2955895 | O13: Enter Maximum LNG Transport Distance by Heavy Duty LNG Truck | P13: 45 | Q13: 1000000
A14: Month 7 | B14: 1000 | C14: 0.54 | D14: 2851.3 | E14: 0 | F14: 307.2083333 | G14: 0 | H14: 1112210.48 | I14: 107014.1292 | J14: 409068 | K14: 184379.341 | L14: 2173772 | M14: 0 | N14: 2955895 | Q14: 1000000
A15: Month 8 | B15: 3000 | C15: 0.54 | D15: 2851.3 | E15: 0 | F15: 307.2083333 | G15: 0 | H15: 1112210.48 | I15: 198000 | J15: 409068 | K15: 184379.341 | L15: 2173772 | M15: 0 | N15: 2955895 | Q15: 1000000
A16: Month 9 | B16: 2000 | C16: 0.54 | D16: 2851.3 | E16: 0 | F16: 307.2083333 | G16: 0 | H16: 1112210.48 | I16: 1989555 | J16: 409068 | K16: 184379.341 | L16: 2173772 | M16: 0 | N16: 2955895 | Q16: 1000000
A17: Month 10 | B17: 50000 | C17: 0.54 | D17: 2851.3 | E17: 0 | F17: 307.2083333 | G17: 0 | H17: 1112210.48 | I17: 8123568 | J17: 409068 | K17: 184379.341 | L17: 2173772 | M17: 0 | N17: 2955895 | Q17: 1000000
A18: Month 11 | B18: 60000 | C18: 0.54 | D18: 2851.3 | E18: 0 | F18: 307.2083333 | G18: 0 | H18: 1112210.48 | I18: 1900000 | J18: 409068 | K18: 184379.341 | L18: 2173772 | M18: 0 | N18: 2955895 | Q18: 1000000
A19: Month 12 | B19: 15000 | C19: 0.54 | D19: 2851.3 | E19: 0 | F19: 307.2083333 | G19: 0 | H19: 1112210.48 | I19: 1233316 | J19: 409068 | K19: 184379.341 | L19: 2173772 | M19: 0 | N19: 2955895 | Q19: 1000000
A20: Month 13 | B20: 12000 | C20: 0.54 | D20: 2851.3 | E20: 0 | F20: 307.2083333 | G20: 0 | H20: 1112210.48 | I20: 5615301 | J20: 409068 | K20: 184379.341 | L20: 2173772 | M20: 0 | N20: 2955895 | Q20: 1000000
A21: Month 14 | B21: 14000 | C21: 0.54 | D21: 2851.3 | E21: 0 | F21: 307.2083333 | G21: 0 | H21: 1112210.48 | I21: 1234569 | J21: 409068 | K21: 184379.341 | L21: 2173772 | M21: 0 | N21: 2955895 | Q21: 1000000
A22: Month 15 | B22: 9000 | C22: 0.54 | D22: 2851.3 | E22: 0 | F22: 307.2083333 | G22: 0 | H22: 5000000 | I22: 5980562 | J22: 409068 | K22: 184379.341 | L22: 2173772 | M22: 0 | N22: 2955895 | Q22: 1000000
A23: Month 16 | B23: 3500 | C23: 0.54 | D23: 2851.3 | E23: 0 | F23: 307.2083333 | G23: 0 | H23: 1112210.48 | I23: 9198000 | J23: 409068 | K23: 184379.341 | L23: 2173772 | M23: 0 | N23: 2955895 | Q23: 1000000
A24: Month 17 | B24: 1000 | C24: 0.54 | D24: 2851.3 | E24: 0 | F24: 307.2083333 | G24: 0 | H24: 1112210.48 | I24: 5510000 | J24: 409068 | K24: 184379.341 | L24: 2173772 | M24: 0 | N24: 2955895 | Q24: 1000000
A25: Month 18 | B25: 5600 | C25: 0.54 | D25: 2851.3 | E25: 0 | F25: 307.2083333 | G25: 0 | H25: 1112210.48 | I25: 550000 | J25: 409068 | K25: 184379.341 | L25: 2173772 | M25: 0 | N25: 2955895 | Q25: 1000000
A26: Month 19 | B26: 1200 | C26: 0.54 | D26: 2851.3 | E26: 0 | F26: 307.2083333 | G26: 0 | H26: 1112210.48 | I26: 89565662 | J26: 409068 | K26: 184379.341 | L26: 2173772 | M26: 0 | N26: 2955895 | Q26: 1000000
A27: Month 20 | B27: 5400 | C27: 0.54 | D27: 2851.3 | E27: 0 | F27: 307.2083333 | G27: 0 | H27: 1112210.48 | I27: 56487000 | J27: 409068 | K27: 184379.341 | L27: 2173772 | M27: 0 | N27: 2955895 | Q27: 1000000
A28: Month 21 | B28: 1900 | C28: 0.54 | D28: 2851.3 | E28: 0 | F28: 307.2083333 | G28: 0 | H28: 1112210.48 | I28: 12356895 | J28: 409068 | K28: 184379.341 | L28: 2173772 | M28: 0 | N28: 2955895 | Q28: 1000000
A29: Month 22 | B29: 5500 | C29: 0.54 | D29: 2851.3 | E29: 0 | F29: 307.2083333 | G29: 0 | H29: 1112210.48 | I29: 1234562 | J29: 409068 | K29: 184379.341 | L29: 2173772 | M29: 0 | N29: 2955895 | Q29: 1000000
A30: Month 23 | B30: 5000 | C30: 0.54 | D30: 2851.3 | E30: 0 | F30: 307.2083333 | G30: 0 | H30: 1112210.48 | I30: 980000 | J30: 409068 | K30: 184379.341 | L30: 2173772 | M30: 0 | N30: 2955895 | Q30: 1000000
A31: Month 24 | B31: 24250.69583 | C31: 0.54 | D31: 2851.3 | E31: 0 | F31: 307.2083333 | G31: 0 | H31: 1112210.48 | I31: 1895222 | J31: 409068 | K31: 184379.341 | L31: 2173772 | M31: 0 | N31: 2955895 | Q31: 1000000
A32: Total in HHV | B32: =SUM(B8:B31) -> 409729.175 | D32: =SUM(D8:D31) -> 68735.325 | E32: 0 | F32: 7345.625 | G32: 0 | H32: 41500841.04 | I32: =SUM(I8:I31) -> 259407562.3 | J32: =SUM(J8:J31) -> 9850231.112 | K32: =SUM(K8:K31) -> 4425103.844 | L32: 70170528 | M32: 0 | N32: 71241480 | Q32: =SUM(Q8:Q31) -> 24000000
A33: Total MMBtu in HHV | B33: =B32*Fuel_Specs!$B$53 -> 402763779 | C33: =AVERAGE(C8:C31) -> 0.54 | D33: =(IF(D7="MMBtu",SUM(D8:D31),IF(D7="Therms",SUM(D8:D31)*10,IF(D7="SCF",SUM(D8:D31))))) -> 68735.325 | E33: =(IF(E7="gallons",SUM(E8:E31)*Fuel_Specs!$D$15/10^6,IF(E7="liters",SUM(E8:E31)*Fuel_Specs!$D$124*Fuel_Specs!$D$15/10^6))) -> 0 | F33: =(IF(F7="gallons",SUM(F8:F31)*Fuel_Specs!$D$30/10^6,IF(F7="liters",SUM(F8:F31)*Fuel_Specs!$D$124*Fuel_Specs!$D$30/10^6,IF(F7="MMBtu",SUM(F8:F31))))) -> 7345.625 | G33: =SUM(G8:G31) -> 0 | H33: =SUM(H8:H31)*Fuel_Specs!$F$133/10^6 -> 141606.7479 | I33: =(IF(I7="MMBtu",SUM(I8:I31),IF(I7="Therms",SUM(I8:I31)*10,IF(I7="SCF",SUM(I8:I31)*Fuel_Specs!$D$53*$C$33/10^6)))) -> 259407562.3 | J33: =SUM(J8:J31)*10 -> 98502311.12 | K33: =(IF(K7="MMBtu",SUM(K8:K31),IF(K7="Therms",SUM(K8:K31)*10,IF(K7="SCF",SUM(K8:K31)*Fuel_Specs!$D$53)))) -> 4425103.844 | L33: =SUM(L8:L31)*Fuel_Specs!$D$31/10^6 -> 5951864.185 | M33: =(IF(M7="MMBtu",SUM(M8:M31),IF(M7="Therms",SUM(M8:M31)*10,IF(M7="SCF",SUM(M8:M31)*Fuel_Specs!$D$53)))) -> 0 | N33: =SUM(N8:N31)*Fuel_Specs!$F$133/10^6 -> 243086.0205
A34: Convert to MMBtu, in LHV | B34: =B33*Fuel_Specs!$I$53 -> 363695692.5 | D34: =D33*Fuel_Specs!$I$53 -> 62067.99848 | E34: =E33*Fuel_Specs!$I$15 -> 0 | F34: =F33*Fuel_Specs!$I$30 -> 6826.505237 | H34: =H33 -> 141606.7479 | I34: =I33*Fuel_Specs!$I$54 -> 233661118.8 | J34: =J33*Fuel_Specs!$I$53 -> 88947586.94 | K34: =K33*Fuel_Specs!$I$53 -> 3995868.771 | L34: =L33*Fuel_Specs!$I$31 -> 5243141.852 | M34: =M33*Fuel_Specs!$I$53 -> 0 | N34: =N33 -> 243086.0205
A35: Convert to Btu/MMBtu fuel throughput | C35: 4621.26 | D35: =D34*10^6/(($B$33*$C$33)*Fuel_Specs!$I$53) -> 316.0354667 | E35: =E34*10^6/(($B$33*$C$33)*Fuel_Specs!$I$53) -> 0 | F35: =F34*10^6/(($B$33*$C$33)*Fuel_Specs!$I$53) -> 34.75893894 | G35: =G34*10^6/(($B$33*$C$33)*Fuel_Specs!$I$53) -> 0 | H35: =H34*10^6/(($B$33*$C$33)*Fuel_Specs!$I$53) -> 721.0278365 | M35: =M34*10^6/L34 -> 0 | N35: =N34*10^6/L34 -> 46362.66334
A36: Process Shares and Efficiency, % | C36: 0.9954 | D36: =D34/(D34+E34+F34+H34+G34) -> 0.2948580971 | E36: =E34/(($B$34*$C$33-I34)+D34+E34+F34+H34+G34) -> 0 | F36: =F34/(D34+E34+F34+H34+G34) -> 0.0324297608 | H36: =H34/(D34+E34+F34+H34+G34) -> 0.6727121421 | I36: =I33/(B33+E33+F33+G33+H33) -> 0.6438306413 | J36: =96% -> 0.96 | M36: =M35/(M35+N35) -> 0 | N36: =N35/(M35+N35) -> 1 | O36: =L34/(L34+M34+N34) -> 0.9556915924
A37: Pathway CI Outputs
A38: Carbon Intensity of Landfill Gas to CNG, g/MJ | E38: =H150 -> 27.4213613
A39: Carbon Intensity of Landfill Gas to LNG, g/MJ | E39: =H151 -> 27.54093121
A40: Carbon Intensity of Landfill Gas to L-CNG, g/MJ | E40: =H152 -> 32.35523444
H42: Extraction | I42: Processing
H43: MMBtu | I43: MMBtu
F44: Inlet | H44: =B33 -> 402763779 | I44: =#REF! -> 
F45: Thermal Oxidizer (TOX)
G46: Biomethane | I46: =B33*C33-I33 -> -41915121.58
G47: Fossil NG | I47: =D33 -> 68735.325
G48: Diesel | I48: =E33 -> 0
G49: Propane | I49: =F33 -> 7345.625
G50: Electricity | I50: =H33 -> 141606.7479
F51: Sales | I51: =I33 -> 259407562.3
F52: Efficiency | I52: =I51/(I51+I46+I47+I48+I49+I50) -> 1.191527304
A58: eGRID region | B58: Process | D58: Inputs | F58: Values | G58: Shares | H58: CI Outputs, g/MJ | I58: Formulas
A59: Landfill Gas to Compressed NG (CNG) Off-site Refueling | Q59: 1-U.S Ave Mix | R59: 1
A60: =Reference!J35 -> 1-U.S Ave Mix | B60: Raw Biogas Extraction | C60: Raw biogas extraction, MMBtu (HHV) | F60: =B33 -> 402763779 | Q60: 2-User Defined Mix | R60: 2
C61: Methane content, Mole % | F61: =C33 -> 0.54 | Q61: 3-CAMX Mix | R61: 3
C62: Adjusted raw biogas, MMBtu (LHV) | F62: =F60*F61*Fuel_Specs!$B$54/Fuel_Specs!$D$54 -> 195906112.3 | H62: =F65*(Electricity!$B$16+Electricity!$C$16)*LossFactor!$A$4/10^6 -> 0.8549690506 | I62: D8*(Electricity!B15+Electricity!C15)*'Loss Factor'!A4/10^6 | Q62: 4-NWPP Mix | R62: 4
C63: Convert to ft3 | F63: =F62*10^6/Fuel_Specs!$B$54 -> 2.036446074e+11 | I63: Electricity usage*(GHG EF of feedstock and electricity production)* Loss factor of NG transmission/106 | Q63: 5-AZNM Mix | R63: 5
C64: Electricity, kWh | F64: =F65/Fuel_Specs!$F$133/10^6*Fuel_Specs!$B$53*F63 -> 271118894.2 | G64: 1 | Q64: 6-RMPA Mix | R64: 6
C65: Convert to Btu/MMBtu | F65: =C35 -> 4621.26 | Q65: 7-MROW Mix | R65: 7
C66: Energy Efficiency, % | F66: =C36 -> 0.9954 | Q66: 8-SPNO Mix | R66: 8
B67: Gas Processing | C67: Outlet Biomethane, MMBtu (HHV) | F67: =B32*C33 -> 221253.7545 | H67: =SUM(H72:H82) -> 5.226518352 | I67: =(F77*(0%*EF!$Q69+100%*EF!$R69+0%*EF!$S69+Petroleum!$B90*Petroleum!$J$4+Petroleum!$B105)+F75*(100%*EF!$G$16+NG!$B$15)+F73*(0%*EF!B69+0%*EF!C69+0%*EF!F69+100%*EF!BH69)+F79*(EF!$Z59+35%*(Petroleum!$B$52*Petroleum!$H$4+Petroleum!$B$67)+65%*(NG!$D$33))+F81*(Electricity!B69+Electricity!C69))/1000000*LossFactor!$A$4+(F70*10^6*Fuel_Specs!$E$54/Fuel_Specs!$B$54*Fuel_Specs!$B$85/Fuel_Specs!$H$130)*LossFactor!$A$4 ->  | Q67: 9-SPSO Mix | R67: 9
C68: Convert to, MMBtu (LHV) | F68: =F67*Fuel_Specs!$I$54 -> 199294.1122 | Q68: 10-ERCT Mix | R68: 10
C69: Convert to ft3 | F69: =F67*10^6/Fuel_Specs!$B$54 -> 229993507.8 | Q69: 11-MROE Mix | R69: 11
C70: Leakage rate | F70: 0.01 | Q70: 12-SRMW Mix | R70: 12
C71: Process fuel share use | Q71: 13-SRMV Mix | R71: 13
C72: Biomethane use, Btu (HHV) | F72: 0 | G72: =F73/($F$73+$F$75+$F$77+$F$79+$F$81) -> 0 | H72: =F73*(0%*EF!$B$16+0%*EF!$C$16+0%*EF!$F$16+100%*EF!$BH$16)/1000000*LossFactor!$A$4 -> 0 | I72: [Biomethane usage*(GHG EF of equipment+GHG EF of NG) | Q72: 14-RFCM Mix | R72: 14
D73: Convert to Btu/MMBtu (LHV) | F73: 0 | Q73: 15-RFCW Mix | R73: 15
C74: NG use in TOX, Btu (HHV) | F74: =D33 -> 68735.325 | G74: =F75/($F$73+$F$75+$F$77+$F$79+$F$81) -> 0.2948580971 | H74: =F75*(100%*EF!$G$16+NG!$B$15)/1000000*LossFactor!$A$4 -> 0.02447793136 | I74: NG usage*(GHG EF of equipment+Upstream NG GHG EF) | Q74: 16-SRTV Mix | R74: 16
D75: Convert to Btu/MMBtu (LHV) | F75: =D35 -> 316.0354667 | Q75: 17-SRSO Mix | R75: 17
C76: Diesel use in TOX, gallons (HHV) | F76: =E33 -> 0 | G76: =F77/($F$73+$F$75+$F$77+$F$79+$F$81) -> 0 | H76: =F77*(0%*EF!$Q$69+100%*EF!$R$16+0%*EF!$S$16+Petroleum!$B$37*Petroleum!$J$4+Petroleum!$B$52)/1000000*LossFactor!$A$4 -> 0 | I76: Diesel usage*(GHG EF of equipment+Upstream Diesel GHG EF ) | Q76: 18-NEWE Mix | R76: 18
D77: Convert to Btu/MMBtu (LHV) | F77: =E35 -> 0 | Q77: 19-NYUP Mix | R77: 19
C78: LPG use in TOX, Btu (HHV) | F78: =F33 -> 7345.625 | G78: =F79/($F$73+$F$75+$F$77+$F$79+$F$81) -> 0.0324297608 | H78: =(F79*(0%*EF!$Q$16+100%*EF!$Z$16+0%*EF!$S$16+35%*(Petroleum!$B$37*Petroleum!$J$4+Petroleum!$B$67)+65%*(NG!$B$31*LossFactor!$H$4+NG!$C$31))/1000000*LossFactor!$A$4) -> 0.002899697641 | I78: LPG usage*(GHG EF of equipment+GHG EF of LPG from 35% Petroleum and from 65% NG) | Q78: 20-RFCE Mix | R78: 20
D79: Convert to Btu/MMBtu (LHV) | F79: =F35 -> 34.75893894 | Q79: 21-NYLI Mix | R79: 21
C80: Electricity, kWh | F80: =H32 -> 41500841.04 | G80: =F81/($F$73+$F$75+$F$77+$F$79+$F$81) -> 0.6727121421 | H80: =F81*(Electricity!$B$16+Electricity!$C$16)/1000000*LossFactor!$A$4 -> 0.1333957589 | I80: Electricity usage*(GHG EF of feedstock and electricity production)]* Loss factor of NG transmission/106 | Q80: 22-NYCW Mix | R80: 22
D81: Convert to Btu/MMBtu (LHV) | F81: =H35 -> 721.0278365 | Q81: 23-SRVC Mix | R81: 23
C82: Leakage, Btu/MMBtu | F82: =F70*10^6 -> 10000 | H82: =(F82*Fuel_Specs!$E$54/Fuel_Specs!$B$54*Fuel_Specs!$B$85/Fuel_Specs!$H$130)*LossFactor!$A$4 -> 5.065744964 | Q82: 24-FRCC Mix | R82: 24
C83: Energy Efficiency, % | F83: =I36 -> 0.6438306413 | Q83: 25-AKMS Mix | R83: 25
B84: Flaring Credit | D84: Credit, Btu/MMBtu | F84: =-1000000-F73-F70*10^6*0 -> -1000000 | H84: =F84*Credit!$B$24/10^6*LossFactor!$F$4 -> -58.04040897 | I84: D28*Credit!$B$24/10^6*Loss Factor!$A$4 | Q84: 26-AKGD Mix | R84: 26
I85: (Flaring energy*flaring credit*CNG loss factor/106 | Q85: 27-HIOA Mix | R85: 27
A86: =Reference!J40 -> 1-U.S Ave Mix | B86: NG Transmission | D86: by pipeline, miles | F86: =I4 -> 1925 | H86: =(F86/1000*'T&D'!$B$14*100%)+(LossFactor!$F$24/680*F86+LossFactor!$F$25)*Fuel_Specs!$B$85/Fuel_Specs!$G$128 -> 14.32597964 | I86: (D26/1000*'T&D'!B13*100%)/Fuel_Specs!$H$130+(LossFactor!F24/680*D26+LossFactor!F25)*Fuel_Specs!$B$85/Fuel_Specs!$H$130*LossFactor!B4 | Q86: 28-HIMS Mix | R86: 28
I87: [(Pipeline mileage/1000 miles)*GHG EF ] + Methane Leakage GHG EF | Q87: 29- Brazilian Mix | R87: 29
A88: =Reference!$J$37 -> 3-CAMX Mix | B88: CNG production | C88: Processed NG as feedstock, ft3 | F88: =J34*10^6/Fuel_Specs!$B$53 -> 9.048584633e+10 | H88: =F92*(Electricity!$B$32+Electricity!$C$32)/1000000 -> 4.364303222 | I88: D35*(Electricity!B31+Electricity!C31)/1000000
C89: CNG produced, (as ft3 of NG) | F89: =J34*10^6/Fuel_Specs!$B$53 -> 9.048584633e+10 | I89: Electricity Usage*(GHG EF of upstream electricity production)* Loss factor/106
C90: Process fuel share use
C91: Electricity, kWh | F91: 1081280459
D92: Convert to Btu/MMBtu | F92: =F91*Fuel_Specs!$F$133/10^6*10^6/J34 -> 41479.28243 | Q92: Check
D93: Convert to kWh/ft3 | F93: =F91/F89 -> 0.01194971924
C94: Compression Efficiency, % | F94: =J36 -> 0.96 | Q94: =H62+H67+H84+H86 -> -37.63294192
A95: Landfill Gas to Liquefied NG (LNG) | D95: Inputs | F95: Values | G95: Shares | H95: CI, g/MJ | I95: Formulas | Q95: =H88 -> 4.364303222
A96: =Reference!$J$35 -> 1-U.S Ave Mix | B96: Raw Biogas Extraction | C96: Raw biogas extraction, MMscf (LHV) | F96: =F60 -> 402763779 | Q96: =H148 -> 60.69
C97: Methane content, Mole % | F97: =F61 -> 0.54 | Q97: =SUM(Q94:Q96) -> 27.4213613
C98: Adjusted raw biogas, MMBtu | F98: =F96*F97*Fuel_Specs!$B$54/Fuel_Specs!$D$54 -> 195906112.3 | H98: =F101*(Electricity!$B$16+Electricity!$C$16)*LossFactor!$D$4*LossFactor!$E$4/10^6 -> 0.8453436726 | I98: 4621.2578*(Electricity!B15+Electricity!C15)*'Loss Factor'!B4/10^6
C99: Convert to ft3 | F99: =F98/Fuel_Specs!$B$54*10^6 -> 2.036446074e+11 | I99: Electricity Usage*(GHG EF of upstream electricity production)* Loss factor/106
C100: Electricity, kWh | F100: =F65/Fuel_Specs!$F$133/10^6*Fuel_Specs!$B$53*F63 -> 271118894.2
D101: Convert to Btu/MMBtu | F101: =C35 -> 4621.26
C102: Energy Efficiency, % | F102: =F66 -> 0.9954
B103: Gas Processing | C103: Outlet Biomethane, MMBtu (HHV) | F103: =F67 -> 221253.7545 | H103: =H108+H110+H112+H114+H116+H118 -> 5.167677374 | I103: (((D58*(0%*EF!$Q16+100%*EF!$R16+0%*EF!$S16+Petroleum!$B37*Petroleum!$J$4+Petroleum!$B52)+D56*(100%*EF!G15+NG!D15)+D54*(0%*EF!B16+0%*EF!C16+0%*EF!F16+100%*EF!BI16)+D60*(EF!$Z6+35%*(Petroleum!$B$37*Petroleum!$H$4+Petroleum!$B$67)+65%*(NG!B34))+D62*(Electricity!B15+Electricity!C15))/1000000))*Loss Factor!$C$4*Loss Factor!$D$4+(D51*10^6*Fuel_Specs!$E$54/Fuel_Specs!$B$54)*Fuel_Specs!$B$85/Fuel_Specs!$H$130*Loss Factor!$C$4*Loss Factor!$D$4
C104: Adjusted raw biogas, MMBtu (LHV) | F104: =F103*Fuel_Specs!$I$54 -> 199294.1122
C105: Convert to ft3 (LHV) | F105: =F103/Fuel_Specs!$B$54*10^6 -> 229993507.8 | I105: Gas Processing Energy*(GHG EF of equipment+upstream GHG EF of process fuel)
C106: Leakage rate | F106: 0.01
C107: Process fuel share use
C108: Biomethane use, Btu (LHV) | F108: 0 | G108: =F109/($F$109+$F$111+$F$113+$F$115+$F$117) -> 0 | H108: =F109*(0%*EF!$B$16+0%*EF!$C$16+0%*EF!$F$16+100%*EF!$BH$16)/1000000*LossFactor!$D$4*LossFactor!$E$4 -> 0
D109: Convert to Btu/MMBtu | F109: 0
C110: NG use in TOX, Btu (LHV) | F110: =D33 -> 68735.325 | G110: =F111/($F$109+$F$111+$F$113+$F$115+$F$117) -> 0.2948580971 | H110: =F111*(100%*EF!$G$16+NG!$B$15)/1000000*LossFactor!$D$4*LossFactor!$E$4 -> 0.02420235491
D111: Convert to Btu/MMBtu | F111: =D35 -> 316.0354667
C112: Diesel use, gallons (LHV) | F112: =E33 -> 0 | G112: =F113/($F$109+$F$111+$F$113+$F$115+$F$117) -> 0 | H112: =F113*(0%*EF!$Q$16+100%*EF!$R$16+0%*EF!$S$16+Petroleum!$B$37*Petroleum!$J$4+Petroleum!$B$52)/1000000*LossFactor!$D$4*LossFactor!$E$4 -> 0
D113: Convert to Btu/MMBtu | F113: =E35 -> 0
C114: LPG use in TOX, Btu (LHV) | F114: =F33 -> 7345.625 | G114: =F115/($F$109+$F$111+$F$113+$F$115+$F$117) -> 0.0324297608 | H114: =(F115*(0%*EF!$Q$16+100%*EF!$Z$16+0%*EF!$S$16+35%*(Petroleum!$B$37*Petroleum!$J$4+Petroleum!$B$67)+65%*(NG!$B$31*LossFactor!$H$4+NG!$C$31))/1000000*LossFactor!$D$4*LossFactor!$E$4) -> 0.002867052382
D115: Convert to Btu/MMBtu | F115: =F35 -> 34.75893894
C116: Electricity, kWh | F116: =H32 -> 41500841.04 | G116: =F117/($F$109+$F$111+$F$113+$F$115+$F$117) -> 0.6727121421 | H116: =F117*(Electricity!$B$16+Electricity!$C$16)/1000000*LossFactor!$D$4*LossFactor!$E$4 -> 0.1318939682
D117: Convert to Btu/MMBtu | F117: =H35 -> 721.0278365
C118: Leakage, Btu/MMBtu | F118: =F106*10^6 -> 10000 | H118: =(F118*Fuel_Specs!$E$54/Fuel_Specs!$B$54*Fuel_Specs!$B$85/Fuel_Specs!$H$130)*LossFactor!$D$4*LossFactor!$E$4 -> 5.008713999
D119: Energy Efficiency, % | F119: =I36 -> 0.6438306413
B120: Flaring Credit | C120: Credit, Btu/MMBtu | F120: =-1000000-F109-F118 -> -1010000 | H120: =F120*Credit!$B$24/10^6*LossFactor!$E$4 -> -57.95505451 | I120: D64*Credit!$B$24/10^6*Loss Factor!$C$4*Loss Factor!$D$4
I121: Energy Credit*(GHG EF of credit)*Loss Factor
A122: 1-U.S Ave Mix | B122: NG Transmission | C122: by pipeline, miles | F122: =I4 -> 1925 | H122: =((F122/1000*'T&D'!$B$14*100%)+(LossFactor!$F$24/680*F122*100%)*Fuel_Specs!$B$85/Fuel_Specs!$H$130)*LossFactor!$D$4*LossFactor!$E$4 -> 12.84000584 | I122: (D65/1000*'T&D'!B13*100%)/Fuel_Specs!$H$130+(Loss Factor!$F$24/680*D65*100%)*Fuel_Specs!$B$85/Fuel_Specs!$H$130*Loss Factor!$C$4*Loss Factor!$D$4
I123: [(Pipeline mileage/1000 miles)*GHG EF ] + Methane Leakage GHG EF | Q123: =H98+H103+H120+H122 -> -39.10202762
A124: =Reference!$J$37 -> 3-CAMX Mix | B124: LNG Production | C124: Processed NG as feedstock, MMBtu | F124: =K32 -> 4425103.844 | H124: =SUM(H127:H134) -> 5.403963649 | I124: (D72*(100%*EF!$G16+NG!B15)+D74*(Electricity!B31+Electricity!C31))*Loss Factor!$C$4*Loss Factor!$D$4/10^6+(0.1%*5*10^6/Fuel_Specs!B31*Fuel_Specs!E31/(1-0.1%*5)*Fuel_Specs!$B$85*(1-80%)*Loss Factor!$C$4*Loss Factor!$D$4/Fuel_Specs!$H$130)
D125: Convert to ft3 | F125: =F124*10^6/Fuel_Specs!$B$53 -> 4501631581
C126: LNG produced, gallons | F126: =L33 -> 5951864.185 | I126: (Energy of LNG production*Loss Factor of LNG transport + GHG EF of Methane Leakage during storage)
D127: Process fuel share use
C128: NG use, Btu (LHV) | F128: =M34*10^6 -> 0 | G128: =F128/($F$128+$F$131*Fuel_Specs!$F$133) -> 0 | H128: =(F129*(0%*EF!$B16+0%*EF!$C16+0%*EF!$F16+100%*EF!$G16+NG!$C$15))*LossFactor!$D$4*LossFactor!$E$4/10^6 -> 0
D129: Convert to Btu/MMBtu | F129: =M35 -> 0
D130: Convert to Btu/gal | F130: =F128/F126 -> 0
C131: Electricity, kWh | F131: =N32 -> 71241480 | G131: =F131*Fuel_Specs!$F$133/($F$128+$F$131*Fuel_Specs!$F$133) -> 1 | H131: =F132*(Electricity!$B$32+Electricity!$C$32)*LossFactor!$D$4*LossFactor!$E$4/10^6 -> 4.886442218
D132: Convert to Btu/MMBtu | F132: =N35 -> 46362.66334
D133: Convert to kWh/gal | F133: =F131/F126 -> 11.9696078
C134: CH4 loss from boil off, Btu | H134: =(0.1%*5*10^6/Fuel_Specs!B31*Fuel_Specs!E31/(1-0.1%*5)*Fuel_Specs!$B$85*(1-80%)*LossFactor!$D$4*LossFactor!$E$4/Fuel_Specs!$H$130) -> 0.5175214309
C135: Liquefaction Efficiency, % | F135: =O36 -> 0.9556915924
B136: LNG Transport and Distribution | H136: =SUM(H137:H142) -> 0.3189951815
C139: By HDT Truck, miles | F139: =P11 -> 5 | H139: =F139/100*'T&D'!$E$43*LossFactor!$E$4*F140*LossFactor!$D$4*LossFactor!$E$4 -> 0.03650241821 | I139: D77/100*'T&D'!$B$28*Loss Factor!$C$4*Loss Factor!$D$4
D140: Mode Share | F140: 1
C141: By LNG Truck, miles | F141: =P13 -> 45 | H141: =F141/100*'T&D'!$H$43*LossFactor!$D$4*LossFactor!$E$4*F142 -> 0.2824927633
D142: Mode Share | F142: 1 | I142: Mileage*GHG EF of the mode of transportation*Loss Factor
B143: LNG Storage | D143: With LNG Boil-off Recovery System | F143: =P8 -> No | H143: =IF(F143="Yes",LossFactor!B96,LossFactor!B97) -> 0 | I143: (0.1%*5/(1-0.1%*5)*(1-80%)+0.1%*3/(1-0.1%*3)*(1-80%))*10^6/Fuel_Specs!$B$31*Fuel_Specs!$E$31*Fuel_Specs!B85/Fuel_Specs!$H$130
A144: Landfill Gas to Liquefied CNG (L-CNG) | F144: Values | G144: Shares | H144: CI, g/MJ
A145: =Reference!J43 -> 3-CAMX Mix | B145: L-CNG Production | F145: Re-gasification | H145: =NG!D35 -> 0.68 | I145: D85*(100%*EF!$D16+(NG!B31)*LossFactor!B4+'T&D'!B28)/1000000
F146: Compression | H146: =NG!D36 -> 4.364303222 | I146: D90*(Electricity!$B$31+Electricity!$C$31)/106
B147: Tailpipe Emissions
C148: CNG Vehicles | H148: 60.69
C149: LNG Vehicles | H149: 60.92
F150: Final CNG CI, g/MJ | H150: =H62+H67+H84+H86+H88+H148 -> 27.4213613
F151: Final LNG CI, g/MJ | H151: =H98+H103+H120+H122+H124+H136+H149+H143 -> 27.54093121
F152: Final L-CNG CI, g/MJ | H152: =H98+H103+H122+H120+H124+H145+H146+H148+H136+H143 -> 32.35523444

Sheet EtOH (hidden)
A1: Producer Operational Data Summary | D1: Applicant: | E1: ABC Company | G1: Feedstock Production Location: | I1: U.S | J1: Ethanol Production Location: | L1: DEF Town, XY State
A2: CI Restults | B2: Corn Ethanol CI, g/MJ | D2: =B39 -> 83.23833454 | G2: Sorghum Ethanol CI, g/MJ | I2: =F165 -> 85.75828044 | L2: DRAFT - FOR DISCUSSION ONLY - DO NOT USE
B3: Volume, gal | D3: =AJ33*H43 -> 75729360.92 | G3: Volume, gal | I3: =AJ33-D3 -> 15839199.08
A4: Data Years | B4: Step 1) Select Feedstock Production Region | AG4: Step 2) Select Region for Ethanol Production (Dry Mill)
B5: Select Regional Electricity Mix for Feedstock Production | O5: 7-MROW Mix | AG5: Select Regional Electricity Mix for Fuel Production | AP5: 3-CAMX Mix
A6: Process | B6: Inputs for Corn and Sorghum and Co-products | AG6: Inputs for Ethanol Production
A7: Monthly Data | B7: Beginning Corn Inventory | C7: Corn Used | D7: Corn Received | E7: Ending Corn Inventory | F7: Corn Transport | G7: Beginning Sorghum Inventory | H7: Sorghum Used | I7: Sorghum Received | J7: Ending Sorghum Inventory | K7: Sorghum Transport | L7: Dry Distiller Grains Produced | M7: Dry Distiller Grains Sales | N7: Dry DG Ending inventory | O7: Moisture Content | P7: Modified Distller Grains Produced | Q7: Modified Distller Grains Sales | R7: Modified DG Ending Inventory | S7: Moisture Content | T7: Wet Distiller Grains Produced | U7: Wet Distiller Grains Sales | V7: Wet DG Ending Inventory | W7: Moisture Content | X7: Syrup Produced | Y7: Syrup Sales | Z7: Syrup Ending Inventory | AA7: Moisture Content | AB7: Corn Oil Produced | AC7: Corn Oil Sales | AD7: Corn Oil Ending Inventory | AE7: Moisture Content | AF7: DGS Yield | AG7: Beginning Denatured Ethanol | AH7: Denatured Ethanol Sales | AI7: Ending Denatured Ethanol | AJ7: Ethanol Produced | AK7: NG Use from Invoices | AL7: Biomass Use from Invoices | AM7: Biomass Transport Distance | AN7: Biogas Use from Invoices | AO7: Biogas Parameters | AP7: Other Thermal Energy Use | AQ7: Electricity from Utility Invoices | AR7: Electricity from Other Sources | AS7: Ethanol Transport
A8: Unit | B8: Bushels | C8: Bushels | D8: Bushels | E8: Bushels | F8: Miles | G8: Bushels | H8: Bushels | I8: Bushels | J8: Bushels | K8: Miles | L8: Tons | M8: Tons | N8: Tons | O8: % | P8: Tons | Q8: Tons | R8: Tons | S8: % | T8: Tons | U8: Tons | V8: Tons | W8: % | X8: Tons | Y8: Tons | Z8: Tons | AA8: % | AB8: lbs. | AC8: lbs. | AD8: lbs. | AE8: % | AF8: Dry matter lbs/gal EtOH | AG8: Gallons @ 60o F | AH8: Gallons @ 60o F | AI8: Gallons @ 60o F | AJ8: Gallons @ 60o F | AK8: MMBtu, HHV | AL8: Dry Tons | AM8: Miles | AN8: MMBtu, HHV | AP8: MMBtu, HHV | AQ8: kWh | AR8: kWh | AS8: Mode | AT8: Miles
A9: Month 1 | B9: 1000000 | C9: =B9+D9-E9 -> 1330000 | D9: 1330000 | E9: 1000000 | F9: By HDT Truck | K9: By HDT Truck | L9: =M9+N9-0 -> 888 | M9: 588 | N9: 300 | O9: 0.1 | P9: =Q9+R9-0 -> 0 | Q9: 0 | R9: 0 | S9: 0 | T9: =U9+V9-0 -> 53000 | U9: 50000 | V9: 3000 | W9: 0.68 | X9: =Y9+Z9-0 -> 2.2 | Y9: 1 | Z9: 1.2 | AA9: 0.65 | AB9: =AC9+AD9-0 -> 1400000 | AC9: 500000 | AD9: 900000 | AE9: 0.005 | AF9: =(((L9*(1-O9)+P9*(1-S9)+T9*(1-W9)+X9*(1-AA9))*2000+AB9*(1-AE9)))/AJ9 -> 19.08079357 | AG9: 1234560 | AH9: 1000000 | AI9: 1700000 | AJ9: =AG9-AH9+AI9 -> 1934560 | AK9: 75500 | AL9: 95 | AM9: By HDT Truck | AN9: 0 | AO9: Pipeline, miles | AQ9: 1600000 | AS9: By Rail | AT9: 1396
A10: Month 2 | B10: 1000000 | C10: =B10+D10-E10 -> 1300000 | D10: 1200000 | E10: 900000 | F10: 80 | K10: 80 | L10: =M10+N10-N9 -> 1100 | M10: 800 | N10: 600 | O10: 0.11 | P10: =Q10+R10-R9 -> 0 | Q10: 0 | R10: 0 | S10: 0 | T10: =U10+V10-V9 -> 52100 | U10: 55000 | V10: 100 | W10: 0.68 | X10: =Y10+Z10-Z9 -> 1 | Y10: 1 | Z10: 1.2 | AA10: 0.65 | AB10: =AC10+AD10-AD9 -> 450000 | AC10: 500000 | AD10: 850000 | AE10: =AE9 -> 0.005 | AF10: 6.059398305 | AG10: =AI9 -> 1700000 | AH10: 1000000 | AI10: 5200000 | AJ10: =AG10-AH10+AI10 -> 5900000 | AK10: 78000 | AL10: 10 | AM10: 80 | AN10: 0 | AO10: 80 | AQ10: 1500000
A11: Month 3 | B11: 1000000 | C11: 1300000 | D11: 1400000 | E11: 1100000 | F11: By Rail | K11: By Rail | L11: =M11+N11-N10 -> 116 | M11: 136 | N11: 580 | O11: 0.11 | P11: =Q11+R11-R10 -> 0 | Q11: 0 | R11: 0 | S11: 0 | T11: =U11+V11-V10 -> 55485 | U11: 55555 | V11: 30 | W11: 0.68 | X11: =Y11+Z11-Z10 -> 1 | Y11: 1 | Z11: 1.2 | AA11: 0.65 | AB11: =AC11+AD11-AD10 -> 600000 | AC11: 500000 | AD11: 950000 | AE11: =AE10 -> 0.005 | AF11: 5.502209091 | AG11: =AI10 -> 5200000 | AH11: 1000000 | AI11: 2400000 | AJ11: 6600000 | AK11: 67000 | AL11: 260 | AM11: By Rail | AN11: 0 | AQ11: 1500000
A12: Month 4 | B12: 1000000 | C12: 1100000 | D12: 1400000 | E12: 1300000 | F12: 2000 | G12: 500000 | H12: =G12+I12-J12 -> 900000 | I12: 1000000 | J12: 600000 | K12: 2000 | L12: 132 | M12: 100 | N12: 612 | O12: 0.11 | P12: 0 | Q12: 0 | R12: 0 | S12: 0 | T12: 22215 | U12: 22225 | V12: 20 | W12: 0.68 | X12: 1 | Y12: 1 | Z12: 1.2 | AA12: 0.65 | AB12: 250000 | AC12: 500000 | AD12: 700000 | AE12: 0.005 | AF12: 3.86895 | AG12: 2400000 | AH12: 1000000 | AI12: 2400000 | AJ12: 3800000 | AK12: 73000 | AL12: 200 | AM12: 2000 | AN12: 0 | AQ12: 1500000 | AS12: By Heavy Duty Diesel Truck | AT12: 100
A13: Month 5 | B13: 1000000 | C13: 839000 | D13: 839000 | E13: 1000000 | G13: 500000 | H13: 2100000 | I13: 2000000 | J13: 400000 | L13: 135 | M13: 135 | N13: 612 | O13: 0.11 | P13: 0 | Q13: 0 | R13: 0 | S13: 0 | T13: 79992 | U13: 80000 | V13: 12 | W13: 0.68 | X13: 1 | Y13: 1 | Z13: 1.2 | AA13: 0.65 | AB13: 300000 | AC13: 500000 | AD13: 500000 | AE13: 0.005 | AF13: 8.768538983 | AG13: 2400000 | AH13: 1000000 | AI13: 4500000 | AJ13: 5900000 | AK13: 53000 | AL13: 100 | AN13: 0 | AQ13: 1500000
A14: Month 6 | B14: 1000000 | C14: 800000 | D14: 1300000 | E14: 1500000 | G14: 500000 | H14: 750000 | I14: 700000 | J14: 450000 | L14: 135 | M14: 135 | N14: 612 | O14: 0.11 | P14: 0 | Q14: 0 | R14: 0 | S14: 0 | T14: 90010 | U14: 90000 | V14: 22 | W14: 0.68 | X14: 1 | Y14: 1 | Z14: 1.2 | AA14: 0.65 | AB14: 984000 | AC14: 500000 | AD14: 984000 | AE14: 0.005 | AF14: 10.89379259 | AG14: 4500000 | AH14: 1500000 | AI14: 2400000 | AJ14: 5400000 | AK14: 73000 | AL14: 81 | AN14: 0 | AQ14: 1500000 | AS14: By Other Modes
A15: Month 7 | B15: 1000000 | C15: 1700000 | D15: 1500000 | E15: 800000 | L15: 435 | M15: 435 | N15: 612 | O15: 0.11 | P15: 0 | Q15: 0 | R15: 0 | S15: 0 | T15: 79980 | U15: 80000 | V15: 2 | W15: 0.68 | X15: 1 | Y15: 1 | Z15: 1.2 | AA15: 0.65 | AB15: =AC15+AD15-AD14 -> 916000 | AC15: 800000 | AD15: 1100000 | AE15: 0.005 | AF15: 23.66769024 | AG15: 2400000 | AH15: 2566000 | AI15: 2400000 | AJ15: 2234000 | AK15: 77000 | AL15: 105 | AN15: 0 | AQ15: 1500000
A16: Month 8 | B16: 1000000 | C16: 1500000 | D16: 1500000 | E16: 1000000 | L16: 133 | M16: 133 | N16: 612 | O16: 0.11 | P16: 0 | Q16: 0 | R16: 0 | S16: 0 | T16: 50031 | U16: 50000 | V16: 33 | W16: 0.68 | X16: 1 | Y16: 1 | Z16: 1.2 | AA16: 0.65 | AB16: 460000 | AC16: 600000 | AD16: 960000 | AE16: 0.005 | AF16: 8.609205263 | AG16: 2400000 | AH16: 1000000 | AI16: 2400000 | AJ16: 3800000 | AK16: 78999 | AL16: 90 | AN16: 0 | AQ16: 1500000 | AS16: Specify Mode | AT16: 0
A17: Month 9 | B17: 1000000 | C17: 1580000 | D17: 1280000 | E17: 700000 | L17: 461 | M17: 461 | N17: 612 | O17: 0.11 | P17: 0 | Q17: 0 | R17: 0 | S17: 0 | T17: 29972 | U17: 30000 | V17: 5 | W17: 0.68 | X17: 1 | Y17: 1 | Z17: 1.2 | AA17: 0.65 | AB17: 380000 | AC17: 580000 | AD17: 760000 | AE17: 0.005 | AF17: 9.2643 | AG17: 2400000 | AH17: 2600000 | AI17: 2400000 | AJ17: 2200000 | AK17: 72000 | AL17: 86 | AN17: 0 | AQ17: 1500000 | AS17: Specify Mode | AT17: 0
A18: Month 10 | B18: 1000000 | C18: 1090000 | D18: 1290000 | E18: 1200000 | L18: 314 | M18: 314 | N18: 612 | O18: 0.11 | P18: 0 | Q18: 0 | R18: 0 | S18: 0 | T18: 52273 | U18: 52222 | V18: 56 | W18: 0.68 | X18: 1 | Y18: 1 | Z18: 1.2 | AA18: 0.65 | AB18: 550000 | AC18: 690000 | AD18: 620000 | AE18: 0.005 | AF18: 21.60099375 | AG18: 2400000 | AH18: 3200000 | AI18: 2400000 | AJ18: 1600000 | AK18: 68000 | AL18: 66 | AN18: 0 | AQ18: 1500000
A19: Month 11 | B19: 1000000 | C19: 1550000 | D19: 1550000 | E19: 1000000 | L19: 133 | M19: 133 | N19: 612 | O19: 0.11 | P19: 0 | Q19: 0 | R19: 0 | S19: 0 | T19: 55398 | U19: 55444 | V19: 10 | W19: 0.68 | X19: 1 | Y19: 1 | Z19: 1.2 | AA19: 0.65 | AB19: 80000 | AC19: 500000 | AD19: 200000 | AE19: 0.005 | AF19: 12.77562857 | AG19: 2400000 | AH19: 2000000 | AI19: 2400000 | AJ19: 2800000 | AK19: 80000 | AL19: 116 | AN19: 0 | AQ19: 1500000
A20: Month 12 | B20: 1000000 | C20: 950000 | D20: 1450000 | E20: 1500000 | L20: 161 | M20: 161 | N20: 612 | O20: 0.11 | P20: 0 | Q20: 0 | R20: 0 | S20: 0 | T20: 10991 | U20: 11000 | V20: 1 | W20: 0.68 | X20: 1 | Y20: 1 | Z20: 1.2 | AA20: 0.65 | AB20: 1200000 | AC20: 500000 | AD20: 900000 | AE20: 0.005 | AF20: 2.240926316 | AG20: 2400000 | AH20: 1000000 | AI20: 2400000 | AJ20: 3800000 | AK20: 85000 | AL20: 115 | AN20: 0 | AQ20: 1500000
A21: Month 13 | B21: 1000000 | C21: 1408000 | D21: 1308000 | E21: 900000 | L21: 131 | M21: 131 | N21: 612 | O21: 0.11 | P21: 0 | Q21: 0 | R21: 0 | S21: 0 | T21: 11049 | U21: 11000 | V21: 50 | W21: 0.68 | X21: 1 | Y21: 1 | Z21: 1.2 | AA21: 0.65 | AB21: 500000 | AC21: 500000 | AD21: 900000 | AE21: 0.005 | AF21: 2.053352632 | AG21: 2400000 | AH21: 1000000 | AI21: 2400000 | AJ21: 3800000 | AK21: 80000 | AL21: 111 | AN21: 0 | AQ21: 1500000
A22: Month 14 | B22: 1000000 | C22: 1308000 | D22: 1308000 | E22: 1000000 | L22: 111 | M22: 111 | N22: 612 | O22: 0.11 | P22: 0 | Q22: 0 | R22: 0 | S22: 0 | T22: 11000 | U22: 11000 | V22: 50 | W22: 0.68 | X22: 1 | Y22: 1 | Z22: 1.2 | AA22: 0.65 | AB22: 155500.47 | AC22: 500000 | AD22: 555500.47 | AE22: 0.005 | AF22: 1.945527097 | AG22: 2400000 | AH22: 1000000 | AI22: 2400000 | AJ22: 3800000 | AK22: 60000 | AL22: 128 | AN22: 0 | AQ22: 1500000
A23: Month 15 | B23: 1000000 | C23: 1418000 | D23: 1308000 | E23: 890000 | L23: 120 | M23: 120 | N23: 612 | O23: 0.11 | P23: 0 | Q23: 0 | R23: 0 | S23: 0 | T23: 10980 | U23: 11000 | V23: 30 | W23: 0.68 | X23: 1 | Y23: 1 | Z23: 1.2 | AA23: 0.65 | AB23: 680467.5 | AC23: 500000 | AD23: 735967.97 | AE23: 0.005 | AF23: 2.083832937 | AG23: 2400000 | AH23: 1000000 | AI23: 2400000 | AJ23: 3800000 | AK23: 82000 | AL23: 126 | AN23: 0 | AQ23: 1500000
A24: Month 16 | B24: 1000000 | C24: 1308000 | D24: 1308000 | E24: 1000000 | L24: 145 | M24: 145 | N24: 612 | O24: 0.11 | P24: 0 | Q24: 0 | R24: 0 | S24: 0 | T24: 10990 | U24: 11000 | V24: 20 | W24: 0.68 | X24: 1 | Y24: 1 | Z24: 1.2 | AA24: 0.65 | AB24: 544032.03 | AC24: 500000 | AD24: 780000 | AE24: 0.005 | AF24: 2.061503124 | AG24: 2400000 | AH24: 1000000 | AI24: 2400000 | AJ24: 3800000 | AK24: 80000 | AL24: 120 | AN24: 0 | AQ24: 1500000
A25: Month 17 | B25: 1000000 | C25: 1251110 | D25: 1308000 | E25: 1056890 | L25: 123 | M25: 123 | N25: 612 | O25: 0.11 | P25: 0 | Q25: 0 | R25: 0 | S25: 0 | T25: 11040 | U25: 11000 | V25: 60 | W25: 0.68 | X25: 1 | Y25: 1 | Z25: 1.2 | AA25: 0.65 | AB25: 688000 | AC25: 500000 | AD25: 968000 | AE25: 0.005 | AF25: 2.097315789 | AG25: 2400000 | AH25: 1000000 | AI25: 2400000 | AJ25: 3800000 | AK25: 82000 | AL25: 116 | AN25: 0 | AQ25: 1500000
A26: Month 18 | B26: 1000000 | C26: 1645460 | D26: 1308000 | E26: 662540 | L26: 56 | M26: 56 | N26: 612 | O26: 0.11 | P26: 0 | Q26: 0 | R26: 0 | S26: 0 | T26: 10995 | U26: 11000 | V26: 55 | W26: 0.68 | X26: 1 | Y26: 1 | Z26: 1.2 | AA26: 0.65 | AB26: 212000 | AC26: 500000 | AD26: 680000 | AE26: 0.005 | AF26: 1.933715789 | AG26: 2400000 | AH26: 1000000 | AI26: 2400000 | AJ26: 3800000 | AK26: 77040 | AL26: 116 | AN26: 0 | AQ26: 1500000
A27: Month 19 | B27: 1000000 | C27: 1058000 | D27: 1308000 | E27: 1250000 | G27: 500000 | H27: =G27+I27-J27 -> 800000 | I27: 1000000 | J27: 700000 | L27: 548 | M27: 548 | N27: 612 | O27: 0.11 | P27: 0 | Q27: 0 | R27: 0 | S27: 0 | T27: 10996 | U27: 11000 | V27: 51 | W27: 0.68 | X27: 1 | Y27: 1 | Z27: 1.2 | AA27: 0.65 | AB27: 590000 | AC27: 500000 | AD27: 770000 | AE27: 0.005 | AF27: 2.263323684 | AG27: 2400000 | AH27: 1000000 | AI27: 2400000 | AJ27: 3800000 | AK27: 79000 | AL27: 86 | AN27: 0 | AQ27: 1500000
A28: Month 20 | B28: 1000000 | C28: 1420000 | D28: 1408000 | E28: 988000 | G28: 500000 | H28: 1470000 | I28: 1500000 | J28: 530000 | L28: 102 | M28: 102 | N28: 612 | O28: 0.11 | P28: 0 | Q28: 0 | R28: 0 | S28: 0 | T28: 10970 | U28: 11000 | V28: 21 | W28: 0.68 | X28: 1 | Y28: 1 | Z28: 1.2 | AA28: 0.65 | AB28: 730000 | AC28: 500000 | AD28: 1000000 | AE28: 0.005 | AF28: 2.086686842 | AG28: 2400000 | AH28: 1000000 | AI28: 2400000 | AJ28: 3800000 | AK28: 77000 | AL28: 86 | AN28: 0 | AQ28: 1500000
A29: Month 21 | B29: 1000000 | C29: 1755000 | D29: 1408000 | E29: 653000 | G29: 500000 | H29: 610000 | I29: 700000 | J29: 590000 | L29: 23 | M29: 23 | N29: 612 | O29: 0.11 | P29: 0 | Q29: 0 | R29: 0 | S29: 0 | T29: 10991 | U29: 11000 | V29: 12 | W29: 0.68 | X29: 1 | Y29: 1 | Z29: 1.2 | AA29: 0.65 | AB29: 400000 | AC29: 500000 | AD29: 900000 | AE29: 0.005 | AF29: 1.966810526 | AG29: 2400000 | AH29: 1000000 | AI29: 2400000 | AJ29: 3800000 | AK29: 58000 | AL29: 89 | AN29: 0 | AQ29: 1500000
A30: Month 22 | B30: 1000000 | C30: 972360 | D30: 1208000 | E30: 1235640 | L30: 110 | M30: 110 | N30: 612 | O30: 0.11 | P30: 0 | Q30: 0 | R30: 0 | S30: 0 | T30: 11001 | U30: 11000 | V30: 13 | W30: 0.68 | X30: 1 | Y30: 1 | Z30: 1.2 | AA30: 0.65 | AB30: 655000 | AC30: 500000 | AD30: 1055000 | AE30: 0.005 | AF30: 2.076017105 | AG30: 2400000 | AH30: 1000000 | AI30: 2400000 | AJ30: 3800000 | AK30: 99000 | AL30: 134 | AN30: 0 | AQ30: 1500000
A31: Month 23 | B31: 1000000 | C31: 1508000 | D31: 1508000 | E31: 1000000 | L31: 200 | M31: 200 | N31: 612 | O31: 0.11 | P31: 0 | Q31: 0 | R31: 0 | S31: 0 | T31: 10997 | U31: 11000 | V31: 10 | W31: 0.68 | X31: 1 | Y31: 1 | Z31: 1.2 | AA31: 0.65 | AB31: 645000 | AC31: 500000 | AD31: 1200000 | AE31: 0.005 | AF31: 2.114882895 | AG31: 2400000 | AH31: 1000000 | AI31: 2400000 | AJ31: 3800000 | AK31: 87000 | AL31: 111 | AN31: 0 | AQ31: 1500000
A32: Month 24 | B32: 1000000 | C32: 1608000 | D32: 1508000 | E32: 900000 | L32: 222 | M32: 222 | N32: 612 | O32: 0.11 | P32: 0 | Q32: 0 | R32: 0 | S32: 0 | T32: 11009 | U32: 11000 | V32: 19 | W32: 0.68 | X32: 1 | Y32: 1 | Z32: 1.2 | AA32: 0.65 | AB32: 300000 | AC32: 500000 | AD32: 1000000 | AE32: 0.005 | AF32: 2.036873684 | AG32: 2400000 | AH32: 1000000 | AI32: 2400000 | AJ32: 3800000 | AK32: 80000 | AL32: 127 | AN32: 0 | AQ32: 1500000
A33: Total or Average | B33: =SUM(B9:B32) -> 24000000 | C33: =SUM(C9:C32) -> 31698930 | D33: =SUM(D9:D32) -> 32235000 | E33: =SUM(E9:E32) -> 24536070 | G33: 3000000 | H33: =SUM(H9:H32) -> 6630000 | I33: 6900000 | J33: 3270000 | L33: =SUM(L9:L32) -> 6034 | M33: =SUM(M9:M32) -> 5422 | N33: =SUM(N9:N32) -> 14332 | O33: =AVERAGE(O9:O32) -> 0.1095833333 | P33: =SUM(P9:P32) -> 0 | Q33: =SUM(Q9:Q32) -> 0 | R33: 0 | S33: =AVERAGE(S9:S32) -> 0 | T33: =SUM(T9:T32) -> 763465 | U33: =SUM(U9:U32) -> 763446 | V33: =SUM(V9:V32) -> 3682 | W33: =AVERAGE(W9:W32) -> 0.68 | X33: =SUM(X9:X32) -> 25.2 | Y33: =SUM(Y9:Y32) -> 24 | Z33: =SUM(Z9:Z32) -> 28.8 | AA33: 0.65 | AB33: =SUM(AB9:AB32) -> 13670000 | AC33: =SUM(AC9:AC32) -> 12670000 | AD33: =SUM(AD9:AD32) -> 19968468.44 | AF33: 5.602914235 | AG33: =SUM(AG9:AG32) -> 60634560 | AH33: 30866000 | AI33: =SUM(AI9:AI32) -> 61800000 | AJ33: =SUM(AJ9:AJ32) -> 91568560 | AK33: =SUM(AK9:AK32) -> 1821539 | AL33: 2674 | AN33: 0 | AP33: =SUM(AP9:AP32) -> 0 | AQ33: 36100000 | AR33: =SUM(AR9:AR32) -> 0
A34: Total MMBtu in HHV | AJ34: =AJ33*Fuel_Specs!$D$26/10^6 -> 7740290.377 | AK34: =AK33 -> 1821539 | AL34: =AL33*Fuel_Specs!$D$73/10^6 -> 47880.644 | AN34: =AN33 -> 0 | AQ34: =SUM(AQ9:AQ32)*Fuel_Specs!$F$133/10^6 -> 123178.3133
A35: Convert to MMBtu, in LHV | AJ35: =AJ34*Fuel_Specs!$I$26 -> 6989428.185 | AK35: =AK34*Fuel_Specs!$I$53 -> 1644849.717 | AL35: =AL34*Fuel_Specs!$I$73 -> 46230.786 | AN35: =AN34*Fuel_Specs!$I$54 -> 0 | AQ35: =AQ34 -> 123178.3133
A36: Convert to Btu/gallons fuel throughput | AK36: =AK35*10^6/$AJ$33 -> 17963.04012 | AL36: =AL35*10^6/$AJ$35 -> 6614.38744 | AN36: =AN35*10^6/$AJ$35 -> 0 | AQ36: =AQ35*10^6/$AJ$33 -> 1345.203127
A37: Process Shares and Efficiency, % | AK37: =AK36/($AK$36+$AP$36+$AL$36+$AN$36+AQ36+AR36) -> 0.6929481941 | AL37: =AL36/($AK$36+$AP$36+$AL$36+$AN$36+AQ36+AR36) -> 0.2551588039 | AN37: =AN36/($AK$36+$AP$36+$AL$36+$AN$36+AQ36+AR36) -> 0 | AP37: =AP36/($AK$36+$AP$36+$AL$36+$AN$36+$AQ$36+$AR$36) -> 0 | AQ37: =AQ36/($AK$36+$AP$36+$AL$36+$AN$36+$AQ$36+$AR$36) -> 0.05189300204 | AR37: =AR36/($AK$36+$AP$36+$AL$36+$AN$36+$AQ$36+$AR$36) -> 0
AQ38: kWh/gal
A39: Total CI, g/MJ: | B39: =F133 -> 83.23833454 | AQ39: =AQ33/AJ33 -> 0.3942401191
A43: Corn Ethanol - Dry Mill | B43: Ethanol Yield, gal/bu | D43: =AJ33/(C33+H33) -> 2.389019469 | E43: DGS Yield | F43: =AF33 -> 5.602914235 | G43: Corn/Sorgum ratio | H43: =C33/(C33+H33) -> 0.8270236085
A44: eGRID region | B44: Process | D44: Values | E44: Shares | F44: CI Outputs, g/MJ | G44: Formulas | K44: 1-U.S Ave Mix | L44: 1 | O44: Chemical Use
A45: Feedstock Production | K45: 2-User Defined Mix | L45: 2 | O45: Type | P45: g/gal | Q45: Default, g/gal
A46: =O5 -> 7-MROW Mix | B46: Ethanol Yield, gal/bushel | D46: =D43 -> 2.389019469 | K46: 3-CAMX Mix | L46: 3 | O46: Alpha Amylase | P46: 2.486348121 | Q46: 2.593827849
B47: Corn Farming | F47: =Ag_Inputs!B16 -> 5.05901253 | K47: 4-NWPP Mix | L47: 4 | O47: Gluco Amylase | P47: 5.697034076 | Q47: 5.580659917
B48: Farming Energy, Btu/bu | D48: 9608 | G48: =(C457/$D$46)/Fuel_Specs!$B$26*1000000 -> 0 | K48: 5-AZNM Mix | L48: 5 | O48: Cellulase | P48: 1.902125 | Q48: 0
B49: Fertilizers and Ag Chemicals | F49: =Ag_Inputs!B29 -> 16.6000446 | K49: 6-RMPA Mix | L49: 6 | O49: Yeast | P49: 3.054833829 | Q49: 2.82963038
B50: N2O in Soil | F50: =Ag_Inputs!B30 -> 17.88864415 | K50: 7-MROW Mix | L50: 7 | O50: Sulfuric Acid | P50: 22.41566456 | Q50: 18.06648759
B51: N content above and below ground, g N2/bu | D51: 141.6 | K51: 8-SPNO Mix | L51: 8 | O51: Ammonia (NH3) | P51: 5.736050978 | Q51: 18.06648759
B52: Corn Transport | F52: =F53+F54+F55 -> 11.84534278 | K52: 9-SPSO Mix | L52: 9 | O52: NaOH | P52: 9.850713248 | Q52: 22.6603167
C53: Corn transport by MDT, miles | D53: =0 -> 0 | F53: ='T&D'!B28/Fuel_Specs!$F$117*56/$D$46/Fuel_Specs!$B$26*1000000/10*$D$53*LossFactor!$I$4 -> 0 | K53: 10-ERCT Mix | L53: 10 | O53: CaO
C54: Corn transport by HDDT, miles | D54: =F10 -> 80 | F54: ='T&D'!H28/Fuel_Specs!$F$117*56/$D$46/Fuel_Specs!$B$26*1000000/40*$D$54*LossFactor!$I$4 -> 3.790799477 | G54: GHG EF of HDT truck/Fuel_Specs!$F$117*56/EtOH Yield/Fuel_Specs!$B$26*106 | K54: 11-MROE Mix | L54: 11 | O54: Urea | P54: 18.37895851 | Q54: 10.80900967
C55: Corn transport by Rail, miles | D55: =F12 -> 2000 | F55: ='T&D'!N28/Fuel_Specs!$F$117*56/$D$46/Fuel_Specs!$B$26*1000000/1000*$D$55*LossFactor!$I$4 -> 8.054543304 | K55: 12-SRMW Mix | L55: 12 | O55: Others
B56: Distiller Grains (DGS) Credit | F56: =(Credit!B28+Credit!C28+Credit!D28)/Fuel_Specs!$B$26*10^6*LossFactor!I4/Fuel_Specs!H130 -> -9.636039658 | K56: 13-SRMV Mix | L56: 13 | O56: CI | P56: 0.13 | Q56: 0.18 | R56: using 7-MROW mix
C57: Dry Distiller Grains (DDGS), tons | D57: =N33 -> 14332 | K57: 14-RFCM Mix | L57: 14
C58: Moisture content of DDGS, % | D58: =O33 -> 0.1095833333 | K58: 15-RFCW Mix | L58: 15
C59: Modified Distiller Grains (MDGS), tons | D59: =R33 -> 0 | K59: 16-SRTV Mix | L59: 16
C60: Moisture content of MDGS, % | D60: =S33 -> 0 | K60: 17-SRSO Mix | L60: 17
C61: Wet Distiller Grains (WDGS), tons | D61: =V33 -> 3682 | K61: 18-NEWE Mix | L61: 18
C62: Moisture content of WDGS, % | D62: =W33 -> 0.68 | K62: 19-NYUP Mix | L62: 19
C63: Corn Oil, lbs. | D63: =AD33 -> 19968468.44 | K63: 20-RFCE Mix | L63: 20
C64: Moisture content of corn oil,% | D64: 0 | K64: 21-NYLI Mix | L64: 21
C65: Syrup, tons | D65: =Z33 -> 28.8 | K65: 22-NYCW Mix | L65: 22
C66: Moisture content of syrup, % | D66: 0 | K66: 23-SRVC Mix | L66: 23
C67: Total lbs of bone-dry DGS, lbs | D67: =(D57*(1-D58)+D59*(1-D60)+D61*(1-D62)+D63*(1-D64)/2000+D65*(1-D66))*2000 -> 47905451.77 | K67: 24-FRCC Mix | L67: 24
B68: DGS Yield (bone-dry lbs/gal EtOH) | D68: =(((N33*(1-O33)+R33*(1-S33)+V33*(1-W33)+Z33*(1-AA33))*2000+AD33*(1-AE33)))/AJ33 -> 0.522755974 | K68: 25-AKMS Mix | L68: 25
A69: Ethanol Production | K69: 26-AKGD Mix | L69: 26
A70: =AP5 -> 3-CAMX Mix | B70: Ethanol Production | F70: =F75+F77+F79+F81+F83+F85+F87+F89+F91+F100+F102+F104+F106+F108+F110+F112+F114+F116 -> 20.62064527 | K70: 27-HIOA Mix | L70: 27
C71: Total bushels of corn, bushels | D71: =C33+H33 -> 38328930 | K71: 28-HIMS Mix | L71: 28
C72: Total gallons of hydrous ethanol, gallons | D72: =AJ33 -> 91568560 | K72: 29- Brazilian Mix | L72: 29
C73: Ethanol Yield, gal ethanol /bushel | D73: =D46 -> 2.389019469 | K73: 30- Canadian Mix | L73: 30
B74: Energy Consumption | C74: Residual oil, gallons | D74: 0
C75: Convert to Btu/gal EtOH | D75: =D74*Fuel_Specs!B23/$D$72 -> 0 | F75: =D75*(100%*EF!$L$16+Petroleum!$B$95)/Fuel_Specs!$B$26 -> 0
B76: Diesel fuel, gallons | D76: 0
C77: Convert to Btu/gal EtOH | D77: =D76*Fuel_Specs!B15/$D$72 -> 0 | F77: =D77*(100%*EF!$P$16+Petroleum!$B$52)/Fuel_Specs!$B$26 -> 0
B78: Gasoline, gallons | D78: 0
C79: Convert to Btu/gal EtOH | D79: =D78*Fuel_Specs!B13/$D$72 -> 0 | F79: =D79*(100%*EF!$U$16+Petroleum!$B$52)/Fuel_Specs!$B$26 -> 0
B80: Natural gas, Btu | D80: =AK35*10^6 -> 1.644849717e+12
C81: Convert to Btu/gal EtOH | D81: =D80/D72 -> 17963.04012 | F81: =D81*(100%*EF!$B$16+NG!$B$15+NG!$B$31)/Fuel_Specs!$B$26 -> 17.88627859
B82: Coal, tons | D82: 0
C83: Convert to Btu/gal EtOH | D83: =D82*2000*Fuel_Specs!B60/$D$72 -> 0 | F83: =D83*(100%*EF!$AC$16+Petroleum!$B$52)/Fuel_Specs!$B$26 -> 0
B84: Liquefied petroleum gas, Btu | D84: 0
C85: Convert to Btu/gal EtOH | D85: =D84/$D$72 -> 0 | F85: =D85*(100%*EF!$Y$16+Petroleum!$B$67)/Fuel_Specs!$B$26 -> 0
B86: Biomass, tons | D86: =AL33 -> 2674
C87: Convert to Btu/gal EtOH | D87: =D86*Fuel_Specs!B73/$D$72 -> 504.8761933 | F87: =D87*(100%*EF!$AV$16+Biomass!$F$30/Fuel_Specs!$B$73)/Fuel_Specs!$B$26*LossFactor!$J$4*LossFactor!$K$4 -> 0.6200126689
C88: Electricity, kWh | D88: =AQ33 -> 36100000
C89: Convert to kWh/gal EtOH | D89: =D88*Fuel_Specs!$F$133/$D$72 -> 1345.203127 | F89: =D89*(Electricity!B32+Electricity!C32)/Fuel_Specs!$B$26 -> 1.854284158
B90: Renewable natural gas, Btu | D90: 0
C91: Convert to Btu/gal EtOH | D91: =D90/$D$72 -> 0 | F91: =D91*(100%*EF!$BH$16)/Fuel_Specs!$B$26 -> 0
B92: Other Thermal Energy Sources | D92: =AP33 -> 0
B93: Convert to Btu/gal EtOH
B94: Other Thermal Energy Sources, kWh
C95: Convert to kWhgal EtOH
C96: Total Thermal Energy, Btu/gal EtOH | D96: =D75+D77+D79+D81+D83+D85+D87+D91 -> 18467.91631
C97: Total Electricity Energy, Btu/gal EtOH | D97: =D88*Fuel_Specs!$F$133/$D$72 -> 1345.203127
C98: Total Plant Energy Consumption, Btu/gal | D98: =D96+D97 -> 19813.11944
B99: Chemicals Usage | C99: Alpha Amylase, tons | D99: =P46 -> 2.486348121
B100: Convert to (grams/gal) | D100: =D99*2000*Fuel_Specs!$E$114/$D$72 -> 0.02463265856 | F100: =(D100*Enzymes_Yeast!H19)/Fuel_Specs!$F$114/Fuel_Specs!$B$26*10^6/Fuel_Specs!$H$130 -> 0.0004993371121
C101: Gluco Amylase, tons | D101: =P47 -> 5.697034076
B102: Convert to (grams/gal) | D102: =D101*2000*Fuel_Specs!$E$114/$D$72 -> 0.05644145083 | F102: =(D102*Enzymes_Yeast!I19)/Fuel_Specs!$F$114/Fuel_Specs!$B$26*10^6/Fuel_Specs!$H$130 -> 0.005283494442
C103: Cellulase, tons | D103: =P48 -> 1.902125
B104: Convert to (grams/gal) | D104: =D103*2000*Fuel_Specs!$E$114/$D$72 -> 0.0188446643 | F104: =(D104*Enzymes_Yeast!J19)/Fuel_Specs!$F$114/Fuel_Specs!$B$26*10^6/Fuel_Specs!$H$130 -> 0.001253492119
C105: Yeast, tons | D105: =P49 -> 3.054833829
B106: Convert to (grams/gal) | D106: =D105*2000*Fuel_Specs!$E$114/$D$72 -> 0.0302647397 | F106: =(D106*Enzymes_Yeast!K19)/Fuel_Specs!$F$114/Fuel_Specs!$B$26*10^6/Fuel_Specs!$H$130 -> 0.001040980938
C107: Sulfuric acid (H2SO4) | D107: =P50 -> 22.41566456
B108: Convert to (grams/gal) | D108: =D107*2000*Fuel_Specs!$E$114/$D$72 -> 0.2220756647 | F108: =(D108*Ag_Inputs!$F$44)/Fuel_Specs!$F$114/Fuel_Specs!$B$26*10^6/Fuel_Specs!$H$130 -> 0.0001402756513
C109: Ammonia (NH3), tons | D109: =P51 -> 5.736050978
B110: Convert to (grams/gal) | D110: =D109*2000*Fuel_Specs!$E$114/$D$72 -> 0.05682799768 | F110: =(D110*Ag_Inputs!$F$44)/Fuel_Specs!$F$114/Fuel_Specs!$B$26*10^6/Fuel_Specs!$H$130 -> 3.589580335e-05
C111: NaOH, tons | D111: =P52 -> 9.850713248
B112: Convert to (grams/gal) | D112: =D111*2000*Fuel_Specs!$E$114/$D$72 -> 0.09759263154 | F112: =(D112*Ag_Inputs!F69)/Fuel_Specs!$F$114 -> 0.2488980794
C113: CaO, tons | D113: =P53 -> 0
B114: Convert to (grams/gal) | D114: =D113*2000*Fuel_Specs!$E$114/$D$72 -> 0
C115: Urea, tons | D115: =P54 -> 18.37895851
C116: Convert to (grams/gal) | D116: =D115*2000*Fuel_Specs!$E$114/$D$72 -> 0.1820833559 | F116: =(D116*Ag_Inputs!$C$44)/Fuel_Specs!$F$114/Fuel_Specs!$B$26*10^6/Fuel_Specs!$H$130 -> 0.002918295689
B117: Ethanol Transport
C118: From EtOH Plant to railyard | D118: HDD Truck | E118: 1
C119: Miles | D119: 50
C120: From railyard to CA railyard | D120: Rail | E120: 1
C121: Miles | D121: 1850
C122: From railyard 80% to blending terminal | D122: HDD Truck | E122: 0.8
C123: Miles | D123: 100
C124: Other Transport | E124: 1
C125: Miles
B126: Ethanol Distribution | C126: From terminal to fuel stations | D126: HDD Truck | E126: 1
C127: Miles | D127: 71
B128: Total Feedstock Production CI, g/MJ | F128: =F47+F49+F50+F52+F56 -> 41.7570044
B129: Total Fuel Production CI, g/MJ | F129: =F70+F117+F126 -> 20.62064527
B130: Total Tank-to-Wheel, g/MJ | F130: 0
B131: Denaturant, g/MJ | F131: =Misc.!B31 -> 1.060684868
B132: Indirect Land Use, g/MJ | F132: =Misc.!B13 -> 19.8
B133: Total Well-to-Tank CI, g/MJ | F133: =SUM(F128:F132) -> 83.23833454
A134: Sorghum Ethanol - Dry Mill | B134: Ethanol Yield, gal/bu | D134: =D43 -> 2.389019469 | E134: DGS Yield | F134: =AF33 -> 5.602914235
A135: eGRID region | B135: Process | D135: Values | E135: Shares | F135: CI Outputs, g/MJ
A136: Feedstock Production
A137: =A46 -> 7-MROW Mix | B137: Ethanol Yield, gal/bushel | D137: =D134 -> 2.389019469
B138: Corn Farming | F138: =Ag_Inputs!B85 -> 7.978958434
B139: Farming Energy, Btu/bu | D139: 16741
B140: Fertilizers and Ag Chemicals | F140: =Ag_Inputs!B98 -> 16.6000446
B141: N2O in Soil | F141: =Ag_Inputs!B99 -> 17.88864415
B142: N content above and below ground, g N2/bu | D142: 149
B143: Corn Transport | F143: =F144+F145+F146 -> 11.84534278
C144: Corn transport by MDT, miles | D144: 10 | F144: ='T&D'!B28/Fuel_Specs!$F$117*56/$D$46/Fuel_Specs!$B$26*1000000/10*$D$53*LossFactor!$I$4 -> 0
C145: Corn transport by HDDT, miles | D145: =K10 -> 80 | F145: ='T&D'!H28/Fuel_Specs!$F$117*56/$D$46/Fuel_Specs!$B$26*1000000/40*$D$54*LossFactor!$I$4 -> 3.790799477
C146: Corn transport by Rail, miles | D146: =K12 -> 2000 | F146: ='T&D'!N28/Fuel_Specs!$F$117*56/$D$46/Fuel_Specs!$B$26*1000000/1000*$D$55*LossFactor!$I$4 -> 8.054543304
B147: Distiller Grains (DGS) Credit | F147: =F56 -> -9.636039658
C148: Dry Distiller Grains (DDGS), tons | D148: =N33 -> 14332
C149: Moisture content of DDGS, % | D149: =O33 -> 0.1095833333
C150: Modified Distiller Grains (MDGS), tons | D150: =R33 -> 0
C151: Moisture content of MDGS, % | D151: =S33 -> 0
C152: Wet Distiller Grains (WDGS), tons | D152: =V33 -> 3682
C153: Moisture content of WDGS, % | D153: =W33 -> 0.68
C154: Corn Oil, lbs. | D154: =R124 -> 0
C155: Moisture content of corn oil,% | D155: 0
C156: Syrup, tons | D156: =P124 -> 0
C157: Moisture content of syrup, % | D157: 0
C158: Total lbs of bone-dry DGS, lbs | D158: =(D148*(1-D149)+D150*(1-D151)+D152*(1-D153)+D154*(1-D155)/2000+D156*(1-D157))*2000 -> 27879383.33
B159: DGS Yield (bone-dry lbs/gal EtOH) | D159: =D72 -> 91568560
B160: Total Feedstock Production CI, g/MJ | F160: =F138+F140+F141+F143+F147 -> 44.67695031
B161: Total Fuel Production CI, g/MJ | F161: =+F129 -> 20.62064527
B162: Total Tank-to-Wheel, g/MJ | F162: 0
B163: Denaturant, g/MJ | F163: =Misc.!B31 -> 1.060684868
B164: Indirect Land Use, g/MJ | F164: =+Misc.!B14 -> 19.4
B165: Total Well-to-Tank CI, g/MJ | F165: =SUM(F160:F164) -> 85.75828044

Sheet BD-Rendering (hidden)
A1: Producer Operational Data Summary (PODS) | D1: Applicant: | E1: ABC Energy | F1: Rendering Plant Location: | G1: Sac, CA | H1: Feedstock Location: | I1: Sac, CA | J1: Feedstocks: | K1: UCO | L1: Biofuel Plant Location: | M1: Sac,CA
A2: Data Years
A3: Monthly Data | B3: Beginning Raw UCO Inventory | C3: Purchased | D3: Ending Raw UCO Inventory | E3: NG Use from Utility Invoices | F3: Biomass Use from Invoices | G3: Biomass Transport Distance | H3: Biogas Use from Invoices | I3: Biogas Parameters | J3: Other Thermal Energy Use (Specify) | K3: Other Thermal Energy Use (Specify) | L3: Electricity from Utility Invoices | M3: Electricity from Other Sources (Specify) | N3: Electricity from Other Sources (Specify) | O3: Beginning Raw Tallow Inventory | P3: Purchased | Q3: Ending Raw Tallow Inventory | R3: NG Use from Utility Invoices | S3: Biomass Use from Invoices | T3: Biomass Transport Distance | U3: Biogas Use from Invoices | V3: Biogas Parameters | W3: Other Thermal Energy Use (Specify) | X3: Other Thermal Energy Use (Specify) | Y3: Electricity from Utility Invoices | Z3: Electricity from Other Sources (Specify) | AA3: Electricity from Other Sources (Specify) | AB3: Beginning Other Raw Inventory (Specify) | AC3: Purchased | AD3: Ending Other Raw Inventory (Specify) | AE3: NG Use from Utility Invoices | AF3: Biomass Use from Invoices | AG3: Biomass Transport Distance | AH3: Biogas Use from Invoices | AI3: Biogas Parameters | AJ3: Other Thermal Energy Use (Specify) | AK3: Other Thermal Energy Use (Specify) | AL3: Electricity from Utility Invoices | AM3: Electricity from Other Sources (Specify) | AN3: Electricity from Other Sources (Specify) | AO3: Beginning Other Raw Inventory (Specify) | AP3: Purchased | AQ3: Ending Other Raw Inventory (Specify) | AR3: NG Use from Utility Invoices | AS3: Biomass Use from Invoices | AT3: Biomass Transport Distance | AU3: Biogas Use from Invoices | AV3: Biogas Parameters | AW3: Other Thermal Energy Use | AX3: Other Thermal Energy Use (Specify) | AY3: Electricity from Utility Invoices | AZ3: Electricity from Other Sources | BA3: Electricity from Other Sources (Specify) | BB3: Beginning Other Raw Inventory (Specify) | BC3: Purchased | BD3: Ending Other Raw Inventory (Specify) | BE3: NG Use from Utility Invoices | BF3: Biomass Use from Invoices | BG3: Biomass Transport Distance | BH3: Biogas Use from Invoices | BI3: Biogas Parameters | BJ3: Other Thermal Energy Use | BK3: Other Thermal Energy Use (Specify) | BL3: Electricity from Utility Invoices | BM3: Electricity from Other Sources | BN3: Electricity from Other Sources (Specify) | BO3: Beginning Other Raw Inventory (Specify) | BP3: Purchased | BQ3: Ending Other Raw Inventory (Specify) | BR3: NG Use from Utility Invoices | BS3: Biomass Use from Invoices | BT3: Biomass Transport Distance | BU3: Biogas Use from Invoices | BV3: Biogas Parameters | BW3: Other Thermal Energy Use | BX3: Other Thermal Energy Use (Specify) | BY3: Electricity from Utility Invoices | BZ3: Electricity from Other Sources | CA3: Electricity from Other Sources (Specify) | CB3: Beginning Other Raw Inventory (Specify) | CC3: Purchased | CD3: Ending Other Raw Inventory (Specify) | CE3: NG Use from Utility Invoices | CF3: Biomass Use from Invoices | CG3: Biomass Transport Distance | CH3: Biogas Use from Invoices | CI3: Biogas Parameters | CJ3: Other Thermal Energy Use | CK3: Other Thermal Energy Use (Specify) | CL3: Electricity from Utility Invoices | CM3: Electricity from Other Sources | CN3: Electricity from Other Sources (Specify) | CO3: Beginning Other Raw Inventory (Specify) | CP3: Purchased | CQ3: Ending Other Raw Inventory (Specify) | CR3: NG Use from Utility Invoices | CS3: Biomass Use from Invoices | CT3: Biomass Transport Distance | CU3: Biogas Use from Invoices | CV3: Biogas Parameters | CW3: Other Thermal Energy Use | CX3: Other Thermal Energy Use (Specify) | CY3: Electricity from Utility Invoices | CZ3: Electricity from Other Sources | DA3: Electricity from Other Sources (Specify)
A4: Unit | B4: LBS | C4: LBS | D4: LBS | E4: MMBTU, HHV | F4: Dry Tons | G4: Miles | H4: MMBTU, HHV | I4: Miles | J4: MMBTU, HHV | K4: MMBTU, HHV | L4: kWh | M4: kWh | N4: kWh | O4: LBS | P4: LBS | Q4: LBS | R4: MMBTU, HHV | S4: Dry Tons | T4: Miles | U4: MMBTU, HHV | V4: Miles | W4: MMBTU, HHV | X4: MMBTU, HHV | Y4: kWh | Z4: kWh | AA4: kWh | AB4: LBS | AC4: LBS | AD4: LBS | AE4: MMBTU, HHV | AF4: Dry Tons | AG4: Miles | AH4: MMBTU, HHV | AI4: Miles | AJ4: MMBTU, HHV | AK4: MMBTU, HHV | AL4: kWh | AM4: kWh | AN4: kWh | AO4: LBS | AP4: LBS | AQ4: LBS | AR4: MMBTU, HHV | AS4: Dry Tons | AT4: Miles | AU4: MMBTU, HHV | AV4: Miles | AW4: MMBTU, HHV | AX4: MMBTU, HHV | AY4: kWh | AZ4: kWh | BA4: kWh | BB4: LBS | BC4: LBS | BD4: LBS | BE4: MMBTU, HHV | BF4: Dry Tons | BG4: Miles | BH4: MMBTU, HHV | BI4: Miles | BJ4: MMBTU, HHV | BK4: MMBTU, HHV | BL4: kWh | BM4: kWh | BN4: kWh | BO4: LBS | BP4: LBS | BQ4: LBS | BR4: MMBTU, HHV | BS4: Dry Tons | BT4: Miles | BU4: MMBTU, HHV | BV4: Miles | BW4: MMBTU, HHV | BX4: MMBTU, HHV | BY4: kWh | BZ4: kWh | CA4: kWh | CB4: LBS | CC4: LBS | CD4: LBS | CE4: MMBTU, HHV | CF4: Dry Tons | CG4: Miles | CH4: MMBTU, HHV | CI4: Miles | CJ4: MMBTU, HHV | CK4: MMBTU, HHV | CL4: kWh | CM4: kWh | CN4: kWh | CO4: LBS | CP4: LBS | CQ4: LBS | CR4: MMBTU, HHV | CS4: Dry Tons | CT4: Miles | CU4: MMBTU, HHV | CV4: Miles | CW4: MMBTU, HHV | CX4: MMBTU, HHV | CY4: kWh | CZ4: kWh | DA4: kWh
A5: Month 1 | B5: 100000 | D5: 50000 | E5: 100000 | G5: By HDT Truck | I5: Pipeline | N5: 0.1 | O5: 100000 | Q5: 50000 | R5: 100000 | T5: By HDT Truck | V5: Pipeline | AA5: 0.1 | AB5: 100000 | AD5: 50000 | AE5: 100000 | AG5: By HDT Truck | AI5: Pipeline | AN5: 0.1 | AO5: 100000 | AQ5: 50000 | AR5: 100000 | AT5: By HDT Truck | AV5: Pipeline | BA5: 0.1 | BB5: 100000 | BD5: 50000 | BE5: 100000 | BG5: By HDT Truck | BI5: Pipeline | BN5: 0.1 | BO5: 100000 | BQ5: 50000 | BR5: 100000 | BT5: By HDT Truck | BV5: Pipeline | CA5: 0.1 | CB5: 100000 | CD5: 50000 | CE5: 100000 | CG5: By HDT Truck | CI5: Pipeline | CN5: 0.1 | CO5: 100000 | CQ5: 50000 | CR5: 100000 | CT5: By HDT Truck | CV5: Pipeline | DA5: 0.1
A6: Month 2 | B6: 100000 | D6: 200000 | E6: 200000 | G6: 80 | I6: 80 | N6: 0.05 | O6: 100000 | Q6: 200000 | R6: 200000 | T6: 80 | V6: 80 | AA6: 0.05 | AB6: 100000 | AD6: 200000 | AE6: 200000 | AG6: 80 | AI6: 80 | AN6: 0.05 | AO6: 100000 | AQ6: 200000 | AR6: 200000 | AT6: 80 | AV6: 80 | BA6: 0.05 | BB6: 100000 | BD6: 200000 | BE6: 200000 | BG6: 80 | BI6: 80 | BN6: 0.05 | BO6: 100000 | BQ6: 200000 | BR6: 200000 | BT6: 80 | BV6: 80 | CA6: 0.05 | CB6: 100000 | CD6: 200000 | CE6: 200000 | CG6: 80 | CI6: 80 | CN6: 0.05 | CO6: 100000 | CQ6: 200000 | CR6: 200000 | CT6: 80 | CV6: 80 | DA6: 0.05
A7: Month 3 | B7: 100000 | D7: 200000 | E7: 200000 | G7: By Rail | N7: 0.08 | O7: 100000 | Q7: 200000 | R7: 200000 | T7: By Rail | AA7: 0.08 | AB7: 100000 | AD7: 200000 | AE7: 200000 | AG7: By Rail | AN7: 0.08 | AO7: 100000 | AQ7: 200000 | AR7: 200000 | AT7: By Rail | BA7: 0.08 | BB7: 100000 | BD7: 200000 | BE7: 200000 | BG7: By Rail | BN7: 0.08 | BO7: 100000 | BQ7: 200000 | BR7: 200000 | BT7: By Rail | CA7: 0.08 | CB7: 100000 | CD7: 200000 | CE7: 200000 | CG7: By Rail | CN7: 0.08 | CO7: 100000 | CQ7: 200000 | CR7: 200000 | CT7: By Rail | DA7: 0.08
A8: Month 4 | B8: 100000 | D8: 200000 | E8: 200000 | G8: 2000 | N8: 0.06 | O8: 100000 | Q8: 200000 | R8: 200000 | T8: 2000 | AA8: 0.06 | AB8: 100000 | AD8: 200000 | AE8: 200000 | AG8: 2000 | AN8: 0.06 | AO8: 100000 | AQ8: 200000 | AR8: 200000 | AT8: 2000 | BA8: 0.06 | BB8: 100000 | BD8: 200000 | BE8: 200000 | BG8: 2000 | BN8: 0.06 | BO8: 100000 | BQ8: 200000 | BR8: 200000 | BT8: 2000 | CA8: 0.06 | CB8: 100000 | CD8: 200000 | CE8: 200000 | CG8: 2000 | CN8: 0.06 | CO8: 100000 | CQ8: 200000 | CR8: 200000 | CT8: 2000 | DA8: 0.06
A9: Month 5 | B9: 100000 | D9: 200000 | E9: 200000 | N9: 0.04 | O9: 100000 | Q9: 200000 | R9: 200000 | AA9: 0.04 | AB9: 100000 | AD9: 200000 | AE9: 200000 | AN9: 0.04 | AO9: 100000 | AQ9: 200000 | AR9: 200000 | BA9: 0.04 | BB9: 100000 | BD9: 200000 | BE9: 200000 | BN9: 0.04 | BO9: 100000 | BQ9: 200000 | BR9: 200000 | CA9: 0.04 | CB9: 100000 | CD9: 200000 | CE9: 200000 | CN9: 0.04 | CO9: 100000 | CQ9: 200000 | CR9: 200000 | DA9: 0.04
A10: Month 6 | B10: 100000 | D10: 200000 | E10: 200000 | N10: 0.08 | O10: 100000 | Q10: 200000 | R10: 200000 | AA10: 0.08 | AB10: 100000 | AD10: 200000 | AE10: 200000 | AN10: 0.08 | AO10: 100000 | AQ10: 200000 | AR10: 200000 | BA10: 0.08 | BB10: 100000 | BD10: 200000 | BE10: 200000 | BN10: 0.08 | BO10: 100000 | BQ10: 200000 | BR10: 200000 | CA10: 0.08 | CB10: 100000 | CD10: 200000 | CE10: 200000 | CN10: 0.08 | CO10: 100000 | CQ10: 200000 | CR10: 200000 | DA10: 0.08
A11: Month 7 | B11: 100000 | D11: 200000 | E11: 200000 | N11: 0.1 | O11: 100000 | Q11: 200000 | R11: 200000 | AA11: 0.1 | AB11: 100000 | AD11: 200000 | AE11: 200000 | AN11: 0.1 | AO11: 100000 | AQ11: 200000 | AR11: 200000 | BA11: 0.1 | BB11: 100000 | BD11: 200000 | BE11: 200000 | BN11: 0.1 | BO11: 100000 | BQ11: 200000 | BR11: 200000 | CA11: 0.1 | CB11: 100000 | CD11: 200000 | CE11: 200000 | CN11: 0.1 | CO11: 100000 | CQ11: 200000 | CR11: 200000 | DA11: 0.1
A12: Month 8 | B12: 100000 | D12: 200000 | E12: 200000 | N12: 0.09 | O12: 100000 | Q12: 200000 | R12: 200000 | AA12: 0.09 | AB12: 100000 | AD12: 200000 | AE12: 200000 | AN12: 0.09 | AO12: 100000 | AQ12: 200000 | AR12: 200000 | BA12: 0.09 | BB12: 100000 | BD12: 200000 | BE12: 200000 | BN12: 0.09 | BO12: 100000 | BQ12: 200000 | BR12: 200000 | CA12: 0.09 | CB12: 100000 | CD12: 200000 | CE12: 200000 | CN12: 0.09 | CO12: 100000 | CQ12: 200000 | CR12: 200000 | DA12: 0.09
A13: Month 9 | B13: 100000 | D13: 200000 | E13: 200000 | N13: 0.07 | O13: 100000 | Q13: 200000 | R13: 200000 | AA13: 0.07 | AB13: 100000 | AD13: 200000 | AE13: 200000 | AN13: 0.07 | AO13: 100000 | AQ13: 200000 | AR13: 200000 | BA13: 0.07 | BB13: 100000 | BD13: 200000 | BE13: 200000 | BN13: 0.07 | BO13: 100000 | BQ13: 200000 | BR13: 200000 | CA13: 0.07 | CB13: 100000 | CD13: 200000 | CE13: 200000 | CN13: 0.07 | CO13: 100000 | CQ13: 200000 | CR13: 200000 | DA13: 0.07
A14: Month 10 | B14: 100000 | D14: 200000 | E14: 200000 | N14: 0.06 | O14: 100000 | Q14: 200000 | R14: 200000 | AA14: 0.06 | AB14: 100000 | AD14: 200000 | AE14: 200000 | AN14: 0.06 | AO14: 100000 | AQ14: 200000 | AR14: 200000 | BA14: 0.06 | BB14: 100000 | BD14: 200000 | BE14: 200000 | BN14: 0.06 | BO14: 100000 | BQ14: 200000 | BR14: 200000 | CA14: 0.06 | CB14: 100000 | CD14: 200000 | CE14: 200000 | CN14: 0.06 | CO14: 100000 | CQ14: 200000 | CR14: 200000 | DA14: 0.06
A15: Month 11 | B15: 100000 | D15: 200000 | E15: 200000 | N15: 0.08 | O15: 100000 | Q15: 200000 | R15: 200000 | AA15: 0.08 | AB15: 100000 | AD15: 200000 | AE15: 200000 | AN15: 0.08 | AO15: 100000 | AQ15: 200000 | AR15: 200000 | BA15: 0.08 | BB15: 100000 | BD15: 200000 | BE15: 200000 | BN15: 0.08 | BO15: 100000 | BQ15: 200000 | BR15: 200000 | CA15: 0.08 | CB15: 100000 | CD15: 200000 | CE15: 200000 | CN15: 0.08 | CO15: 100000 | CQ15: 200000 | CR15: 200000 | DA15: 0.08
A16: Month 12 | B16: 100000 | D16: 200000 | E16: 200000 | N16: 0.1 | O16: 100000 | Q16: 200000 | R16: 200000 | AA16: 0.1 | AB16: 100000 | AD16: 200000 | AE16: 200000 | AN16: 0.1 | AO16: 100000 | AQ16: 200000 | AR16: 200000 | BA16: 0.1 | BB16: 100000 | BD16: 200000 | BE16: 200000 | BN16: 0.1 | BO16: 100000 | BQ16: 200000 | BR16: 200000 | CA16: 0.1 | CB16: 100000 | CD16: 200000 | CE16: 200000 | CN16: 0.1 | CO16: 100000 | CQ16: 200000 | CR16: 200000 | DA16: 0.1
A17: Month 13 | B17: 100000 | D17: 200000 | E17: 200000 | N17: 0.05 | O17: 100000 | Q17: 200000 | R17: 200000 | AA17: 0.05 | AB17: 100000 | AD17: 200000 | AE17: 200000 | AN17: 0.05 | AO17: 100000 | AQ17: 200000 | AR17: 200000 | BA17: 0.05 | BB17: 100000 | BD17: 200000 | BE17: 200000 | BN17: 0.05 | BO17: 100000 | BQ17: 200000 | BR17: 200000 | CA17: 0.05 | CB17: 100000 | CD17: 200000 | CE17: 200000 | CN17: 0.05 | CO17: 100000 | CQ17: 200000 | CR17: 200000 | DA17: 0.05
A18: Month 14 | B18: 100000 | D18: 200000 | E18: 200000 | N18: 0.04 | O18: 100000 | Q18: 200000 | R18: 200000 | AA18: 0.04 | AB18: 100000 | AD18: 200000 | AE18: 200000 | AN18: 0.04 | AO18: 100000 | AQ18: 200000 | AR18: 200000 | BA18: 0.04 | BB18: 100000 | BD18: 200000 | BE18: 200000 | BN18: 0.04 | BO18: 100000 | BQ18: 200000 | BR18: 200000 | CA18: 0.04 | CB18: 100000 | CD18: 200000 | CE18: 200000 | CN18: 0.04 | CO18: 100000 | CQ18: 200000 | CR18: 200000 | DA18: 0.04
A19: Month 15 | B19: 100000 | D19: 200000 | E19: 200000 | N19: 0.05 | O19: 100000 | Q19: 200000 | R19: 200000 | AA19: 0.05 | AB19: 100000 | AD19: 200000 | AE19: 200000 | AN19: 0.05 | AO19: 100000 | AQ19: 200000 | AR19: 200000 | BA19: 0.05 | BB19: 100000 | BD19: 200000 | BE19: 200000 | BN19: 0.05 | BO19: 100000 | BQ19: 200000 | BR19: 200000 | CA19: 0.05 | CB19: 100000 | CD19: 200000 | CE19: 200000 | CN19: 0.05 | CO19: 100000 | CQ19: 200000 | CR19: 200000 | DA19: 0.05
A20: Month 16 | B20: 100000 | D20: 200000 | E20: 200000 | N20: 0.03 | O20: 100000 | Q20: 200000 | R20: 200000 | AA20: 0.03 | AB20: 100000 | AD20: 200000 | AE20: 200000 | AN20: 0.03 | AO20: 100000 | AQ20: 200000 | AR20: 200000 | BA20: 0.03 | BB20: 100000 | BD20: 200000 | BE20: 200000 | BN20: 0.03 | BO20: 100000 | BQ20: 200000 | BR20: 200000 | CA20: 0.03 | CB20: 100000 | CD20: 200000 | CE20: 200000 | CN20: 0.03 | CO20: 100000 | CQ20: 200000 | CR20: 200000 | DA20: 0.03
A21: Month 17 | B21: 100000 | D21: 200000 | E21: 200000 | N21: 0.01 | O21: 100000 | Q21: 200000 | R21: 200000 | AA21: 0.01 | AB21: 100000 | AD21: 200000 | AE21: 200000 | AN21: 0.01 | AO21: 100000 | AQ21: 200000 | AR21: 200000 | BA21: 0.01 | BB21: 100000 | BD21: 200000 | BE21: 200000 | BN21: 0.01 | BO21: 100000 | BQ21: 200000 | BR21: 200000 | CA21: 0.01 | CB21: 100000 | CD21: 200000 | CE21: 200000 | CN21: 0.01 | CO21: 100000 | CQ21: 200000 | CR21: 200000 | DA21: 0.01
A22: Month 18 | B22: 100000 | D22: 200000 | E22: 200000 | N22: 0.05 | O22: 100000 | Q22: 200000 | R22: 200000 | AA22: 0.05 | AB22: 100000 | AD22: 200000 | AE22: 200000 | AN22: 0.05 | AO22: 100000 | AQ22: 200000 | AR22: 200000 | BA22: 0.05 | BB22: 100000 | BD22: 200000 | BE22: 200000 | BN22: 0.05 | BO22: 100000 | BQ22: 200000 | BR22: 200000 | CA22: 0.05 | CB22: 100000 | CD22: 200000 | CE22: 200000 | CN22: 0.05 | CO22: 100000 | CQ22: 200000 | CR22: 200000 | DA22: 0.05
A23: Month 19 | B23: 100000 | D23: 200000 | E23: 200000 | N23: 0.08 | O23: 100000 | Q23: 200000 | R23: 200000 | AA23: 0.08 | AB23: 100000 | AD23: 200000 | AE23: 200000 | AN23: 0.08 | AO23: 100000 | AQ23: 200000 | AR23: 200000 | BA23: 0.08 | BB23: 100000 | BD23: 200000 | BE23: 200000 | BN23: 0.08 | BO23: 100000 | BQ23: 200000 | BR23: 200000 | CA23: 0.08 | CB23: 100000 | CD23: 200000 | CE23: 200000 | CN23: 0.08 | CO23: 100000 | CQ23: 200000 | CR23: 200000 | DA23: 0.08
A24: Month 20 | B24: 100000 | D24: 200000 | E24: 200000 | N24: 0.09 | O24: 100000 | Q24: 200000 | R24: 200000 | AA24: 0.09 | AB24: 100000 | AD24: 200000 | AE24: 200000 | AN24: 0.09 | AO24: 100000 | AQ24: 200000 | AR24: 200000 | BA24: 0.09 | BB24: 100000 | BD24: 200000 | BE24: 200000 | BN24: 0.09 | BO24: 100000 | BQ24: 200000 | BR24: 200000 | CA24: 0.09 | CB24: 100000 | CD24: 200000 | CE24: 200000 | CN24: 0.09 | CO24: 100000 | CQ24: 200000 | CR24: 200000 | DA24: 0.09
A25: Month 21 | B25: 100000 | D25: 200000 | E25: 200000 | N25: 0.04 | O25: 100000 | Q25: 200000 | R25: 200000 | AA25: 0.04 | AB25: 100000 | AD25: 200000 | AE25: 200000 | AN25: 0.04 | AO25: 100000 | AQ25: 200000 | AR25: 200000 | BA25: 0.04 | BB25: 100000 | BD25: 200000 | BE25: 200000 | BN25: 0.04 | BO25: 100000 | BQ25: 200000 | BR25: 200000 | CA25: 0.04 | CB25: 100000 | CD25: 200000 | CE25: 200000 | CN25: 0.04 | CO25: 100000 | CQ25: 200000 | CR25: 200000 | DA25: 0.04
A26: Month 22 | B26: 100000 | D26: 200000 | E26: 200000 | N26: 0.03 | O26: 100000 | Q26: 200000 | R26: 200000 | AA26: 0.03 | AB26: 100000 | AD26: 200000 | AE26: 200000 | AN26: 0.03 | AO26: 100000 | AQ26: 200000 | AR26: 200000 | BA26: 0.03 | BB26: 100000 | BD26: 200000 | BE26: 200000 | BN26: 0.03 | BO26: 100000 | BQ26: 200000 | BR26: 200000 | CA26: 0.03 | CB26: 100000 | CD26: 200000 | CE26: 200000 | CN26: 0.03 | CO26: 100000 | CQ26: 200000 | CR26: 200000 | DA26: 0.03
A27: Month 23 | B27: 100000 | D27: 200000 | E27: 200000 | N27: 0.02 | O27: 100000 | Q27: 200000 | R27: 200000 | AA27: 0.02 | AB27: 100000 | AD27: 200000 | AE27: 200000 | AN27: 0.02 | AO27: 100000 | AQ27: 200000 | AR27: 200000 | BA27: 0.02 | BB27: 100000 | BD27: 200000 | BE27: 200000 | BN27: 0.02 | BO27: 100000 | BQ27: 200000 | BR27: 200000 | CA27: 0.02 | CB27: 100000 | CD27: 200000 | CE27: 200000 | CN27: 0.02 | CO27: 100000 | CQ27: 200000 | CR27: 200000 | DA27: 0.02
A28: Month 24 | B28: 100000 | D28: 200000 | E28: 200000 | N28: 0.02 | O28: 100000 | Q28: 200000 | R28: 200000 | AA28: 0.02 | AB28: 100000 | AD28: 200000 | AE28: 200000 | AN28: 0.02 | AO28: 100000 | AQ28: 200000 | AR28: 200000 | BA28: 0.02 | BB28: 100000 | BD28: 200000 | BE28: 200000 | BN28: 0.02 | BO28: 100000 | BQ28: 200000 | BR28: 200000 | CA28: 0.02 | CB28: 100000 | CD28: 200000 | CE28: 200000 | CN28: 0.02 | CO28: 100000 | CQ28: 200000 | CR28: 200000 | DA28: 0.02
A29: Total | B29: 2400000 | C29: 0 | D29: 4650000 | E29: 4700000 | F29: 0 | H29: 0 | J29: 0 | K29: 0 | L29: 0 | M29: 0 | N29: 1.42 | O29: 2400000 | P29: 0 | Q29: 4650000 | R29: 4700000 | S29: 0 | U29: 0 | W29: 0 | X29: 0 | Y29: 0 | Z29: 0 | AA29: 1.42 | AB29: 2400000 | AC29: 0 | AD29: 4650000 | AE29: 4700000 | AF29: 0 | AH29: 0 | AJ29: 0 | AK29: 0 | AL29: 0 | AM29: 0 | AN29: 1.42 | AO29: 2400000 | AP29: 0 | AQ29: 4650000 | AR29: 4700000 | AS29: 0 | AU29: 0 | AW29: 0 | AX29: 0 | AY29: 0 | AZ29: 0 | BA29: 1.42 | BB29: 2400000 | BC29: 0 | BD29: 4650000 | BE29: 4700000 | BF29: 0 | BH29: 0 | BJ29: 0 | BK29: 0 | BL29: 0 | BM29: 0 | BN29: 1.42 | BO29: 2400000 | BP29: 0 | BQ29: 4650000 | BR29: 4700000 | BS29: 0 | BU29: 0 | BW29: 0 | BX29: 0 | BY29: 0 | BZ29: 0 | CA29: 1.42 | CB29: 2400000 | CC29: 0 | CD29: 4650000 | CE29: 4700000 | CF29: 0 | CH29: 0 | CJ29: 0 | CK29: 0 | CL29: 0 | CM29: 0 | CN29: 1.42 | CO29: 2400000 | CP29: 0 | CQ29: 4650000 | CR29: 4700000 | CS29: 0 | CU29: 0 | CW29: 0 | CX29: 0 | CY29: 0 | CZ29: 0 | DA29: 1.42

Sheet Feedstock Production
A1: Feedstock Production Data Summary | D1: Applicant Name: | E1: ABC Energy | G1: Fuel Production Facility Address: | H1: XYZ | N1: =IF(F3="None",0,1) -> 1 | Y1: Soy Oil | Z1: 1 | AA1: DNAVSO
A2: Feedstock Production | C2: Feedstock 1 | D2: Feedstock 2 | E2: Feedstock 3 | F2: Feedstock 4 | G2: Feedstock 5 | H2: Feedstock 6 | I2: Feedstock 7 | J2: Feedstock 8 | K2: Feedstock 9 | Y2: Canola Oil | Z2: 2 | AA2: DNAVCAO
A3: Step 1) Select Feedstock Types, then clickFeedstock Selection button (Cell L3) to update | C3: Canola Oil | D3: Tallow | E3: Used Cooking Oil | F3: Used Cooking Oil | G3: Soy Oil | H3: Other | I3: None | J3: None | K3: None | Y3: Corn Oil | Z3: 3 | AA3: DNAVDCO
A4: If multiple instances of the same feedstock were entered above, specify the unique features (location, process…): | E4: US | F4: US Midwest | Y4: Used Cooking Oil | Z4: 4 | AA4: DNAVUCO
A5: If Otherselected in Row 3, specify feedstock type here: | H5: PFAD | Y5: Tallow | Z5: 5 | AA5: DNAVTAL
A6: Step 2) Select Feedstock source region and Electricity mix, then click Region Selection button (Cell L6) | B6: Feedstock Source Region | C6: Canada | D6: California | E6: U.S | F6: Midwest | G6: Brazil | H6: User Defined | I6: None | J6: None | K6: None | Y6: Other | Z6: 6 | AA6: DNAVOTHER2
B7: Electricity Grid Mix | C7: 30-Canadian Mix | D7: 3-CAMX Mix | E7: 1-U.S Ave Mix | F7: 7-MROW Mix | G7: 29-Brazilian Mix | H7: 2-User Defined Mix | I7: 1-U.S Ave Mix | J7: 1-U.S Ave Mix | K7: 1-U.S Ave Mix | Y7: Other | Z7: 7 | AA7: DNAVOTHER3
B8: Crude Sources | C8: Canadian Ave Crude | D8: U.S. Ave Crude | E8: U.S. Ave Crude | F8: U.S. Ave Crude | G8: U.S. Ave Crude | H8: None | I8: None | J8: None | K8: None | T8: Assumptions or Defaults | Y8: Other | Z8: 8 | AA8: DNAVOTHER4 | CI8: User Defined NG
B9: Natural Gas Sources | C9: Canadian Ave NG | D9: U.S. Ave NG | E9: U.S. Ave NG | F9: U.S. Ave NG | G9: U.S. Ave NG | H9: None | I9: None | J9: None | K9: None | T9: 1) Soybean Farming | U9: Values | V9: 1) Canola Farming | W9: Values | X9: Note | Y9: Other | Z9: 9 | AA9: DNAVOTHER5
A10: Step 3) Click Enter Data button to navigate to monthly data input fields for the selected feedstock | U10: a) Electricity Mix - US Ave | W10: a) Electricity Mix - US Ave | Z10: Other | AA10: 10 | AB10: DNAVOTHER6
A11: Monthly Data Feedstock 1 | B11: Beginning Canola Oil Inventory | C11: Oil Received | D11: Oil Used | E11: Ending Canola Oil Inventory | F11: Moisture Content | G11: Feedstock Transportation | U11: b) Energy Consumption (Btu/bushel) | W11: b) Energy Consumption (Btu/MT of rapeseed) | Z11: Other | AA11: 11 | AB11: DNAVOTHER7
A12: Unit | B12: Tons | C12: Tons | D12: Tons | E12: Tons | F12: % | G12: Enter origins, destinations and miles for each part of portion of tranport mode. | U12: Residual oil | V12: 0 | W12: Residual oil | X12: 0 | Z12: Other | AA12: 12 | AB12: DNAVOTHER8
A13: Month 1 | B13: 100000 | C13: 50000 | D13: =B13+C13-E13 -> 50000 | E13: 100000 | F13: 0.1 | U13: Diesel fuel | V13: 10766 | W13: Diesel fuel | X13: 505339 | Z13: Other | AA13: 13 | AB13: DNAVOTHER9
A14: Month 2 | B14: 100000 | C14: 200000 | D14: =B14+C14-E14 -> 255365 | E14: 44635 | F14: 0.05 | G14: HDD Truck | I14: Miles | U14: Gasoline | V14: 2976 | W14: Gasoline | X14: 0
A15: Month 3 | B15: 100000 | C15: 200000 | D15: =B15+C15-E15 -> 298744 | E15: 1256 | F15: 0.08 | G15: Origin | H15: Destination | U15: Natural gas | V15: 1220 | W15: Natural gas | X15: 1090
A16: Month 4 | B16: 100000 | C16: 200000 | D16: 298441 | E16: 1559 | F16: 0.06 | G16: Origin | H16: Destination | U16: Coal | V16: 0 | W16: Coal | X16: 0
A17: Month 5 | B17: 100000 | C17: 103000 | D17: 103000 | E17: 100000 | F17: 0.04 | G17: Origin | H17: Destination | U17: Liquefied petroleum gas | V17: 1271 | W17: Liquefied petroleum gas | X17: 0
A18: Month 6 | B18: 100000 | C18: 112356 | D18: 12356 | E18: 200000 | F18: 0.08 | G18: Origin | H18: Destination | U18: Biomass | V18: 0 | W18: Biomass | X18: 0
A19: Month 7 | B19: 100000 | C19: 200000 | D19: 100000 | E19: 200000 | F19: 0.1 | G19: Rail | U19: Electricity | V19: 485 | W19: Electricity | X19: 12771
A20: Month 8 | B20: 100000 | C20: 200000 | D20: 100000 | E20: 200000 | F20: 0.09 | G20: Origin | H20: Destination | U20: Renewable natural gas | V20: 0.3781718709 | W20: Renewable natural gas | X20: 0.3781718709
A21: Month 9 | B21: 200000 | C21: 125 | D21: 180125 | E21: 20000 | F21: 0.07 | G21: Origin | H21: Destination | U21: c) Fertilizer Use by Nutrient (grams/bushel) | W21: c) Fertilizer Use by Nutrient (grams/dry MT)
A22: Month 10 | B22: 100000 | C22: 200000 | D22: 100000 | E22: 200000 | F22: 0.06 | G22: Ocean Tanker | U22: Nitrogen | V22: 49.9 | W22: Nitrogen | X22: 54698.9
A23: Month 11 | B23: 100000 | C23: 200000 | D23: 100000 | E23: 200000 | F23: 0.08 | G23: Origin | H23: Destination | U23: P2O5 | V23: 206.7 | W23: P2O5 | X23: 15298.9
A24: Month 12 | B24: 100000 | C24: 200000 | D24: 100000 | E24: 200000 | F24: 0.1 | G24: Barge | U24: K2O | V24: 344.4 | W24: K2O | X24: 2946.15
A25: Month 13 | B25: 100000 | C25: 200000 | D25: 100000 | E25: 200000 | F25: 0.05 | G25: Origin | H25: Destination | U25: CaCO3 | V25: 0 | W25: CaCO3 | X25: 0
A26: Month 14 | B26: 100000 | C26: 200000 | D26: 100000 | E26: 200000 | F26: 0.04 | U26: Herbicide | V26: 20.7 | W26: Herbicide | X26: 300
A27: Month 15 | B27: 100000 | C27: 200000 | D27: 100000 | E27: 200000 | F27: 0.05 | U27: Insecticide | V27: 0.6 | W27: Insecticide | X27: 42.86
A28: Month 16 | B28: 100000 | C28: 200000 | D28: 100000 | E28: 200000 | F28: 0.03 | U28: d) N2O in Soil | W28: d) N2O in Soil
A29: Month 17 | B29: 100000 | C29: 200000 | D29: 100000 | E29: 200000 | F29: 0.01 | U29: N2O Emissions: N in N2O as % of N in N fertilizer | V29: 0.01325 | W29: N2O Emissions: N in N2O as % of N in N fertilizer | X29: 0.01325
A30: Month 18 | B30: 100000 | C30: 200000 | D30: 100000 | E30: 200000 | F30: 0.05 | U30: N2O Emissions: N in N2O as % of N biomass | V30: 0.01225 | W30: N2O Emissions: N in N2O as % of N biomass | X30: 0.01225
A31: Month 19 | B31: 100000 | C31: 200000 | D31: 100000 | E31: 200000 | F31: 0.08 | U31: N content of above and below ground biomass: (grams/bushel) | V31: 200.7 | W31: N content of above and below ground biomass: (grams/bushel) | X31: 7125
A32: Month 20 | B32: 100000 | C32: 200000 | D32: 100000 | E32: 200000 | F32: 0.09 | U32: e) Soybean Transport (miles) | W32: e) Canola Transport (miles)
A33: Month 21 | B33: 100000 | C33: 200000 | D33: 100000 | E33: 200000 | F33: 0.04 | U33: From field to collection center by Medium HD Truck | V33: 10 | W33: From field to collection center by Medium HD Truck | X33: 10
A34: Month 22 | B34: 100000 | C34: 200000 | D34: 100000 | E34: 200000 | F34: 0.03 | U34: From collection center to oil extraction plant HHD Truck | V34: 50 | W34: From collection center to oil extraction plant HHD Truck | X34: 50
A35: Month 23 | B35: 100000 | C35: 200000 | D35: 100000 | E35: 200000 | F35: 0.02 | U35: From oil extraction plant to BD plant by rail | V35: ? | W35: From oil extraction plant to BD plant by rail | X35: ?
A36: Month 24 | B36: 100000 | C36: 200000 | D36: 100000 | E36: 200000 | F36: 0.02 | U36: From oil extraction plant to BD plant by HDD truck | V36: ? | W36: From oil extraction plant to BD plant by HDD truck | X36: ?
A37: Total | B37: =SUM(B13:B36) -> 2500000 | C37: =SUM(C13:C36) -> 4265481 | D37: =SUM(D13:D36) -> 2898031 | E37: =SUM(E13:E36) -> 3867450 | F37: =AVERAGE(F13:F36) -> 0.05916666667 | U37: f) Soy Oil Extraction (BTU/lb oil) | W37: f) Canola Oil Extraction (BTU/lb oil)
A38: Monthly Data Feedstock 2 | B38: Beginning Tallow Oil Inventory | C38: Oil Received | D38: Oil Used | E38: Ending Tallow Oil Inventory | F38: Moisture Content | G38: Feedstock Transportation | U38: Residual Oil | V38: 32.08 | W38: Residual Oil | X38: 0
A39: Unit | B39: Tons | C39: Tons | D39: Tons | E39: Tons | F39: % | G39: Enter origins, destinations and miles for each part of portion of tranport mode. | U39: Diesel Fuel | V39: 15.85 | W39: Diesel Fuel | X39: 0
A40: Month 1 | B40: 100000 | C40: 50000 | D40: =B40+C40-E40 -> 50000 | E40: 100000 | F40: 0.1 | U40: Gasoline | V40: 0 | W40: Gasoline | X40: 0
A41: Month 2 | B41: 100000 | C41: 200000 | D41: =B41+C41-E41 -> 255365 | E41: 44635 | F41: 0.05 | G41: HDD Truck | I41: Miles | U41: Natural Gas | V41: 2068.04 | W41: Natural Gas | X41: 1005
A42: Month 3 | B42: 100000 | C42: 200000 | D42: =B42+C42-E42 -> 298744 | E42: 1256 | F42: 0.08 | G42: Origin | H42: Destination | U42: Coal | V42: 1017.98 | W42: Coal | X42: 0
A43: Month 4 | B43: 100000 | C43: 200000 | D43: 298441 | E43: 1559 | F43: 0.06 | G43: Origin | H43: Destination | U43: Liquefied petroleum gas | V43: 0 | W43: Liquefied petroleum gas | X43: 0
A44: Month 5 | B44: 100000 | C44: 103000 | D44: 103000 | E44: 100000 | F44: 0.04 | G44: Origin | H44: Destination | U44: Biomass | V44: 32.08 | W44: Biomass | X44: 0
A45: Month 6 | B45: 100000 | C45: 112356 | D45: 12356 | E45: 200000 | F45: 0.08 | G45: Origin | H45: Destination | U45: Electricity | V45: 446.13 | W45: Electricity | X45: 178
A46: Month 7 | B46: 100000 | C46: 200000 | D46: 100000 | E46: 200000 | F46: 0.1 | G46: Rail | U46: Renewable gas | V46: 15.85 | W46: Renewable gas | X46: 0
A47: Month 8 | B47: 100000 | C47: 200000 | D47: 100000 | E47: 200000 | F47: 0.09 | G47: Origin | H47: Destination | U47: N-Hexane | V47: 58.99 | W47: N-Hexane | X47: 54
A48: Month 9 | B48: 200000 | C48: 125 | D48: 180125 | E48: 20000 | F48: 0.07 | G48: Origin | H48: Destination | U48: g) Co-product displacement credit | W48: g)Co-product displacement credit
A49: Month 10 | B49: 100000 | C49: 200000 | D49: 100000 | E49: 200000 | F49: 0.06 | G49: Ocean Tanker | U49: Allocation Method: Hybrid (Mass for soy oil and energy for glycerine) | W49: Allocation Method: Hybrid (Mass for canoal oil and energy for glycerine)
A50: Month 11 | B50: 100000 | C50: 200000 | D50: 100000 | E50: 200000 | F50: 0.08 | G50: Origin | H50: Destination | U50: Soy Oil Mass allocation | V50: 0.2 | W50: Canola oil mass allocation | X50: 0.428
A51: Month 12 | B51: 100000 | C51: 200000 | D51: 100000 | E51: 200000 | F51: 0.1 | G51: Barge | U51: Glycerine yield, lb/lb BD | V51: 0.105 | W51: Glycerine yield, lb/lb BD | X51: 0.105
A52: Month 13 | B52: 100000 | C52: 200000 | D52: 100000 | E52: 200000 | F52: 0.05 | G52: Origin | H52: Destination
A53: Month 14 | B53: 100000 | C53: 200000 | D53: 100000 | E53: 200000 | F53: 0.04 | U53: System energy allocation to BD | V53: 0.9506 | W53: System energy allocation to BD | X53: 0.9506
A54: Month 15 | B54: 100000 | C54: 200000 | D54: 100000 | E54: 200000 | F54: 0.05 | U54: System energy allocation to glycerine | V54: 0.0494 | W54: System energy allocation to glycerine | X54: 0.0494
A55: Month 16 | B55: 100000 | C55: 200000 | D55: 100000 | E55: 200000 | F55: 0.03
A56: Month 17 | B56: 100000 | C56: 200000 | D56: 100000 | E56: 200000 | F56: 0.01
A57: Month 18 | B57: 100000 | C57: 200000 | D57: 100000 | E57: 200000 | F57: 0.05
A58: Month 19 | B58: 100000 | C58: 200000 | D58: 100000 | E58: 200000 | F58: 0.08
A59: Month 20 | B59: 100000 | C59: 200000 | D59: 100000 | E59: 200000 | F59: 0.09
A60: Month 21 | B60: 100000 | C60: 200000 | D60: 100000 | E60: 200000 | F60: 0.04
A61: Month 22 | B61: 100000 | C61: 200000 | D61: 100000 | E61: 200000 | F61: 0.03
A62: Month 23 | B62: 100000 | C62: 200000 | D62: 100000 | E62: 200000 | F62: 0.02
A63: Month 24 | B63: 100000 | C63: 200000 | D63: 100000 | E63: 200000 | F63: 0.02
A64: Total | B64: =SUM(B40:B63) -> 2500000 | C64: =SUM(C40:C63) -> 4265481 | D64: =SUM(D40:D63) -> 2898031 | E64: =SUM(E40:E63) -> 3867450 | F64: =AVERAGE(F40:F63) -> 0.05916666667
A65: Monthly Data Feedstock 3 | B65: Beginning US Used Cooking Oil Inventory | C65: Oil Received | D65: Oil Used | E65: Ending US Used Cooking Oil Inventory | F65: Moisture Content | G65: Feedstock Transportation
A66: Unit | B66: Tons | C66: Tons | D66: Tons | E66: Tons | F66: % | G66: Enter origins, destinations and miles for each part of portion of tranport mode.
A67: Month 1 | B67: 100000 | C67: 50000 | D67: =B67+C67-E67 -> 50000 | E67: 100000 | F67: 0.06
A68: Month 2 | B68: 100000 | C68: 200000 | D68: =B68+C68-E68 -> 255365 | E68: 44635 | F68: 0.05 | G68: HDD Truck | I68: Miles
A69: Month 3 | B69: 100000 | C69: 200000 | D69: =B69+C69-E69 -> 298744 | E69: 1256 | F69: 0.08 | G69: Origin | H69: Destination
A70: Month 4 | B70: 100000 | C70: 200000 | D70: 298441 | E70: 1559 | F70: 0.06 | G70: Origin | H70: Destination
A71: Month 5 | B71: 100000 | C71: 103000 | D71: 103000 | E71: 100000 | F71: 0.04 | G71: Origin | H71: Destination
A72: Month 6 | B72: 100000 | C72: 112356 | D72: 12356 | E72: 200000 | F72: 0.08 | G72: Origin | H72: Destination
A73: Month 7 | B73: 100000 | C73: 200000 | D73: 100000 | E73: 200000 | F73: 0.05 | G73: Rail
A74: Month 8 | B74: 100000 | C74: 200000 | D74: 100000 | E74: 200000 | F74: 0.09 | G74: Origin | H74: Destination
A75: Month 9 | B75: 200000 | C75: 125 | D75: 180125 | E75: 20000 | F75: 0.07 | G75: Origin | H75: Destination
A76: Month 10 | B76: 100000 | C76: 200000 | D76: 100000 | E76: 200000 | F76: 0.06 | G76: Ocean Tanker
A77: Month 11 | B77: 100000 | C77: 200000 | D77: 100000 | E77: 200000 | F77: 0.08 | G77: Origin | H77: Destination
A78: Month 12 | B78: 100000 | C78: 200000 | D78: 100000 | E78: 200000 | F78: 0.05 | G78: Barge
A79: Month 13 | B79: 100000 | C79: 200000 | D79: 100000 | E79: 200000 | F79: 0.05 | G79: Origin | H79: Destination
A80: Month 14 | B80: 100000 | C80: 200000 | D80: 100000 | E80: 200000 | F80: 0.04
A81: Month 15 | B81: 100000 | C81: 200000 | D81: 100000 | E81: 200000 | F81: 0.05
A82: Month 16 | B82: 100000 | C82: 200000 | D82: 100000 | E82: 200000 | F82: 0.03
A83: Month 17 | B83: 100000 | C83: 200000 | D83: 100000 | E83: 200000 | F83: 0.01
A84: Month 18 | B84: 100000 | C84: 200000 | D84: 100000 | E84: 200000 | F84: 0.05
A85: Month 19 | B85: 100000 | C85: 200000 | D85: 100000 | E85: 200000 | F85: 0.08
A86: Month 20 | B86: 100000 | C86: 200000 | D86: 100000 | E86: 200000 | F86: 0.09
A87: Month 21 | B87: 100000 | C87: 200000 | D87: 100000 | E87: 200000 | F87: 0.04
A88: Month 22 | B88: 100000 | C88: 200000 | D88: 100000 | E88: 200000 | F88: 0.03
A89: Month 23 | B89: 100000 | C89: 200000 | D89: 100000 | E89: 200000 | F89: 0.02
A90: Month 24 | B90: 100000 | C90: 200000 | D90: 100000 | E90: 200000 | F90: 0.02
A91: Total | B91: =SUM(B67:B90) -> 2500000 | C91: =SUM(C67:C90) -> 4265481 | D91: =SUM(D67:D90) -> 2898031 | E91: =SUM(E67:E90) -> 3867450 | F91: =AVERAGE(F67:F90) -> 0.05333333333
A92: Monthly Data Feedstock 4 | B92: Beginning US Midwest Used Cooking Oil Inventory | C92: Oil Received | D92: Oil Used | E92: Ending US Midwest Used Cooking Oil Inventory | F92: Moisture Content | G92: Feedstock Transportation
A93: Unit | B93: Tons | C93: Tons | D93: Tons | E93: Tons | F93: % | G93: Enter origins, destinations and miles for each part of portion of tranport mode.
A94: Month 1 | B94: 100000 | C94: 50000 | D94: =B94+C94-E94 -> 50000 | E94: 100000 | F94: 0.1
A95: Month 2 | B95: 100000 | C95: 200000 | D95: =B95+C95-E95 -> 255365 | E95: 44635 | F95: 0.05 | G95: HDD Truck | I95: Miles
A96: Month 3 | B96: 100000 | C96: 200000 | D96: =B96+C96-E96 -> 298744 | E96: 1256 | F96: 0.08 | G96: Origin | H96: Destination
A97: Month 4 | B97: 100000 | C97: 200000 | D97: 298441 | E97: 1559 | F97: 0.06 | G97: Origin | H97: Destination
A98: Month 5 | B98: 100000 | C98: 103000 | D98: 103000 | E98: 100000 | F98: 0.04 | G98: Origin | H98: Destination
A99: Month 6 | B99: 100000 | C99: 112356 | D99: 12356 | E99: 200000 | F99: 0.08 | G99: Origin | H99: Destination
A100: Month 7 | B100: 100000 | C100: 200000 | D100: 100000 | E100: 200000 | F100: 0.1 | G100: Rail
A101: Month 8 | B101: 100000 | C101: 200000 | D101: 100000 | E101: 200000 | F101: 0.09 | G101: Origin | H101: Destination
A102: Month 9 | B102: 200000 | C102: 125 | D102: 180125 | E102: 20000 | F102: 0.07 | G102: Origin | H102: Destination
A103: Month 10 | B103: 100000 | C103: 200000 | D103: 100000 | E103: 200000 | F103: 0.06 | G103: Ocean Tanker
A104: Month 11 | B104: 100000 | C104: 200000 | D104: 100000 | E104: 200000 | F104: 0.08 | G104: Origin | H104: Destination
A105: Month 12 | B105: 100000 | C105: 200000 | D105: 100000 | E105: 200000 | F105: 0.1 | G105: Barge
A106: Month 13 | B106: 100000 | C106: 200000 | D106: 100000 | E106: 200000 | F106: 0.05 | G106: Origin | H106: Destination
A107: Month 14 | B107: 100000 | C107: 200000 | D107: 100000 | E107: 200000 | F107: 0.04
A108: Month 15 | B108: 100000 | C108: 200000 | D108: 100000 | E108: 200000 | F108: 0.05
A109: Month 16 | B109: 100000 | C109: 200000 | D109: 100000 | E109: 200000 | F109: 0.03
A110: Month 17 | B110: 100000 | C110: 200000 | D110: 100000 | E110: 200000 | F110: 0.01
A111: Month 18 | B111: 100000 | C111: 200000 | D111: 100000 | E111: 200000 | F111: 0.05
A112: Month 19 | B112: 100000 | C112: 200000 | D112: 100000 | E112: 200000 | F112: 0.08
A113: Month 20 | B113: 100000 | C113: 200000 | D113: 100000 | E113: 200000 | F113: 0.09
A114: Month 21 | B114: 100000 | C114: 200000 | D114: 100000 | E114: 200000 | F114: 0.04
A115: Month 22 | B115: 100000 | C115: 200000 | D115: 100000 | E115: 200000 | F115: 0.03
A116: Month 23 | B116: 100000 | C116: 200000 | D116: 100000 | E116: 200000 | F116: 0.02
A117: Month 24 | B117: 100000 | C117: 200000 | D117: 100000 | E117: 200000 | F117: 0.02
A118: Total | B118: =SUM(B94:B117) -> 2500000 | C118: =SUM(C94:C117) -> 4265481 | D118: =SUM(D94:D117) -> 2898031 | E118: =SUM(E94:E117) -> 3867450 | F118: =AVERAGE(F94:F117) -> 0.05916666667
A119: Monthly Data Feedstock 5 | B119: Beginning Soy Oil Inventory | C119: Oil Received | D119: Oil Used | E119: Ending Soy Oil Inventory | F119: Moisture Content | G119: Feedstock Transportation
A120: Unit | B120: Tons | C120: Tons | D120: Tons | E120: Tons | F120: % | G120: Enter origins, destinations and miles for each part of portion of tranport mode.
A121: Month 1 | B121: 100000 | C121: 50000 | D121: =B121+C121-E121 -> 50000 | E121: 100000 | F121: 0.1
A122: Month 2 | B122: 100000 | C122: 200000 | D122: =B122+C122-E122 -> 255365 | E122: 44635 | F122: 0.05 | G122: HDD Truck | I122: Miles
A123: Month 3 | B123: 100000 | C123: 200000 | D123: =B123+C123-E123 -> 298744 | E123: 1256 | F123: 0.08 | G123: Origin | H123: Destination
A124: Month 4 | B124: 100000 | C124: 200000 | D124: 298441 | E124: 1559 | F124: 0.06 | G124: Origin | H124: Destination
A125: Month 5 | B125: 100000 | C125: 103000 | D125: 103000 | E125: 100000 | F125: 0.04 | G125: Origin | H125: Destination
A126: Month 6 | B126: 100000 | C126: 112356 | D126: 12356 | E126: 200000 | F126: 0.08 | G126: Origin | H126: Destination
A127: Month 7 | B127: 100000 | C127: 200000 | D127: 100000 | E127: 200000 | F127: 0.1 | G127: Rail
A128: Month 8 | B128: 100000 | C128: 200000 | D128: 100000 | E128: 200000 | F128: 0.09 | G128: Origin | H128: Destination
A129: Month 9 | B129: 200000 | C129: 125 | D129: 180125 | E129: 20000 | F129: 0.07 | G129: Origin | H129: Destination
A130: Month 10 | B130: 100000 | C130: 200000 | D130: 100000 | E130: 200000 | F130: 0.06 | G130: Ocean Tanker
A131: Month 11 | B131: 100000 | C131: 200000 | D131: 100000 | E131: 200000 | F131: 0.08 | G131: Origin | H131: Destination
A132: Month 12 | B132: 100000 | C132: 200000 | D132: 100000 | E132: 200000 | F132: 0.1 | G132: Barge
A133: Month 13 | B133: 100000 | C133: 200000 | D133: 100000 | E133: 200000 | F133: 0.05 | G133: Origin | H133: Destination
A134: Month 14 | B134: 100000 | C134: 200000 | D134: 100000 | E134: 200000 | F134: 0.04
A135: Month 15 | B135: 100000 | C135: 200000 | D135: 100000 | E135: 200000 | F135: 0.05
A136: Month 16 | B136: 100000 | C136: 200000 | D136: 100000 | E136: 200000 | F136: 0.03
A137: Month 17 | B137: 100000 | C137: 200000 | D137: 100000 | E137: 200000 | F137: 0.01
A138: Month 18 | B138: 100000 | C138: 200000 | D138: 100000 | E138: 200000 | F138: 0.05
A139: Month 19 | B139: 100000 | C139: 200000 | D139: 100000 | E139: 200000 | F139: 0.08
A140: Month 20 | B140: 100000 | C140: 200000 | D140: 100000 | E140: 200000 | F140: 0.09
A141: Month 21 | B141: 100000 | C141: 200000 | D141: 100000 | E141: 200000 | F141: 0.04
A142: Month 22 | B142: 100000 | C142: 200000 | D142: 100000 | E142: 200000 | F142: 0.03
A143: Month 23 | B143: 100000 | C143: 200000 | D143: 100000 | E143: 200000 | F143: 0.02
A144: Month 24 | B144: 100000 | C144: 200000 | D144: 100000 | E144: 200000 | F144: 0.02
A145: Total | B145: =SUM(B121:B144) -> 2500000 | C145: =SUM(C121:C144) -> 4265481 | D145: =SUM(D121:D144) -> 2898031 | E145: =SUM(E121:E144) -> 3867450 | F145: =AVERAGE(F121:F144) -> 0.05916666667
A146: Monthly Data Feedstock 6 | B146: Beginning PFAD Inventory | C146: Oil Received | D146: Oil Used | E146: Ending PFAD Inventory | F146: Moisture Content | G146: Feedstock Transportation
A147: Unit | B147: Tons | C147: Tons | D147: Tons | E147: Tons | F147: % | G147: Enter origins, destinations and miles for each part of portion of tranport mode.
A148: Month 1 | B148: 100000 | C148: 50000 | D148: =B148+C148-E148 -> 50000 | E148: 100000 | F148: 0.1
A149: Month 2 | B149: 100000 | C149: 200000 | D149: =B149+C149-E149 -> 255365 | E149: 44635 | F149: 0.05 | G149: HDD Truck | I149: Miles
A150: Month 3 | B150: 100000 | C150: 200000 | D150: =B150+C150-E150 -> 298744 | E150: 1256 | F150: 0.08 | G150: Origin | H150: Destination
A151: Month 4 | B151: 100000 | C151: 200000 | D151: 298441 | E151: 1559 | F151: 0.06 | G151: Origin | H151: Destination
A152: Month 5 | B152: 100000 | C152: 103000 | D152: 103000 | E152: 100000 | F152: 0.04 | G152: Origin | H152: Destination
A153: Month 6 | B153: 100000 | C153: 112356 | D153: 12356 | E153: 200000 | F153: 0.08 | G153: Origin | H153: Destination
A154: Month 7 | B154: 100000 | C154: 200000 | D154: 100000 | E154: 200000 | F154: 0.1 | G154: Rail
A155: Month 8 | B155: 100000 | C155: 200000 | D155: 100000 | E155: 200000 | F155: 0.09 | G155: Origin | H155: Destination
A156: Month 9 | B156: 200000 | C156: 125 | D156: 180125 | E156: 20000 | F156: 0.07 | G156: Origin | H156: Destination
A157: Month 10 | B157: 100000 | C157: 200000 | D157: 100000 | E157: 200000 | F157: 0.06 | G157: Ocean Tanker
A158: Month 11 | B158: 100000 | C158: 200000 | D158: 100000 | E158: 200000 | F158: 0.08 | G158: Origin | H158: Destination
A159: Month 12 | B159: 100000 | C159: 200000 | D159: 100000 | E159: 200000 | F159: 0.1 | G159: Barge
A160: Month 13 | B160: 100000 | C160: 200000 | D160: 100000 | E160: 200000 | F160: 0.05 | G160: Origin | H160: Destination
A161: Month 14 | B161: 100000 | C161: 200000 | D161: 100000 | E161: 200000 | F161: 0.04
A162: Month 15 | B162: 100000 | C162: 200000 | D162: 100000 | E162: 200000 | F162: 0.05
A163: Month 16 | B163: 100000 | C163: 200000 | D163: 100000 | E163: 200000 | F163: 0.03
A164: Month 17 | B164: 100000 | C164: 200000 | D164: 100000 | E164: 200000 | F164: 0.01
A165: Month 18 | B165: 100000 | C165: 200000 | D165: 100000 | E165: 200000 | F165: 0.05
A166: Month 19 | B166: 100000 | C166: 200000 | D166: 100000 | E166: 200000 | F166: 0.08
A167: Month 20 | B167: 100000 | C167: 200000 | D167: 100000 | E167: 200000 | F167: 0.09
A168: Month 21 | B168: 100000 | C168: 200000 | D168: 100000 | E168: 200000 | F168: 0.04
A169: Month 22 | B169: 100000 | C169: 200000 | D169: 100000 | E169: 200000 | F169: 0.03
A170: Month 23 | B170: 100000 | C170: 200000 | D170: 100000 | E170: 200000 | F170: 0.02
A171: Month 24 | B171: 100000 | C171: 200000 | D171: 100000 | E171: 200000 | F171: 0.02
A172: Total | B172: =SUM(B148:B171) -> 2500000 | C172: =SUM(C148:C171) -> 4265481 | D172: =SUM(D148:D171) -> 2898031 | E172: =SUM(E148:E171) -> 3867450 | F172: =AVERAGE(F148:F171) -> 0.05916666667
A173: Monthly Data Feedstock 7 | B173: No Bio-oil Used | C173: Oil Received | D173: Oil Used | E173: No Bio-oil Used | F173: Moisture Content | G173: Feedstock Transportation
A174: Unit | B174: Tons | C174: Tons | D174: Tons | E174: Tons | F174: % | G174: Enter origins, destinations and miles for each part of portion of tranport mode.
A175: Month 1 | B175: 100000 | C175: 50000 | D175: =B175+C175-E175 -> 50000 | E175: 100000 | F175: 0.1
A176: Month 2 | B176: 100000 | C176: 200000 | D176: =B176+C176-E176 -> 255365 | E176: 44635 | F176: 0.05 | G176: HDD Truck | I176: Miles
A177: Month 3 | B177: 100000 | C177: 200000 | D177: =B177+C177-E177 -> 298744 | E177: 1256 | F177: 0.08 | G177: Origin | H177: Destination
A178: Month 4 | B178: 100000 | C178: 200000 | D178: 298441 | E178: 1559 | F178: 0.06 | G178: Origin | H178: Destination
A179: Month 5 | B179: 100000 | C179: 103000 | D179: 103000 | E179: 100000 | F179: 0.04 | G179: Origin | H179: Destination
A180: Month 6 | B180: 100000 | C180: 112356 | D180: 12356 | E180: 200000 | F180: 0.08 | G180: Origin | H180: Destination
A181: Month 7 | B181: 100000 | C181: 200000 | D181: 100000 | E181: 200000 | F181: 0.1 | G181: Rail
A182: Month 8 | B182: 100000 | C182: 200000 | D182: 100000 | E182: 200000 | F182: 0.09 | G182: Origin | H182: Destination
A183: Month 9 | B183: 200000 | C183: 125 | D183: 180125 | E183: 20000 | F183: 0.07 | G183: Origin | H183: Destination
A184: Month 10 | B184: 100000 | C184: 200000 | D184: 100000 | E184: 200000 | F184: 0.06 | G184: Ocean Tanker
A185: Month 11 | B185: 100000 | C185: 200000 | D185: 100000 | E185: 200000 | F185: 0.08 | G185: Origin | H185: Destination
A186: Month 12 | B186: 100000 | C186: 200000 | D186: 100000 | E186: 200000 | F186: 0.1 | G186: Barge
A187: Month 13 | B187: 100000 | C187: 200000 | D187: 100000 | E187: 200000 | F187: 0.05 | G187: Origin | H187: Destination
A188: Month 14 | B188: 100000 | C188: 200000 | D188: 100000 | E188: 200000 | F188: 0.04
A189: Month 15 | B189: 100000 | C189: 200000 | D189: 100000 | E189: 200000 | F189: 0.05
A190: Month 16 | B190: 100000 | C190: 200000 | D190: 100000 | E190: 200000 | F190: 0.03
A191: Month 17 | B191: 100000 | C191: 200000 | D191: 100000 | E191: 200000 | F191: 0.01
A192: Month 18 | B192: 100000 | C192: 200000 | D192: 100000 | E192: 200000 | F192: 0.05
A193: Month 19 | B193: 100000 | C193: 200000 | D193: 100000 | E193: 200000 | F193: 0.08
A194: Month 20 | B194: 100000 | C194: 200000 | D194: 100000 | E194: 200000 | F194: 0.09
A195: Month 21 | B195: 100000 | C195: 200000 | D195: 100000 | E195: 200000 | F195: 0.04
A196: Month 22 | B196: 100000 | C196: 200000 | D196: 100000 | E196: 200000 | F196: 0.03
A197: Month 23 | B197: 100000 | C197: 200000 | D197: 100000 | E197: 200000 | F197: 0.02
A198: Month 24 | B198: 100000 | C198: 200000 | D198: 100000 | E198: 200000 | F198: 0.02
A199: Total | B199: =SUM(B175:B198) -> 2500000 | C199: =SUM(C175:C198) -> 4265481 | D199: =SUM(D175:D198) -> 2898031 | E199: =SUM(E175:E198) -> 3867450 | F199: =AVERAGE(F175:F198) -> 0.05916666667
A200: Monthly Data Feedstock 8 | B200: No Bio-oil Used | C200: Oil Received | D200: No Bio-oil Used | E200: No Bio-oil Used | F200: Moisture Content | G200: Feedstock Transportation | U200: Sulfuric Acid | V200: 0
... 53 more rows

Sheet BD-Production
A1: Fuel Production Data Summary | D1: Applicant: | E1: ='Feedstock Production'!E1:F1 -> ABC Energy | G1: Fuel Production Facility Address: | I1: XYZ
A2: Biodiesel CI, g/MJ | C2: BD from Canola | E2: BD from Tallow | G2: BD from UCO_US | I2: BD from UCO_US Midwest | K2: BD from Soy Oil | M2: None | O2: None | Q2: None | S2: None | AK2: =IF('Feedstock Production'!C3="Other",'Feedstock Production'!C5,'Feedstock Production'!C3) -> Canola Oil | AL2: =IF('Feedstock Production'!D3="Other",'Feedstock Production'!D5,'Feedstock Production'!D3) -> Tallow | AM2: =IF('Feedstock Production'!E3="Other",'Feedstock Production'!E5,'Feedstock Production'!E3) -> Used Cooking Oil | AN2: =IF('Feedstock Production'!F3="Other",'Feedstock Production'!F5,'Feedstock Production'!F3) -> Used Cooking Oil | AO2: =IF('Feedstock Production'!G3="Other",'Feedstock Production'!G5,'Feedstock Production'!G3) -> Soy Oil | AP2: =IF('Feedstock Production'!H3="Other",'Feedstock Production'!H5,'Feedstock Production'!H3) -> PFAD | AQ2: =IF('Feedstock Production'!I3="Other",'Feedstock Production'!I5,'Feedstock Production'!I3) -> None | AR2: =IF('Feedstock Production'!J3="Other",'Feedstock Production'!J5,'Feedstock Production'!J3) -> None | AS2: =IF('Feedstock Production'!K3="Other",'Feedstock Production'!K5,'Feedstock Production'!K3) -> None
A3: Volume, gallons
A4: Data Years | B4: Select Fuel Production Region
B5: Select Regional Electricity Mix for Fuel | H5: 3-CAMX Mix
B6: Regional Crude Mix | H6: U.S Ave Crude
B7: Regional Natural Gas Source | H7: U.S Ave NG
A8: Process | B8: Inputs for Biodiesel Production | Q8: Co-Products | T8: Finished Fuel Sales
A9: Monthly Data | B9: Beginning Biodiesel Inventory (60 °F) | C9: Biodiesel Produced (60 °F) (calculated) | D9: Ending Biodiesel Inventory (60 °F) | E9: Biodiesel Sold | F9: NG Use from Utility Invoices | G9: Biomass Use from Invoices | H9: Biomass Transport Distance | I9: Biomethane Use from Invoices | J9: Biomethane Parameters | K9: Other Thermal Energy Use (Specify) | L9: Electricity from Utility Invoices | M9: Electricity from Other Sources (Specify) | N9: Beginning Methanol Inventory | O9: Purchased | P9: Ending Methanol Inventory | Q9: Distillate Bottoms Production | R9: Free Fatty Acids Production | S9: Glycerin Production | T9: Transportation and Distribution
A10: Unit | B10: Gallons | C10: Gallons | D10: Gallons | E10: Gallons | F10: MMBTU, HHV | G10: Dry Tons | H10: Miles | I10: MMBTU, HHV | J10: Miles | K10: MMBTU, HHV | L10: KWh | M10: KWh | N10: LBS | O10: LBS | P10: LBS | Q10: LBS | R10: LBS | S10: LBS | T10: Mode | U10: Miles
A11: Month 1 | B11: 100 | C11: =D11-B11+E11 -> 500 | D11: 100 | E11: 500 | F11: 12652 | H11: By HDT Truck | J11: Pipeline | L11: 4592 | T11: From BD plant to port/railyard or to Blending terminal by HDD Truck
A12: Month 2 | B12: 100 | C12: =D12-B12+E12 -> 400 | D12: 200 | E12: 300 | F12: 12999 | H12: 80 | J12: 80 | L12: 4413
A13: Month 3 | B13: 101 | C13: 399 | D13: 200 | E13: 300 | F13: 1187 | H13: By Rail | J13: Source | L13: 997 | T13: By Rail
A14: Month 4 | B14: 102 | C14: 151 | D14: 200 | E14: 53 | F14: 12372 | H14: 2000 | J14: DEF Landfill | L14: 2378
A15: Month 5 | B15: 103 | C15: 397 | D15: 200 | E15: 300 | F15: 16648 | L15: 4783 | T15: By Ocean Tanker
A16: Month 6 | B16: 104 | C16: 396 | D16: 200 | E16: 300 | F16: 16864 | L16: 4620
A17: Month 7 | B17: 105 | C17: 1320 | D17: 200 | E17: 1225 | F17: 19557 | L17: 4907 | T17: By Barge
A18: Month 8 | B18: 106 | C18: 994 | D18: 800 | E18: 300 | F18: 20744 | L18: 4844
A19: Month 9 | B19: 107 | C19: 1314 | D19: 200 | E19: 1221 | F19: 19018 | L19: 4385
A20: Month 10 | B20: 108 | C20: 392 | D20: 200 | E20: 300 | F20: 18090 | L20: 4220
A21: Month 11 | B21: 109 | C21: 391 | D21: 200 | E21: 300 | F21: 20089 | L21: 4598
A22: Month 12 | B22: 110 | C22: 390 | D22: 200 | E22: 300 | F22: 19901 | L22: 4747
A23: Month 13 | B23: 111 | C23: 389 | D23: 200 | E23: 300 | F23: 18131 | L23: 4438
A24: Month 14 | B24: 112 | C24: 388 | D24: 200 | E24: 300 | F24: 15004 | L24: 4479
A25: Month 15 | B25: 113 | C25: 387 | D25: 200 | E25: 300 | F25: 17223 | L25: 4419
A26: Month 16 | B26: 114 | C26: 386 | D26: 200 | E26: 300 | F26: 18030 | L26: 4355
A27: Month 17 | B27: 115 | C27: 385 | D27: 200 | E27: 300 | F27: 19422 | L27: 4412
A28: Month 18 | B28: 116 | C28: 384 | D28: 200 | E28: 300 | F28: 18973 | L28: 4309
A29: Month 19 | B29: 117 | C29: 383 | D29: 200 | E29: 300 | F29: 20166 | L29: 4487
A30: Month 20 | B30: 118 | C30: 382 | D30: 200 | E30: 300 | F30: 20322 | L30: 4019
A31: Month 21 | B31: 119 | C31: 381 | D31: 200 | E31: 300 | F31: 6318 | L31: 2035
A32: Month 22 | B32: 120 | C32: 380 | D32: 200 | E32: 300 | F32: 14070 | L32: 4405
A33: Month 23 | B33: 121 | C33: 379 | D33: 200 | E33: 300 | F33: 11188 | L33: 4445
A34: Month 24 | B34: 122 | C34: 378 | D34: 200 | E34: 300 | F34: 11446 | L34: 4592
A35: Total | B35: 200 | C35: 700 | D35: 300 | E35: =SUM(E11:E34) -> 8999 | F35: 380414 | G35: 0 | I35: 0 | K35: 0 | L35: 99879 | M35: 0 | N35: 0 | O35: 0 | P35: 0 | Q35: 0 | R35: 0 | S35: 0

Sheet Petroleum (hidden)
B2: Feedstocks | D2: Fuels
A3: US Average | B3: Crude for Use in U.S. Refineries | C3: Crude for Use in CA Refineries | D3: Gasoline Blendstock | E3: CA Gasoline Blendstock (CARBOB) | F3: Gasoline | G3: CA Gasoline | H3: LPG | I3: Resi. Oil | J3: Conv. Diesel | K3: CA Ultra LS Diesel | L3: Crude Naphtha | M3: Pet Coke
A4: Loss factor | D4: 1.000813289 | E4: 1.000781401 | F4: 0.9340855164 | G4: 0.936135435 | H4: 1.000057791 | I4: 1 | J4: 1.000044088 | K4: 1.000044096 | L4: 1.000841185 | M4: 1
A5: Total energy | B5: 71551.06798 | C5: 125171.1043 | D5: 162541.0913 | E5: 167932.2158 | F5: 249166.6644 | G5: 251567.7191 | H5: 166911.4826 | I5: 63262.95611 | J5: 159795.5412 | K5: 185874.3756 | L5: 65782.20721 | M5: 246473.9369
A6: Fossil fuels | B6: 67949.98555 | C6: 121497.1728 | D6: 159817.3891 | E6: 165752.4778 | F6: 223419.4862 | G6: 227046.6657 | H6: 163630.3387 | I6: 62148.53209 | J6: 157263.5928 | K6: 183435.9936 | L6: 64509.29383 | M6: 233648.0894
A7: Coal | B7: 13983.46372 | C7: 13701.66478 | D7: 10224.97841 | E7: 8165.032527 | F7: 42336.02263 | G7: 39409.42285 | H7: 12303.96029 | I7: 4182.3106 | J7: 9509.716118 | K7: 9133.95844 | L7: 4773.502085 | M7: 47854.30297
A8: Natural gas | B8: 37913.30857 | C8: 98586.17884 | D8: 83193.47489 | E8: 109979.1448 | F8: 110746.7975 | G8: 134949.1587 | H8: 84251.09575 | I8: 31060.44649 | J8: 82846.75167 | K8: 121348.6408 | L8: 31530.924 | M8: 145770.6652
A9: Petroleum | B9: 16053.21326 | C9: 9209.329202 | D9: 66398.93579 | E9: 47608.30056 | F9: 70336.66607 | G9: 52688.08411 | H9: 67075.28269 | I9: 26905.77499 | J9: 64907.12504 | K9: 52953.3943 | L9: 28204.86774 | M9: 40023.12119
A10: VOC | B10: 4.482421028 | C10: 4.103032378 | D10: 23.69337137 | E10: 23.87034733 | F10: 25.85744248 | G10: 25.95677576 | H10: 5.420585075 | I10: 1.641470403 | J10: 4.979238084 | K10: 5.688685436 | L10: 21.34739595 | M10: 5.085874378
A11: CO | B11: 9.968881052 | C11: 7.049237119 | D11: 10.68247638 | E11: 11.24379733 | F11: 14.82391746 | G11: 15.22412708 | H11: 11.00381163 | I11: 4.586557863 | J11: 10.25520317 | K11: 12.82925129 | L11: 4.265835432 | M11: 16.63597606
A12: NOx | B12: 31.85700608 | C12: 25.17363043 | D12: 19.24158201 | E12: 17.35485257 | F12: 26.50252175 | G12: 24.52290066 | H12: 21.51714358 | I12: 12.2944394 | J12: 16.72394493 | K12: 21.57334901 | L12: 8.921511508 | M12: 25.03432665
A13: PM10 | B13: 2.311515691 | C13: 2.28643742 | D13: 2.249478698 | E13: 2.173677848 | F13: 3.326410827 | G13: 3.222222886 | H13: 2.449653488 | I13: 1.207243384 | J13: 2.105496448 | K13: 2.505964695 | L13: 0.9888605055 | M13: 2.858652421
A14: PM2.5 | B14: 1.950418245 | C14: 1.944971192 | D14: 1.756760488 | E14: 1.71993877 | F14: 2.16225161 | G14: 2.115410534 | H14: 1.913119795 | I14: 0.9925947049 | J14: 1.629692972 | K14: 1.999276501 | L14: 0.7797209832 | M14: 1.997751235
A15: SOx | B15: 11.05417641 | C15: 11.03043687 | D15: 19.96985264 | E15: 19.20437775 | F15: 24.11032887 | G15: 23.26693486 | H15: 20.98808784 | I15: 8.77512315 | J15: 19.36567883 | K15: 21.51579873 | L15: 8.175887502 | M15: 21.3243361
A16: CH4 | B16: 96.14302939 | C16: 108.9637451 | D16: 22.96656794 | E16: 26.2008803 | F16: 28.38038445 | G16: 31.24312038 | H16: 23.6124224 | I16: 8.83966293 | J16: 22.74604602 | K16: 29.02848232 | L16: 9.081052787 | M16: 37.7386004
A17: N2O | B17: 0.1053900865 | C17: 0.2071170257 | D17: 0.2126661633 | E17: 0.2509993969 | F17: 3.03596099 | G17: 2.983889392 | H17: 0.2208240367 | I17: 0.08561515178 | J17: 0.2079748526 | K17: 0.2805537174 | L17: 0.08535230465 | M17: 0.4079810096
A18: CO2 | B18: 6107.55316 | C18: 10632.20409 | D18: 12852.17923 | E18: 14270.64834 | F18: 14801.09667 | G18: 16071.76258 | H18: 13232.46269 | I18: 5040.645545 | J18: 12687.60602 | K18: 15867.46267 | L18: 5148.269173 | M18: 16701.25007
A19: CO2 (w/ C in VOC & CO) | B19: 6137.188756 | C19: 10656.06924 | D19: 12942.81032 | E19: 14362.71308 | F19: 14904.98043 | G19: 16176.58482 | H19: 13266.64855 | I19: 5052.968909 | J19: 12719.23997 | K19: 15905.35266 | L19: 5221.505346 | M19: 16743.24329
A20: GHGs | B20: 8572.170737 | C20: 13441.88374 | D20: 13580.34903 | E20: 15092.5329 | F20: 16519.20641 | G20: 17846.86187 | H20: 13922.76467 | I20: 5299.473797 | J20: 13349.86762 | K20: 16714.66972 | L20: 5473.966653 | M20: 17808.28664
A21: GHG, g/MJ | B21: =B20/Fuel_Specs!$H$130 -> 8.124850203 | C21: =C20/Fuel_Specs!$H$130 -> 12.74044757 | D21: =D20/Fuel_Specs!$H$130 -> 12.87168735 | E21: =E20/Fuel_Specs!$H$130 -> 14.30496111 | F21: =F20/Fuel_Specs!$H$130 -> 15.65718669 | G21: =G20/Fuel_Specs!$H$130 -> 16.91556127 | H21: =H20/Fuel_Specs!$H$130 -> 13.19623475 | I21: =I20/Fuel_Specs!$H$130 -> 5.022932006 | J21: =J20/Fuel_Specs!$H$130 -> 12.65323312 | K21: =K20/Fuel_Specs!$H$130 -> 15.84245016 | L21: =L20/Fuel_Specs!$H$130 -> 5.188319322 | M21: =M20/Fuel_Specs!$H$130 -> 16.87899901
A22: Electricity Mix | B22: U.S Average | C22: U.S Average | D22: U.S Average | E22: CA average | F22: U.S. Ave | G22: CA average | H22: U.S. Ave | I22: U.S. Ave | J22: U.S. Ave | K22: CA average | L22: U.S. Ave | M22: U.S. Ave
A24: Crude used for Feedstock | B24: Feedstock Production Region Selection | C24: Fuel Production Region Selection
A25: eGRID region | B25: =Reference!$J$35 -> 1-U.S Ave Mix | C25: =Reference!J37 -> 3-CAMX Mix | D25: 1-U.S Ave Mix | E25: 2- User Defined Mix | F25: 3-CAMX Mix | G25: 4-NWPP Mix | H25: 5-AZNM Mix | I25: 6-RMPA Mix | J25: 7-MROW Mix | K25: 8-SPNO Mix | L25: 9-SPSO Mix | M25: 10-ERCT Mix | N25: 11-MROE Mix | O25: 12-SRMW Mix | P25: 13-SRMV Mix | Q25: 14-RFCM Mix | R25: 15-RFCW Mix | S25: 16-SRTV Mix | T25: 17-SRSO Mix | U25: 18-NEWE Mix | V25: 19-NYUP Mix | W25: 20-RFCE Mix | X25: 21-NYLI Mix | Y25: 22-NYCW Mix | Z25: 23-SRVC Mix | AA25: 24-FRCC Mix | AB25: 25-AKMS Mix | AC25: 26-AKGD Mix | AD25: 27-HIOA Mix | AE25: 28-HIMS Mix | AF25: 29- Brazilian Mix
A26: VOC | B26: =IFERROR(IF(Reference!$I$35<=29,INDEX($D26:$AF26,1,Reference!$I$35),0),$D26) -> 4.482421028 | C26: =IFERROR(IF(Reference!$I$37<=29,INDEX($D26:$AF26,1,Reference!$I$37),"OPGEE"),$D26) -> 0 | D26: 4.482421028 | E26: 4.284424008 | G26: 4.412431007 | H26: 4.484349075 | I26: 4.52664874 | J26: 4.486588308 | K26: 4.506319468 | L26: 4.537240169 | M26: 4.501748167 | N26: 4.517041252 | O26: 4.512387129 | P26: 4.491616704 | Q26: 4.523635306 | R26: 4.48763283 | S26: 4.477385414 | T26: 4.506090725 | U26: 4.475588903 | V26: 4.404031327 | W26: 4.462490656 | X26: 4.579548423 | Y26: 4.46294132 | Z26: 4.452346867 | AA26: 4.508036499 | AB26: 4.347681108 | AC26: 4.56931244 | AD26: 4.56380122 | AE26: 4.490614567 | AF26: 4.347984659
A27: CO | B27: =IFERROR(IF(Reference!$I$35<=29,INDEX($D27:$AF27,1,Reference!$I$35),0),$D27) -> 9.968881052 | C27: =IFERROR(IF(Reference!$I$37<=29,INDEX($D27:$AF27,1,Reference!$I$37),"OPGEE"),$D27) -> OPGEE | D27: 9.968881052 | E27: 9.279884923 | F27: OPGEE | G27: 9.732506325 | H27: 9.895480299 | I27: 9.805579696 | J27: 9.818209879 | K27: 9.696132715 | L27: 10.08163182 | M27: 9.959963571 | N27: 10.20673308 | O27: 9.685213279 | P27: 10.266382 | Q27: 10.04267755 | R27: 9.705358006 | S27: 9.788248919 | T27: 10.19756902 | U27: 10.62040802 | V27: 9.835077083 | W27: 9.946744514 | X27: 11.01589753 | Y27: 10.11111701 | Z27: 9.910159943 | AA27: 10.28107972 | AB27: 11.3840379 | AC27: 11.23942273 | AD27: 12.73086173 | AE27: 12.70482039 | AF27: 10.32865605
A28: NOx | B28: =IFERROR(IF(Reference!$I$35<=29,INDEX($D28:$AF28,1,Reference!$I$35),0),$D28) -> 31.85700608 | C28: =IFERROR(IF(Reference!$I$37<=29,INDEX($D28:$AF28,1,Reference!$I$37),"OPGEE"),$D28) -> 0 | D28: 31.85700608 | E28: 29.46655987 | G28: 30.98487065 | H28: 31.64754658 | I28: 32.55211477 | J28: 32.20519716 | K28: 32.48379268 | L28: 32.33962478 | M28: 31.64392987 | N28: 32.87420613 | O28: 32.64540675 | P28: 31.50689041 | Q28: 32.58623164 | R28: 32.32437671 | S28: 32.08507647 | T28: 32.06536025 | U28: 31.2733432 | V28: 30.70456999 | W28: 31.48673429 | X28: 32.70086755 | Y28: 30.7177661 | Z28: 31.62505788 | AA28: 31.90751461 | AB28: 37.1333545 | AC28: 34.13649551 | AD28: 48.02659699 | AE28: 46.49683518 | AF28: 30.54536509
A29: PM10 | B29: =IFERROR(IF(Reference!$I$35<=29,INDEX($D29:$AF29,1,Reference!$I$35),0),$D29) -> 2.311515691 | C29: =IFERROR(IF(Reference!$I$37<=29,INDEX($D29:$AF29,1,Reference!$I$37),"OPGEE"),$D29) -> 0 | D29: 2.311515691 | E29: 1.775873321 | G29: 2.135431953 | H29: 2.20865498 | I29: 2.572363939 | J29: 2.524700335 | K29: 2.602875462 | L29: 2.392392156 | M29: 2.167295797 | N29: 2.617856912 | O29: 2.666850991 | P29: 2.093424655 | Q29: 2.565246267 | R29: 2.543574189 | S29: 2.447332589 | T29: 2.41115041 | U29: 2.019829272 | V29: 1.992704681 | W29: 2.198600958 | X29: 1.943297818 | Y29: 1.811522334 | Z29: 2.323342635 | AA29: 2.173525023 | AB29: 2.07555893 | AC29: 2.093867651 | AD29: 2.769688289 | AE29: 2.471772919 | AF29: 1.938296113
A30: PM2.5 | B30: =IFERROR(IF(Reference!$I$35<=29,INDEX($D30:$AF30,1,Reference!$I$35),0),$D30) -> 1.950418245 | C30: =IFERROR(IF(Reference!$I$37<=29,INDEX($D30:$AF30,1,Reference!$I$37),"OPGEE"),$D30) -> 0 | D30: 1.950418245 | E30: 1.631882032 | G30: 1.845423041 | H30: 1.886346701 | I30: 2.091919927 | J30: 2.071008723 | K30: 2.109829453 | L30: 2.001619554 | M30: 1.863980307 | N30: 2.139252049 | O30: 2.146252697 | P30: 1.83423488 | Q30: 2.09906592 | R30: 2.077428896 | S30: 2.025676238 | T30: 2.017616464 | U30: 1.807695695 | V30: 1.767586672 | W30: 1.885114746 | X30: 1.767253232 | Y30: 1.66255604 | Z30: 1.960848379 | AA30: 1.861211112 | AB30: 1.84034866 | AC30: 1.842348516 | AD30: 2.379834352 | AE30: 2.210763852 | AF30: 1.766288545
A31: SOx | B31: =IFERROR(IF(Reference!$I$35<=29,INDEX($D31:$AF31,1,Reference!$I$35),0),$D31) -> 11.05417641 | C31: =IFERROR(IF(Reference!$I$37<=29,INDEX($D31:$AF31,1,Reference!$I$37),"OPGEE"),$D31) -> OPGEE | D31: 11.05417641 | E31: 6.343885603 | F31: OPGEE | G31: 9.390279095 | H31: 10.73081053 | I31: 13.50074064 | J31: 12.90978707 | K31: 13.6858933 | L31: 11.86225564 | M31: 10.05636127 | N31: 13.76134663 | O31: 14.21325086 | P31: 9.14019073 | Q31: 13.19940417 | R31: 13.18500642 | S31: 12.29761782 | T31: 11.58658966 | U31: 8.115479339 | V31: 8.237684073 | W31: 10.09292114 | X31: 8.916809935 | Y31: 6.87884328 | Z31: 10.97737114 | AA31: 9.798685851 | AB31: 8.422734976 | AC31: 8.871936404 | AD31: 25.15450083 | AE31: 22.0040024 | AF31: 7.256839575
A32: CH4 | B32: =IFERROR(IF(Reference!$I$35<=29,INDEX($D32:$AF32,1,Reference!$I$35),0),$D32) -> 96.14302939 | C32: =IFERROR(IF(Reference!$I$37<=29,INDEX($D32:$AF32,1,Reference!$I$37),"OPGEE"),$D32) -> 0 | D32: 96.14302939 | E32: 93.01041602 | G32: 95.02998426 | H32: 96.22511707 | I32: 96.95760385 | J32: 96.10648595 | K32: 96.64683565 | L32: 97.17471258 | M32: 96.61857238 | N32: 96.42561347 | O32: 96.7301585 | P32: 96.33433424 | Q32: 96.6653095 | R32: 96.23612317 | S32: 96.10463979 | T32: 96.48640484 | U32: 95.73275988 | V32: 94.81248393 | W32: 95.61664293 | X32: 97.40526841 | Y32: 95.77312383 | Z32: 95.6084798 | AA32: 96.77036703 | AB32: 94.03568177 | AC32: 98.17055373 | AD32: 96.886376 | AE32: 95.6173726 | AF32: 93.60364687
A33: N2O | B33: =IFERROR(IF(Reference!$I$35<=29,INDEX($D33:$AF33,1,Reference!$I$35),0),$D33) -> 0.1053900865 | C33: =IFERROR(IF(Reference!$I$37<=29,INDEX($D33:$AF33,1,Reference!$I$37),"OPGEE"),$D33) -> 0 | D33: 0.1053900865 | E33: 0.07213805676 | G33: 0.09429731353 | H33: 0.1027181088 | I33: 0.1117935931 | J33: 0.1074912309 | K33: 0.1098148309 | L33: 0.1146138622 | M33: 0.1045306139 | N33: 0.1167389419 | O33: 0.1113034131 | P33: 0.1064266157 | Q33: 0.1135822902 | R33: 0.1066446962 | S33: 0.1058533197 | T33: 0.1136881582 | U33: 0.1085759947 | V33: 0.09163686466 | W33: 0.09914261227 | X33: 0.1160059696 | Y33: 0.09409710998 | Z33: 0.1036875362 | AA33: 0.1091518796 | AB33: 0.07891642186 | AC33: 0.1116550924 | AD33: 0.1098325026 | AE33: 0.1005107846 | AF33: 0.09552504225
A34: CO2 | B34: =IFERROR(IF(Reference!$I$35<=29,INDEX($D34:$AF34,1,Reference!$I$35),0),$D34) -> 6107.55316 | C34: =IFERROR(IF(Reference!$I$37<=29,INDEX($D34:$AF34,1,Reference!$I$37),"OPGEE"),$D34) -> OPGEE | D34: 6107.55316 | E34: 4373.077441 | F34: OPGEE | G34: 5519.077721 | H34: 6024.964112 | I34: 6789.312272 | J34: 6405.925591 | K34: 6714.223745 | L34: 6570.939255 | M34: 6092.297088 | N34: 6613.312359 | O34: 6843.770237 | P34: 5834.400639 | Q34: 6624.64212 | R34: 6502.700043 | S34: 6311.878603 | T34: 6316.117062 | U34: 5455.381194 | V34: 5223.418384 | W34: 5769.663353 | X34: 5964.912523 | Y34: 5274.827121 | Z34: 5939.160138 | AA34: 6055.138061 | AB34: 5160.033767 | AC34: 6460.413086 | AD34: 7556.248086 | AE34: 6686.069069 | AF34: 4647.742099
A35: CO2 (w/ C in VOC & CO) | B35: =IFERROR(IF(Reference!$I$35<=29,INDEX($D35:$AF35,1,Reference!$I$35),0),$D35) -> 6137.188756 | C35: =IFERROR(IF(Reference!$I$37<=29,INDEX($D35:$AF35,1,Reference!$I$37),"OPGEE"),$D35) -> 0 | D35: 6137.188756 | E35: 4401.013239 | G35: 5548.123736 | H35: 6054.490374 | I35: 6818.829095 | J35: 6435.337407 | K35: 6743.50522 | L35: 6600.922884 | M35: 6121.978908 | N35: 6643.429623 | O35: 6873.053464 | P35: 5864.532397 | Q35: 6654.522133 | R35: 6531.937775 | S35: 6341.214655 | T35: 6346.185797 | U35: 5486.019325 | V35: 5252.599402 | W35: 5799.202047 | X35: 5996.496145 | Y35: 5304.62552 | Z35: 5968.609727 | AA35: 6085.344091 | AB35: 5191.473242 | AC35: 6492.316059 | AD35: 7590.477573 | AE35: 6720.029535 | AF35: 4677.524063
A36: GHGs | B36: =IFERROR(IF(Reference!$I$35<=29,INDEX($D36:$AF36,1,Reference!$I$35),0),$D36) -> 8572.170737 | C36: =IFERROR(IF(Reference!$I$37<=29,INDEX($D36:$AF36,1,Reference!$I$37),"OPGEE"),$D36) -> 0 | D36: 8572.170737 | E36: 6747.770781 | G36: 7951.973942 | H36: 8490.728297 | I36: 9276.083682 | J36: 8870.031942 | K36: 9192.400931 | L36: 9064.44563 | M36: 8568.59334 | N36: 9088.858164 | O36: 9324.475844 | P36: 8304.605884 | Q36: 9105.002393 | R36: 8969.620974 | S36: 8775.374939 | T36: 8792.224989 | U36: 7911.693968 | V36: 7650.219286 | W36: 8219.162619 | X36: 8466.197634 | Y36: 7726.994554 | Z36: 8389.720608 | AA36: 8537.130527 | AB36: 7565.88238 | AC36: 8979.85312 | AD36: 10045.36706 | AE36: 9140.416064 | AF36: 7046.081697
A37: GHG, gCO2e/MJ | B37: =B36/Fuel_Specs!$H$130 -> 8.124850203 | C37: =IFERROR(IF(Reference!$I$37<=29,INDEX($D37:$AF37,1,Reference!$I$37),"OPGEE"),$D37) -> 11.98 | D37: =D36/Fuel_Specs!$H$130 -> 8.124850203 | E37: =E36/Fuel_Specs!$H$130 -> 6.395652686 | F37: 11.98 | G37: =G36/Fuel_Specs!$H$130 -> 7.537017062 | H37: =H36/Fuel_Specs!$H$130 -> 8.047657664 | I37: =I36/Fuel_Specs!$H$130 -> 8.792030945 | J37: =J36/Fuel_Specs!$H$130 -> 8.407168153 | K37: =K36/Fuel_Specs!$H$130 -> 8.712715001 | L37: =L36/Fuel_Specs!$H$130 -> 8.591436775 | M37: =M36/Fuel_Specs!$H$130 -> 8.121459485 | N37: =N36/Fuel_Specs!$H$130 -> 8.614575394 | O37: =O36/Fuel_Specs!$H$130 -> 8.837897865 | P37: =P36/Fuel_Specs!$H$130 -> 7.871247654 | Q37: =Q36/Fuel_Specs!$H$130 -> 8.62987717 | R37: =R36/Fuel_Specs!$H$130 -> 8.501560343 | S37: =S36/Fuel_Specs!$H$130 -> 8.317450625 | T37: =T36/Fuel_Specs!$H$130 -> 8.333421391 | U37: =U36/Fuel_Specs!$H$130 -> 7.498839013 | V37: =V36/Fuel_Specs!$H$130 -> 7.251008832 | W37: =W36/Fuel_Specs!$H$130 -> 7.790263064 | X37: =X36/Fuel_Specs!$H$130 -> 8.024407081 | Y37: =Y36/Fuel_Specs!$H$130 -> 7.323777745 | Z37: =Z36/Fuel_Specs!$H$130 -> 7.951920846 | AA37: =AA36/Fuel_Specs!$H$130 -> 8.091638492 | AB37: =AB36/Fuel_Specs!$H$130 -> 7.171072868 | AC37: =AC36/Fuel_Specs!$H$130 -> 8.511258546 | AD37: =AD36/Fuel_Specs!$H$130 -> 9.521170901 | AE37: =AE36/Fuel_Specs!$H$130 -> 8.663442854 | AF37: =AF36/Fuel_Specs!$H$130 -> 6.67839688
A39: Diesel used as Process Fuel | B39: Feedstock Production Region Selection | C39: Fuel Production Region Selection
A40: eGRID region | B40: =Reference!$J$35 -> 1-U.S Ave Mix | C40: =C25 -> 3-CAMX Mix | D40: 1-U.S Ave Mix | E40: 2- User Defined Mix | F40: 3-CAMX Mix | G40: 4-NWPP Mix | H40: 5-AZNM Mix | I40: 6-RMPA Mix | J40: 7-MROW Mix | K40: 8-SPNO Mix | L40: 9-SPSO Mix | M40: 10-ERCT Mix | N40: 11-MROE Mix | O40: 12-SRMW Mix | P40: 13-SRMV Mix | Q40: 14-RFCM Mix | R40: 15-RFCW Mix | S40: 16-SRTV Mix | T40: 17-SRSO Mix | U40: 18-NEWE Mix | V40: 19-NYUP Mix | W40: 20-RFCE Mix | X40: 21-NYLI Mix | Y40: 22-NYCW Mix | Z40: 23-SRVC Mix | AA40: 24-FRCC Mix | AB40: 25-AKMS Mix | AC40: 26-AKGD Mix | AD40: 27-HIOA Mix | AE40: 28-HIMS Mix | AF40: 29- Brazilian Mix
A41: VOC | B41: =IFERROR(IF(Reference!$I$35<=29,INDEX($D41:$AF41,1,Reference!$I$35),0),$D41) -> 4.979238084 | C41: =IFERROR(IF(Reference!$I$37<=29,INDEX($D41:$AF41,1,Reference!$I$37),"OPGEE"),$D41) -> 5.671089307 | D41: 4.979238084 | E41: 4.838029346 | F41: 5.671089307 | G41: 4.929500321 | H41: 4.980190029 | I41: 5.010583259 | J41: 4.981173855 | K41: 4.996235417 | L41: 5.01819656 | M41: 4.992930366 | N41: 5.002836968 | O41: 5.000642258 | P41: 4.985829094 | Q41: 5.008409197 | R41: 4.982732736 | S41: 4.975679545 | T41: 4.996151755 | U41: 4.97410558 | V41: 4.923071737 | W41: 4.964801691 | X41: 5.048248028 | Y41: 4.965085504 | Z41: 4.957822418 | AA41: 4.997724222 | AB41: 4.881669962 | AC41: 5.039731907 | AD41: 5.035201658 | AE41: 4.983006409 | AF41: 4.883359924
A42: CO | B42: =IFERROR(IF(Reference!$I$35<=29,INDEX($D42:$AF42,1,Reference!$I$35),0),$D42) -> 10.25520317 | C42: =IFERROR(IF(Reference!$I$37<=29,INDEX($D42:$AF42,1,Reference!$I$37),"OPGEE"),$D42) -> 13.05472678 | D42: 10.25520317 | E42: 9.763879849 | F42: 13.05472678 | G42: 10.08833904 | H42: 10.19922497 | I42: 10.13732058 | J42: 10.14452022 | K42: 10.06081619 | L42: 10.33454679 | M42: 10.24794589 | N42: 10.41946237 | O42: 10.05267396 | P42: 10.4671054 | Q42: 10.30712599 | R42: 10.06658323 | S42: 10.12614868 | T42: 10.41803486 | U42: 10.71949889 | V42: 10.15948372 | W42: 10.23871609 | X42: 11.00152027 | Y42: 10.35632627 | Z42: 10.21308344 | AA42: 10.47888855 | AB42: 11.26221714 | AC42: 11.15909809 | AD42: 12.21977644 | AE42: 12.20120782 | AF42: 10.51175882
A43: NOx | B43: =IFERROR(IF(Reference!$I$35<=29,INDEX($D43:$AF43,1,Reference!$I$35),0),$D43) -> 16.72394493 | C43: =IFERROR(IF(Reference!$I$37<=29,INDEX($D43:$AF43,1,Reference!$I$37),"OPGEE"),$D43) -> 20.92711457 | D43: 16.72394493 | E43: 15.0193171 | F43: 20.92711457 | G43: 16.12613813 | H43: 16.48913616 | I43: 17.20615746 | J43: 16.97599468 | K43: 17.16655451 | L43: 17.07868678 | M43: 16.55263962 | N43: 17.45348851 | O43: 17.2857488 | P43: 16.47387274 | Q43: 17.24376948 | R43: 17.05704058 | S43: 16.88617724 | T43: 16.87211761 | U43: 16.30692115 | V43: 15.90133211 | W43: 16.45971729 | X43: 17.3248809 | Y43: 15.91074218 | Z43: 16.55813797 | AA43: 16.76256888 | AB43: 20.48289542 | AC43: 18.34596032 | AD43: 28.24753351 | AE43: 27.15674618 | AF43: 15.78861339
A44: PM10 | B44: =IFERROR(IF(Reference!$I$35<=29,INDEX($D44:$AF44,1,Reference!$I$35),0),$D44) -> 2.105496448 | C44: =IFERROR(IF(Reference!$I$37<=29,INDEX($D44:$AF44,1,Reference!$I$37),"OPGEE"),$D44) -> 2.241333869 | D44: 2.105496448 | E44: 1.723529731 | F44: 2.241333869 | G44: 1.984964583 | H44: 2.040652288 | I44: 2.298938541 | J44: 2.25841852 | K44: 2.307729519 | L44: 2.165908357 | M44: 2.007736238 | N44: 2.331748999 | O44: 2.359007928 | P44: 1.950097582 | Q44: 2.286478703 | R44: 2.271024332 | S44: 2.202469346 | T44: 2.176667832 | U44: 1.897326536 | V44: 1.87798414 | W44: 2.025023722 | X44: 1.842752378 | Y44: 1.748784006 | Z44: 2.114052104 | AA44: 2.003998889 | AB44: 1.935823565 | AC44: 1.94887875 | AD44: 2.42951515 | AE44: 2.217088411 | AF44: 1.839353467
A45: PM2.5 | B45: =IFERROR(IF(Reference!$I$35<=29,INDEX($D45:$AF45,1,Reference!$I$35),0),$D45) -> 1.629692972 | C45: =IFERROR(IF(Reference!$I$37<=29,INDEX($D45:$AF45,1,Reference!$I$37),"OPGEE"),$D45) -> 1.851343857 | D45: 1.629692972 | E45: 1.402544714 | F45: 1.851343857 | G45: 1.558346703 | H45: 1.588175349 | I45: 1.735158412 | J45: 1.716020938 | K45: 1.740408014 | L45: 1.667076296 | M45: 1.570065128 | N45: 1.768557694 | O45: 1.769359666 | P45: 1.546859746 | Q45: 1.735635631 | R45: 1.720206257 | S45: 1.683376588 | T45: 1.677629162 | U45: 1.527876373 | V45: 1.49927485 | W45: 1.583066925 | X45: 1.499037076 | Y45: 1.424378085 | Z45: 1.637147838 | AA45: 1.565409479 | AB45: 1.550928861 | AC45: 1.552354874 | AD45: 1.935108445 | AE45: 1.814553756 | AF45: 1.498390034
A46: SOx | B46: =IFERROR(IF(Reference!$I$35<=29,INDEX($D46:$AF46,1,Reference!$I$35),0),$D46) -> 19.36567883 | C46: =IFERROR(IF(Reference!$I$37<=29,INDEX($D46:$AF46,1,Reference!$I$37),"OPGEE"),$D46) -> 19.02488786 | D46: 19.36567883 | E46: 16.00636452 | F46: 19.02488786 | G46: 18.2539399 | H46: 18.84418597 | I46: 21.10038274 | J46: 20.632412 | K46: 21.19071059 | L46: 19.96131044 | M46: 18.66210964 | N46: 21.22853625 | O46: 21.61842741 | P46: 18.00039483 | Q46: 20.89561188 | R46: 20.8853436 | S46: 20.25222583 | T46: 19.74513091 | U46: 17.26942415 | V46: 17.35657882 | W46: 18.68011179 | X46: 17.84092171 | Y46: 16.38747293 | Z46: 19.31064513 | AA46: 18.47509913 | AB46: 17.48746469 | AC46: 17.80782396 | AD46: 29.41970872 | AE46: 27.17283659 | AF46: 16.65747068
A47: CH4 | B47: =IFERROR(IF(Reference!$I$35<=29,INDEX($D47:$AF47,1,Reference!$I$35),0),$D47) -> 22.74604602 | C47: =IFERROR(IF(Reference!$I$37<=29,INDEX($D47:$AF47,1,Reference!$I$37),"OPGEE"),$D47) -> 28.68172658 | D47: 22.74604602 | E47: 20.51217859 | F47: 28.68172658 | G47: 21.95337703 | H47: 22.80531758 | I47: 23.32794973 | J47: 22.71633499 | K47: 23.10216046 | L47: 23.47858807 | M47: 23.08541959 | N47: 22.9439522 | O47: 23.16448225 | P47: 22.88221996 | Q47: 23.11868295 | R47: 22.81262993 | S47: 22.71842483 | T47: 22.9906615 | U47: 22.44928591 | V47: 21.79304221 | W47: 22.37087822 | X47: 23.64194253 | Y47: 22.47806922 | Z47: 22.36461311 | AA47: 23.19462946 | AB47: 21.21197493 | AC47: 24.16037959 | AD47: 23.23485844 | AE47: 22.3300033 | AF47: 20.93521166
A48: N2O | B48: =IFERROR(IF(Reference!$I$35<=29,INDEX($D48:$AF48,1,Reference!$I$35),0),$D48) -> 0.2079748526 | C48: =IFERROR(IF(Reference!$I$37<=29,INDEX($D48:$AF48,1,Reference!$I$37),"OPGEE"),$D48) -> 0.2762986012 | D48: 0.2079748526 | E48: 0.1842628214 | F48: 0.2762986012 | G48: 0.200049372 | H48: 0.2056529378 | I48: 0.212525995 | J48: 0.2094299403 | K48: 0.2111420178 | L48: 0.2145641894 | M48: 0.2073413905 | N48: 0.2160244443 | O48: 0.2121868273 | P48: 0.2087091828 | Q48: 0.2138153173 | R48: 0.208868115 | S48: 0.2083003654 | T48: 0.2138873891 | U48: 0.2102459996 | V48: 0.1981667994 | W48: 0.2035183746 | X48: 0.2155442738 | Y48: 0.1999211867 | Z48: 0.2067559451 | AA48: 0.2106650012 | AB48: 0.1890432546 | AC48: 0.2123878345 | AD48: 0.2111199123 | AE48: 0.204473118 | AF48: 0.200940087
A49: CO2 | B49: =IFERROR(IF(Reference!$I$35<=29,INDEX($D49:$AF49,1,Reference!$I$35),0),$D49) -> 12687.60602 | C49: =IFERROR(IF(Reference!$I$37<=29,INDEX($D49:$AF49,1,Reference!$I$37),"OPGEE"),$D49) -> 15343.96516 | D49: 12687.60602 | E49: 11450.75093 | F49: 15343.96516 | G49: 12268.29013 | H49: 12629.04957 | I49: 13174.10241 | J49: 12898.97171 | K49: 13118.88064 | L49: 13016.70711 | M49: 12676.80844 | N49: 13046.86171 | O49: 13212.67603 | P49: 12492.89453 | Q49: 13056.56118 | R49: 12969.60422 | S49: 12833.38408 | T49: 12836.40653 | U49: 12219.63717 | V49: 12054.22577 | W49: 12446.87533 | X49: 12582.98115 | Y49: 12090.88505 | Z49: 12567.59853 | AA49: 12650.70198 | AB49: 11992.8371 | AC49: 12920.08334 | AD49: 13692.75225 | AE49: 13072.27641 | AF49: 11646.61437
A50: CO2 (w/ C in VOC & CO) | B50: =IFERROR(IF(Reference!$I$35<=29,INDEX($D50:$AF50,1,Reference!$I$35),0),$D50) -> 12719.23997 | C50: =IFERROR(IF(Reference!$I$37<=29,INDEX($D50:$AF50,1,Reference!$I$37),"OPGEE"),$D50) -> 15382.15462 | D50: 12719.23997 | E50: 11481.17269 | F50: 15382.15462 | G50: 12299.50684 | H50: 12660.59852 | I50: 13205.6488 | J50: 12930.43776 | K50: 13150.26209 | L50: 13048.58716 | M50: 12708.47365 | N50: 13078.82732 | O50: 13244.05843 | P50: 12524.882 | Q50: 13088.36764 | R50: 13000.95265 | S50: 12864.80414 | T50: 12868.34907 | U50: 12251.98472 | V50: 12085.53424 | W50: 12478.43837 | X50: 12616.00296 | Y50: 12122.6338 | Z50: 12599.09954 | AA50: 12682.74505 | AB50: 12025.74941 | AC50: 12953.32623 | AD50: 13727.6478 | AE50: 13106.9801 | AF50: 11678.35265
A51: GHGs | B51: =IFERROR(IF(Reference!$I$35<=29,INDEX($D51:$AF51,1,Reference!$I$35),0),$D51) -> 13349.86762 | C51: =IFERROR(IF(Reference!$I$37<=29,INDEX($D51:$AF51,1,Reference!$I$37),"OPGEE"),$D51) -> 16181.53477 | D51: 13349.86762 | E51: 12048.88748 | F51: 16181.53477 | G51: 12907.95598 | H51: 13292.01603 | I51: 13852.18029 | J51: 13560.75626 | K51: 13790.73643 | L51: 13699.49199 | M51: 13347.39687 | N51: 13716.80141 | O51: 13886.40216 | P51: 13159.13284 | Q51: 13730.05168 | R51: 13633.5111 | S51: 13494.83827 | T51: 13506.85405 | U51: 12875.87018 | V51: 12689.414 | W51: 13098.35881 | X51: 13271.28372 | Y51: 12744.16204 | Z51: 13219.82814 | AA51: 13325.38895 | AB51: 12612.38368 | AC51: 13620.62729 | AD51: 14371.43299 | AE51: 13726.16317 | AF51: 12261.61309
A52: GHG, gCO2e/MJ | B52: =B51/Fuel_Specs!$H$130 -> 12.65323312 | C52: =IFERROR(IF(Reference!$I$37<=29,INDEX($D52:$AF52,1,Reference!$I$37),"OPGEE"),$D52) -> 15.33713573 | D52: =D51/Fuel_Specs!$H$130 -> 12.65323312 | E52: =E51/Fuel_Specs!$H$130 -> 11.42014186 | F52: =F51/Fuel_Specs!$H$130 -> 15.33713573 | G52: =G51/Fuel_Specs!$H$130 -> 12.2343817 | H52: =H51/Fuel_Specs!$H$130 -> 12.59840039 | I52: =I51/Fuel_Specs!$H$130 -> 13.12933366 | J52: =J51/Fuel_Specs!$H$130 -> 12.85311698 | K52: =K51/Fuel_Specs!$H$130 -> 13.07109612 | L52: =L51/Fuel_Specs!$H$130 -> 12.98461308 | M52: =M51/Fuel_Specs!$H$130 -> 12.6508913 | N52: =N51/Fuel_Specs!$H$130 -> 13.00101925 | O52: =O51/Fuel_Specs!$H$130 -> 13.16176974 | P52: =P51/Fuel_Specs!$H$130 -> 12.47245142 | Q52: =Q51/Fuel_Specs!$H$130 -> 13.01357807 | R52: =R51/Fuel_Specs!$H$130 -> 12.92207526 | S52: =S51/Fuel_Specs!$H$130 -> 12.79063878 | T52: =T51/Fuel_Specs!$H$130 -> 12.80202754 | U52: =U51/Fuel_Specs!$H$130 -> 12.20397022 | V52: =V51/Fuel_Specs!$H$130 -> 12.02724387 | W52: =W51/Fuel_Specs!$H$130 -> 12.41484876 | X52: =X51/Fuel_Specs!$H$130 -> 12.57874995 | Y52: =Y51/Fuel_Specs!$H$130 -> 12.079135 | Z52: =Z51/Fuel_Specs!$H$130 -> 12.52997947 | AA52: =AA51/Fuel_Specs!$H$130 -> 12.63003182 | AB52: =AB51/Fuel_Specs!$H$130 -> 11.95423321 | AC52: =AC51/Fuel_Specs!$H$130 -> 12.90986377 | AD52: =AD51/Fuel_Specs!$H$130 -> 13.62149027 | AE52: =AE51/Fuel_Specs!$H$130 -> 13.00989248 | AF52: =AF51/Fuel_Specs!$H$130 -> 11.62176684
A54: LPG used as Process Fuel | B54: Feedstock Production Region Selection | C54: Fuel Production Region Selection
A55: eGRID region | B55: =Reference!$J$35 -> 1-U.S Ave Mix | C55: =Reference!J37 -> 3-CAMX Mix | D55: 1-U.S Ave Mix | E55: 2- User Defined Mix | F55: 3-CAMX Mix | G55: 4-NWPP Mix | H55: 5-AZNM Mix | I55: 6-RMPA Mix | J55: 7-MROW Mix | K55: 8-SPNO Mix | L55: 9-SPSO Mix | M55: 10-ERCT Mix | N55: 11-MROE Mix | O55: 12-SRMW Mix | P55: 13-SRMV Mix | Q55: 14-RFCM Mix | R55: 15-RFCW Mix | S55: 16-SRTV Mix | T55: 17-SRSO Mix | U55: 18-NEWE Mix | V55: 19-NYUP Mix | W55: 20-RFCE Mix | X55: 21-NYLI Mix | Y55: 22-NYCW Mix | Z55: 23-SRVC Mix | AA55: 24-FRCC Mix | AB55: 25-AKMS Mix | AC55: 26-AKGD Mix | AD55: 27-HIOA Mix | AE55: 28-HIMS Mix | AF55: 29- Brazilian Mix
A56: VOC | B56: =IFERROR(IF(Reference!$I$35<=29,INDEX($D56:$AF56,1,Reference!$I$35),0),$D56) -> 5.420585075 | C56: =IFERROR(IF(Reference!$I$37<=29,INDEX($D56:$AF56,1,Reference!$I$37),"OPGEE"),$D56) -> 5.397001319 | D56: 5.420585075 | E56: 5.23754036 | F56: 5.397001319 | G56: 5.35611609 | H56: 5.421808111 | I56: 5.461211793 | J56: 5.423067558 | K56: 5.442617008 | L56: 5.471082233 | M56: 5.438331608 | N56: 5.451147376 | O56: 5.448331521 | P56: 5.429129653 | Q56: 5.458392976 | R56: 5.425109339 | S56: 5.415973094 | T56: 5.442510614 | U56: 5.413925239 | V56: 5.347771577 | W56: 5.401865855 | X56: 5.510033903 | Y56: 5.402232782 | Z56: 5.392825428 | AA56: 5.444553735 | AB56: 5.294072296 | AC56: 5.498963261 | AD56: 5.493075323 | AE56: 5.425416176 | AF56: 5.425416176
A57: CO | B57: =IFERROR(IF(Reference!$I$35<=29,INDEX($D57:$AF57,1,Reference!$I$35),0),$D57) -> 11.00381163 | C57: =IFERROR(IF(Reference!$I$37<=29,INDEX($D57:$AF57,1,Reference!$I$37),"OPGEE"),$D57) -> 11.30692011 | D57: 11.00381163 | E57: 10.36692669 | F57: 11.30692011 | G57: 10.78755543 | H57: 10.93115504 | I57: 10.85096758 | J57: 10.86025347 | K57: 10.75183755 | L57: 11.10663455 | M57: 10.99438104 | N57: 11.21659653 | O57: 10.74127387 | P57: 11.2784866 | Q57: 11.07109919 | R57: 10.75929216 | S57: 10.83651653 | T57: 11.2148782 | U57: 11.60565367 | V57: 10.87972606 | W57: 10.98242186 | X57: 11.9712279 | Y57: 11.13488601 | Z57: 10.94920696 | AA57: 11.29379435 | AB57: 12.30911279 | AC57: 12.17544339 | AD57: 13.55028883 | AE57: 13.52621903 | AF57: 13.52621903
A58: NOx | B58: =IFERROR(IF(Reference!$I$35<=29,INDEX($D58:$AF58,1,Reference!$I$35),0),$D58) -> 21.51714358 | C58: =IFERROR(IF(Reference!$I$37<=29,INDEX($D58:$AF58,1,Reference!$I$37),"OPGEE"),$D58) -> 20.65006865 | D58: 21.51714358 | E58: 19.30749518 | F58: 20.65006865 | G58: 20.74285156 | H58: 21.21055941 | I58: 22.14187014 | J58: 21.8439638 | K58: 22.09077007 | L58: 21.97725662 | M58: 21.29458585 | N58: 22.46293302 | O58: 22.24537946 | P58: 21.19297343 | Q58: 22.19096882 | R58: 21.94891879 | S58: 21.72742908 | T58: 21.70920408 | U58: 20.97654945 | V58: 20.45079889 | W58: 21.17462986 | X58: 22.29609423 | Y58: 20.46299683 | Z58: 21.30220345 | AA58: 21.56727784 | AB58: 26.38964383 | AC58: 23.61961416 | AD58: 36.4545816 | AE58: 35.04063502 | AF58: 35.04063502
A59: PM10 | B59: =IFERROR(IF(Reference!$I$35<=29,INDEX($D59:$AF59,1,Reference!$I$35),0),$D59) -> 2.449653488 | C59: =IFERROR(IF(Reference!$I$37<=29,INDEX($D59:$AF59,1,Reference!$I$37),"OPGEE"),$D59) -> 2.143762486 | D59: 2.449653488 | E59: 1.954523625 | F59: 2.143762486 | G59: 2.293542508 | H59: 2.365818307 | I59: 2.700597789 | J59: 2.647904207 | K59: 2.711657846 | L59: 2.528034135 | M59: 2.323061874 | N59: 2.743138372 | O59: 2.778274549 | P59: 2.24821862 | Q59: 2.684255558 | R59: 2.664222607 | S59: 2.575359156 | T59: 2.541913572 | U59: 2.179805887 | V59: 2.154733031 | W59: 2.345340767 | X59: 2.10906336 | Y59: 1.987255523 | Z59: 2.460747032 | AA59: 2.31800573 | AB59: 2.229676046 | AC59: 2.246598998 | AD59: 2.869597456 | AE59: 2.594236669 | AF59: 2.594236669
A60: PM2.5 | B60: =IFERROR(IF(Reference!$I$35<=29,INDEX($D60:$AF60,1,Reference!$I$35),0),$D60) -> 1.913119795 | C60: =IFERROR(IF(Reference!$I$37<=29,INDEX($D60:$AF60,1,Reference!$I$37),"OPGEE"),$D60) -> 1.728444919 | D60: 1.913119795 | E60: 1.618675591 | F60: 1.728444919 | G60: 1.820727358 | H60: 1.859409877 | I60: 2.049948846 | J60: 2.025032327 | K60: 2.056559176 | L60: 1.961601012 | M60: 1.835878358 | N60: 2.093234011 | O60: 2.094165202 | P60: 1.805746475 | Q60: 2.050447993 | R60: 2.030447444 | S60: 1.982708398 | T60: 1.975258215 | U60: 1.781137498 | V60: 1.744062367 | W60: 1.852678607 | X60: 1.743754148 | Y60: 1.646976371 | Z60: 1.922783716 | AA60: 1.829774065 | AB60: 1.811013607 | AC60: 1.812862096 | AD60: 2.30899828 | AE60: 2.152727773 | AF60: 2.152727773
A61: SOx | B61: =IFERROR(IF(Reference!$I$35<=29,INDEX($D61:$AF61,1,Reference!$I$35),0),$D61) -> 20.98808784 | C61: =IFERROR(IF(Reference!$I$37<=29,INDEX($D61:$AF61,1,Reference!$I$37),"OPGEE"),$D61) -> 17.64399657 | D61: 20.98808784 | E61: 16.63350796 | F61: 17.64399657 | G61: 19.54891128 | H61: 20.30456974 | I61: 23.23647072 | J61: 22.62865125 | K61: 23.3524811 | L61: 21.76068714 | M61: 20.07628029 | N61: 23.40109995 | O61: 23.90825253 | P61: 19.21830391 | Q61: 22.97129448 | R61: 22.95798402 | S61: 22.13728583 | T61: 21.47995368 | U61: 18.27076406 | V61: 18.38374009 | W61: 20.0994072 | X61: 19.01157946 | Y61: 17.12751677 | Z61: 20.91674263 | AA61: 19.8337803 | AB61: 18.55337539 | AC61: 18.96864751 | AD61: 34.0207747 | AE61: 31.10822127 | AF61: 31.10822127
A62: CH4 | B62: =IFERROR(IF(Reference!$I$35<=29,INDEX($D62:$AF62,1,Reference!$I$35),0),$D62) -> 23.6124224 | C62: =IFERROR(IF(Reference!$I$37<=29,INDEX($D62:$AF62,1,Reference!$I$37),"OPGEE"),$D62) -> 23.14618688 | D62: 23.6124224 | E62: 20.71673954 | F62: 23.14618688 | G62: 22.5849408 | H62: 23.68927302 | I62: 24.36675012 | J62: 23.5738146 | K62: 24.07395941 | L62: 24.56190909 | M62: 24.05234711 | N62: 23.86886791 | O62: 24.15482005 | P62: 23.78893348 | Q62: 24.09546354 | R62: 23.6987379 | S62: 23.57661169 | T62: 23.92950239 | U62: 23.22763429 | V62: 22.37696907 | W62: 23.12611087 | X62: 24.77363237 | Y62: 23.26494506 | Z62: 23.11797815 | AA62: 24.19393693 | AB62: 21.62305055 | AC62: 25.4449581 | AD62: 24.24498518 | AE62: 23.07205552 | AF62: 23.07205552
A63: N2O | B63: =IFERROR(IF(Reference!$I$35<=29,INDEX($D63:$AF63,1,Reference!$I$35),0),$D63) -> 0.2208240367 | C63: =IFERROR(IF(Reference!$I$37<=29,INDEX($D63:$AF63,1,Reference!$I$37),"OPGEE"),$D63) -> 0.2151263716 | D63: 0.2208240367 | E63: 0.1900869744 | F63: 0.2151263716 | G63: 0.2105501246 | H63: 0.2178034481 | I63: 0.2267231275 | J63: 0.2227090968 | K63: 0.2249298275 | L63: 0.2293658662 | M63: 0.2200023702 | N63: 0.2312573165 | O63: 0.2262837449 | P63: 0.2217757982 | Q63: 0.228394787 | R63: 0.2219819048 | S63: 0.2212458628 | T63: 0.2284881227 | U63: 0.223768025 | V63: 0.2081101901 | W63: 0.2150472266 | X63: 0.2306359881 | Y63: 0.2103843396 | Z63: 0.2192438857 | AA63: 0.2243113775 | AB63: 0.1962823033 | AC63: 0.226543016 | AD63: 0.2249002752 | AE63: 0.2162842859 | AF63: 0.2162842859
A64: CO2 | B64: =IFERROR(IF(Reference!$I$35<=29,INDEX($D64:$AF64,1,Reference!$I$35),0),$D64) -> 13232.46269 | C64: =IFERROR(IF(Reference!$I$37<=29,INDEX($D64:$AF64,1,Reference!$I$37),"OPGEE"),$D64) -> 12528.6582 | D64: 13232.46269 | E64: 11629.17144 | F64: 12528.6582 | G64: 12688.92685 | H64: 13156.56678 | I64: 13863.09927 | J64: 13506.4122 | K64: 13791.47391 | L64: 13659.03007 | M64: 13218.46827 | N64: 13698.1168 | O64: 13913.09416 | P64: 12980.06701 | Q64: 13710.73179 | R64: 13598.01257 | S64: 13421.4315 | T64: 13425.34939 | U64: 12625.77618 | V64: 12411.3593 | W64: 12920.41771 | X64: 13096.76598 | Y64: 12458.87942 | Z64: 13076.90315 | AA64: 13184.63753 | AB64: 12331.36465 | AC64: 13533.31953 | AD64: 14534.67588 | AE64: 13730.3764 | AF64: 13730.3764
A65: CO2 (w/ C in VOC & CO) | B65: =IFERROR(IF(Reference!$I$35<=29,INDEX($D65:$AF65,1,Reference!$I$35),0),$D65) -> 13266.64855 | C65: =IFERROR(IF(Reference!$I$37<=29,INDEX($D65:$AF65,1,Reference!$I$37),"OPGEE"),$D65) -> 12563.24688 | D65: 13266.64855 | E65: 11661.78599 | F65: 12563.24688 | G65: 12722.57195 | H65: 13190.64228 | I65: 13897.17157 | J65: 13540.38021 | K65: 13825.33247 | L65: 13693.53489 | M65: 13252.69462 | N65: 13732.73229 | O65: 13946.95393 | P65: 13014.71113 | Q65: 13745.14123 | R65: 13631.82829 | S65: 13455.3401 | T65: 13459.93526 | U65: 12660.88704 | V65: 12445.12324 | W65: 12954.51162 | X65: 13132.75085 | Y65: 12493.21406 | Z65: 13110.91668 | AA65: 13219.35378 | AB65: 12367.2074 | AC65: 13569.59081 | AD65: 14573.08928 | AE65: 13768.5411 | AF65: 13768.5411
A66: GHGs | B66: =IFERROR(IF(Reference!$I$35<=29,INDEX($D66:$AF66,1,Reference!$I$35),0),$D66) -> 13922.76467 | C66: =IFERROR(IF(Reference!$I$37<=29,INDEX($D66:$AF66,1,Reference!$I$37),"OPGEE"),$D66) -> 13206.00921 | D66: 13922.76467 | E66: 12236.3504 | F66: 13206.00921 | G66: 13349.93941 | H66: 13847.77953 | I66: 14573.90381 | J66: 14196.09289 | K66: 14494.21055 | L66: 14375.93365 | M66: 13919.564 | N66: 14398.36867 | O66: 14618.25699 | P66: 13675.52365 | Q66: 14415.58946 | R66: 14290.44735 | S66: 14110.68666 | T66: 14126.26228 | U66: 13308.26077 | V66: 13066.5643 | W66: 13596.74847 | X66: 13820.82118 | Y66: 13137.53222 | Z66: 13754.20082 | AA66: 13891.04699 | AB66: 12966.27579 | AC66: 14273.22458 | AD66: 15246.23419 | AE66: 14409.7952 | AF66: 14409.7952
A67: GHG, g/MJ | B67: =B66/Fuel_Specs!$H$130 -> 13.19623475 | C67: =IFERROR(IF(Reference!$I$37<=29,INDEX($D67:$AF67,1,Reference!$I$37),"OPGEE"),$D67) -> 12.51688165 | D67: =D66/Fuel_Specs!$H$130 -> 13.19623475 | E67: =E66/Fuel_Specs!$H$130 -> 11.59782243 | F67: =F66/Fuel_Specs!$H$130 -> 12.51688165 | G67: =G66/Fuel_Specs!$H$130 -> 12.65330116 | H67: =H66/Fuel_Specs!$H$130 -> 13.12516255 | I67: =I66/Fuel_Specs!$H$130 -> 13.81339558 | J67: =J66/Fuel_Specs!$H$130 -> 13.45529991 | K67: =K66/Fuel_Specs!$H$130 -> 13.73786094 | L67: =L66/Fuel_Specs!$H$130 -> 13.62575607 | M67: =M66/Fuel_Specs!$H$130 -> 13.1932011 | N67: =N66/Fuel_Specs!$H$130 -> 13.64702036 | O67: =O66/Fuel_Specs!$H$130 -> 13.85543428 | P67: =P66/Fuel_Specs!$H$130 -> 12.96189548 | Q67: =Q66/Fuel_Specs!$H$130 -> 13.66334253 | R67: =R66/Fuel_Specs!$H$130 -> 13.54473068 | S67: =S66/Fuel_Specs!$H$130 -> 13.37435043 | T67: =T66/Fuel_Specs!$H$130 -> 13.38911327 | U67: =U66/Fuel_Specs!$H$130 -> 12.61379743 | V67: =V66/Fuel_Specs!$H$130 -> 12.38471338 | W67: =W66/Fuel_Specs!$H$130 -> 12.88723101 | X67: =X66/Fuel_Specs!$H$130 -> 13.09961097 | Y67: =Y66/Fuel_Specs!$H$130 -> 12.45197799 | Z67: =Z66/Fuel_Specs!$H$130 -> 13.03646704 | AA67: =AA66/Fuel_Specs!$H$130 -> 13.16617219 | AB67: =AB66/Fuel_Specs!$H$130 -> 12.28965821 | AC67: =AC66/Fuel_Specs!$H$130 -> 13.52840665 | AD67: =AD66/Fuel_Specs!$H$130 -> 14.45064182 | AE67: =AE66/Fuel_Specs!$H$130 -> 13.65785063 | AF67: =AF66/Fuel_Specs!$H$130 -> 13.65785063
A68: Gasoline used as Process Fuel | B68: Feedstock Production Region Selection | C68: Fuel Production Region Selection
A69: eGRID region | B69: =Reference!$J$35 -> 1-U.S Ave Mix | C69: =Reference!$J$37 -> 3-CAMX Mix | D69: 1-U.S Ave Mix | E69: 2- User Defined Mix | F69: 3-CAMX Mix | G69: 4-NWPP Mix | H69: 5-AZNM Mix | I69: 6-RMPA Mix | J69: 7-MROW Mix | K69: 8-SPNO Mix | L69: 9-SPSO Mix | M69: 10-ERCT Mix | N69: 11-MROE Mix | O69: 12-SRMW Mix | P69: 13-SRMV Mix | Q69: 14-RFCM Mix | R69: 15-RFCW Mix | S69: 16-SRTV Mix | T69: 17-SRSO Mix | U69: 18-NEWE Mix | V69: 19-NYUP Mix | W69: 20-RFCE Mix | X69: 21-NYLI Mix | Y69: 22-NYCW Mix | Z69: 23-SRVC Mix | AA69: 24-FRCC Mix | AB69: 25-AKMS Mix | AC69: 26-AKGD Mix | AD69: 27-HIOA Mix | AE69: 28-HIMS Mix | AF69: 29- Brazilian Mix
A70: VOC | B70: =IFERROR(IF(Reference!$I$35<=29,INDEX($D70:$AF70,1,Reference!$I$35),0),$D70) -> 26.16555257 | C70: =IFERROR(IF(Reference!$I$37<=29,INDEX($D70:$AF70,1,Reference!$I$37),"OPGEE"),$D70) -> 26.23433783 | D70: 26.16555257 | F70: 26.23433783 | G70: 26.09808351 | H70: 26.15831069 | I70: 26.19953235 | J70: 26.16814707 | K70: 26.18008052 | L70: 26.2098582 | M70: 26.17559733 | N70: 25.88918714 | O70: 25.88622955 | P70: 25.8660222 | Q70: 25.89681657 | R70: 25.86179007 | S70: 25.85217671 | T70: 25.83506527 | U70: 25.80576407 | V70: 25.7379554 | W70: 25.79340308 | X70: 25.90427714 | Y70: 25.79377909 | Z70: 25.78413708 | AA70: 25.83715994 | AB70: 25.68291098 | AC70: 25.89292777 | AD70: 25.88689112 | AE70: 25.81753932 | AF70: 25.68519782
A71: CO | B71: =IFERROR(IF(Reference!$I$35<=29,INDEX($D71:$AF71,1,Reference!$I$35),0),$D71) -> 15.73077198 | C71: =IFERROR(IF(Reference!$I$37<=29,INDEX($D71:$AF71,1,Reference!$I$37),"OPGEE"),$D71) -> 16.3711296 | D71: 15.73077198 | F71: 16.3711296 | G71: 15.5044721 | H71: 15.63206673 | I71: 15.54819467 | J71: 15.58053149 | K71: 15.44450557 | L71: 15.81563471 | M71: 15.69821238 | N71: 15.04237546 | O71: 14.54223496 | P71: 15.10752629 | Q71: 14.88929701 | R71: 14.56119271 | S71: 14.64245569 | T71: 14.84919453 | U71: 15.24970851 | V71: 14.50568981 | W71: 14.61094401 | X71: 15.62439333 | Y71: 14.76720869 | Z71: 14.57690241 | AA71: 14.93008043 | AB71: 15.97070167 | AC71: 15.8337011 | AD71: 17.24280257 | AE71: 17.21813292 | AF71: 14.97372037
A72: NOx | B72: =IFERROR(IF(Reference!$I$35<=29,INDEX($D72:$AF72,1,Reference!$I$35),0),$D72) -> 27.31108782 | C72: =IFERROR(IF(Reference!$I$37<=29,INDEX($D72:$AF72,1,Reference!$I$37),"OPGEE"),$D72) -> 24.53705658 | D72: 27.31108782 | F72: 24.53705658 | G72: 26.50089755 | H72: 26.96910105 | I72: 27.94353685 | J72: 27.65310839 | K72: 27.89011455 | L72: 27.77142622 | M72: 27.05722038 | N72: 27.49762681 | O72: 27.26867879 | P72: 26.16126645 | Q72: 27.21142536 | R72: 26.95672406 | S72: 26.7236566 | T72: 26.39427278 | U72: 25.64335844 | V72: 25.10450548 | W72: 25.84637676 | X72: 26.99578803 | Y72: 25.11700741 | Z72: 25.97712914 | AA72: 26.24881662 | AB72: 31.19134895 | AC72: 28.35228723 | AD72: 41.50710885 | AE72: 40.05792529 | AF72: 24.95477426
A73: PM10 | B73: =IFERROR(IF(Reference!$I$35<=29,INDEX($D73:$AF73,1,Reference!$I$35),0),$D73) -> 3.377047587 | C73: =IFERROR(IF(Reference!$I$37<=29,INDEX($D73:$AF73,1,Reference!$I$37),"OPGEE"),$D73) -> 2.95862507 | D73: 3.377047587 | F73: 2.95862507 | G73: 3.213699319 | H73: 3.287877259 | I73: 3.638067367 | J73: 3.584514204 | K73: 3.649592654 | L73: 3.457542424 | M73: 3.243140091 | N73: 3.634815409 | O73: 3.671749003 | P73: 3.113988544 | Q73: 3.572815525 | R73: 3.551735508 | S73: 3.458227794 | T73: 3.395022122 | U73: 3.023889542 | V73: 2.998191838 | W73: 3.193550282 | X73: 2.951384017 | Y73: 2.826540567 | Z73: 3.311832802 | AA73: 3.165526615 | AB73: 3.074999716 | AC73: 3.092344406 | AD73: 3.730865668 | AE73: 3.448642611 | AF73: 2.946873172
A74: PM2.5 | B74: =IFERROR(IF(Reference!$I$35<=29,INDEX($D74:$AF74,1,Reference!$I$35),0),$D74) -> 2.206443283 | C74: =IFERROR(IF(Reference!$I$37<=29,INDEX($D74:$AF74,1,Reference!$I$37),"OPGEE"),$D74) -> 1.982796468 | D74: 2.206443283 | F74: 1.982796468 | G74: 2.109769427 | H74: 2.149040928 | I74: 2.348354212 | J74: 2.323557595 | K74: 2.355243363 | L74: 2.255926057 | M74: 2.124418273 | N74: 2.351571451 | O74: 2.352530004 | P74: 2.049036443 | Q74: 2.306527439 | R74: 2.285481517 | S74: 2.235247667 | T74: 2.20561129 | U74: 2.006652685 | V74: 1.968653593 | W74: 2.079976656 | X74: 1.968337693 | Y74: 1.869148085 | Z74: 2.151829055 | AA74: 2.05649986 | AB74: 2.037272923 | AC74: 2.039167478 | AD74: 2.547666717 | AE74: 2.38750179 | AF74: 1.967479233
A75: SOx | B75: =IFERROR(IF(Reference!$I$35<=29,INDEX($D75:$AF75,1,Reference!$I$35),0),$D75) -> 24.57682546 | C75: =IFERROR(IF(Reference!$I$37<=29,INDEX($D75:$AF75,1,Reference!$I$37),"OPGEE"),$D75) -> 20.75363762 | D75: 24.57682546 | F75: 20.75363762 | G75: 23.07091911 | H75: 23.84021335 | I75: 26.90828297 | J75: 26.29355455 | K75: 27.02950168 | L75: 25.36453969 | M75: 23.60241318 | N75: 26.64932762 | O75: 27.18338086 | P75: 22.24784837 | Q75: 26.1973613 | R75: 26.18335384 | S75: 25.31967949 | T75: 24.45801519 | U75: 21.16853905 | V75: 21.28434147 | W75: 23.04293135 | X75: 21.92788785 | Y75: 19.9966905 | Z75: 23.88071396 | AA75: 22.77067056 | AB75: 21.45821735 | AC75: 21.88387848 | AD75: 37.31256946 | AE75: 34.32715162 | AF75: 20.3554485
A76: CH4 | B76: =IFERROR(IF(Reference!$I$35<=29,INDEX($D76:$AF76,1,Reference!$I$35),0),$D76) -> 28.63118209 | C76: =IFERROR(IF(Reference!$I$37<=29,INDEX($D76:$AF76,1,Reference!$I$37),"OPGEE"),$D76) -> 31.07331331 | D76: 28.63118209 | F76: 31.07331331 | G76: 27.55595624 | H76: 28.70121071 | I76: 29.40988207 | J76: 28.59076773 | K76: 29.10359614 | L76: 29.61401262 | M76: 29.08100024 | N76: 28.65006907 | O76: 28.95098418 | P76: 28.56597375 | Q76: 28.88852753 | R76: 28.47106615 | S76: 28.34255449 | T76: 28.00000095 | U76: 27.28063204 | V76: 26.40876711 | W76: 27.17658887 | X76: 28.86515845 | Y76: 27.31887265 | Z76: 27.16825244 | AA76: 28.271029 | AB76: 25.63600825 | AC76: 29.55316175 | AD76: 28.32326104 | AE76: 27.12110079 | AF76: 25.26920096
A77: N2O | B77: =IFERROR(IF(Reference!$I$35<=29,INDEX($D77:$AF77,1,Reference!$I$35),0),$D77) -> 3.41749829 | C77: =IFERROR(IF(Reference!$I$37<=29,INDEX($D77:$AF77,1,Reference!$I$37),"OPGEE"),$D77) -> 3.348470779 | D77: 3.41749829 | F77: 3.348470779 | G77: 3.406746891 | H77: 3.40544014 | I77: 3.414771876 | J77: 3.419470802 | K77: 3.412896098 | L77: 3.417536388 | M77: 3.407741659 | N77: 3.046935687 | O77: 3.041702356 | P77: 3.036958792 | Q77: 3.043923754 | R77: 3.037175688 | S77: 3.036401158 | T77: 3.036913082 | U77: 3.032075363 | V77: 3.016027314 | W77: 3.023137229 | X77: 3.039114485 | Y77: 3.018358138 | Z77: 3.027438466 | AA77: 3.032632276 | AB77: 3.00390453 | AC77: 3.034919371 | AD77: 3.033235766 | AE77: 3.024405057 | AF77: 3.019711836
A78: CO2 | B78: =IFERROR(IF(Reference!$I$35<=29,INDEX($D78:$AF78,1,Reference!$I$35),0),$D78) -> 14900.16867 | C78: =IFERROR(IF(Reference!$I$37<=29,INDEX($D78:$AF78,1,Reference!$I$37),"OPGEE"),$D78) -> 15544.5638 | D78: 14900.16867 | F78: 15544.5638 | G78: 14331.37544 | H78: 14816.36677 | I78: 15555.4303 | J78: 15186.84405 | K78: 15480.50139 | L78: 15341.95941 | M78: 14881.11754 | N78: 15291.09321 | O78: 15517.31431 | P78: 14535.52046 | Q78: 15304.37578 | R78: 15185.76504 | S78: 14999.95384 | T78: 14752.64658 | U78: 13933.13991 | V78: 13713.37948 | W78: 14235.13166 | X78: 14415.86741 | Y78: 13762.08387 | Z78: 14395.51658 | AA78: 14505.93679 | AB78: 13631.35307 | AC78: 14863.26193 | AD78: 15889.55258 | AE78: 15065.20913 | AF78: 13171.92338
A79: CO2 (w/ C in VOC & CO) | B79: =IFERROR(IF(Reference!$I$35<=29,INDEX($D79:$AF79,1,Reference!$I$35),0),$D79) -> 15006.43776 | C79: =IFERROR(IF(Reference!$I$37<=29,INDEX($D79:$AF79,1,Reference!$I$37),"OPGEE"),$D79) -> 15652.05354 | D79: 15006.43776 | F79: 15652.05354 | G79: 14437.07864 | H79: 14922.45818 | I79: 15661.51839 | J79: 15292.88513 | K79: 15586.36591 | L79: 15448.49995 | M79: 14987.36677 | N79: 15395.4192 | O79: 15620.84515 | P79: 14639.87663 | Q79: 15408.48499 | R79: 15289.2495 | S79: 15103.53603 | T79: 14856.50031 | U79: 14037.53171 | V79: 13816.39076 | W79: 14338.48116 | X79: 14521.15502 | Y79: 13865.68009 | Z79: 14498.78371 | AA79: 14609.92416 | AB79: 13736.49496 | AC79: 14968.84308 | AD79: 15997.32922 | AE79: 15172.73086 | AF79: 13275.50572
A80: GHGs | B80: =IFERROR(IF(Reference!$I$35<=29,INDEX($D80:$AF80,1,Reference!$I$35),0),$D80) -> 16740.63181 | C80: =IFERROR(IF(Reference!$I$37<=29,INDEX($D80:$AF80,1,Reference!$I$37),"OPGEE"),$D80) -> 17426.73067 | D80: 16740.63181 | F80: 17426.73067 | G80: 16141.18812 | H80: 16654.80961 | I80: 17414.36746 | J80: 17026.65662 | K80: 17330.99885 | L80: 17207.27611 | M80: 16729.89879 | N80: 17019.65776 | O80: 17251.04705 | P80: 16259.03969 | Q80: 17037.78746 | R80: 16906.10451 | S80: 16716.94744 | T80: 16461.50044 | U80: 15623.10597 | V80: 15375.38608 | W80: 15918.79077 | X80: 16148.4401 | Y80: 15448.12263 | Z80: 16080.16668 | AA80: 16220.4243 | AB80: 15272.55871 | AC80: 16612.0781 | AD80: 17609.315 | AE80: 16752.03109 | AF80: 14807.10987
A81: GHG, g/MJ | B81: =B80/Fuel_Specs!$H$130 -> 15.86705747 | C81: =IFERROR(IF(Reference!$I$37<=29,INDEX($D81:$AF81,1,Reference!$I$37),"OPGEE"),$D81) -> 16.51735372 | D81: =D80/Fuel_Specs!$H$130 -> 15.86705747 | E81: =E80/Fuel_Specs!$H$130 -> 0 | F81: =F80/Fuel_Specs!$H$130 -> 16.51735372 | G81: =G80/Fuel_Specs!$H$130 -> 15.29889448 | H81: =H80/Fuel_Specs!$H$130 -> 15.78571373 | I81: =I80/Fuel_Specs!$H$130 -> 16.50563566 | J81: =J80/Fuel_Specs!$H$130 -> 16.13815669 | K81: =K80/Fuel_Specs!$H$130 -> 16.42661746 | L81: =L80/Fuel_Specs!$H$130 -> 16.30935093 | M81: =M80/Fuel_Specs!$H$130 -> 15.85688453 | N81: =N80/Fuel_Specs!$H$130 -> 16.13152305 | O81: =O80/Fuel_Specs!$H$130 -> 16.35083778 | P81: =P80/Fuel_Specs!$H$130 -> 15.41059622 | Q81: =Q80/Fuel_Specs!$H$130 -> 16.14870669 | R81: =R80/Fuel_Specs!$H$130 -> 16.02389533 | S81: =S80/Fuel_Specs!$H$130 -> 15.84460902 | T81: =T80/Fuel_Specs!$H$130 -> 15.60249198 | U81: =U80/Fuel_Specs!$H$130 -> 14.80784734 | V81: =V80/Fuel_Specs!$H$130 -> 14.5730542 | W81: =W80/Fuel_Specs!$H$130 -> 15.08810247 | X81: =X80/Fuel_Specs!$H$130 -> 15.30576803 | Y81: =Y80/Fuel_Specs!$H$130 -> 14.64199515 | Z81: =Z80/Fuel_Specs!$H$130 -> 15.24105731 | AA81: =AA80/Fuel_Specs!$H$130 -> 15.37399589 | AB81: =AB80/Fuel_Specs!$H$130 -> 14.47559266 | AC81: =AC80/Fuel_Specs!$H$130 -> 15.74521207 | AD81: =AD80/Fuel_Specs!$H$130 -> 16.69041028 | AE81: =AE80/Fuel_Specs!$H$130 -> 15.8778619 | AF81: =AF80/Fuel_Specs!$H$130 -> 14.03443227
A82: Residual Oil used as Process Fuel | B82: Feedstock Production Region Selection | C82: Fuel Production Region Selection
A83: eGRID region | B83: =Reference!$J$35 -> 1-U.S Ave Mix | C83: =Reference!$J$37 -> 3-CAMX Mix | D83: 1-U.S Ave Mix | E83: 2- User Defined Mix | F83: 3-CAMX Mix | G83: 4-NWPP Mix | H83: 5-AZNM Mix | I83: 6-RMPA Mix | J83: 7-MROW Mix | K83: 8-SPNO Mix | L83: 9-SPSO Mix | M83: 10-ERCT Mix | N83: 11-MROE Mix | O83: 12-SRMW Mix | P83: 13-SRMV Mix | Q83: 14-RFCM Mix | R83: 15-RFCW Mix | S83: 16-SRTV Mix | T83: 17-SRSO Mix | U83: 18-NEWE Mix | V83: 19-NYUP Mix | W83: 20-RFCE Mix | X83: 21-NYLI Mix | Y83: 22-NYCW Mix | Z83: 23-SRVC Mix | AA83: 24-FRCC Mix | AB83: 25-AKMS Mix | AC83: 26-AKGD Mix | AD83: 27-HIOA Mix | AE83: 28-HIMS Mix | AF83: 29- Brazilian Mix
A84: VOC | B84: =IFERROR(IF(Reference!$I$35<=29,INDEX($D84:$AF84,1,Reference!$I$35),0),$D84) -> 1.641470403 | C84: =IFERROR(IF(Reference!$I$37<=29,INDEX($D84:$AF84,1,Reference!$I$37),"OPGEE"),$D84) -> 1.633467253 | D84: 1.641470403 | F84: 1.633467253 | G84: 1.619577217 | H84: 1.641888376 | I84: 1.655267469 | J84: 1.642319908 | K84: 1.648952194 | L84: 1.65861885 | M84: 1.647497261 | N84: 1.651855466 | O84: 1.650892201 | P84: 1.644371724 | Q84: 1.654310426 | R84: 1.643008129 | S84: 1.639904083 | T84: 1.648915566 | U84: 1.639210523 | V84: 1.616746382 | W84: 1.635115219 | X84: 1.671846639 | Y84: 1.635240055 | Z84: 1.632043711 | AA84: 1.649608197 | AB84: 1.59851907 | AC84: 1.668094969 | AD84: 1.666099342 | AE84: 1.643123973 | AF84: 1.599266635
A85: CO | B85: =IFERROR(IF(Reference!$I$35<=29,INDEX($D85:$AF85,1,Reference!$I$35),0),$D85) -> 4.586557863 | C85: =IFERROR(IF(Reference!$I$37<=29,INDEX($D85:$AF85,1,Reference!$I$37),"OPGEE"),$D85) -> 4.689485137 | D85: 4.586557863 | F85: 4.689485137 | G85: 4.513111787 | H85: 4.561908292 | I85: 4.534664697 | J85: 4.537829327 | K85: 4.500992818 | L85: 4.621480718 | M85: 4.583361108 | N85: 4.658848172 | O85: 4.497407882 | P85: 4.679832436 | Q85: 4.609411515 | R85: 4.503529331 | S85: 4.529750005 | T85: 4.65823255 | U85: 4.790930917 | V85: 4.544423289 | W85: 4.579298822 | X85: 4.915071168 | Y85: 4.631069496 | Z85: 4.568016972 | AA85: 4.685022392 | AB85: 5.029820239 | AC85: 4.984429282 | AD85: 5.451311833 | AE85: 5.443138297 | AF85: 4.699488602
A86: NOx | B86: =IFERROR(IF(Reference!$I$35<=29,INDEX($D86:$AF86,1,Reference!$I$35),0),$D86) -> 12.2944394 | C86: =IFERROR(IF(Reference!$I$37<=29,INDEX($D86:$AF86,1,Reference!$I$37),"OPGEE"),$D86) -> 12.00012746 | D86: 12.2944394 | F86: 12.00012746 | G86: 12.03135678 | H86: 12.19086805 | I86: 12.50666625 | J86: 12.40539609 | K86: 12.48925655 | L86: 12.45061618 | M86: 12.21898588 | N86: 12.61558052 | O86: 12.54173338 | P86: 12.18436154 | Q86: 12.52325545 | R86: 12.44106107 | S86: 12.36584985 | T86: 12.35966108 | U86: 12.11087172 | V86: 11.93233942 | W86: 12.17813113 | X86: 12.55895751 | Y86: 11.93648155 | Z86: 12.22145343 | AA86: 12.3114474 | AB86: 13.9490463 | AC86: 13.0084099 | AD86: 17.36687864 | AE86: 16.88673577 | AF86: 11.88272489
A87: PM10 | B87: =IFERROR(IF(Reference!$I$35<=29,INDEX($D87:$AF87,1,Reference!$I$35),0),$D87) -> 1.207243384 | C87: =IFERROR(IF(Reference!$I$37<=29,INDEX($D87:$AF87,1,Reference!$I$37),"OPGEE"),$D87) -> 1.107051794 | D87: 1.207243384 | F87: 1.107051794 | G87: 1.154200189 | H87: 1.178721481 | I87: 1.292411318 | J87: 1.274558911 | K87: 1.296248586 | L87: 1.233842348 | M87: 1.164223946 | N87: 1.306854757 | O87: 1.318834445 | P87: 1.138840169 | Q87: 1.286908323 | R87: 1.280105613 | S87: 1.249929246 | T87: 1.238571928 | U87: 1.115610671 | V87: 1.10709653 | W87: 1.171820992 | X87: 1.091588204 | Y87: 1.05022518 | Z87: 1.211009719 | AA87: 1.162558434 | AB87: 1.132553202 | AC87: 1.138299835 | AD87: 1.349863284 | AE87: 1.256357262 | AF87: 1.090092489
A88: PM2.5 | B88: =IFERROR(IF(Reference!$I$35<=29,INDEX($D88:$AF88,1,Reference!$I$35),0),$D88) -> 0.9925947049 | C88: =IFERROR(IF(Reference!$I$37<=29,INDEX($D88:$AF88,1,Reference!$I$37),"OPGEE"),$D88) -> 0.9309319655 | D88: 0.9925947049 | F88: 0.9309319655 | G88: 0.961198279 | H88: 0.9743298722 | I88: 1.03902989 | J88: 1.03059541 | K88: 1.041321897 | L88: 1.009052282 | M88: 0.96635272 | N88: 1.053730714 | O88: 1.054073273 | P88: 0.956133194 | Q88: 1.039228431 | R88: 1.032436724 | S88: 1.016225217 | T88: 1.013695314 | U88: 0.9477769421 | V88: 0.9351871158 | W88: 0.972070693 | X88: 0.9350824522 | Y88: 0.9022190375 | Z88: 0.9958762326 | AA88: 0.964296707 | AB88: 0.9579236131 | AC88: 0.958551316 | AD88: 1.127030578 | AE88: 1.073964803 | AF88: 0.9347977393
A89: SOx | B89: =IFERROR(IF(Reference!$I$35<=29,INDEX($D89:$AF89,1,Reference!$I$35),0),$D89) -> 8.77512315 | C89: =IFERROR(IF(Reference!$I$37<=29,INDEX($D89:$AF89,1,Reference!$I$37),"OPGEE"),$D89) -> 7.639892897 | D89: 8.77512315 | F89: 7.639892897 | G89: 8.285943416 | H89: 8.544846231 | I89: 9.538681965 | J89: 9.332574003 | K89: 9.578338526 | L89: 9.037357207 | M89: 8.465445283 | N89: 9.594948795 | O89: 9.766740188 | P89: 8.17415009 | Q89: 9.448570958 | R89: 9.444051055 | S89: 9.165363871 | T89: 8.942150196 | U89: 7.852390102 | V89: 7.890753956 | W89: 8.473349358 | X89: 8.103952614 | Y89: 7.464171713 | Z89: 8.750897706 | AA89: 8.38311868 | AB89: 7.948364742 | AC89: 8.089380873 | AD89: 13.2007133 | AE89: 12.21168237 | AF89: 7.583020697
A90: CH4 | B90: =IFERROR(IF(Reference!$I$35<=29,INDEX($D90:$AF90,1,Reference!$I$35),0),$D90) -> 8.83966293 | C90: =IFERROR(IF(Reference!$I$37<=29,INDEX($D90:$AF90,1,Reference!$I$37),"OPGEE"),$D90) -> 8.681335642 | D90: 8.83966293 | F90: 8.681335642 | G90: 8.49074827 | H90: 8.865754938 | I90: 9.095808046 | J90: 8.826575612 | K90: 8.996409632 | L90: 9.162105646 | M90: 8.989049148 | N90: 8.926768339 | O90: 9.023849703 | P90: 8.899603402 | Q90: 9.003690862 | R90: 8.868972354 | S90: 8.827504017 | T90: 8.947337234 | U90: 8.709024512 | V90: 8.42015898 | W90: 8.674521955 | X90: 9.234008424 | Y90: 8.721694357 | Z90: 8.671763072 | AA90: 9.037123585 | AB90: 8.164316938 | AC90: 9.462146129 | AD90: 9.054725575 | AE90: 8.656426358 | AF90: 8.042569337
A91: N2O | B91: =IFERROR(IF(Reference!$I$35<=29,INDEX($D91:$AF91,1,Reference!$I$35),0),$D91) -> 0.08561515178 | C91: =IFERROR(IF(Reference!$I$37<=29,INDEX($D91:$AF91,1,Reference!$I$37),"OPGEE"),$D91) -> 0.0836820446 | D91: 0.08561515178 | F91: 0.0836820446 | G91: 0.08212647344 | H91: 0.08459205156 | I91: 0.08761843702 | J91: 0.08625554483 | K91: 0.08700930511 | L91: 0.08851567754 | M91: 0.0853362629 | N91: 0.08915831541 | O91: 0.08746916799 | P91: 0.08593837744 | Q91: 0.08818600572 | R91: 0.08600834478 | S91: 0.08575842408 | T91: 0.08821772179 | U91: 0.08661486413 | V91: 0.08129783847 | W91: 0.08365349449 | X91: 0.08894705986 | Y91: 0.08207008518 | Z91: 0.0850786007 | AA91: 0.08679932116 | AB91: 0.07728170265 | AC91: 0.08755752323 | AD91: 0.08699948809 | AE91: 0.08407370158 | AF91: 0.08251858658
A92: CO2 | B92: =IFERROR(IF(Reference!$I$35<=29,INDEX($D92:$AF92,1,Reference!$I$35),0),$D92) -> 5040.645545 | C92: =IFERROR(IF(Reference!$I$37<=29,INDEX($D92:$AF92,1,Reference!$I$37),"OPGEE"),$D92) -> 4801.648341 | D92: 5040.645545 | F92: 4801.648341 | G92: 4856.071766 | H92: 5014.870992 | I92: 5254.792497 | J92: 5133.681054 | K92: 5230.480782 | L92: 5185.506016 | M92: 5035.892863 | N92: 5198.77932 | O92: 5271.771198 | P92: 4954.937564 | Q92: 5203.052881 | R92: 5164.776138 | S92: 5104.814357 | T92: 5106.144778 | U92: 4834.64763 | V92: 4761.836795 | W92: 4934.681184 | X92: 4994.584483 | Y92: 4777.97349 | Z92: 4987.820794 | AA92: 5024.402293 | AB92: 4734.774331 | AC92: 5142.929711 | AD92: 5483.021458 | AE92: 5209.900342 | AF92: 4582.421533
A93: CO2 (w/ C in VOC & CO) | B93: =IFERROR(IF(Reference!$I$35<=29,INDEX($D93:$AF93,1,Reference!$I$35),0),$D93) -> 5052.968909 | C93: =IFERROR(IF(Reference!$I$37<=29,INDEX($D93:$AF93,1,Reference!$I$37),"OPGEE"),$D93) -> 4814.108505 | D93: 5052.968909 | F93: 4814.108505 | G93: 4868.211482 | H93: 5027.156924 | I93: 5267.077315 | J93: 5145.930493 | K93: 5242.693005 | L93: 5197.937705 | M93: 5048.229987 | N93: 5211.24865 | O93: 5283.983834 | P93: 4967.416545 | Q93: 5215.452176 | R93: 5176.973822 | S93: 5117.04357 | T93: 5118.603978 | U93: 4847.285109 | V93: 4774.016891 | W93: 4946.973334 | X93: 5007.518755 | Y93: 4790.347383 | Z93: 5000.085643 | AA93: 5036.90575 | AB93: 4747.660385 | AC93: 5155.961282 | AD93: 5496.780481 | AE93: 5223.574915 | AF93: 4594.790825
A94: GHGs | B94: =IFERROR(IF(Reference!$I$35<=29,INDEX($D94:$AF94,1,Reference!$I$35),0),$D94) -> 5299.473797 | C94: =IFERROR(IF(Reference!$I$37<=29,INDEX($D94:$AF94,1,Reference!$I$37),"OPGEE"),$D94) -> 5056.079145 | D94: 5299.473797 | F94: 5056.079145 | G94: 5104.953877 | H94: 5274.009229 | I94: 5520.582811 | J94: 5392.299035 | K94: 5493.532019 | L94: 5453.368018 | M94: 5298.386422 | N94: 5460.987037 | O94: 5535.645888 | P94: 5215.516267 | Q94: 5466.823877 | R94: 5424.328617 | S94: 5363.287181 | T94: 5368.57629 | U94: 5090.821951 | V94: 5008.747621 | W94: 5188.765124 | X94: 5264.87519 | Y94: 5032.846627 | Z94: 5242.233143 | AA94: 5288.700037 | AB94: 4974.798256 | AC94: 5418.607077 | AD94: 5749.074468 | AE94: 5465.039537 | AF94: 4820.445597
A95: GHG, g/MJ | B95: =B94/Fuel_Specs!$H$130 -> 5.022932006 | C95: =IFERROR(IF(Reference!$I$37<=29,INDEX($D95:$AF95,1,Reference!$I$37),"OPGEE"),$D95) -> 4.792238387 | D95: =D94/Fuel_Specs!$H$130 -> 5.022932006 | E95: =E94/Fuel_Specs!$H$130 -> 0 | F95: =F94/Fuel_Specs!$H$130 -> 4.792238387 | G95: =G94/Fuel_Specs!$H$130 -> 4.838562695 | H95: =H94/Fuel_Specs!$H$130 -> 4.998796252 | I95: =I94/Fuel_Specs!$H$130 -> 5.232502915 | J95: =J94/Fuel_Specs!$H$130 -> 5.110913356 | K95: =K94/Fuel_Specs!$H$130 -> 5.206863711 | L95: =L94/Fuel_Specs!$H$130 -> 5.168795584 | M95: =M94/Fuel_Specs!$H$130 -> 5.021901373 | N95: =N94/Fuel_Specs!$H$130 -> 5.17601702 | O95: =O94/Fuel_Specs!$H$130 -> 5.246779958 | P95: =P94/Fuel_Specs!$H$130 -> 4.943355621 | Q95: =Q94/Fuel_Specs!$H$130 -> 5.181549277 | R95: =R94/Fuel_Specs!$H$130 -> 5.141271542 | S95: =S94/Fuel_Specs!$H$130 -> 5.083415424 | T95: =T94/Fuel_Specs!$H$130 -> 5.088428532 | U95: =U94/Fuel_Specs!$H$130 -> 4.825168214 | V95: =V94/Fuel_Specs!$H$130 -> 4.747376759 | W95: =W94/Fuel_Specs!$H$130 -> 4.91800043 | X95: =X94/Fuel_Specs!$H$130 -> 4.990138853 | Y95: =Y94/Fuel_Specs!$H$130 -> 4.770218209 | Z95: =Z94/Fuel_Specs!$H$130 -> 4.968678334 | AA95: =AA94/Fuel_Specs!$H$130 -> 5.012720452 | AB95: =AB94/Fuel_Specs!$H$130 -> 4.715198969 | AC95: =AC94/Fuel_Specs!$H$130 -> 5.135848569 | AD95: =AD94/Fuel_Specs!$H$130 -> 5.44907122 | AE95: =AE94/Fuel_Specs!$H$130 -> 5.179858049 | AF95: =AF94/Fuel_Specs!$H$130 -> 4.568900876

Sheet NG (hidden)
A1: Upstream Natural Gas Production GHG EF
A2: Emissions from NG Production | B2: Feedstock Production Region Selection | C2: Fuel Production Region Selection
A3: eGRID region | B3: =Reference!J35 -> 1-U.S Ave Mix | C3: =Reference!$J$37 -> 3-CAMX Mix | D3: 1-U.S Ave Mix | E3: 2- User Defined Mix | F3: 3-CAMX Mix | G3: 4-NWPP Mix | H3: 5-AZNM Mix | I3: 6-RMPA Mix | J3: 7-MROW Mix | K3: 8-SPNO Mix | L3: 9-SPSO Mix | M3: 10-ERCT Mix | N3: 11-MROE Mix | O3: 12-SRMW Mix | P3: 13-SRMV Mix | Q3: 14-RFCM Mix | R3: 15-RFCW Mix | S3: 16-SRTV Mix | T3: 17-SRSO Mix | U3: 18-NEWE Mix | V3: 19-NYUP Mix | W3: 20-RFCE Mix | X3: 21-NYLI Mix | Y3: 22-NYCW Mix | Z3: 23-SRVC Mix | AA3: 24-FRCC Mix | AB3: 25-AKMS Mix | AC3: 26-AKGD Mix | AD3: 27-HIOA Mix | AE3: 28-HIMS Mix | AF3: 29- Brazilian Mix
A4: VOC | B4: =IFERROR(IF(Reference!$I$35<=29,INDEX($D4:$AF4,1,Reference!$I$35*1),0),$D4) -> 10.46439607 | C4: =IFERROR(IF(Reference!$I$37<=29,INDEX($D4:$AF4,1,Reference!$I$37*1),0),$D4) -> 10.45812468 | D4: 10.46439607 | E4: =D4 -> 10.46439607 | F4: 10.45812468 | G4: 10.44730307 | H4: 10.4647118 | I4: 10.47516591 | J4: 10.46503331 | K4: 10.4702378 | L4: 10.47778468 | M4: 10.46910043 | N4: 10.47247871 | O4: 10.47175486 | P4: 10.46666268 | Q4: 10.47441788 | R4: 10.46559134 | S4: 10.46317368 | T4: 10.4702112 | U4: 10.46262465 | V4: 10.44508126 | W4: 10.45942737 | X4: 10.48811184 | Y4: 10.45952391 | Z4: 10.45703511 | AA4: 10.47075678 | AB4: 10.43081597 | AC4: 10.48515126 | AD4: 10.48357762 | AE4: 10.465635 | AF4: 10.431437
A5: CO | B5: =IFERROR(IF(Reference!$I$35<=29,INDEX($D5:$AF5,1,Reference!$I$35*1),0),$D5) -> 32.68278281 | C5: =IFERROR(IF(Reference!$I$37<=29,INDEX($D5:$AF5,1,Reference!$I$37*1),0),$D5) -> 32.76316696 | D5: 32.68278281 | E5: =D5 -> 32.68278281 | F5: 32.76316696 | G5: 32.62546884 | H5: 32.66344117 | I5: 32.64222131 | J5: 32.64464703 | K5: 32.61596464 | L5: 32.71002862 | M5: 32.68026365 | N5: 32.73910177 | O5: 32.61315605 | P5: 32.75561821 | Q5: 32.70061236 | R5: 32.617925 | S5: 32.63841322 | T5: 32.73875005 | U5: 32.84237759 | V5: 32.64987067 | W5: 32.67709623 | X5: 32.9393233 | Y5: 32.71753589 | Z5: 32.66829733 | AA5: 32.75970414 | AB5: 33.02888906 | AC5: 32.99344171 | AD5: 33.35797533 | AE5: 33.35159235 | AF5: 32.77097465
A6: NOx | B6: =IFERROR(IF(Reference!$I$35<=29,INDEX($D6:$AF6,1,Reference!$I$35*1),0),$D6) -> 41.2327551 | C6: =IFERROR(IF(Reference!$I$37<=29,INDEX($D6:$AF6,1,Reference!$I$37*1),0),$D6) -> 41.00241001 | D6: 41.2327551 | E6: =D6 -> 41.2327551 | F6: 41.00241001 | G6: 41.02791326 | H6: 41.14971361 | I6: 41.39815068 | J6: 41.3195002 | K6: 41.38478515 | L6: 41.35498686 | M6: 41.17334147 | N6: 41.48365178 | O6: 41.42586599 | P6: 41.14678095 | Q6: 41.41144141 | R6: 41.34725274 | S6: 41.28851197 | T6: 41.28367893 | U6: 41.08937967 | V6: 40.9499572 | W6: 41.1419209 | X6: 41.43930643 | Y6: 40.95319194 | Z6: 41.1757474 | AA6: 41.24610313 | AB6: 42.52480823 | AC6: 41.79023324 | AD6: 45.19383716 | AE6: 44.8188778 | AF6: 40.91123182
A7: PM10 | B7: =IFERROR(IF(Reference!$I$35<=29,INDEX($D7:$AF7,1,Reference!$I$35*1),0),$D7) -> 0.6060851829 | C7: =IFERROR(IF(Reference!$I$37<=29,INDEX($D7:$AF7,1,Reference!$I$37*1),0),$D7) -> 0.5130493812 | D7: 0.6060851829 | E7: 0.6060851829 | F7: 0.5130493812 | G7: 0.5647889391 | H7: 0.584026264 | I7: 0.6727837609 | J7: 0.658677138 | K7: 0.6754528172 | L7: 0.6269265082 | M7: 0.5726181178 | N7: 0.6840725158 | O7: 0.6932338965 | P7: 0.5526696323 | Q7: 0.6682997009 | R7: 0.6629872101 | S7: 0.6394232487 | T7: 0.6305538943 | U7: 0.5345215167 | V7: 0.5278725091 | W7: 0.5784236938 | X7: 0.5157614837 | Y7: 0.4834595697 | Z7: 0.6090295335 | AA7: 0.5711108024 | AB7: 0.547721148 | AC7: 0.5522088897 | AD7: 0.7173940767 | AE7: 0.6443721484 | AF7: 0.5145976636
A8: PM2.5 | B8: =IFERROR(IF(Reference!$I$35<=29,INDEX($D8:$AF8,1,Reference!$I$35*1),0),$D8) -> 0.5165299991 | C8: =IFERROR(IF(Reference!$I$37<=29,INDEX($D8:$AF8,1,Reference!$I$37*1),0),$D8) -> 0.4641628455 | D8: 0.5165299991 | E8: 0.5165299991 | F8: 0.4641628455 | G8: 0.4921004362 | H8: 0.5023717096 | I8: 0.5529081969 | J8: 0.5462146323 | K8: 0.5545080737 | L8: 0.5294043595 | M8: 0.4960874611 | N8: 0.5643796956 | O8: 0.5645413464 | P8: 0.4880562739 | Q8: 0.5529465548 | R8: 0.5476426568 | S8: 0.5349843831 | T8: 0.5330086869 | U8: 0.4815290917 | V8: 0.471697231 | W8: 0.5005005619 | X8: 0.4716154953 | Y8: 0.4459512399 | Z8: 0.5190930998 | AA8: 0.4944141089 | AB8: 0.4894471366 | AC8: 0.4899373312 | AD8: 0.6214957604 | AE8: 0.5800549514 | AF8: 0.4713941851
A9: SOx | B9: =IFERROR(IF(Reference!$I$35<=29,INDEX($D9:$AF9,1,Reference!$I$35*1),0),$D9) -> 12.8860319 | C9: =IFERROR(IF(Reference!$I$37<=29,INDEX($D9:$AF9,1,Reference!$I$37*1),0),$D9) -> 11.99810652 | D9: 12.8860319 | E9: 12.8860319 | F9: 11.99810652 | G9: 12.50589951 | H9: 12.69884881 | I9: 13.48207728 | J9: 13.31994213 | K9: 13.51199314 | L9: 13.09131187 | M9: 12.64439231 | N9: 13.52456108 | O9: 13.66042943 | P9: 12.41669506 | Q9: 13.41196113 | R9: 13.40843131 | S9: 13.19078416 | T9: 13.01646529 | U9: 12.16541229 | V9: 12.19537257 | W9: 12.65036109 | X9: 12.36187022 | Y9: 11.86223285 | Z9: 12.86710652 | AA9: 12.58001744 | AB9: 12.24033623 | AC9: 12.35046276 | AD9: 16.3421462 | AE9: 15.56976224 | AF9: 11.95505857
A10: CH4 | B10: =IFERROR(IF(Reference!$I$35<=29,INDEX($D10:$AF10,1,Reference!$I$35*1),0),$D10) -> 203.4957096 | C10: =IFERROR(IF(Reference!$I$37<=29,INDEX($D10:$AF10,1,Reference!$I$37*1),0),$D10) -> 203.3720856 | D10: 203.4957096 | E10: 203.4957096 | F10: 203.3720856 | G10: 203.2232555 | H10: 203.5161044 | I10: 203.695769 | J10: 203.485397 | K10: 203.6180394 | L10: 203.7474376 | M10: 203.6123776 | N10: 203.5636424 | O10: 203.6395418 | P10: 203.5425132 | Q10: 203.6238102 | R10: 203.5186035 | S10: 203.4862081 | T10: 203.5797903 | U10: 203.3935832 | V10: 203.1679974 | W10: 203.3667499 | X10: 203.8035625 | Y10: 203.4034775 | Z10: 203.3645841 | AA10: 203.6499451 | AB10: 202.9675153 | AC10: 203.9810343 | AD10: 203.6626174 | AE10: 203.3515725 | AF10: 202.8732294
A11: N2O | B11: =IFERROR(IF(Reference!$I$35<=29,INDEX($D11:$AF11,1,Reference!$I$35*1),0),$D11) -> 1.422963169 | C11: =IFERROR(IF(Reference!$I$37<=29,INDEX($D11:$AF11,1,Reference!$I$37*1),0),$D11) -> 1.421446771 | D11: 1.422963169 | E11: 1.422963169 | F11: 1.421446771 | G11: 1.420238345 | H11: 1.422153668 | I11: 1.424527226 | J11: 1.423462184 | K11: 1.424052216 | L11: 1.425228598 | M11: 1.422744855 | N11: 1.425729065 | O11: 1.424410918 | P11: 1.423215466 | Q11: 1.42497081 | R11: 1.423270193 | S11: 1.423074934 | T11: 1.424995492 | U11: 1.423743864 | V11: 1.419591602 | W11: 1.421431202 | X11: 1.425565161 | Y11: 1.420194678 | Z11: 1.422544035 | AA11: 1.423888124 | AB11: 1.416453922 | AC11: 1.42447866 | AD11: 1.424043672 | AE11: 1.421758829 | AF11: 1.420544945
A12: CO2 | B12: =IFERROR(IF(Reference!$I$35<=29,INDEX($D12:$AF12,1,Reference!$I$35*1),0),$D12) -> 6888.643616 | C12: =IFERROR(IF(Reference!$I$37<=29,INDEX($D12:$AF12,1,Reference!$I$37*1),0),$D12) -> 6702.010147 | D12: 6888.643616 | E12: 6888.643616 | F12: 6702.010147 | G12: 6744.511283 | H12: 6868.523839 | I12: 7055.88742 | J12: 6961.263062 | K12: 7036.859145 | L12: 7001.736734 | M12: 6884.934129 | N12: 7012.100796 | O12: 7069.140145 | P12: 6821.712907 | Q12: 7015.479115 | R12: 6985.587373 | S12: 6938.757302 | T12: 6939.796278 | U12: 6727.698742 | V12: 6670.838069 | W12: 6805.897604 | X12: 6852.599343 | Y12: 6683.439811 | Z12: 6847.392651 | AA12: 6875.970608 | AB12: 6649.294956 | AC12: 6968.037392 | AD12: 7233.406157 | AE12: 7020.116893 | AF12: 6530.799333
A13: CO2 (w/ C in VOC & CO) | B13: =IFERROR(IF(Reference!$I$35<=29,INDEX($D13:$AF13,1,Reference!$I$35*1),0),$D13) -> 6972.61631 | C13: =IFERROR(IF(Reference!$I$37<=29,INDEX($D13:$AF13,1,Reference!$I$37*1),0),$D13) -> 6786.089612 | D13: 6972.61631 | E13: =D13 -> 6972.61631 | F13: 6786.089612 | G13: 6828.340638 | H13: 6952.467122 | I13: 7139.82994 | J13: 7045.177813 | K13: 7120.745045 | L13: 7085.79397 | M13: 6968.917525 | N13: 7096.187181 | O13: 7153.02636 | P13: 6905.80712 | Q13: 7099.51106 | R13: 7069.461872 | S13: 7022.656462 | T13: 7023.875043 | U13: 6811.916706 | V13: 6754.698845 | W13: 6889.845875 | X13: 6937.049085 | Y13: 6767.451931 | Z13: 6931.31964 | AA13: 6960.084002 | AB13: 6733.706872 | AC13: 7052.56295 | AD13: 7318.499649 | AE13: 7105.144434 | AF13: 6614.807891
A14: GHGs, gCO2e/MMBtu | B14: =B4*Fuel_Specs!$B$87+B5*Fuel_Specs!$B$88+B10*Fuel_Specs!$B$85+B11*Fuel_Specs!$B$86+B12 -> 12484.05207 | C14: =C4*Fuel_Specs!$B$87+C5*Fuel_Specs!$B$88+C10*Fuel_Specs!$B$85+C11*Fuel_Specs!$B$86+C12 -> 12293.98289 | D14: =D4*Fuel_Specs!$B$87+D5*Fuel_Specs!$B$88+D10*Fuel_Specs!$B$85+D11*Fuel_Specs!$B$86+D12 -> 12484.05207 | E14: =E4*Fuel_Specs!$B$87+E5*Fuel_Specs!$B$88+E10*Fuel_Specs!$B$85+E11*Fuel_Specs!$B$86+E12 -> 12484.05207 | F14: =F4*Fuel_Specs!$B$87+F5*Fuel_Specs!$B$88+F10*Fuel_Specs!$B$85+F11*Fuel_Specs!$B$86+F12 -> 12293.98289 | G14: =G4*Fuel_Specs!$B$87+G5*Fuel_Specs!$B$88+G10*Fuel_Specs!$B$85+G11*Fuel_Specs!$B$86+G12 -> 12332.15305 | H14: =H4*Fuel_Specs!$B$87+H5*Fuel_Specs!$B$88+H10*Fuel_Specs!$B$85+H11*Fuel_Specs!$B$86+H12 -> 12464.17153 | I14: =I4*Fuel_Specs!$B$87+I5*Fuel_Specs!$B$88+I10*Fuel_Specs!$B$85+I11*Fuel_Specs!$B$86+I12 -> 12656.73328 | J14: =J4*Fuel_Specs!$B$87+J5*Fuel_Specs!$B$88+J10*Fuel_Specs!$B$85+J11*Fuel_Specs!$B$86+J12 -> 12556.50447 | K14: =K4*Fuel_Specs!$B$87+K5*Fuel_Specs!$B$88+K10*Fuel_Specs!$B$85+K11*Fuel_Specs!$B$86+K12 -> 12635.56359 | L14: =L4*Fuel_Specs!$B$87+L5*Fuel_Specs!$B$88+L10*Fuel_Specs!$B$85+L11*Fuel_Specs!$B$86+L12 -> 12604.19803 | M14: =M4*Fuel_Specs!$B$87+M5*Fuel_Specs!$B$88+M10*Fuel_Specs!$B$85+M11*Fuel_Specs!$B$86+M12 -> 12483.20493 | N14: =N4*Fuel_Specs!$B$87+N5*Fuel_Specs!$B$88+N10*Fuel_Specs!$B$85+N11*Fuel_Specs!$B$86+N12 -> 12610.1455 | O14: =O4*Fuel_Specs!$B$87+O5*Fuel_Specs!$B$88+O10*Fuel_Specs!$B$85+O11*Fuel_Specs!$B$86+O12 -> 12668.48936 | P14: =P4*Fuel_Specs!$B$87+P5*Fuel_Specs!$B$88+P10*Fuel_Specs!$B$85+P11*Fuel_Specs!$B$86+P12 -> 12418.48816 | Q14: =Q4*Fuel_Specs!$B$87+Q5*Fuel_Specs!$B$88+Q10*Fuel_Specs!$B$85+Q11*Fuel_Specs!$B$86+Q12 -> 12614.74762 | R14: =R4*Fuel_Specs!$B$87+R5*Fuel_Specs!$B$88+R10*Fuel_Specs!$B$85+R11*Fuel_Specs!$B$86+R12 -> 12581.56148 | S14: =S4*Fuel_Specs!$B$87+S5*Fuel_Specs!$B$88+S10*Fuel_Specs!$B$85+S11*Fuel_Specs!$B$86+S12 -> 12533.88799 | T14: =T4*Fuel_Specs!$B$87+T5*Fuel_Specs!$B$88+T10*Fuel_Specs!$B$85+T11*Fuel_Specs!$B$86+T12 -> 12538.01846 | U14: =U4*Fuel_Specs!$B$87+U5*Fuel_Specs!$B$88+U10*Fuel_Specs!$B$85+U11*Fuel_Specs!$B$86+U12 -> 12321.03196 | V14: =V4*Fuel_Specs!$B$87+V5*Fuel_Specs!$B$88+V10*Fuel_Specs!$B$85+V11*Fuel_Specs!$B$86+V12 -> 12256.93708 | W14: =W4*Fuel_Specs!$B$87+W5*Fuel_Specs!$B$88+W10*Fuel_Specs!$B$85+W11*Fuel_Specs!$B$86+W12 -> 12397.60112 | X14: =X4*Fuel_Specs!$B$87+X5*Fuel_Specs!$B$88+X10*Fuel_Specs!$B$85+X11*Fuel_Specs!$B$86+X12 -> 12456.95657 | Y14: =Y4*Fuel_Specs!$B$87+Y5*Fuel_Specs!$B$88+Y10*Fuel_Specs!$B$85+Y11*Fuel_Specs!$B$86+Y12 -> 12275.75688 | Z14: =Z4*Fuel_Specs!$B$87+Z5*Fuel_Specs!$B$88+Z10*Fuel_Specs!$B$85+Z11*Fuel_Specs!$B$86+Z12 -> 12439.35237 | AA14: =AA4*Fuel_Specs!$B$87+AA5*Fuel_Specs!$B$88+AA10*Fuel_Specs!$B$85+AA11*Fuel_Specs!$B$86+AA12 -> 12475.65129 | AB14: =AB4*Fuel_Specs!$B$87+AB5*Fuel_Specs!$B$88+AB10*Fuel_Specs!$B$85+AB11*Fuel_Specs!$B$86+AB12 -> 12229.99802 | AC14: =AC4*Fuel_Specs!$B$87+AC5*Fuel_Specs!$B$88+AC10*Fuel_Specs!$B$85+AC11*Fuel_Specs!$B$86+AC12 -> 12576.58345 | AD14: =AD4*Fuel_Specs!$B$87+AD5*Fuel_Specs!$B$88+AD10*Fuel_Specs!$B$85+AD11*Fuel_Specs!$B$86+AD12 -> 12834.4301 | AE14: =AE4*Fuel_Specs!$B$87+AE5*Fuel_Specs!$B$88+AE10*Fuel_Specs!$B$85+AE11*Fuel_Specs!$B$86+AE12 -> 12612.61788 | AF14: =AF4*Fuel_Specs!$B$87+AF5*Fuel_Specs!$B$88+AF10*Fuel_Specs!$B$85+AF11*Fuel_Specs!$B$86+AF12 -> 12109.96102
A15: CI, gCO2e/MJ | B15: =B14/Fuel_Specs!$H$130 -> 11.83259832 | C15: =C14/Fuel_Specs!$H$130 -> 11.65244749 | D15: =D14/Fuel_Specs!$H$130 -> 11.83259832 | E15: =E14/Fuel_Specs!$H$130 -> 11.83259832 | F15: =F14/Fuel_Specs!$H$130 -> 11.65244749 | G15: =G14/Fuel_Specs!$H$130 -> 11.68862582 | H15: =H14/Fuel_Specs!$H$130 -> 11.81375519 | I15: =I14/Fuel_Specs!$H$130 -> 11.99626852 | J15: =J14/Fuel_Specs!$H$130 -> 11.90126994 | K15: =K14/Fuel_Specs!$H$130 -> 11.97620353 | L15: =L14/Fuel_Specs!$H$130 -> 11.94647471 | M15: =M14/Fuel_Specs!$H$130 -> 11.83179538 | N15: =N14/Fuel_Specs!$H$130 -> 11.95211183 | O15: =O14/Fuel_Specs!$H$130 -> 12.00741113 | P15: =P14/Fuel_Specs!$H$130 -> 11.77045571 | Q15: =Q14/Fuel_Specs!$H$130 -> 11.95647379 | R15: =R14/Fuel_Specs!$H$130 -> 11.9250194 | S15: =S14/Fuel_Specs!$H$130 -> 11.87983365 | T15: =T14/Fuel_Specs!$H$130 -> 11.88374858 | U15: =U14/Fuel_Specs!$H$130 -> 11.67808506 | V15: =V14/Fuel_Specs!$H$130 -> 11.61733483 | W15: =W14/Fuel_Specs!$H$130 -> 11.75065862 | X15: =X14/Fuel_Specs!$H$130 -> 11.80691673 | Y15: =Y14/Fuel_Specs!$H$130 -> 11.63517257 | Z15: =Z14/Fuel_Specs!$H$130 -> 11.79023117 | AA15: =AA14/Fuel_Specs!$H$130 -> 11.82463591 | AB15: =AB14/Fuel_Specs!$H$130 -> 11.59180154 | AC15: =AC14/Fuel_Specs!$H$130 -> 11.92030114 | AD15: =AD14/Fuel_Specs!$H$130 -> 12.16469261 | AE15: =AE14/Fuel_Specs!$H$130 -> 11.95445519 | AF15: =AF14/Fuel_Specs!$H$130 -> 11.47802841
A18: Emissions from LPG Production | B18: Feedstock for LPG Production Region Selection | C18: LPG Production Region Selection | D18: Feedstock for LPG Production Region Selection | E18: LPG Production Region Selection
A19: eGRID region | B19: =Reference!J35 -> 1-U.S Ave Mix | C19: =Reference!J35 -> 1-U.S Ave Mix | D19: 1-U.S Ave Mix | E19: 1-U.S Ave Mix | F19: 2- User Defined Mix | G19: 2- User Defined Mix | H19: 3-CAMX Mix | I19: 3-CAMX Mix | J19: 4-NWPP Mix | K19: 5-AZNM Mix | L19: 6-RMPA Mix | M19: 7-MROW Mix | N19: 8-SPNO Mix | O19: 9-SPSO Mix | P19: 10-ERCT Mix | Q19: 11-MROE Mix | R19: 12-SRMW Mix | S19: 13-SRMV Mix | T19: 14-RFCM Mix | U19: 15-RFCW Mix | V19: 16-SRTV Mix | W19: 17-SRSO Mix | X19: 18-NEWE Mix | Y19: 19-NYUP Mix | Z19: 20-RFCE Mix | AA19: 21-NYLI Mix | AB19: 22-NYCW Mix | AC19: 23-SRVC Mix | AD19: 24-FRCC Mix | AE19: 25-AKMS Mix | AF19: 26-AKGD Mix | AG19: 27-HIOA Mix | AH19: 28-HIMS Mix | AI19: 29- Brazilian Mix
A20: VOC | B20: =IFERROR(IF(Reference!$I$35<=29,INDEX($D20:$AI20,1,Reference!$I$35*1.5),0),$D20) -> 6.851403852 | C20: =IFERROR(IF(Reference!$I$35<=29,INDEX($D20:$AI20,1,Reference!$I$35*2),0),$D20) -> 6.37940261 | D20: 6.851403852 | E20: 6.37940261 | F20: 6.814834838 | G20: 6.303252315 | H20: 10.45812468 | J20: 10.44730307 | K20: 10.4647118 | L20: 10.47516591 | M20: 10.46503331 | N20: 10.4702378 | O20: 10.47778468 | P20: 10.46910043 | Q20: 10.47247871 | R20: 10.47175486 | S20: 10.46666268 | T20: 10.47441788 | U20: 10.46559134 | V20: 10.46317368 | W20: 10.4702112 | X20: 10.46262465 | Y20: 10.44508126 | Z20: 10.45942737 | AA20: 10.48811184 | AB20: 10.45952391 | AC20: 10.45703511 | AD20: 10.47075678 | AE20: 10.43081597 | AF20: 10.48515126 | AG20: 10.48357762 | AH20: 10.465635 | AI20: 10.431437
A21: CO | B21: =IFERROR(IF(Reference!$I$35<=29,INDEX($D21:$AI21,1,Reference!$I$35*1.5),0),$D21) -> 14.21187933 | C21: =IFERROR(IF(Reference!$I$35<=29,INDEX($D21:$AI21,1,Reference!$I$35*2),0),$D21) -> 4.047790673 | D21: 14.21187933 | E21: 4.047790673 | F21: 14.08464304 | G21: 3.782837619 | H21: 32.76316696 | J21: 32.62546884 | K21: 32.66344117 | L21: 32.64222131 | M21: 32.64464703 | N21: 32.61596464 | O21: 32.71002862 | P21: 32.68026365 | Q21: 32.73910177 | R21: 32.61315605 | S21: 32.75561821 | T21: 32.70061236 | U21: 32.617925 | V21: 32.63841322 | W21: 32.73875005 | X21: 32.84237759 | Y21: 32.64987067 | Z21: 32.67709623 | AA21: 32.9393233 | AB21: 32.71753589 | AC21: 32.66829733 | AD21: 32.75970414 | AE21: 33.02888906 | AF21: 32.99344171 | AG21: 33.35797533 | AH21: 33.35159235 | AI21: 32.77097465
A22: NOx | B22: =IFERROR(IF(Reference!$I$35<=29,INDEX($D22:$AI22,1,Reference!$I$35*1.5),0),$D22) -> 19.28266155 | C22: =IFERROR(IF(Reference!$I$35<=29,INDEX($D22:$AI22,1,Reference!$I$35*2),0),$D22) -> 9.677472776 | D22: 19.28266155 | E22: 9.677472776 | F22: 18.84122002 | G22: 8.758228096 | H22: 41.00241001 | J22: 41.02791326 | K22: 41.14971361 | L22: 41.39815068 | M22: 41.3195002 | N22: 41.38478515 | O22: 41.35498686 | P22: 41.17334147 | Q22: 41.48365178 | R22: 41.42586599 | S22: 41.14678095 | T22: 41.41144141 | U22: 41.34725274 | V22: 41.28851197 | W22: 41.28367893 | X22: 41.08937967 | Y22: 40.9499572 | Z22: 41.1419209 | AA22: 41.43930643 | AB22: 40.95319194 | AC22: 41.1757474 | AD22: 41.24610313 | AE22: 42.52480823 | AF22: 41.79023324 | AG22: 45.19383716 | AH22: 44.8188778 | AI22: 40.91123182
A23: PM10 | B23: =IFERROR(IF(Reference!$I$35<=29,INDEX($D23:$AI23,1,Reference!$I$35*1.5),0),$D23) -> 0.5310558077 | C23: =IFERROR(IF(Reference!$I$35<=29,INDEX($D23:$AI23,1,Reference!$I$35*2),0),$D23) -> 0.6245377838 | D23: 0.5310558077 | E23: 0.6245377838 | F23: 0.4321392167 | G23: 0.4185568266 | H23: 0.5130493812 | J23: 0.5647889391 | K23: 0.584026264 | L23: 0.6727837609 | M23: 0.658677138 | N23: 0.6754528172 | O23: 0.6269265082 | P23: 0.5726181178 | Q23: 0.6840725158 | R23: 0.6932338965 | S23: 0.5526696323 | T23: 0.6682997009 | U23: 0.6629872101 | V23: 0.6394232487 | W23: 0.6305538943 | X23: 0.5345215167 | Y23: 0.5278725091 | Z23: 0.5784236938 | AA23: 0.5157614837 | AB23: 0.4834595697 | AC23: 0.6090295335 | AD23: 0.5711108024 | AE23: 0.547721148 | AF23: 0.5522088897 | AG23: 0.7173940767 | AH23: 0.6443721484 | AI23: 0.5145976636
A24: PM2.5 | B24: =IFERROR(IF(Reference!$I$35<=29,INDEX($D24:$AI24,1,Reference!$I$35*1.5),0),$D24) -> 0.4557034196 | C24: =IFERROR(IF(Reference!$I$35<=29,INDEX($D24:$AI24,1,Reference!$I$35*2),0),$D24) -> 0.5104150522 | D24: 0.4557034196 | E24: 0.5104150522 | F24: 0.3968796259 | G24: 0.3879221396 | H24: 0.4641628455 | J24: 0.4921004362 | K24: 0.5023717096 | L24: 0.5529081969 | M24: 0.5462146323 | N24: 0.5545080737 | O24: 0.5294043595 | P24: 0.4960874611 | Q24: 0.5643796956 | R24: 0.5645413464 | S24: 0.4880562739 | T24: 0.5529465548 | U24: 0.5476426568 | V24: 0.5349843831 | W24: 0.5330086869 | X24: 0.4815290917 | Y24: 0.471697231 | Z24: 0.5005005619 | AA24: 0.4716154953 | AB24: 0.4459512399 | AC24: 0.5190930998 | AD24: 0.4944141089 | AE24: 0.4894471366 | AF24: 0.4899373312 | AG24: 0.6214957604 | AH24: 0.5800549514 | AI24: 0.4713941851
A25: SOx | B25: =IFERROR(IF(Reference!$I$35<=29,INDEX($D25:$AI25,1,Reference!$I$35*1.5),0),$D25) -> 12.26043899 | C25: =IFERROR(IF(Reference!$I$35<=29,INDEX($D25:$AI25,1,Reference!$I$35*2),0),$D25) -> 13.18021735 | D25: 12.26043899 | E25: 13.18021735 | F25: 11.39047293 | G25: 11.36862426 | H25: 11.99810652 | J25: 12.50589951 | K25: 12.69884881 | L25: 13.48207728 | M25: 13.31994213 | N25: 13.51199314 | O25: 13.09131187 | P25: 12.64439231 | Q25: 13.52456108 | R25: 13.66042943 | S25: 12.41669506 | T25: 13.41196113 | U25: 13.40843131 | V25: 13.19078416 | W25: 13.01646529 | X25: 12.16541229 | Y25: 12.19537257 | Z25: 12.65036109 | AA25: 12.36187022 | AB25: 11.86223285 | AC25: 12.86710652 | AD25: 12.58001744 | AE25: 12.24033623 | AF25: 12.35046276 | AG25: 16.3421462 | AH25: 15.56976224 | AI25: 11.95505857
A26: CH4 | B26: =IFERROR(IF(Reference!$I$35<=29,INDEX($D26:$AI26,1,Reference!$I$35*1.5),0),$D26) -> 110.2120264 | C26: =IFERROR(IF(Reference!$I$35<=29,INDEX($D26:$AI26,1,Reference!$I$35*2),0),$D26) -> 59.118199 | D26: 110.2120264 | E26: 59.118199 | F26: 109.6335295 | G26: 57.91355438 | H26: 203.3720856 | J26: 203.2232555 | K26: 203.5161044 | L26: 203.695769 | M26: 203.485397 | N26: 203.6180394 | O26: 203.7474376 | P26: 203.6123776 | Q26: 203.5636424 | R26: 203.6395418 | S26: 203.5425132 | T26: 203.6238102 | U26: 203.5186035 | V26: 203.4862081 | W26: 203.5797903 | X26: 203.3935832 | Y26: 203.1679974 | Z26: 203.3667499 | AA26: 203.8035625 | AB26: 203.4034775 | AC26: 203.3645841 | AD26: 203.6499451 | AE26: 202.9675153 | AF26: 203.9810343 | AG26: 203.6626174 | AH26: 203.3515725 | AI26: 202.8732294
A27: N2O | B27: =IFERROR(IF(Reference!$I$35<=29,INDEX($D27:$AI27,1,Reference!$I$35*1.5),0),$D27) -> 0.1358919817 | C27: =IFERROR(IF(Reference!$I$35<=29,INDEX($D27:$AI27,1,Reference!$I$35*2),0),$D27) -> 0.0427647374 | D27: 0.1358919817 | E27: 0.0427647374 | F27: 0.1297513596 | G27: 0.02997768901 | H27: 1.421446771 | J27: 1.420238345 | K27: 1.422153668 | L27: 1.424527226 | M27: 1.423462184 | N27: 1.424052216 | O27: 1.425228598 | P27: 1.422744855 | Q27: 1.425729065 | R27: 1.424410918 | S27: 1.423215466 | T27: 1.42497081 | U27: 1.423270193 | V27: 1.423074934 | W27: 1.424995492 | X27: 1.423743864 | Y27: 1.419591602 | Z27: 1.421431202 | AA27: 1.425565161 | AB27: 1.420194678 | AC27: 1.422544035 | AD27: 1.423888124 | AE27: 1.416453922 | AF27: 1.42447866 | AG27: 1.424043672 | AH27: 1.421758829 | AI27: 1.420544945
A28: CO2 | B28: =IFERROR(IF(Reference!$I$35<=29,INDEX($D28:$AI28,1,Reference!$I$35*1.5),0),$D28) -> 5204.971239 | C28: =IFERROR(IF(Reference!$I$35<=29,INDEX($D28:$AI28,1,Reference!$I$35*2),0),$D28) -> 5032.061557 | D28: 5204.971239 | E28: 5032.061557 | F28: 4884.667181 | G28: 4365.069944 | H28: 6702.010147 | J28: 6744.511283 | K28: 6868.523839 | L28: 7055.88742 | M28: 6961.263062 | N28: 7036.859145 | O28: 7001.736734 | P28: 6884.934129 | Q28: 7012.100796 | R28: 7069.140145 | S28: 6821.712907 | T28: 7015.479115 | U28: 6985.587373 | V28: 6938.757302 | W28: 6939.796278 | X28: 6727.698742 | Y28: 6670.838069 | Z28: 6805.897604 | AA28: 6852.599343 | AB28: 6683.439811 | AC28: 6847.392651 | AD28: 6875.970608 | AE28: 6649.294956 | AF28: 6968.037392 | AG28: 7233.406157 | AH28: 7020.116893 | AI28: 6530.799333
A29: CO2 (w/ C in VOC & CO) | B29: =IFERROR(IF(Reference!$I$35<=29,INDEX($D29:$AI29,1,Reference!$I$35*1.5),0),$D29) -> 5248.657735 | C29: =IFERROR(IF(Reference!$I$35<=29,INDEX($D29:$AI29,1,Reference!$I$35*2),0),$D29) -> 5058.304842 | D29: 5248.657735 | E29: 5058.304842 | F29: 4928.03976 | G29: 4390.659539 | H29: 6786.089612 | J29: 6828.340638 | K29: 6952.467122 | L29: 7139.82994 | M29: 7045.177813 | N29: 7120.745045 | O29: 7085.79397 | P29: 6968.917525 | Q29: 7096.187181 | R29: 7153.02636 | S29: 6905.80712 | T29: 7099.51106 | U29: 7069.461872 | V29: 7022.656462 | W29: 7023.875043 | X29: 6811.916706 | Y29: 6754.698845 | Z29: 6889.845875 | AA29: 6937.049085 | AB29: 6767.451931 | AC29: 6931.31964 | AD29: 6960.084002 | AE29: 6733.706872 | AF29: 7052.56295 | AG29: 7318.499649 | AH29: 7105.144434 | AI29: 6614.807891
A30: GHGs, gCO2e/MmBtu | B30: =B20*Fuel_Specs!$B$87+B21*Fuel_Specs!$B$88+B26*Fuel_Specs!$B$85+B27*Fuel_Specs!$B$86+B28 -> 8044.454205 | C30: =C20*Fuel_Specs!$B$87+C21*Fuel_Specs!$B$88+C26*Fuel_Specs!$B$85+C27*Fuel_Specs!$B$86+C28 -> 6549.003709 | D30: 8044.454205 | E30: =E20*Fuel_Specs!$B$87+E21*Fuel_Specs!$B$88+E26*Fuel_Specs!$B$85+E27*Fuel_Specs!$B$86+E28 -> 6549.003709 | F30: =F20*Fuel_Specs!$B$87+F21*Fuel_Specs!$B$88+F26*Fuel_Specs!$B$85+F27*Fuel_Specs!$B$86+F28 -> 7707.543903 | G30: =G20*Fuel_Specs!$B$87+G21*Fuel_Specs!$B$88+G26*Fuel_Specs!$B$85+G27*Fuel_Specs!$B$86+G28 -> 5847.43175 | H30: =H20*Fuel_Specs!$B$87+H21*Fuel_Specs!$B$88+H26*Fuel_Specs!$B$85+H27*Fuel_Specs!$B$86+H28 -> 12293.98289 | J30: =J20*Fuel_Specs!$B$87+J21*Fuel_Specs!$B$88+J26*Fuel_Specs!$B$85+J27*Fuel_Specs!$B$86+J28 -> 12332.15305 | K30: =K20*Fuel_Specs!$B$87+K21*Fuel_Specs!$B$88+K26*Fuel_Specs!$B$85+K27*Fuel_Specs!$B$86+K28 -> 12464.17153 | L30: =L20*Fuel_Specs!$B$87+L21*Fuel_Specs!$B$88+L26*Fuel_Specs!$B$85+L27*Fuel_Specs!$B$86+L28 -> 12656.73328 | M30: =M20*Fuel_Specs!$B$87+M21*Fuel_Specs!$B$88+M26*Fuel_Specs!$B$85+M27*Fuel_Specs!$B$86+M28 -> 12556.50447 | N30: =N20*Fuel_Specs!$B$87+N21*Fuel_Specs!$B$88+N26*Fuel_Specs!$B$85+N27*Fuel_Specs!$B$86+N28 -> 12635.56359 | O30: =O20*Fuel_Specs!$B$87+O21*Fuel_Specs!$B$88+O26*Fuel_Specs!$B$85+O27*Fuel_Specs!$B$86+O28 -> 12604.19803 | P30: =P20*Fuel_Specs!$B$87+P21*Fuel_Specs!$B$88+P26*Fuel_Specs!$B$85+P27*Fuel_Specs!$B$86+P28 -> 12483.20493 | Q30: =Q20*Fuel_Specs!$B$87+Q21*Fuel_Specs!$B$88+Q26*Fuel_Specs!$B$85+Q27*Fuel_Specs!$B$86+Q28 -> 12610.1455 | R30: =R20*Fuel_Specs!$B$87+R21*Fuel_Specs!$B$88+R26*Fuel_Specs!$B$85+R27*Fuel_Specs!$B$86+R28 -> 12668.48936 | S30: =S20*Fuel_Specs!$B$87+S21*Fuel_Specs!$B$88+S26*Fuel_Specs!$B$85+S27*Fuel_Specs!$B$86+S28 -> 12418.48816 | T30: =T20*Fuel_Specs!$B$87+T21*Fuel_Specs!$B$88+T26*Fuel_Specs!$B$85+T27*Fuel_Specs!$B$86+T28 -> 12614.74762 | U30: =U20*Fuel_Specs!$B$87+U21*Fuel_Specs!$B$88+U26*Fuel_Specs!$B$85+U27*Fuel_Specs!$B$86+U28 -> 12581.56148 | V30: =V20*Fuel_Specs!$B$87+V21*Fuel_Specs!$B$88+V26*Fuel_Specs!$B$85+V27*Fuel_Specs!$B$86+V28 -> 12533.88799 | W30: =W20*Fuel_Specs!$B$87+W21*Fuel_Specs!$B$88+W26*Fuel_Specs!$B$85+W27*Fuel_Specs!$B$86+W28 -> 12538.01846 | X30: =X20*Fuel_Specs!$B$87+X21*Fuel_Specs!$B$88+X26*Fuel_Specs!$B$85+X27*Fuel_Specs!$B$86+X28 -> 12321.03196 | Y30: =Y20*Fuel_Specs!$B$87+Y21*Fuel_Specs!$B$88+Y26*Fuel_Specs!$B$85+Y27*Fuel_Specs!$B$86+Y28 -> 12256.93708 | Z30: =Z20*Fuel_Specs!$B$87+Z21*Fuel_Specs!$B$88+Z26*Fuel_Specs!$B$85+Z27*Fuel_Specs!$B$86+Z28 -> 12397.60112 | AA30: =AA20*Fuel_Specs!$B$87+AA21*Fuel_Specs!$B$88+AA26*Fuel_Specs!$B$85+AA27*Fuel_Specs!$B$86+AA28 -> 12456.95657 | AB30: =AB20*Fuel_Specs!$B$87+AB21*Fuel_Specs!$B$88+AB26*Fuel_Specs!$B$85+AB27*Fuel_Specs!$B$86+AB28 -> 12275.75688 | AC30: =AC20*Fuel_Specs!$B$87+AC21*Fuel_Specs!$B$88+AC26*Fuel_Specs!$B$85+AC27*Fuel_Specs!$B$86+AC28 -> 12439.35237 | AD30: =AD20*Fuel_Specs!$B$87+AD21*Fuel_Specs!$B$88+AD26*Fuel_Specs!$B$85+AD27*Fuel_Specs!$B$86+AD28 -> 12475.65129 | AE30: =AE20*Fuel_Specs!$B$87+AE21*Fuel_Specs!$B$88+AE26*Fuel_Specs!$B$85+AE27*Fuel_Specs!$B$86+AE28 -> 12229.99802 | AF30: =AF20*Fuel_Specs!$B$87+AF21*Fuel_Specs!$B$88+AF26*Fuel_Specs!$B$85+AF27*Fuel_Specs!$B$86+AF28 -> 12576.58345 | AG30: =AG20*Fuel_Specs!$B$87+AG21*Fuel_Specs!$B$88+AG26*Fuel_Specs!$B$85+AG27*Fuel_Specs!$B$86+AG28 -> 12834.4301 | AH30: =AH20*Fuel_Specs!$B$87+AH21*Fuel_Specs!$B$88+AH26*Fuel_Specs!$B$85+AH27*Fuel_Specs!$B$86+AH28 -> 12612.61788 | AI30: =AI20*Fuel_Specs!$B$87+AI21*Fuel_Specs!$B$88+AI26*Fuel_Specs!$B$85+AI27*Fuel_Specs!$B$86+AI28 -> 12109.96102
A31: CI, gCO2e/MJ | B31: =B30/Fuel_Specs!$H$130 -> 7.624671438 | C31: =C30/Fuel_Specs!$H$130 -> 6.207257852 | D31: =D30/Fuel_Specs!$H$130 -> 7.624671438 | E31: =E30/Fuel_Specs!$H$130 -> 6.207257852 | F31: =F30/Fuel_Specs!$H$130 -> 7.305342085 | G31: =G30/Fuel_Specs!$H$130 -> 5.542295936 | H31: =H30/Fuel_Specs!$H$130 -> 11.65244749 | J31: =J30/Fuel_Specs!$H$130 -> 11.68862582 | K31: =K30/Fuel_Specs!$H$130 -> 11.81375519 | L31: =L30/Fuel_Specs!$H$130 -> 11.99626852 | M31: =M30/Fuel_Specs!$H$130 -> 11.90126994 | N31: =N30/Fuel_Specs!$H$130 -> 11.97620353 | O31: =O30/Fuel_Specs!$H$130 -> 11.94647471 | P31: =P30/Fuel_Specs!$H$130 -> 11.83179538 | Q31: =Q30/Fuel_Specs!$H$130 -> 11.95211183 | R31: =R30/Fuel_Specs!$H$130 -> 12.00741113 | S31: =S30/Fuel_Specs!$H$130 -> 11.77045571 | T31: =T30/Fuel_Specs!$H$130 -> 11.95647379 | U31: =U30/Fuel_Specs!$H$130 -> 11.9250194 | V31: =V30/Fuel_Specs!$H$130 -> 11.87983365 | W31: =W30/Fuel_Specs!$H$130 -> 11.88374858 | X31: =X30/Fuel_Specs!$H$130 -> 11.67808506 | Y31: =Y30/Fuel_Specs!$H$130 -> 11.61733483 | Z31: =Z30/Fuel_Specs!$H$130 -> 11.75065862 | AA31: =AA30/Fuel_Specs!$H$130 -> 11.80691673 | AB31: =AB30/Fuel_Specs!$H$130 -> 11.63517257 | AC31: =AC30/Fuel_Specs!$H$130 -> 11.79023117 | AD31: =AD30/Fuel_Specs!$H$130 -> 11.82463591 | AE31: =AE30/Fuel_Specs!$H$130 -> 11.59180154 | AF31: =AF30/Fuel_Specs!$H$130 -> 11.92030114 | AG31: =AG30/Fuel_Specs!$H$130 -> 12.16469261 | AH31: =AH30/Fuel_Specs!$H$130 -> 11.95445519 | AI31: =AI30/Fuel_Specs!$H$130 -> 11.47802841
A33: LPG from GHG Emission Factor form North America NG | D33: 13.83
A34: L-CNG Production in California | D34: =D35+D36 -> 5.044303222
A35: Re-gasification | D35: 0.68
A36: Compression | D36: =RNG!H88 -> 4.364303222

Sheet Biomass (hidden)
A3: 1) Emission Factors of Fuel Combustion for Stationary Applications (grams per mmBtu of fuel burned) - for Biomass
B4: Willow | G4: Poplar | L4: Switchgrass | Q4: Corn Stover | T4: Forest Residue | Y4: Sugarcane | AA4: Sugarcane Bagasse (grams/mmBtu fuel burned)
B5: Small Industrial Boiler | C5: Large Industrial Boiler | D5: Utility Boiler | E5: Gasification Turbine | F5: Gasifier | G5: Small Industrial Boiler | H5: Large Industrial Boiler | I5: Utility Boiler | J5: Gasification Turbine | K5: Gasifier | L5: Small Industrial Boiler | M5: Large Industrial Boiler | N5: Utility Boiler | O5: Gasification Turbine | P5: Gasifier | Q5: Small Industrial Boiler | R5: Large Industrial Boiler | S5: Gasifier | T5: Small Industrial Boiler | U5: Large Industrial Boiler | V5: Utility Boiler | W5: Gasification Turbine | X5: Gasifier | Y5: Field Burning (grams/kg dry straw burnt) | Z5: Small Industrial Boiler (grams/mmBtu fuel burned) | AA5: Small Industrial Boiler | AB5: Large Industrial Boiler
A6: VOC | B6: 7.986 | C6: 7.986 | D6: 7.986 | E6: 1.2543962 | F6: 2.417000055 | G6: 7.986 | H6: 7.986 | I6: 7.986 | J6: 1.2543962 | K6: 2.417000055 | L6: 7.986 | M6: 7.986 | N6: 7.986 | O6: 1.2543962 | P6: 2.417000055 | Q6: 7.986 | R6: 7.986 | S6: 2.417000055 | T6: 7.986 | U6: 7.986 | V6: 7.986 | W6: 1.254 | X6: 2.417000055 | Y6: 7 | Z6: 7.986 | AA6: 7.986 | AB6: 0
A7: CO | B7: 281.866 | C7: 281.866 | D7: 281.866 | E7: 10.48065662 | F7: 28.8220005 | G7: 281.866 | H7: 281.866 | I7: 281.866 | J7: 10.48065662 | K7: 28.8220005 | L7: 281.866 | M7: 281.866 | N7: 281.866 | O7: 10.48065662 | P7: 28.8220005 | Q7: 281.866 | R7: 281.866 | S7: 28.8220005 | T7: 281.866 | U7: 281.866 | V7: 281.866 | W7: 10.481 | X7: 28.8220005 | Y7: 92 | Z7: 281.866 | AA7: 281.866 | AB7: 0
A8: NOx | B8: 103.351 | C8: 103.351 | D8: 103.351 | E8: 9.167643547 | F8: 30 | G8: 103.351 | H8: 103.351 | I8: 103.351 | J8: 9.167643547 | K8: 30 | L8: 103.351 | M8: 103.351 | N8: 103.351 | O8: 9.167643547 | P8: 30 | Q8: 103.351 | R8: 103.351 | S8: 30 | T8: 103.351 | U8: 103.351 | V8: 103.351 | W8: 9.168 | X8: 30 | Y8: 2.5 | Z8: 103.351 | AA8: 76.411 | AB8: 0
A9: PM10 | B9: 89.046 | C9: 36.619 | D9: 36.619 | E9: 5.556858063 | F9: 2.960000038 | G9: 89.046 | H9: 36.619 | I9: 36.619 | J9: 5.556858063 | K9: 2.960000038 | L9: 89.046 | M9: 36.619 | N9: 36.619 | O9: 5.556858063 | P9: 2.960000038 | Q9: 89.046 | R9: 36.619 | S9: 2.960000038 | T9: 89.046 | U9: 36.619 | V9: 36.619 | W9: 5.557 | X9: 2.960000038 | Y9: 7.8 | Z9: 158.315 | AA9: 86.599 | AB9: 0
A10: PM2.5 | B10: 60.038 | C10: 32.837 | D10: 32.837 | E10: 2.778429031 | F10: 2.960000038 | G10: 60.038 | H10: 32.837 | I10: 32.837 | J10: 2.778429031 | K10: 2.960000038 | L10: 60.038 | M10: 32.837 | N10: 32.837 | O10: 2.778429031 | P10: 2.960000038 | Q10: 60.038 | R10: 32.837 | S10: 2.960000038 | T10: 60.038 | U10: 32.837 | V10: 32.837 | W10: 2.778 | X10: 2.960000038 | Y10: 3.9 | Z10: 32.837 | AA10: 43.3 | AB10: 0
A11: SOx | B11: 11.744 | C11: 11.744 | D11: 11.744 | E11: 0 | F11: 58.92340478 | G11: 11.744 | H11: 11.744 | I11: 11.744 | J11: 0 | K11: 22.78070789 | L11: 11.744 | M11: 11.744 | N11: 11.744 | O11: 0 | P11: 138.1467729 | Q11: 11.744 | R11: 11.744 | S11: 123.2922995 | T11: 11.744 | U11: 11.744 | V11: 11.744 | W11: 0 | X11: 41.97743027 | Y11: 0.4 | Z11: 11.744 | AA11: 41.977 | AB11: 0 | AC11: 0
A12: CH4 | B12: 9.865 | C12: 9.865 | D12: 9.865 | E12: 3.834000111 | F12: 1.100000024 | G12: 9.865 | H12: 9.865 | I12: 9.865 | J12: 3.834000111 | K12: 1.100000024 | L12: 9.865 | M12: 9.865 | N12: 9.865 | O12: 3.834000111 | P12: 1.100000024 | Q12: 9.865 | R12: 9.865 | S12: 1.100000024 | T12: 9.865 | U12: 9.865 | V12: 9.865 | W12: 3.834 | X12: 1.100000024 | Y12: 2.7 | Z12: 9.865 | AA12: 31.65 | AB12: 0
A13: N2O | B13: 6.107 | C13: 6.107 | D13: 6.107 | E13: 11 | F13: 1.100000024 | G13: 6.107 | H13: 6.107 | I13: 6.107 | J13: 11 | K13: 1.100000024 | L13: 6.107 | M13: 6.107 | N13: 6.107 | O13: 11 | P13: 1.100000024 | Q13: 6.107 | R13: 6.107 | S13: 1.100000024 | T13: 6.107 | U13: 6.107 | V13: 6.107 | W13: 11 | X13: 1.100000024 | Y13: 0.07 | Z13: 6.107 | AA13: 4.22 | AB13: 0
A14: CO2 | B14: 104722.6091 | C14: 104722.6091 | D14: 104722.6091 | E14: 105186.6372 | F14: 105161.7101 | G14: 104125.4503 | H14: 104125.4503 | I14: 104125.4503 | J14: 104589.4784 | K14: 104564.5513 | L14: 106799.0429 | M14: 106799.0429 | N14: 106799.0429 | O14: 107263.071 | P14: 105161.7101 | Q14: 105063.8064 | R14: 105063.8064 | S14: 105502.9074 | T14: 96280.51664 | U14: 96280.51664 | V14: 96280.51664 | W14: 96744.54543 | X14: 96719.61768 | Y14: 1659.520238 | Z14: 123123.7485 | AA14: 123829.3869 | AB14: 0
A15: GHG, g/MMBtu | B15: =B6*Fuel_Specs!$B$87+B7*Fuel_Specs!$B$88+B12*Fuel_Specs!$B$85+B13*Fuel_Specs!$B$86+B14 -> 107256.9421 | C15: =C6*Fuel_Specs!$B$87+C7*Fuel_Specs!$B$88+C12*Fuel_Specs!$B$85+C13*Fuel_Specs!$B$86+C14 -> 107256.9421 | D15: =D6*Fuel_Specs!$B$87+D7*Fuel_Specs!$B$88+D12*Fuel_Specs!$B$85+D13*Fuel_Specs!$B$86+D14 -> 107256.9421 | E15: =E6*Fuel_Specs!$B$87+E7*Fuel_Specs!$B$88+E12*Fuel_Specs!$B$85+E13*Fuel_Specs!$B$86+E14 -> 108580.8663 | F15: =F6*Fuel_Specs!$B$87+F7*Fuel_Specs!$B$88+F12*Fuel_Specs!$B$85+F13*Fuel_Specs!$B$86+F14 -> 105569.8348 | G15: =G6*Fuel_Specs!$B$87+G7*Fuel_Specs!$B$88+G12*Fuel_Specs!$B$85+G13*Fuel_Specs!$B$86+G14 -> 106659.7832 | H15: =H6*Fuel_Specs!$B$87+H7*Fuel_Specs!$B$88+H12*Fuel_Specs!$B$85+H13*Fuel_Specs!$B$86+H14 -> 106659.7832 | I15: =I6*Fuel_Specs!$B$87+I7*Fuel_Specs!$B$88+I12*Fuel_Specs!$B$85+I13*Fuel_Specs!$B$86+I14 -> 106659.7832 | J15: =J6*Fuel_Specs!$B$87+J7*Fuel_Specs!$B$88+J12*Fuel_Specs!$B$85+J13*Fuel_Specs!$B$86+J14 -> 107983.7075 | K15: =K6*Fuel_Specs!$B$87+K7*Fuel_Specs!$B$88+K12*Fuel_Specs!$B$85+K13*Fuel_Specs!$B$86+K14 -> 104972.676 | L15: =L6*Fuel_Specs!$B$87+L7*Fuel_Specs!$B$88+L12*Fuel_Specs!$B$85+L13*Fuel_Specs!$B$86+L14 -> 109333.3759 | M15: =M6*Fuel_Specs!$B$87+M7*Fuel_Specs!$B$88+M12*Fuel_Specs!$B$85+M13*Fuel_Specs!$B$86+M14 -> 109333.3759 | N15: =N6*Fuel_Specs!$B$87+N7*Fuel_Specs!$B$88+N12*Fuel_Specs!$B$85+N13*Fuel_Specs!$B$86+N14 -> 109333.3759 | O15: =O6*Fuel_Specs!$B$87+O7*Fuel_Specs!$B$88+O12*Fuel_Specs!$B$85+O13*Fuel_Specs!$B$86+O14 -> 110657.3001 | P15: =P6*Fuel_Specs!$B$87+P7*Fuel_Specs!$B$88+P12*Fuel_Specs!$B$85+P13*Fuel_Specs!$B$86+P14 -> 105569.8348 | Q15: =Q6*Fuel_Specs!$B$87+Q7*Fuel_Specs!$B$88+Q12*Fuel_Specs!$B$85+Q13*Fuel_Specs!$B$86+Q14 -> 107598.1394 | R15: =R6*Fuel_Specs!$B$87+R7*Fuel_Specs!$B$88+R12*Fuel_Specs!$B$85+R13*Fuel_Specs!$B$86+R14 -> 107598.1394 | S15: =S6*Fuel_Specs!$B$87+S7*Fuel_Specs!$B$88+S12*Fuel_Specs!$B$85+S13*Fuel_Specs!$B$86+S14 -> 105911.0321 | T15: =T6*Fuel_Specs!$B$87+T7*Fuel_Specs!$B$88+T12*Fuel_Specs!$B$85+T13*Fuel_Specs!$B$86+T14 -> 98814.84963 | U15: =U6*Fuel_Specs!$B$87+U7*Fuel_Specs!$B$88+U12*Fuel_Specs!$B$85+U13*Fuel_Specs!$B$86+U14 -> 98814.84963 | V15: =V6*Fuel_Specs!$B$87+V7*Fuel_Specs!$B$88+V12*Fuel_Specs!$B$85+V13*Fuel_Specs!$B$86+V14 -> 98814.84963 | W15: =W6*Fuel_Specs!$B$87+W7*Fuel_Specs!$B$88+W12*Fuel_Specs!$B$85+W13*Fuel_Specs!$B$86+W14 -> 100138.7739 | X15: =X6*Fuel_Specs!$B$87+X7*Fuel_Specs!$B$88+X12*Fuel_Specs!$B$85+X13*Fuel_Specs!$B$86+X14 -> 97127.74238 | Y15: =Y6*Fuel_Specs!$B$87+Y7*Fuel_Specs!$B$88+Y12*Fuel_Specs!$B$85+Y13*Fuel_Specs!$B$86+Y14 -> 1914.268333 | Z15: =Z6*Fuel_Specs!$B$87+Z7*Fuel_Specs!$B$88+Z12*Fuel_Specs!$B$85+Z13*Fuel_Specs!$B$86+Z14 -> 125658.0815 | AA15: =AA6*Fuel_Specs!$B$87+AA7*Fuel_Specs!$B$88+AA12*Fuel_Specs!$B$85+AA13*Fuel_Specs!$B$86+AA14 -> 126346.0189 | AB15: =AB6*Fuel_Specs!$B$87+AB7*Fuel_Specs!$B$88+AB12*Fuel_Specs!$B$85+AB13*Fuel_Specs!$B$86+AB14 -> 0 | AC15: =AC6*Fuel_Specs!$B$87+AC7*Fuel_Specs!$B$88+AC12*Fuel_Specs!$B$85+AC13*Fuel_Specs!$B$86+AC14 -> 0
A16: GHG, g/MJ | B16: =B15/Fuel_Specs!$H$130 -> 101.6599662 | C16: =C15/Fuel_Specs!$H$130 -> 101.6599662 | D16: =D15/Fuel_Specs!$H$130 -> 101.6599662 | E16: =E15/Fuel_Specs!$H$130 -> 102.9148043 | F16: =F15/Fuel_Specs!$H$130 -> 100.0608971 | G16: =G15/Fuel_Specs!$H$130 -> 101.0939689 | H16: =H15/Fuel_Specs!$H$130 -> 101.0939689 | I16: =I15/Fuel_Specs!$H$130 -> 101.0939689 | J16: =J15/Fuel_Specs!$H$130 -> 102.3488069 | K16: =K15/Fuel_Specs!$H$130 -> 99.49489972 | L16: =L15/Fuel_Specs!$H$130 -> 103.6280457 | M16: =M15/Fuel_Specs!$H$130 -> 103.6280457 | N16: =N15/Fuel_Specs!$H$130 -> 103.6280457 | O16: =O15/Fuel_Specs!$H$130 -> 104.8828838 | P16: =P15/Fuel_Specs!$H$130 -> 100.0608971 | Q16: =Q15/Fuel_Specs!$H$130 -> 101.9833589 | R16: =R15/Fuel_Specs!$H$130 -> 101.9833589 | S16: =S15/Fuel_Specs!$H$130 -> 100.3842897 | T16: =T15/Fuel_Specs!$H$130 -> 93.65840645 | U16: =U15/Fuel_Specs!$H$130 -> 93.65840645 | V16: =V15/Fuel_Specs!$H$130 -> 93.65840645 | W16: =W15/Fuel_Specs!$H$130 -> 94.91324452 | X16: =X15/Fuel_Specs!$H$130 -> 92.05933732 | Y16: =Y15/Fuel_Specs!$H$130 -> 1.814376304 | Z16: =Z15/Fuel_Specs!$H$130 -> 119.1008812 | AA16: =AA15/Fuel_Specs!$H$130 -> 119.7529201 | AB16: =AB15/Fuel_Specs!$H$130 -> 0 | AC16: =AC15/Fuel_Specs!$H$130 -> 0
A18: 2) Emissions Upstream of Biomass, grams/dry ton (Collection, transport of biomass)
B19: Willow | C19: Poplar | D19: Switchgrass | E19: Corn Stover | F19: Forest Residue | G19: Bagass | H19: Straw
A20: VOC | E20: 81.01391777 | F20: 21.28174502
A21: CO | E21: 195.8099565 | F21: 93.19526449
A22: NOx | E22: 332.8952761 | F22: 188.230207
A23: PM10 | E23: 36.71702516 | F23: 12.29531071
A24: PM2.5 | E24: 32.12354868 | F24: 11.58299213
A25: SOx | E25: 391.703155 | F25: 17.77422558
A26: CH4 | E26: 167.0127779 | F26: 61.70803905
A27: N2O | E27: 55.62619454 | F27: 0.6669494433
A28: CO2 | E28: 92524.3302 | F28: 47169.31657
A29: GHG, g/MMBtu | E29: =E20*Fuel_Specs!$B$87+E21*Fuel_Specs!$B$88+E26*Fuel_Specs!$B$85+E27*Fuel_Specs!$B$86+E28 -> 113836.4504 | F29: =F20*Fuel_Specs!$B$87+F21*Fuel_Specs!$B$88+F26*Fuel_Specs!$B$85+F27*Fuel_Specs!$B$86+F28 -> 49123.54629
A30: GHG, g/MJ | E30: =E29/Fuel_Specs!$H$130 -> 107.8961368 | F30: =F29/Fuel_Specs!$H$130 -> 46.5601383

Sheet Electricity (hidden)
A1: Upstream Electricity GHG EF
A2: Feedstock Production | B2: Active Selection for Feedstock Production
A3: Emissions from Electricity Production | B3: =Reference!$J$35 -> 1-U.S Ave Mix | D3: 1-U.S Ave Mix | F3: 2- User Defined Mix | H3: 3-CAMX Mix | J3: 4-NWPP Mix | L3: 5-AZNM Mix | N3: 6-RMPA Mix | P3: 7-MROW Mix | R3: 8-SPNO Mix | T3: 9-SPSO Mix | V3: 10-ERCT Mix | X3: 11-MROE Mix | Z3: 12-SRMW Mix | AB3: 13-SRMV Mix | AD3: 14-RFCM Mix | AF3: 15-RFCW Mix | AH3: 16-SRTV Mix | AJ3: 17-SRSO Mix | AL3: 18-NEWE Mix | AN3: 19-NYUP Mix | AP3: 20-RFCE Mix | AR3: 21-NYLI Mix | AT3: 22-NYCW Mix | AV3: 23-SRVC Mix | AX3: 24-FRCC Mix | AZ3: 25-AKMS Mix | BB3: 26-AKGD Mix | BD3: 27-HIOA Mix | BF3: 28-HIMS Mix | BH3: 29- Brazilian Mix | BJ3: Canadian Mix | BL3: Quebec Region
A4: g/MMBtu | B4: Feedstock Used for Electricity Generation | C4: Fuels Used for Electricity Generation | D4: Feedstock | E4: Fuel | F4: Feedstock | G4: Fuel | H4: Feedstock | I4: Fuel | J4: Feedstock | K4: Fuel | L4: Feedstock | M4: Fuel | N4: Feedstock | O4: Fuel | P4: Feedstock | Q4: Fuel | R4: Feedstock | S4: Fuel | T4: Feedstock | U4: Fuel | V4: Feedstock | W4: Fuel | X4: Feedstock | Y4: Fuel | Z4: Feedstock | AA4: Fuel | AB4: Feedstock | AC4: Fuel | AD4: Feedstock | AE4: Fuel | AF4: Feedstock | AG4: Fuel | AH4: Feedstock | AI4: Fuel | AJ4: Feedstock | AK4: Fuel | AL4: Feedstock | AM4: Fuel | AN4: Feedstock | AO4: Fuel | AP4: Feedstock | AQ4: Fuel | AR4: Feedstock | AS4: Fuel | AT4: Feedstock | AU4: Fuel | AV4: Feedstock | AW4: Fuel | AX4: Feedstock | AY4: Fuel | AZ4: Feedstock | BA4: Fuel | BB4: Feedstock | BC4: Fuel | BD4: Feedstock | BE4: Fuel | BF4: Feedstock | BG4: Fuel | BH4: Feedstock | BI4: Fuel | BJ4: Feedstock | BK4: Fuel | BL4: Feedstock | BM4: Fuel
A5: VOC | B5: =IFERROR(IF(Reference!$I$35<=29,INDEX($D5:$BI5,1,Reference!$I$35*2-1),0),$D5) -> 17.07089688 | C5: =IFERROR(IF(Reference!$I$35<=29,INDEX($D5:$BI5,1,Reference!$I$35*2),0),$E5) -> 4.004626047 | D5: 17.07089688 | E5: 4.004626047 | F5: 0.06222254718 | G5: 0.158395578 | H5: 14.07957379 | I5: 4.299298928 | J5: 10.96809688 | K5: 2.764297416 | L5: 17.35095125 | M5: 3.859068068 | N5: 21.31728253 | O5: 4.384718 | P5: 16.82448325 | Q5: 4.522003165 | R5: 19.83099522 | S5: 3.754165371 | T5: 22.53818566 | U5: 4.289070928 | V5: 19.46100243 | W5: 3.635393907 | X5: 18.62921106 | Y5: 5.9158682 | Z5: 20.30246573 | AA5: 3.934679261 | AB5: 18.11836835 | AC5: 3.931042978 | AD5: 19.81446295 | AE5: 5.566094643 | AF5: 17.68190311 | AG5: 3.906536972 | AH5: 16.99684611 | AI5: 3.553593972 | AJ5: 18.99664008 | AK5: 4.57730928 | AL5: 14.55391177 | AM5: 5.759855125 | AN5: 9.863043211 | AO5: 2.913613054 | AP5: 14.1713919 | AQ5: 4.768839291 | AR5: 23.39676729 | AS5: 7.866984956 | AT5: 14.81239031 | AU5: 4.169215367 | AV5: 14.4466417 | AW5: 3.466506549 | AX5: 20.50126655 | AY5: 3.307579733 | AZ5: 5.737107897 | BA5: 0.9075014739 | BB5: 27.75070934 | BC5: 2.237793974 | BD5: 22.24915085 | BE5: 7.061647792 | BF5: 15.34053624 | BG5: 6.261631685 | BH5: 3.475040958 | BI5: 3.440381559
A6: CO | B6: =IFERROR(IF(Reference!$I$35<=29,INDEX($D6:$BI6,1,Reference!$I$35*2-1),0),$D6) -> 25.58343559 | C6: =IFERROR(IF(Reference!$I$35<=29,INDEX($D6:$BI6,1,Reference!$I$35*2),0),$E6) -> 52.5916957 | D6: 25.58343559 | E6: 52.5916957 | F6: 0.2088478091 | G6: 5.405062734 | H6: 39.96245204 | I6: 72.74825707 | J6: 14.80280288 | K6: 38.75336812 | L6: 29.80317192 | M6: 40.05241943 | N6: 21.06039023 | O6: 39.68458288 | P6: 11.69615404 | Q6: 50.08606691 | R6: 15.97307531 | S6: 33.49554427 | T6: 37.44325433 | U6: 52.43450461 | V6: 39.07275928 | W6: 38.01763714 | X6: 14.82828818 | Y6: 87.52838766 | Z6: 13.2512676 | AA6: 35.00974178 | AB6: 42.79913932 | AC6: 66.6672907 | AD6: 19.96771348 | AE6: 65.86554753 | AF6: 12.71315842 | AG6: 37.59547662 | AH6: 16.72926596 | AI6: 42.38287736 | AJ6: 27.44376834 | AK6: 74.77566502 | AL6: 38.63865259 | AM6: 108.1016772 | AN6: 21.04066636 | AO6: 42.9937345 | AP6: 22.83786264 | AQ6: 52.89226214 | AR6: 72.38993163 | AS6: 116.0007718 | AT6: 46.70841176 | AU6: 46.39671225 | AV6: 17.34118179 | AW6: 54.60994477 | AX6: 48.67573944 | AY6: 62.54964776 | AZ6: 16.31869839 | BA6: 210.5468138 | BB6: 76.72875071 | BC6: 134.9076842 | BD6: 48.83642436 | BE6: 319.405278 | BF6: 44.25009236 | BG6: 321.2493198 | BH6: 9.93734096 | BI6: 106.1272817
A7: NOx | B7: =IFERROR(IF(Reference!$I$35<=29,INDEX($D7:$BI7,1,Reference!$I$35*2-1),0),$D7) -> 49.40670463 | C7: =IFERROR(IF(Reference!$I$35<=29,INDEX($D7:$BI7,1,Reference!$I$35*2),0),$E7) -> 206.1392274 | D7: 49.40670463 | E7: 206.1392274 | F7: 0.4089831743 | G7: 3.388516544 | H7: 53.9719878 | I7: 102.5573892 | J7: 29.78437783 | K7: 137.8216809 | L7: 51.35973774 | M7: 168.2774493 | N7: 51.80404759 | O7: 274.763523 | P7: 38.32108648 | Q7: 254.5029729 | R7: 46.47034284 | S7: 274.3798084 | T7: 66.63149552 | U7: 241.4570977 | V7: 62.03662446 | W7: 167.9311141 | X7: 46.21475777 | Y7: 317.1342094 | Z7: 45.32426502 | AA7: 293.1859931 | AB7: 63.89592752 | AC7: 154.7121948 | AD7: 50.32238346 | AE7: 281.9912957 | AF7: 41.35463732 | AG7: 263.3819314 | AH7: 43.01983343 | AI7: 236.4795911 | AJ7: 53.58133929 | AK7: 223.8416844 | AL7: 55.16601169 | AM7: 138.7799269 | AN7: 33.33859218 | AO7: 100.7078638 | AP7: 42.70652129 | AQ7: 173.8141884 | AR7: 101.1730236 | AS7: 243.1104617 | AT7: 60.1632316 | AU7: 75.27295216 | AV7: 39.16658619 | AW7: 191.8862691 | AX7: 74.11733936 | AY7: 187.1703293 | AZ7: 44.214377 | BA7: 766.4211164 | BB7: 110.0423166 | BC7: 385.0011394 | BD7: 177.8427225 | BE7: 1779.467431 | BF7: 153.5172081 | BG7: 1642.700958 | BH7: 17.0683949 | BI7: 100.3428401
A8: PM10 | B8: =IFERROR(IF(Reference!$I$35<=29,INDEX($D8:$BI8,1,Reference!$I$35*2-1),0),$D8) -> 13.10693019 | C8: =IFERROR(IF(Reference!$I$35<=29,INDEX($D8:$BI8,1,Reference!$I$35*2),0),$E8) -> 44.0700117 | D8: 13.10693019 | E8: 44.0700117 | F8: 0.02220998218 | G8: 0.74387177 | H8: 2.857679555 | I8: 12.75907828 | J8: 8.887761736 | K8: 30.56091399 | L8: 11.46859581 | M8: 36.25435872 | N8: 20.49368879 | O8: 65.35885948 | P8: 18.58353668 | Q8: 61.19071024 | R8: 20.83760637 | S8: 66.12643228 | T8: 15.3303094 | U8: 50.80803992 | V8: 10.3722863 | W8: 32.44014116 | X8: 20.22006066 | Y8: 70.48343106 | Z8: 22.66572738 | AA8: 71.95288196 | AB8: 7.353811566 | AC8: 26.87476208 | AD8: 19.39721072 | AE8: 64.50882131 | AF8: 19.45949071 | AG8: 62.16415816 | AH8: 16.79252543 | AI8: 54.70764081 | AJ8: 15.13264882 | AK8: 52.55701386 | AL8: 4.136966771 | AM8: 22.29392021 | AN8: 5.047284197 | AO8: 18.52701792 | AP8: 10.48021768 | AQ8: 34.81276159 | AR8: 2.277952404 | AS8: 16.09314138 | AT8: 0.9237695896 | AU8: 3.569590241 | AV8: 13.31367883 | AW8: 45.12856296 | AX8: 8.106461196 | AY8: 34.03617738 | AZ8: 2.54776227 | BA8: 29.55065004 | BB8: 6.348253732 | BC8: 27.67820618 | BD8: 18.26329524 | BE8: 86.72747825 | BF8: 9.66008314 | BG8: 63.95863074 | BH8: 1.195638166 | BI8: 16.67590408
A9: PM2.5 | B9: =IFERROR(IF(Reference!$I$35<=29,INDEX($D9:$BI9,1,Reference!$I$35*2-1),0),$D9) -> 2.764054221 | C9: =IFERROR(IF(Reference!$I$35<=29,INDEX($D9:$BI9,1,Reference!$I$35*2),0),$E9) -> 31.45621873 | D9: 2.764054221 | E9: 31.45621873 | F9: 0.02068723724 | G9: 0.6531324102 | H9: 1.117426442 | I9: 10.15189794 | J9: 1.74177399 | K9: 21.99250093 | L9: 2.380012645 | M9: 25.76882025 | N9: 3.792913691 | O9: 46.068754 | P9: 3.471369689 | Q9: 43.50309705 | R9: 3.899006199 | S9: 46.62958832 | T9: 3.204680676 | U9: 36.5491164 | V9: 2.328256709 | W9: 23.1148344 | X9: 4.053719719 | Y9: 50.73544081 | Z9: 4.182511505 | AA9: 50.6647219 | AB9: 2.022718085 | AC9: 19.9645542 | AD9: 3.814068552 | AE9: 46.05153912 | AF9: 3.723259535 | AG9: 43.86365663 | AH9: 3.306440318 | AI9: 38.84235883 | AJ9: 3.125675783 | AK9: 38.1743133 | AL9: 1.44444161 | AM9: 17.73842653 | AN9: 1.274166714 | AO9: 13.68468091 | AP9: 2.319270407 | AQ9: 25.01418485 | AR9: 2.06088195 | AS9: 12.8628499 | AT9: 0.8439032871 | AU9: 3.053803658 | AV9: 2.765353726 | AW9: 32.55613999 | AX9: 2.367015634 | AY9: 22.34988139 | AZ9: 2.224199892 | BA9: 20.35983384 | BB9: 2.572286614 | BC9: 20.22234714 | BD9: 10.10499404 | BE9: 69.20910381 | BF9: 8.020284956 | BG9: 53.4897976 | BH9: 0.7149824255 | BI9: 14.11377984
A10: SOx | B10: =IFERROR(IF(Reference!$I$35<=29,INDEX($D10:$BI10,1,Reference!$I$35*2-1),0),$D10) -> 19.79695139 | C10: =IFERROR(IF(Reference!$I$35<=29,INDEX($D10:$BI10,1,Reference!$I$35*2),0),$E10) -> 478.527743 | D10: 19.79695139 | E10: 478.527743 | F10: 0.08063937251 | G10: 2.112009603 | H10: 16.23318118 | I10: 100.468072 | J10: 11.33775162 | K10: 323.8752622 | L10: 19.44961627 | M10: 397.6665711 | N10: 21.15375378 | O10: 733.2204974 | P10: 17.67047774 | Q10: 666.9198952 | R10: 21.08883957 | S10: 746.0248128 | T10: 24.60657403 | U10: 561.9643639 | V10: 22.16041415 | W10: 372.3712972 | X10: 21.08640091 | Y10: 751.3833788 | Z10: 21.11775091 | AA10: 809.9082297 | AB10: 21.76262 | AC10: 274.9216603 | AD10: 21.94210384 | AE10: 702.3358882 | AF10: 20.1348101 | AG10: 702.6266755 | AH10: 19.50568548 | AI10: 609.7480726 | AJ10: 21.27523488 | AK10: 533.0864496 | AL10: 16.83275608 | AM10: 171.8932571 | AN10: 11.69763145 | AO10: 189.9001229 | AP10: 17.64673083 | AQ10: 379.4274161 | AR10: 31.06312237 | AS10: 242.0664959 | AT10: 17.33747134 | AU10: 41.13450902 | AV10: 17.69462259 | AW10: 472.4985223 | AX10: 25.26174839 | AY10: 341.603992 | AZ10: 13.98804272 | BA10: 206.9243476 | BB10: 34.43713512 | BC10: 233.7885588 | BD10: 100.289777 | BE10: 1882.868738 | BF10: 81.84261503 | BG10: 1569.479043 | BH10: 4.624827222 | BI10: 93.72870448
A11: CH4 | B11: =IFERROR(IF(Reference!$I$35<=29,INDEX($D11:$BI11,1,Reference!$I$35*2-1),0),$D11) -> 325.2518395 | C11: =IFERROR(IF(Reference!$I$35<=29,INDEX($D11:$BI11,1,Reference!$I$35*2),0),$E11) -> 5.656187887 | D11: 325.2518395 | E11: 5.656187887 | F11: 0.7933022586 | G11: 0.2053972303 | H11: 268.1325355 | I11: 9.665524965 | J11: 209.910885 | K11: 3.946642355 | L11: 332.9121052 | M11: 6.760045892 | N11: 411.6967897 | O11: 5.16469323 | P11: 320.8788282 | Q11: 5.58870688 | R11: 380.5859012 | S11: 2.869606376 | T11: 434.9249559 | U11: 4.123345283 | V11: 374.8875859 | W11: 6.14472147 | X11: 352.4247418 | Y11: 7.659184567 | Z11: 389.6288172 | AA11: 3.072542116 | AB11: 344.7984487 | AC11: 6.216926387 | AD11: 377.9895056 | AE11: 7.954375605 | AF11: 336.6907391 | AG11: 4.05361548 | AH11: 323.4121965 | AI11: 3.413051212 | AJ11: 361.6688634 | AK11: 5.361730844 | AL11: 276.0580963 | AM11: 10.96237146 | AN11: 184.8761426 | AO11: 5.226869203 | AP11: 266.2435859 | AQ11: 9.260541743 | AR11: 445.431592 | AS11: 17.7265581 | AT11: 280.9379958 | AU11: 10.33333974 | AV11: 270.9082771 | AW11: 3.664190899 | AX11: 392.0381657 | AY11: 5.136733693 | AZ11: 100.9496585 | BA11: 2.947428179 | BB11: 535.4750664 | BC11: 3.855475291 | BD11: 392.4411075 | BE11: 10.0627814 | BF11: 259.2076476 | BG11: 9.663491663 | BH11: 58.57765405 | BI11: 4.896801955
A12: N2O | B12: =IFERROR(IF(Reference!$I$35<=29,INDEX($D12:$BI12,1,Reference!$I$35*2-1),0),$D12) -> 0.8748213348 | C12: =IFERROR(IF(Reference!$I$35<=29,INDEX($D12:$BI12,1,Reference!$I$35*2),0),$E12) -> 2.746892221 | D12: 0.8748213348 | E12: 2.746892221 | F12: 0.004099621365 | G12: 0.1156960484 | H12: 1.633593014 | I12: 1.335909825 | J12: 0.4957603136 | K12: 1.955257163 | L12: 1.111967761 | M12: 2.160832422 | N12: 0.6298625301 | O12: 3.66376876 | P12: 0.2156806365 | Q12: 3.620305019 | R12: 0.3894192617 | S12: 3.700209092 | T12: 1.393357284 | U12: 3.201675151 | V12: 1.53081826 | W12: 1.99704589 | X12: 0.2761992696 | Y12: 4.533696931 | Z12: 0.2477829447 | AA12: 3.995907811 | AB12: 1.676373451 | AC12: 2.053720437 | AD12: 0.5480300336 | AE12: 3.936214014 | AF12: 0.2428270986 | AG12: 3.510787986 | AH12: 0.4465383965 | AI12: 3.223179185 | AJ12: 0.9274207531 | AK12: 3.56741794 | AL12: 1.538341055 | AM12: 2.418777031 | AN12: 0.7736139801 | AO12: 1.399585486 | AP12: 0.7636965282 | AQ12: 2.199840636 | AR12: 2.917386348 | AS12: 1.822208193 | AT12: 1.928203068 | AU12: 0.5040933767 | AV12: 0.491488911 | AW12: 2.950140536 | AX12: 1.909018359 | AY12: 2.110100211 | AZ12: 0.2740122612 | BA12: 0.5510162745 | BB12: 3.104077935 | BC12: 1.168581528 | BD12: 0.5171208794 | BE12: 3.568742794 | BF12: 0.4462855778 | BG12: 2.657952025 | BH12: 0.2978882734 | BI12: 2.284893972
A13: CO2 | B13: =IFERROR(IF(Reference!$I$35<=29,INDEX($D13:$BI13,1,Reference!$I$35*2-1),0),$D13) -> 7815.498822 | C13: =IFERROR(IF(Reference!$I$35<=29,INDEX($D13:$BI13,1,Reference!$I$35*2),0),$E13) -> 175311.1347 | D13: 7815.498822 | E13: 175311.1347 | F13: 89.40870702 | G13: 371.9381101 | H13: 9071.364257 | I13: 93873.61538 | J13: 4205.227219 | K13: 116999.321 | L13: 7997.561789 | M13: 166486.0132 | N13: 7110.026407 | O13: 247869.7683 | P13: 5327.821211 | Q13: 208994.1892 | R13: 6644.23361 | S13: 240155.972 | T13: 10222.0158 | U13: 221488.7031 | V13: 9899.380521 | W13: 171633.7827 | X13: 7047.683048 | Y13: 229115.5367 | Z13: 6323.369904 | AA13: 254349.4306 | AB13: 10833.84632 | AC13: 143537.8267 | AD13: 7595.983465 | AE13: 230023.0482 | AF13: 6169.086566 | AG13: 218607.6811 | AH13: 6559.116253 | AI13: 198097.8498 | AJ13: 8362.594792 | AK13: 196740.7419 | AL13: 9214.688454 | AM13: 104757.9862 | AN13: 5491.300491 | AO13: 84052.56497 | AP13: 7099.865774 | AQ13: 140477.5386 | AR13: 18186.54949 | AS13: 149446.6391 | AT13: 10515.60411 | AU13: 84442.29403 | AV13: 6346.695335 | AW13: 159057.6588 | AX13: 12659.19132 | AY13: 165024.0754 | AZ13: 8399.470731 | BA13: 71844.96358 | BB13: 19009.60184 | BC13: 198174.6617 | BD13: 33964.7111 | BE13: 297205.0091 | BF13: 28783.50465 | BG13: 210751.7758 | BH13: 3266.111923 | BI13: 26121.38117
A14: CO2 (w/ C in VOC & CO) | B14: =IFERROR(IF(Reference!$I$35<=29,INDEX($D14:$BI14,1,Reference!$I$35*2-1),0),$D14) -> 7908.905659 | C14: =IFERROR(IF(Reference!$I$35<=29,INDEX($D14:$BI14,1,Reference!$I$35*2),0),$E14) -> 175406.2599 | D14: 7908.905659 | E14: 175406.2599 | F14: =F13+F11*Fuel_Specs!$B$92/Fuel_Specs!$B$95+F12*Fuel_Specs!$B$93/Fuel_Specs!$B$95 -> 91.88760799 | G14: =G13+G5*Fuel_Specs!$B$92/Fuel_Specs!$B$95+G6*Fuel_Specs!$B$93/Fuel_Specs!$B$95 -> 380.9254463 | H14: 9178.043734 | I14: 94001.33356 | J14: 4262.672668 | K14: 117068.8345 | L14: 8098.472476 | M14: 166560.9801 | N14: 7209.56017 | O14: 247945.7955 | P14: 5398.637188 | Q14: 209086.9894 | R14: 6731.140758 | S14: 240220.3083 | T14: 10351.09921 | U14: 221584.4678 | V14: 10021.43403 | W14: 171704.855 | X14: 7129.045685 | Y14: 229271.5191 | Z14: 6407.469342 | AA14: 254416.709 | AB14: 10957.57102 | AC14: 143654.8413 | AD14: 7689.116377 | AE14: 230143.8989 | AF14: 6244.172984 | AG14: 218678.9351 | AH14: 6638.378603 | AI14: 198175.5268 | AJ14: 8464.926909 | AK14: 196872.5125 | AL14: 9320.766028 | AM14: 104945.8118 | AN14: 5555.104213 | AO14: 84129.20731 | AP14: 7179.921349 | AQ14: 140575.5179 | AR14: 18373.22502 | AS14: 149653.4448 | AT14: 10635.16833 | AU14: 84528.1972 | AV14: 6418.97113 | AW14: 159154.2783 | AX14: 12799.57738 | AY14: 165132.6763 | AZ14: 8442.995053 | BA14: 72178.65124 | BB14: 19216.6653 | BC14: 198393.6339 | BD14: 34110.79724 | BE14: 297728.9405 | BF14: 28900.85185 | BG14: 211276.1116 | BH14: 3292.558289 | BI14: 26298.87513
A15: GHGs, g/MMBtu | B15: =IFERROR(IF(Reference!$I$35<=29,INDEX($D15:$BI15,1,Reference!$I$35*2-1),0),$D15) -> 16300.89841 | C15: =IFERROR(IF(Reference!$I$35<=29,INDEX($D15:$BI15,1,Reference!$I$35*2),0),$E15) -> 176366.2385 | D15: =D11*25+D12*298+D14 -> 16300.89841 | E15: =E11*25+E12*298+E14 -> 176366.2385 | F15: =F11*Fuel_Specs!$B$85+F12*Fuel_Specs!$B$86+F14 -> 112.9418516 | G15: =G11*Fuel_Specs!$B$85+G12*Fuel_Specs!$B$86+G14 -> 420.5377995 | H15: =H11*Fuel_Specs!$B$85+H12*Fuel_Specs!$B$86+H14 -> 16368.16784 | I15: =I11*Fuel_Specs!$B$85+I12*Fuel_Specs!$B$86+I14 -> 94641.07281 | J15: =J11*Fuel_Specs!$B$85+J12*Fuel_Specs!$B$86+J14 -> 9658.181367 | K15: =K11*Fuel_Specs!$B$85+K12*Fuel_Specs!$B$86+K14 -> 117750.1672 | L15: =L11*Fuel_Specs!$B$85+L12*Fuel_Specs!$B$86+L14 -> 16752.6415 | M15: =M11*Fuel_Specs!$B$85+M12*Fuel_Specs!$B$86+M14 -> 167373.9093 | N15: =N11*Fuel_Specs!$B$85+N12*Fuel_Specs!$B$86+N14 -> 17689.67895 | O15: =O11*Fuel_Specs!$B$85+O12*Fuel_Specs!$B$86+O14 -> 249166.7159 | P15: =P11*Fuel_Specs!$B$85+P12*Fuel_Specs!$B$86+P14 -> 13484.88072 | Q15: =Q11*Fuel_Specs!$B$85+Q12*Fuel_Specs!$B$86+Q14 -> 210305.558 | R15: =R11*Fuel_Specs!$B$85+R12*Fuel_Specs!$B$86+R14 -> 16361.83523 | S15: =S11*Fuel_Specs!$B$85+S12*Fuel_Specs!$B$86+S14 -> 241394.7108 | T15: =T11*Fuel_Specs!$B$85+T12*Fuel_Specs!$B$86+T14 -> 21639.44358 | U15: =U11*Fuel_Specs!$B$85+U12*Fuel_Specs!$B$86+U14 -> 222641.6506 | V15: =V11*Fuel_Specs!$B$85+V12*Fuel_Specs!$B$86+V14 -> 19849.80752 | W15: =W11*Fuel_Specs!$B$85+W12*Fuel_Specs!$B$86+W14 -> 172453.5927 | X15: =X11*Fuel_Specs!$B$85+X12*Fuel_Specs!$B$86+X14 -> 16021.97161 | Y15: =Y11*Fuel_Specs!$B$85+Y12*Fuel_Specs!$B$86+Y14 -> 230814.0404 | Z15: =Z11*Fuel_Specs!$B$85+Z12*Fuel_Specs!$B$86+Z14 -> 16222.02909 | AA15: =AA11*Fuel_Specs!$B$85+AA12*Fuel_Specs!$B$86+AA14 -> 255684.3031 | AB15: =AB11*Fuel_Specs!$B$85+AB12*Fuel_Specs!$B$86+AB14 -> 20077.09153 | AC15: =AC11*Fuel_Specs!$B$85+AC12*Fuel_Specs!$B$86+AC14 -> 144422.2732 | AD15: =AD11*Fuel_Specs!$B$85+AD12*Fuel_Specs!$B$86+AD14 -> 17302.16697 | AE15: =AE11*Fuel_Specs!$B$85+AE12*Fuel_Specs!$B$86+AE14 -> 231515.7501 | AF15: =AF11*Fuel_Specs!$B$85+AF12*Fuel_Specs!$B$86+AF14 -> 14733.80394 | AG15: =AG11*Fuel_Specs!$B$85+AG12*Fuel_Specs!$B$86+AG14 -> 219826.4903 | AH15: =AH11*Fuel_Specs!$B$85+AH12*Fuel_Specs!$B$86+AH14 -> 14856.75196 | AI15: =AI11*Fuel_Specs!$B$85+AI12*Fuel_Specs!$B$86+AI14 -> 199221.3605 | AJ15: =AJ11*Fuel_Specs!$B$85+AJ12*Fuel_Specs!$B$86+AJ14 -> 17783.01988 | AK15: =AK11*Fuel_Specs!$B$85+AK12*Fuel_Specs!$B$86+AK14 -> 198069.6463 | AL15: =AL11*Fuel_Specs!$B$85+AL12*Fuel_Specs!$B$86+AL14 -> 16680.64407 | AM15: =AM11*Fuel_Specs!$B$85+AM12*Fuel_Specs!$B$86+AM14 -> 105940.6666 | AN15: =AN11*Fuel_Specs!$B$85+AN12*Fuel_Specs!$B$86+AN14 -> 10407.54474 | AO15: =AO11*Fuel_Specs!$B$85+AO12*Fuel_Specs!$B$86+AO14 -> 84676.95552 | AP15: =AP11*Fuel_Specs!$B$85+AP12*Fuel_Specs!$B$86+AP14 -> 14063.59256 | AQ15: =AQ11*Fuel_Specs!$B$85+AQ12*Fuel_Specs!$B$86+AQ14 -> 141462.584 | AR15: =AR11*Fuel_Specs!$B$85+AR12*Fuel_Specs!$B$86+AR14 -> 30378.39595 | AS15: =AS11*Fuel_Specs!$B$85+AS12*Fuel_Specs!$B$86+AS14 -> 150639.6268 | AT15: =AT11*Fuel_Specs!$B$85+AT12*Fuel_Specs!$B$86+AT14 -> 18233.22274 | AU15: =AU11*Fuel_Specs!$B$85+AU12*Fuel_Specs!$B$86+AU14 -> 84936.75052 | AV15: =AV11*Fuel_Specs!$B$85+AV12*Fuel_Specs!$B$86+AV14 -> 13338.14175 | AW15: =AW11*Fuel_Specs!$B$85+AW12*Fuel_Specs!$B$86+AW14 -> 160125.025 | AX15: =AX11*Fuel_Specs!$B$85+AX12*Fuel_Specs!$B$86+AX14 -> 23169.419 | AY15: =AY11*Fuel_Specs!$B$85+AY12*Fuel_Specs!$B$86+AY14 -> 165889.9045 | AZ15: =AZ11*Fuel_Specs!$B$85+AZ12*Fuel_Specs!$B$86+AZ14 -> 11048.39217 | BA15: =BA11*Fuel_Specs!$B$85+BA12*Fuel_Specs!$B$86+BA14 -> 72416.5398 | BB15: =BB11*Fuel_Specs!$B$85+BB12*Fuel_Specs!$B$86+BB14 -> 33528.55719 | BC15: =BC11*Fuel_Specs!$B$85+BC12*Fuel_Specs!$B$86+BC14 -> 198838.2581 | BD15: =BD11*Fuel_Specs!$B$85+BD12*Fuel_Specs!$B$86+BD14 -> 44075.92695 | BE15: =BE11*Fuel_Specs!$B$85+BE12*Fuel_Specs!$B$86+BE14 -> 299043.9954 | BF15: =BF11*Fuel_Specs!$B$85+BF12*Fuel_Specs!$B$86+BF14 -> 35514.03614 | BG15: =BG11*Fuel_Specs!$B$85+BG12*Fuel_Specs!$B$86+BG14 -> 212309.7686 | BH15: =BH11*Fuel_Specs!$B$85+BH12*Fuel_Specs!$B$86+BH14 -> 4845.770346 | BI15: =BI11*Fuel_Specs!$B$85+BI12*Fuel_Specs!$B$86+BI14 -> 27102.19359
A16: CI, g/MJ | B16: =B15/Fuel_Specs!$H$130 -> 15.45027062 | C16: =C15/Fuel_Specs!$H$130 -> 167.1629407 | D16: =D15/Fuel_Specs!$H$130 -> 15.45027062 | E16: =E15/Fuel_Specs!$H$130 -> 167.1629407 | F16: =F15/Fuel_Specs!$H$130 -> 0.1070482208 | G16: =G15/Fuel_Specs!$H$130 -> 0.3985929271 | H16: =H15/1055.056 -> 15.51402754 | I16: 89.70241656 | J16: =J15/1055.056 -> 9.154188372 | K16: =K15/1055.056 -> 111.6056088 | L16: =L15/Fuel_Specs!$H$130 -> 15.87844046 | M16: =M15/Fuel_Specs!$H$130 -> 158.6398572 | N16: =N15/Fuel_Specs!$H$130 -> 16.7665806 | O16: =O15/Fuel_Specs!$H$130 -> 236.1644797 | P16: =P15/Fuel_Specs!$H$130 -> 12.78120085 | Q16: =Q15/Fuel_Specs!$H$130 -> 199.3312089 | R16: =R15/Fuel_Specs!$H$130 -> 15.50802759 | S16: =S15/Fuel_Specs!$H$130 -> 228.7980402 | T16: =T15/Fuel_Specs!$H$130 -> 20.51023515 | U16: =U15/Fuel_Specs!$H$130 -> 211.0235687 | V16: =V15/Fuel_Specs!$H$130 -> 18.81398745 | W16: =W15/Fuel_Specs!$H$130 -> 163.454468 | X16: =X15/Fuel_Specs!$H$130 -> 15.18589903 | Y16: =Y15/Fuel_Specs!$H$130 -> 218.7694997 | Z16: =Z15/Fuel_Specs!$H$130 -> 15.37551694 | AA16: =AA15/Fuel_Specs!$H$130 -> 242.3419605 | AB16: =AB15/Fuel_Specs!$H$130 -> 19.02941113 | AC16: =AC15/Fuel_Specs!$H$130 -> 136.8859034 | AD16: =AD15/Fuel_Specs!$H$130 -> 16.39929011 | AE16: =AE15/Fuel_Specs!$H$130 -> 219.4345921 | AF16: =AF15/Fuel_Specs!$H$130 -> 13.96495165 | AG16: =AG15/Fuel_Specs!$H$130 -> 208.3553115 | AH16: =AH15/Fuel_Specs!$H$130 -> 14.08148389 | AI16: =AI15/Fuel_Specs!$H$130 -> 188.8254167 | AJ16: =AJ15/Fuel_Specs!$H$130 -> 16.85505073 | AK16: =AK15/Fuel_Specs!$H$130 -> 187.7338023 | AL16: =AL15/Fuel_Specs!$H$130 -> 15.81020007 | AM16: =AM15/Fuel_Specs!$H$130 -> 100.4123778 | AN16: =AN15/Fuel_Specs!$H$130 -> 9.864449112 | AO16: =AO15/Fuel_Specs!$H$130 -> 80.25826833 | AP16: =AP15/Fuel_Specs!$H$130 -> 13.32971384 | AQ16: =AQ15/Fuel_Specs!$H$130 -> 134.0806593 | AR16: =AR15/Fuel_Specs!$H$130 -> 28.79316384 | AS16: =AS15/Fuel_Specs!$H$130 -> 142.7788176 | AT16: =AT15/Fuel_Specs!$H$130 -> 17.28176071 | AU16: =AU15/Fuel_Specs!$H$130 -> 80.50450649 | AV16: =AV15/Fuel_Specs!$H$130 -> 12.64211914 | AW16: =AW15/Fuel_Specs!$H$130 -> 151.7692404 | AX16: =AX15/Fuel_Specs!$H$130 -> 21.96037205 | AY16: =AY15/Fuel_Specs!$H$130 -> 157.233292 | AZ16: =AZ15/Fuel_Specs!$H$130 -> 10.47185528 | BA16: =BA15/Fuel_Specs!$H$130 -> 68.63763638 | BB16: =BB15/Fuel_Specs!$H$130 -> 31.7789406 | BC16: =BC15/Fuel_Specs!$H$130 -> 188.4623057 | BD16: =BD15/Fuel_Specs!$H$130 -> 41.77591826 | BE16: =BE15/Fuel_Specs!$H$130 -> 283.4390193 | BF16: =BF15/Fuel_Specs!$H$130 -> 33.66081155 | BG16: =BG15/Fuel_Specs!$H$130 -> 201.230834 | BH16: =BH15/Fuel_Specs!$H$130 -> 4.592904106 | BI16: =BI15/Fuel_Specs!$H$130 -> 25.68792314
B18: Active Selection for Fuel Production
A19: Fuel Production | B19: =Reference!J37 -> 3-CAMX Mix | D19: 1-U.S Ave Mix | F19: 2- User Defined Mix | H19: 3-CAMX Mix | J19: 4-NWPP Mix | L19: 5-AZNM Mix | N19: 6-RMPA Mix | P19: 7-MROW Mix | R19: 8-SPNO Mix | T19: 9-SPSO Mix | V19: 10-ERCT Mix | X19: 11-MROE Mix | Z19: 12-SRMW Mix | AB19: 13-SRMV Mix | AD19: 14-RFCM Mix | AF19: 15-RFCW Mix | AH19: 16-SRTV Mix | AJ19: 17-SRSO Mix | AL19: 18-NEWE Mix | AN19: 19-NYUP Mix | AP19: 20-RFCE Mix | AR19: 21-NYLI Mix | AT19: 22-NYCW Mix | AV19: 23-SRVC Mix | AX19: 24-FRCC Mix | AZ19: 25-AKMS Mix | BB19: 26-AKGD Mix | BD19: 27-HIOA Mix | BF19: 28-HIMS Mix | BH19: 29- Brazilian Mix
A20: Emissions from Electricity Production | B20: Feedstock Used for Electricity Generation | C20: Fuels Used for Electricity Generation | D20: Feedstock | E20: Fuel | F20: Feedstock | G20: Fuel | H20: Feedstock | I20: Fuel | J20: Feedstock | K20: Fuel | L20: Feedstock | M20: Fuel | N20: Feedstock | O20: Fuel | P20: Feedstock | Q20: Fuel | R20: Feedstock | S20: Fuel | T20: Feedstock | U20: Fuel | V20: Feedstock | W20: Fuel | X20: Feedstock | Y20: Fuel | Z20: Feedstock | AA20: Fuel | AB20: Feedstock | AC20: Fuel | AD20: Feedstock | AE20: Fuel | AF20: Feedstock | AG20: Fuel | AH20: Feedstock | AI20: Fuel | AJ20: Feedstock | AK20: Fuel | AL20: Feedstock | AM20: Fuel | AN20: Feedstock | AO20: Fuel | AP20: Feedstock | AQ20: Fuel | AR20: Feedstock | AS20: Fuel | AT20: Feedstock | AU20: Fuel | AV20: Feedstock | AW20: Fuel | AX20: Feedstock | AY20: Fuel | AZ20: Feedstock | BA20: Fuel | BB20: Feedstock | BC20: Fuel | BD20: Feedstock | BE20: Fuel | BF20: Feedstock | BG20: Fuel | BH20: Feedstock | BI20: Fuel
A21: VOC | B21: =IFERROR(IF(Reference!$I$37<=29,INDEX($D21:$BI21,1,Reference!$I$37*2-1),0),$D21) -> 14.07957379 | C21: =IFERROR(IF(Reference!$I$37<=29,INDEX($D21:$BI21,1,Reference!$I$37*2),0),$D21) -> 4.299298928 | D21: 17.07089688 | E21: 4.004626047 | F21: 1 | G21: 2 | H21: 14.07957379 | I21: 4.299298928 | J21: 10.96809688 | K21: 2.764297416 | L21: 17.35095125 | M21: 3.859068068 | N21: 21.31728253 | O21: 4.384718 | P21: 16.82448325 | Q21: 4.522003165 | R21: 19.83099522 | S21: 3.754165371 | T21: 22.53818566 | U21: 4.289070928 | V21: 19.46100243 | W21: 3.635393907 | X21: 18.62921106 | Y21: 5.9158682 | Z21: 20.30246573 | AA21: 3.934679261 | AB21: 18.11836835 | AC21: 3.931042978 | AD21: 19.81446295 | AE21: 5.566094643 | AF21: 17.68190311 | AG21: 3.906536972 | AH21: 16.99684611 | AI21: 3.553593972 | AJ21: 18.99664008 | AK21: 4.57730928 | AL21: 14.55391177 | AM21: 5.759855125 | AN21: 9.863043211 | AO21: 2.913613054 | AP21: 14.1713919 | AQ21: 4.768839291 | AR21: 23.39676729 | AS21: 7.866984956 | AT21: 14.81239031 | AU21: 4.169215367 | AV21: 14.4466417 | AW21: 3.466506549 | AX21: 20.50126655 | AY21: 3.307579733 | AZ21: 5.737107897 | BA21: 0.9075014739 | BB21: 27.75070934 | BC21: 2.237793974 | BD21: 22.24915085 | BE21: 7.061647792 | BF21: 15.34053624 | BG21: 6.261631685 | BH21: 3.475040958 | BI21: 3.440381559
A22: CO | B22: =IFERROR(IF(Reference!$I$37<=29,INDEX($D22:$BI22,1,Reference!$I$37*2-1),0),$D22) -> 39.96245204 | C22: =IFERROR(IF(Reference!$I$37<=29,INDEX($D22:$BI22,1,Reference!$I$37*2),0),$D22) -> 72.74825707 | D22: 25.58343559 | E22: 52.5916957 | F22: 3 | G22: 4 | H22: 39.96245204 | I22: 72.74825707 | J22: 14.80280288 | K22: 38.75336812 | L22: 29.80317192 | M22: 40.05241943 | N22: 21.06039023 | O22: 39.68458288 | P22: 11.69615404 | Q22: 50.08606691 | R22: 15.97307531 | S22: 33.49554427 | T22: 37.44325433 | U22: 52.43450461 | V22: 39.07275928 | W22: 38.01763714 | X22: 14.82828818 | Y22: 87.52838766 | Z22: 13.2512676 | AA22: 35.00974178 | AB22: 42.79913932 | AC22: 66.6672907 | AD22: 19.96771348 | AE22: 65.86554753 | AF22: 12.71315842 | AG22: 37.59547662 | AH22: 16.72926596 | AI22: 42.38287736 | AJ22: 27.44376834 | AK22: 74.77566502 | AL22: 38.63865259 | AM22: 108.1016772 | AN22: 21.04066636 | AO22: 42.9937345 | AP22: 22.83786264 | AQ22: 52.89226214 | AR22: 72.38993163 | AS22: 116.0007718 | AT22: 46.70841176 | AU22: 46.39671225 | AV22: 17.34118179 | AW22: 54.60994477 | AX22: 48.67573944 | AY22: 62.54964776 | AZ22: 16.31869839 | BA22: 210.5468138 | BB22: 76.72875071 | BC22: 134.9076842 | BD22: 48.83642436 | BE22: 319.405278 | BF22: 44.25009236 | BG22: 321.2493198 | BH22: 9.93734096 | BI22: 106.1272817
A23: NOx | B23: =IFERROR(IF(Reference!$I$37<=29,INDEX($D23:$BI23,1,Reference!$I$37*2-1),0),$D23) -> 53.9719878 | C23: =IFERROR(IF(Reference!$I$37<=29,INDEX($D23:$BI23,1,Reference!$I$37*2),0),$D23) -> 102.5573892 | D23: 49.40670463 | E23: 206.1392274 | F23: 5 | G23: 6 | H23: 53.9719878 | I23: 102.5573892 | J23: 29.78437783 | K23: 137.8216809 | L23: 51.35973774 | M23: 168.2774493 | N23: 51.80404759 | O23: 274.763523 | P23: 38.32108648 | Q23: 254.5029729 | R23: 46.47034284 | S23: 274.3798084 | T23: 66.63149552 | U23: 241.4570977 | V23: 62.03662446 | W23: 167.9311141 | X23: 46.21475777 | Y23: 317.1342094 | Z23: 45.32426502 | AA23: 293.1859931 | AB23: 63.89592752 | AC23: 154.7121948 | AD23: 50.32238346 | AE23: 281.9912957 | AF23: 41.35463732 | AG23: 263.3819314 | AH23: 43.01983343 | AI23: 236.4795911 | AJ23: 53.58133929 | AK23: 223.8416844 | AL23: 55.16601169 | AM23: 138.7799269 | AN23: 33.33859218 | AO23: 100.7078638 | AP23: 42.70652129 | AQ23: 173.8141884 | AR23: 101.1730236 | AS23: 243.1104617 | AT23: 60.1632316 | AU23: 75.27295216 | AV23: 39.16658619 | AW23: 191.8862691 | AX23: 74.11733936 | AY23: 187.1703293 | AZ23: 44.214377 | BA23: 766.4211164 | BB23: 110.0423166 | BC23: 385.0011394 | BD23: 177.8427225 | BE23: 1779.467431 | BF23: 153.5172081 | BG23: 1642.700958 | BH23: 17.0683949 | BI23: 100.3428401
A24: PM10 | B24: =IFERROR(IF(Reference!$I$37<=29,INDEX($D24:$BI24,1,Reference!$I$37*2-1),0),$D24) -> 2.857679555 | C24: =IFERROR(IF(Reference!$I$37<=29,INDEX($D24:$BI24,1,Reference!$I$37*2),0),$D24) -> 12.75907828 | D24: 13.10693019 | E24: 44.0700117 | H24: 2.857679555 | I24: 12.75907828 | J24: 8.887761736 | K24: 30.56091399 | L24: 11.46859581 | M24: 36.25435872 | N24: 20.49368879 | O24: 65.35885948 | P24: 18.58353668 | Q24: 61.19071024 | R24: 20.83760637 | S24: 66.12643228 | T24: 15.3303094 | U24: 50.80803992 | V24: 10.3722863 | W24: 32.44014116 | X24: 20.22006066 | Y24: 70.48343106 | Z24: 22.66572738 | AA24: 71.95288196 | AB24: 7.353811566 | AC24: 26.87476208 | AD24: 19.39721072 | AE24: 64.50882131 | AF24: 19.45949071 | AG24: 62.16415816 | AH24: 16.79252543 | AI24: 54.70764081 | AJ24: 15.13264882 | AK24: 52.55701386 | AL24: 4.136966771 | AM24: 22.29392021 | AN24: 5.047284197 | AO24: 18.52701792 | AP24: 10.48021768 | AQ24: 34.81276159 | AR24: 2.277952404 | AS24: 16.09314138 | AT24: 0.9237695896 | AU24: 3.569590241 | AV24: 13.31367883 | AW24: 45.12856296 | AX24: 8.106461196 | AY24: 34.03617738 | AZ24: 2.54776227 | BA24: 29.55065004 | BB24: 6.348253732 | BC24: 27.67820618 | BD24: 18.26329524 | BE24: 86.72747825 | BF24: 9.66008314 | BG24: 63.95863074 | BH24: 1.195638166 | BI24: 16.67590408
A25: PM2.5 | B25: =IFERROR(IF(Reference!$I$37<=29,INDEX($D25:$BI25,1,Reference!$I$37*2-1),0),$D25) -> 1.117426442 | C25: =IFERROR(IF(Reference!$I$37<=29,INDEX($D25:$BI25,1,Reference!$I$37*2),0),$D25) -> 10.15189794 | D25: 2.764054221 | E25: 31.45621873 | H25: 1.117426442 | I25: 10.15189794 | J25: 1.74177399 | K25: 21.99250093 | L25: 2.380012645 | M25: 25.76882025 | N25: 3.792913691 | O25: 46.068754 | P25: 3.471369689 | Q25: 43.50309705 | R25: 3.899006199 | S25: 46.62958832 | T25: 3.204680676 | U25: 36.5491164 | V25: 2.328256709 | W25: 23.1148344 | X25: 4.053719719 | Y25: 50.73544081 | Z25: 4.182511505 | AA25: 50.6647219 | AB25: 2.022718085 | AC25: 19.9645542 | AD25: 3.814068552 | AE25: 46.05153912 | AF25: 3.723259535 | AG25: 43.86365663 | AH25: 3.306440318 | AI25: 38.84235883 | AJ25: 3.125675783 | AK25: 38.1743133 | AL25: 1.44444161 | AM25: 17.73842653 | AN25: 1.274166714 | AO25: 13.68468091 | AP25: 2.319270407 | AQ25: 25.01418485 | AR25: 2.06088195 | AS25: 12.8628499 | AT25: 0.8439032871 | AU25: 3.053803658 | AV25: 2.765353726 | AW25: 32.55613999 | AX25: 2.367015634 | AY25: 22.34988139 | AZ25: 2.224199892 | BA25: 20.35983384 | BB25: 2.572286614 | BC25: 20.22234714 | BD25: 10.10499404 | BE25: 69.20910381 | BF25: 8.020284956 | BG25: 53.4897976 | BH25: 0.7149824255 | BI25: 14.11377984
A26: SOx | B26: =IFERROR(IF(Reference!$I$37<=29,INDEX($D26:$BI26,1,Reference!$I$37*2-1),0),$D26) -> 16.23318118 | C26: =IFERROR(IF(Reference!$I$37<=29,INDEX($D26:$BI26,1,Reference!$I$37*2),0),$D26) -> 100.468072 | D26: 19.79695139 | E26: 478.527743 | H26: 16.23318118 | I26: 100.468072 | J26: 11.33775162 | K26: 323.8752622 | L26: 19.44961627 | M26: 397.6665711 | N26: 21.15375378 | O26: 733.2204974 | P26: 17.67047774 | Q26: 666.9198952 | R26: 21.08883957 | S26: 746.0248128 | T26: 24.60657403 | U26: 561.9643639 | V26: 22.16041415 | W26: 372.3712972 | X26: 21.08640091 | Y26: 751.3833788 | Z26: 21.11775091 | AA26: 809.9082297 | AB26: 21.76262 | AC26: 274.9216603 | AD26: 21.94210384 | AE26: 702.3358882 | AF26: 20.1348101 | AG26: 702.6266755 | AH26: 19.50568548 | AI26: 609.7480726 | AJ26: 21.27523488 | AK26: 533.0864496 | AL26: 16.83275608 | AM26: 171.8932571 | AN26: 11.69763145 | AO26: 189.9001229 | AP26: 17.64673083 | AQ26: 379.4274161 | AR26: 31.06312237 | AS26: 242.0664959 | AT26: 17.33747134 | AU26: 41.13450902 | AV26: 17.69462259 | AW26: 472.4985223 | AX26: 25.26174839 | AY26: 341.603992 | AZ26: 13.98804272 | BA26: 206.9243476 | BB26: 34.43713512 | BC26: 233.7885588 | BD26: 100.289777 | BE26: 1882.868738 | BF26: 81.84261503 | BG26: 1569.479043 | BH26: 4.624827222 | BI26: 93.72870448
A27: CH4 | B27: =IFERROR(IF(Reference!$I$37<=29,INDEX($D27:$BI27,1,Reference!$I$37*2-1),0),$D27) -> 268.1325355 | C27: =IFERROR(IF(Reference!$I$37<=29,INDEX($D27:$BI27,1,Reference!$I$37*2),0),$D27) -> 9.665524965 | D27: 325.2518395 | E27: 5.656187887 | F27: 0.2 | G27: 0.3 | H27: 268.1325355 | I27: 9.665524965 | J27: 209.910885 | K27: 3.946642355 | L27: 332.9121052 | M27: 6.760045892 | N27: 411.6967897 | O27: 5.16469323 | P27: 320.8788282 | Q27: 5.58870688 | R27: 380.5859012 | S27: 2.869606376 | T27: 434.9249559 | U27: 4.123345283 | V27: 374.8875859 | W27: 6.14472147 | X27: 352.4247418 | Y27: 7.659184567 | Z27: 389.6288172 | AA27: 3.072542116 | AB27: 344.7984487 | AC27: 6.216926387 | AD27: 377.9895056 | AE27: 7.954375605 | AF27: 336.6907391 | AG27: 4.05361548 | AH27: 323.4121965 | AI27: 3.413051212 | AJ27: 361.6688634 | AK27: 5.361730844 | AL27: 276.0580963 | AM27: 10.96237146 | AN27: 184.8761426 | AO27: 5.226869203 | AP27: 266.2435859 | AQ27: 9.260541743 | AR27: 445.431592 | AS27: 17.7265581 | AT27: 280.9379958 | AU27: 10.33333974 | AV27: 270.9082771 | AW27: 3.664190899 | AX27: 392.0381657 | AY27: 5.136733693 | AZ27: 100.9496585 | BA27: 2.947428179 | BB27: 535.4750664 | BC27: 3.855475291 | BD27: 392.4411075 | BE27: 10.0627814 | BF27: 259.2076476 | BG27: 9.663491663 | BH27: 58.57765405 | BI27: 4.896801955
A28: N2O | B28: =IFERROR(IF(Reference!$I$37<=29,INDEX($D28:$BI28,1,Reference!$I$37*2-1),0),$D28) -> 1.633593014 | C28: =IFERROR(IF(Reference!$I$37<=29,INDEX($D28:$BI28,1,Reference!$I$37*2),0),$D28) -> 1.335909825 | D28: 0.8748213348 | E28: 2.746892221 | F28: 5 | G28: 4 | H28: 1.633593014 | I28: 1.335909825 | J28: 0.4957603136 | K28: 1.955257163 | L28: 1.111967761 | M28: 2.160832422 | N28: 0.6298625301 | O28: 3.66376876 | P28: 0.2156806365 | Q28: 3.620305019 | R28: 0.3894192617 | S28: 3.700209092 | T28: 1.393357284 | U28: 3.201675151 | V28: 1.53081826 | W28: 1.99704589 | X28: 0.2761992696 | Y28: 4.533696931 | Z28: 0.2477829447 | AA28: 3.995907811 | AB28: 1.676373451 | AC28: 2.053720437 | AD28: 0.5480300336 | AE28: 3.936214014 | AF28: 0.2428270986 | AG28: 3.510787986 | AH28: 0.4465383965 | AI28: 3.223179185 | AJ28: 0.9274207531 | AK28: 3.56741794 | AL28: 1.538341055 | AM28: 2.418777031 | AN28: 0.7736139801 | AO28: 1.399585486 | AP28: 0.7636965282 | AQ28: 2.199840636 | AR28: 2.917386348 | AS28: 1.822208193 | AT28: 1.928203068 | AU28: 0.5040933767 | AV28: 0.491488911 | AW28: 2.950140536 | AX28: 1.909018359 | AY28: 2.110100211 | AZ28: 0.2740122612 | BA28: 0.5510162745 | BB28: 3.104077935 | BC28: 1.168581528 | BD28: 0.5171208794 | BE28: 3.568742794 | BF28: 0.4462855778 | BG28: 2.657952025 | BH28: 0.2978882734 | BI28: 2.284893972
A29: CO2 | B29: =IFERROR(IF(Reference!$I$37<=29,INDEX($D29:$BI29,1,Reference!$I$37*2-1),0),$D29) -> 9071.364257 | C29: =IFERROR(IF(Reference!$I$37<=29,INDEX($D29:$BI29,1,Reference!$I$37*2),0),$D29) -> 93873.61538 | D29: 7815.498822 | E29: 175311.1347 | F29: 50 | G29: 100 | H29: 9071.364257 | I29: 93873.61538 | J29: 4205.227219 | K29: 116999.321 | L29: 7997.561789 | M29: 166486.0132 | N29: 7110.026407 | O29: 247869.7683 | P29: 5327.821211 | Q29: 208994.1892 | R29: 6644.23361 | S29: 240155.972 | T29: 10222.0158 | U29: 221488.7031 | V29: 9899.380521 | W29: 171633.7827 | X29: 7047.683048 | Y29: 229115.5367 | Z29: 6323.369904 | AA29: 254349.4306 | AB29: 10833.84632 | AC29: 143537.8267 | AD29: 7595.983465 | AE29: 230023.0482 | AF29: 6169.086566 | AG29: 218607.6811 | AH29: 6559.116253 | AI29: 198097.8498 | AJ29: 8362.594792 | AK29: 196740.7419 | AL29: 9214.688454 | AM29: 104757.9862 | AN29: 5491.300491 | AO29: 84052.56497 | AP29: 7099.865774 | AQ29: 140477.5386 | AR29: 18186.54949 | AS29: 149446.6391 | AT29: 10515.60411 | AU29: 84442.29403 | AV29: 6346.695335 | AW29: 159057.6588 | AX29: 12659.19132 | AY29: 165024.0754 | AZ29: 8399.470731 | BA29: 71844.96358 | BB29: 19009.60184 | BC29: 198174.6617 | BD29: 33964.7111 | BE29: 297205.0091 | BF29: 28783.50465 | BG29: 210751.7758 | BH29: 3266.111923 | BI29: 26121.38117
A30: CO2 (w/ C in VOC & CO) | B30: =IFERROR(IF(Reference!$I$37<=29,INDEX($D30:$BI30,1,Reference!$I$37*2-1),0),$D30) -> 9178.043734 | C30: =IFERROR(IF(Reference!$I$37<=29,INDEX($D30:$BI30,1,Reference!$I$37*2),0),$D30) -> 94001.33356 | D30: 7908.905659 | E30: 175406.2599 | F30: =F29+F27*Fuel_Specs!$B$92/Fuel_Specs!$B$95+F28*Fuel_Specs!$B$93/Fuel_Specs!$B$95 -> 58.48047619 | G30: =G29+G27*Fuel_Specs!$B$92/Fuel_Specs!$B$95+G28*Fuel_Specs!$B$93/Fuel_Specs!$B$95 -> 107.2207143 | H30: 9178.043734 | I30: 94001.33356 | J30: 4262.672668 | K30: 117068.8345 | L30: 8098.472476 | M30: 166560.9801 | N30: 7209.56017 | O30: 247945.7955 | P30: 5398.637188 | Q30: 209086.9894 | R30: 6731.140758 | S30: 240220.3083 | T30: 10351.09921 | U30: 221584.4678 | V30: 10021.43403 | W30: 171704.855 | X30: 7129.045685 | Y30: 229271.5191 | Z30: 6407.469342 | AA30: 254416.709 | AB30: 10957.57102 | AC30: 143654.8413 | AD30: 7689.116377 | AE30: 230143.8989 | AF30: 6244.172984 | AG30: 218678.9351 | AH30: 6638.378603 | AI30: 198175.5268 | AJ30: 8464.926909 | AK30: 196872.5125 | AL30: 9320.766028 | AM30: 104945.8118 | AN30: 5555.104213 | AO30: 84129.20731 | AP30: 7179.921349 | AQ30: 140575.5179 | AR30: 18373.22502 | AS30: 149653.4448 | AT30: 10635.16833 | AU30: 84528.1972 | AV30: 6418.97113 | AW30: 159154.2783 | AX30: 12799.57738 | AY30: 165132.6763 | AZ30: 8442.995053 | BA30: 72178.65124 | BB30: 19216.6653 | BC30: 198393.6339 | BD30: 34110.79724 | BE30: 297728.9405 | BF30: 28900.85185 | BG30: 211276.1116 | BH30: 3292.558289 | BI30: 26298.87513
A31: GHGs, g/MMBtu | B31: =IFERROR(IF(Reference!$I$37<=29,INDEX($D31:$BI31,1,Reference!$I$37*2-1),0),$D31) -> 16368.16784 | C31: =IFERROR(IF(Reference!$I$37<=29,INDEX($D31:$BI31,1,Reference!$I$37*2),0),$D31) -> 94641.07281 | D31: =D27*25+D28*298+D30 -> 16300.89841 | E31: =E27*25+E28*298+E30 -> 176366.2385 | F31: =F27*Fuel_Specs!$B$85+F28*Fuel_Specs!$B$86+F30 -> 1553.480476 | G31: =G27*Fuel_Specs!$B$85+G28*Fuel_Specs!$B$86+G30 -> 1306.720714 | H31: =H27*Fuel_Specs!$B$85+H28*Fuel_Specs!$B$86+H30 -> 16368.16784 | I31: =I27*Fuel_Specs!$B$85+I28*Fuel_Specs!$B$86+I30 -> 94641.07281 | J31: =J27*Fuel_Specs!$B$85+J28*Fuel_Specs!$B$86+J30 -> 9658.181367 | K31: =K27*Fuel_Specs!$B$85+K28*Fuel_Specs!$B$86+K30 -> 117750.1672 | L31: =L27*Fuel_Specs!$B$85+L28*Fuel_Specs!$B$86+L30 -> 16752.6415 | M31: =M27*Fuel_Specs!$B$85+M28*Fuel_Specs!$B$86+M30 -> 167373.9093 | N31: =N27*Fuel_Specs!$B$85+N28*Fuel_Specs!$B$86+N30 -> 17689.67895 | O31: =O27*Fuel_Specs!$B$85+O28*Fuel_Specs!$B$86+O30 -> 249166.7159 | P31: =P27*Fuel_Specs!$B$85+P28*Fuel_Specs!$B$86+P30 -> 13484.88072 | Q31: =Q27*Fuel_Specs!$B$85+Q28*Fuel_Specs!$B$86+Q30 -> 210305.558 | R31: =R27*Fuel_Specs!$B$85+R28*Fuel_Specs!$B$86+R30 -> 16361.83523 | S31: =S27*Fuel_Specs!$B$85+S28*Fuel_Specs!$B$86+S30 -> 241394.7108 | T31: =T27*Fuel_Specs!$B$85+T28*Fuel_Specs!$B$86+T30 -> 21639.44358 | U31: =U27*Fuel_Specs!$B$85+U28*Fuel_Specs!$B$86+U30 -> 222641.6506 | V31: =V27*Fuel_Specs!$B$85+V28*Fuel_Specs!$B$86+V30 -> 19849.80752 | W31: =W27*Fuel_Specs!$B$85+W28*Fuel_Specs!$B$86+W30 -> 172453.5927 | X31: =X27*Fuel_Specs!$B$85+X28*Fuel_Specs!$B$86+X30 -> 16021.97161 | Y31: =Y27*Fuel_Specs!$B$85+Y28*Fuel_Specs!$B$86+Y30 -> 230814.0404 | Z31: =Z27*Fuel_Specs!$B$85+Z28*Fuel_Specs!$B$86+Z30 -> 16222.02909 | AA31: =AA27*Fuel_Specs!$B$85+AA28*Fuel_Specs!$B$86+AA30 -> 255684.3031 | AB31: =AB27*Fuel_Specs!$B$85+AB28*Fuel_Specs!$B$86+AB30 -> 20077.09153 | AC31: =AC27*Fuel_Specs!$B$85+AC28*Fuel_Specs!$B$86+AC30 -> 144422.2732 | AD31: =AD27*Fuel_Specs!$B$85+AD28*Fuel_Specs!$B$86+AD30 -> 17302.16697 | AE31: =AE27*Fuel_Specs!$B$85+AE28*Fuel_Specs!$B$86+AE30 -> 231515.7501 | AF31: =AF27*Fuel_Specs!$B$85+AF28*Fuel_Specs!$B$86+AF30 -> 14733.80394 | AG31: =AG27*Fuel_Specs!$B$85+AG28*Fuel_Specs!$B$86+AG30 -> 219826.4903 | AH31: =AH27*Fuel_Specs!$B$85+AH28*Fuel_Specs!$B$86+AH30 -> 14856.75196 | AI31: =AI27*Fuel_Specs!$B$85+AI28*Fuel_Specs!$B$86+AI30 -> 199221.3605 | AJ31: =AJ27*Fuel_Specs!$B$85+AJ28*Fuel_Specs!$B$86+AJ30 -> 17783.01988 | AK31: =AK27*Fuel_Specs!$B$85+AK28*Fuel_Specs!$B$86+AK30 -> 198069.6463 | AL31: =AL27*Fuel_Specs!$B$85+AL28*Fuel_Specs!$B$86+AL30 -> 16680.64407 | AM31: =AM27*Fuel_Specs!$B$85+AM28*Fuel_Specs!$B$86+AM30 -> 105940.6666 | AN31: =AN27*Fuel_Specs!$B$85+AN28*Fuel_Specs!$B$86+AN30 -> 10407.54474 | AO31: =AO27*Fuel_Specs!$B$85+AO28*Fuel_Specs!$B$86+AO30 -> 84676.95552 | AP31: =AP27*Fuel_Specs!$B$85+AP28*Fuel_Specs!$B$86+AP30 -> 14063.59256 | AQ31: =AQ27*Fuel_Specs!$B$85+AQ28*Fuel_Specs!$B$86+AQ30 -> 141462.584 | AR31: =AR27*Fuel_Specs!$B$85+AR28*Fuel_Specs!$B$86+AR30 -> 30378.39595 | AS31: =AS27*Fuel_Specs!$B$85+AS28*Fuel_Specs!$B$86+AS30 -> 150639.6268 | AT31: =AT27*Fuel_Specs!$B$85+AT28*Fuel_Specs!$B$86+AT30 -> 18233.22274 | AU31: =AU27*Fuel_Specs!$B$85+AU28*Fuel_Specs!$B$86+AU30 -> 84936.75052 | AV31: =AV27*Fuel_Specs!$B$85+AV28*Fuel_Specs!$B$86+AV30 -> 13338.14175 | AW31: =AW27*Fuel_Specs!$B$85+AW28*Fuel_Specs!$B$86+AW30 -> 160125.025 | AX31: =AX27*Fuel_Specs!$B$85+AX28*Fuel_Specs!$B$86+AX30 -> 23169.419 | AY31: =AY27*Fuel_Specs!$B$85+AY28*Fuel_Specs!$B$86+AY30 -> 165889.9045 | AZ31: =AZ27*Fuel_Specs!$B$85+AZ28*Fuel_Specs!$B$86+AZ30 -> 11048.39217 | BA31: =BA27*Fuel_Specs!$B$85+BA28*Fuel_Specs!$B$86+BA30 -> 72416.5398 | BB31: =BB27*Fuel_Specs!$B$85+BB28*Fuel_Specs!$B$86+BB30 -> 33528.55719 | BC31: =BC27*Fuel_Specs!$B$85+BC28*Fuel_Specs!$B$86+BC30 -> 198838.2581 | BD31: =BD27*Fuel_Specs!$B$85+BD28*Fuel_Specs!$B$86+BD30 -> 44075.92695 | BE31: =BE27*Fuel_Specs!$B$85+BE28*Fuel_Specs!$B$86+BE30 -> 299043.9954 | BF31: =BF27*Fuel_Specs!$B$85+BF28*Fuel_Specs!$B$86+BF30 -> 35514.03614 | BG31: =BG27*Fuel_Specs!$B$85+BG28*Fuel_Specs!$B$86+BG30 -> 212309.7686 | BH31: =BH27*Fuel_Specs!$B$85+BH28*Fuel_Specs!$B$86+BH30 -> 4845.770346 | BI31: =BI27*Fuel_Specs!$B$85+BI28*Fuel_Specs!$B$86+BI30 -> 27102.19359
A32: CI, g/MJ | B32: =B31/Fuel_Specs!$H$130 -> 15.51402975 | C32: =C31/Fuel_Specs!$H$130 -> 89.70242932 | D32: =D31/Fuel_Specs!$H$130 -> 15.45027062 | E32: =E31/Fuel_Specs!$H$130 -> 167.1629407 | F32: =F31/Fuel_Specs!$H$130 -> 1.472415395 | G32: =G31/Fuel_Specs!$H$130 -> 1.238532268 | H32: =H31/1055.056 -> 15.51402754 | I32: 89.70241656 | J32: 9.154188372 | K32: 111.6056088 | L32: =L31/Fuel_Specs!$H$130 -> 15.87844046 | M32: =M31/Fuel_Specs!$H$130 -> 158.6398572 | N32: =N31/Fuel_Specs!$H$130 -> 16.7665806 | O32: =O31/Fuel_Specs!$H$130 -> 236.1644797 | P32: =P31/Fuel_Specs!$H$130 -> 12.78120085 | Q32: =Q31/Fuel_Specs!$H$130 -> 199.3312089 | R32: =R31/Fuel_Specs!$H$130 -> 15.50802759 | S32: =S31/Fuel_Specs!$H$130 -> 228.7980402 | T32: =T31/Fuel_Specs!$H$130 -> 20.51023515 | U32: =U31/Fuel_Specs!$H$130 -> 211.0235687 | V32: =V31/Fuel_Specs!$H$130 -> 18.81398745 | W32: =W31/Fuel_Specs!$H$130 -> 163.454468 | X32: =X31/Fuel_Specs!$H$130 -> 15.18589903 | Y32: =Y31/Fuel_Specs!$H$130 -> 218.7694997 | Z32: =Z31/Fuel_Specs!$H$130 -> 15.37551694 | AA32: =AA31/Fuel_Specs!$H$130 -> 242.3419605 | AB32: =AB31/Fuel_Specs!$H$130 -> 19.02941113 | AC32: =AC31/Fuel_Specs!$H$130 -> 136.8859034 | AD32: =AD31/Fuel_Specs!$H$130 -> 16.39929011 | AE32: =AE31/Fuel_Specs!$H$130 -> 219.4345921 | AF32: =AF31/Fuel_Specs!$H$130 -> 13.96495165 | AG32: =AG31/Fuel_Specs!$H$130 -> 208.3553115 | AH32: =AH31/Fuel_Specs!$H$130 -> 14.08148389 | AI32: =AI31/Fuel_Specs!$H$130 -> 188.8254167 | AJ32: =AJ31/Fuel_Specs!$H$130 -> 16.85505073 | AK32: =AK31/Fuel_Specs!$H$130 -> 187.7338023 | AL32: =AL31/Fuel_Specs!$H$130 -> 15.81020007 | AM32: =AM31/Fuel_Specs!$H$130 -> 100.4123778 | AN32: =AN31/Fuel_Specs!$H$130 -> 9.864449112 | AO32: =AO31/Fuel_Specs!$H$130 -> 80.25826833 | AP32: =AP31/Fuel_Specs!$H$130 -> 13.32971384 | AQ32: =AQ31/Fuel_Specs!$H$130 -> 134.0806593 | AR32: =AR31/Fuel_Specs!$H$130 -> 28.79316384 | AS32: =AS31/Fuel_Specs!$H$130 -> 142.7788176 | AT32: =AT31/Fuel_Specs!$H$130 -> 17.28176071 | AU32: =AU31/Fuel_Specs!$H$130 -> 80.50450649 | AV32: =AV31/Fuel_Specs!$H$130 -> 12.64211914 | AW32: =AW31/Fuel_Specs!$H$130 -> 151.7692404 | AX32: =AX31/Fuel_Specs!$H$130 -> 21.96037205 | AY32: =AY31/Fuel_Specs!$H$130 -> 157.233292 | AZ32: =AZ31/Fuel_Specs!$H$130 -> 10.47185528 | BA32: =BA31/Fuel_Specs!$H$130 -> 68.63763638 | BB32: =BB31/Fuel_Specs!$H$130 -> 31.7789406 | BC32: =BC31/Fuel_Specs!$H$130 -> 188.4623057 | BD32: =BD31/Fuel_Specs!$H$130 -> 41.77591826 | BE32: =BE31/Fuel_Specs!$H$130 -> 283.4390193 | BF32: =BF31/Fuel_Specs!$H$130 -> 33.66081155 | BG32: =BG31/Fuel_Specs!$H$130 -> 201.230834 | BH32: =BH31/Fuel_Specs!$H$130 -> 4.592904106 | BI32: =BI31/Fuel_Specs!$H$130 -> 25.68792314

Sheet LossFactor (hidden)
A1: Loss Factor
A2: Landfill Gas | I2: Corn Ethanol | J2: Ethanol T&D | K2: Ethanol Storage
A3: NG Transmission | B3: LFG Processing | C3: CNG | D3: LNG transpsort | E3: LNG Storage | F3: LFG Processing for CNG | G3: CH4 leakage | H3: LPG Loss
A4: =G4/(Fuel_Specs!$E$53/Fuel_Specs!$B$53*1000000)+1 -> 1.013112787 | B4: 1.001294941 | C4: =I383/(Fuel_Specs!$E$53/Fuel_Specs!$B$53*1000000)+1 -> 1 | D4: 1.00010001 | E4: 1.001606831 | F4: =G4/(Fuel_Specs!$E$53/Fuel_Specs!$B$53*10^6)+1 -> 1.013112787 | G4: =(LossFactor!F24/680*RNG!F86+LossFactor!F25) -> 293.4703011 | H4: 1.00005779 | I4: 1.000838853 | J4: =1+(6.667+13.082)/(Fuel_Specs!E26/Fuel_Specs!C26*1000000) -> 1.000504498 | K4: =1+13.082/(Fuel_Specs!E26/Fuel_Specs!C26*1000000) -> 1.000334186
A6: Animal Waste
A7: NG | B7: CNG | C7: LNG | D7: L-CNG
A8: 1 | B8: 1 | C8: 1.006118666
A10: T&D
A11: =1+(6.667+13.082)/(Fuel_Specs!E26/Fuel_Specs!C26*1000000) -> 1.000504498
A13: Share of Conventional and Shale Gas for North America NG Supply
D14: Conventional Gas | E14: 0.772
D15: Shale Gas | E15: 0.228
A17: CH4 leakage rate for each stage in conventional NG and shale gas pathways (see Burnham et al. 2013 for more details) | H17: vol. % of CH4 over NG throughput | J17: Weighted average | K17: Leakage GHG EF (g/MJ) | M17: Total | N17: NG Leakage during T&D
E18: Unit | F18: Conventional NG | G18: Shale gas | H18: Conventional NG | I18: Shale gas | K18: Conventional NG | L18: Shale gas | M18: Weighted
D19: Recovery - Completion CH4 Venting | E19: g CH4/mmBtu NG | F19: 0.5427772305 | G19: 12.38361645 | H19: 2.62832521e-05 | I19: 0.0005996598506 | J19: 0.0001570131166 | K19: =F19*Fuel_Specs!$B$85/Fuel_Specs!$H$130 -> 0.01286133882 | L19: =G19*Fuel_Specs!$B$85/Fuel_Specs!$H$130 -> 0.2934350927 | M19: =K19*$E$14+L19*$E$15 -> 0.07683215471
D20: Recovery - Workover CH4 Venting | E20: g CH4/mmBtu NG | F20: 0.0076447497 | G20: 2.47672329 | H20: 3.70186648e-07 | I20: 0.0001199319701 | J20: 2.763027328e-05 | K20: =F20*Fuel_Specs!$B$85/Fuel_Specs!$H$130 -> 0.0001811456166 | L20: =G20*Fuel_Specs!$B$85/Fuel_Specs!$H$130 -> 0.05868701855 | M20: =K20*$E$14+L20*$E$15 -> 0.01352048464
D21: Recovery - Liquid Unloading CH4 Venting | E21: g CH4/mmBtu NG | F21: 10.35683898 | G21: 10.35683898 | H21: 0.0005015158973 | I21: 0.0005015158973 | J21: 0.0005015158973 | K21: =F21*Fuel_Specs!$B$85/Fuel_Specs!$H$130 -> 0.245409733 | L21: =G21*Fuel_Specs!$B$85/Fuel_Specs!$H$130 -> 0.245409733 | M21: 0.245409733
D22: Well Equipment - CH4 Venting and Leakage | E22: g CH4/mmBtu NG | F22: 51.34508914 | G22: 51.34508914 | H22: 0.002486316385 | I22: 0.002486316385 | J22: 0.002486316385 | K22: =F22*Fuel_Specs!$B$85/Fuel_Specs!$H$130 -> 1.216643866 | L22: =G22*Fuel_Specs!$B$85/Fuel_Specs!$H$130 -> 1.216643866 | M22: 1.216643866
D23: Processing - CH4 Venting and Leakage | E23: g CH4/mmBtu NG | F23: 26.70974262 | G23: 26.70974262 | H23: 0.001293383103 | I23: 0.001293383103 | J23: 0.001293383103 | K23: =F23*Fuel_Specs!$B$85/Fuel_Specs!$H$130 -> 0.632898785 | L23: =G23*Fuel_Specs!$B$85/Fuel_Specs!$H$130 -> 0.632898785 | M23: 0.632898785
D24: Transmission and Storage - CH4 Venting and Leakage | E24: g CH4/mmBtu NG/680 miles | F24: 81.18863666 | G24: 81.18863666 | H24: 0.003931449746 | I24: 0.003931449746 | J24: 0.003931449746 | K24: =F24*Fuel_Specs!$B$85/Fuel_Specs!$H$130 -> 1.9237995 | L24: =G24*Fuel_Specs!$B$85/Fuel_Specs!$H$130 -> 1.9237995 | M24: 1.9237995 | N24: =M24/680 -> 0.002829116912
D25: Distribution - CH4 Venting and Leakage | E25: g CH4/mmBtu NG | F25: 63.63482228 | G25: 63.63482228 | H25: 0.003081430064 | I25: 0.003081430064 | J25: 0.003081430064 | K25: =F25*Fuel_Specs!$B$85/Fuel_Specs!$H$130 -> 1.507854354 | L25: =G25*Fuel_Specs!$B$85/Fuel_Specs!$H$130 -> 1.507854354 | M25: 1.507854354
E26: Total (weighted average), g/MJ | F26: =SUM(F19:F25)*Fuel_Specs!$B$85*E14/Fuel_Specs!$H$130 -> 4.276608814 | G26: =SUM(G19:G25)*Fuel_Specs!$B$85*E15/Fuel_Specs!$H$130 -> 1.340350064 | K26: =SUM(K19:K25)*E14 -> 4.276608814 | L26: =SUM(L19:L25)*E15 -> 1.340350064 | M26: =K26+L26 -> 5.616958877
H27: 0.01136705215 | I27: 0.01206576095 | J27: 0.01152635776
A28: Assumptions Regarding Boil-Off Effects of Liquefied Natural Gas and Liquid H2
B29: Storage at Production Plant | C29: Transportation from Plant to Bulk Terminal | D29: Bulk Terminal Storage | E29: Distribution from Bulk Terminal to Refueling Station | F29: Refueling Station Storage for Central Plant H2 Pathway | G29: Refueling Station Storage for Station H2 Pathway | H29: Storage at Landfill Gas Plant | I29: Distribution from Landfill Gas Plant to Refueling Station | J29: Refueling Station Storage for CNG from RNG pathway
A30: Boil-Off Rate: % per Day
A31: Liquefied Natural Gas | B31: 0.001 | C31: 0.001 | D31: 0.001 | E31: 0.001 | F31: 0.001 | H31: 0.001 | I31: 0.001 | J31: 0.001
A32: Liquid H2 | B32: 0.003 | C32: 0.003 | D32: 0.003 | E32: 0.003 | F32: 0.003 | G32: 0.003 | H32: 0.003 | I32: 0.003 | J32: 0.003
A33: Duration of Storage or Transit: Days
A34: LNG as a final transportation fuel | B34: 5 | C34: 0 | D34: 5 | E34: 0.1 | F34: 3 | H34: 3 | I34: 0.1 | J34: 3
A35: LNG as an intermediate product from NNA NG | B35: 5 | C35: 10.41666667 | D35: 5 | E35: 0.1 | F35: 3
A36: LNG as an intermediate product from NNA FG | B36: 5 | C36: 12.29166667 | D36: 5 | E36: 0.1 | F36: 3
A37: Liquid H2 from NG | B37: 5 | C37: 0 | D37: 5 | E37: 0.1 | F37: 3 | G37: 3
A38: Recovery Rate for Boil-Off Gas
A39: LNG | B39: 0.8 | C39: 0.8 | D39: 0.8 | E39: 0.8 | F39: 0.8 | H39: 0.8 | I39: 0.8 | J39: 0.8
A40: Liquid H2 | B40: 0.8 | C40: 0.8 | D40: 0.8 | E40: 0.8 | F40: 0.8 | G40: 0.8
A41: GHG EF LNG storage at Plant (w/o recovery), g/MJ | B41: =B31*B34*1000000/Fuel_Specs!$B$31*Fuel_Specs!$E$31/(1-B31*B34)*Fuel_Specs!$B$85/Fuel_Specs!$H$130 -> 2.583197633 | I41: =(LossFactor!I31*LossFactor!I34/(1-LossFactor!I31*LossFactor!I34)*10^6/Fuel_Specs!$B$31*Fuel_Specs!$E$31)*Fuel_Specs!$B$85/Fuel_Specs!$H$130 -> 0.05141077397
A42: GHG EF LNG storage at Plant (w/recovery), g/MJ | B42: =B41*(1-B39) -> 0.5166395265 | I42: =I41*(1-I39) -> 0.01028215479
A43: GHG EF LNG Storage, g/MJ | B43: =(D31*D34/(1-D31*D34)+F31*F34/(1-F31*F34))*1000000/Fuel_Specs!$B$31*Fuel_Specs!$E$31*Fuel_Specs!$B$85/Fuel_Specs!$H$130 -> 4.130007048 | C43: w/o recovery system
A44: GHG EF LNG Storage, g/MJ | B44: =(D31*D34/(1-D31*D34)*(1-D39)+F31*F34/(1-F31*F34)*(1-F39))*10^6/Fuel_Specs!$B$31*Fuel_Specs!$E$31*Fuel_Specs!$B$85/Fuel_Specs!$H$130 -> 0.8260014095 | C44: with recovery system
A45: LNG Boil off, Btu/MMBtu | B45: =B31*B34*1000000/Fuel_Specs!$B$31*Fuel_Specs!$E$31/(1-B31*B34)*(1-$B$39)/(Fuel_Specs!$E$31)*Fuel_Specs!$B$31 -> 1005.025126

Sheet Fuel_Specs (hidden)
A1: Specifications of Fuels, Global Warming Potentials of Greenhouse Gases, and Carbon and Sulfur Ratios of Pollutants
A2: 1) Specifications of Fuels
A3: Fuel | B3: Heating Value | E3: Density | F3: C ratio | G3: S ratio | H3: S ratio
B4: Calculation: LHV | C4: LHV | D4: HHV | F4: (% by wt) | G4: (ppm by wt) | H4: Actual ratio by wt | I4: LHV/HHV | J4: Energy Density
A5: Use LHV or HHV in calculations? | B5: 1 | C5: 1 -- LHV; 2 -- HHV
A6: Liquid Fuels: | B6: Btu/gal | C6: Btu/gal | D6: Btu/gal | E6: grams/gal | J6: MJ/gal
A7: Crude oil | B7: 129670 | C7: 129670 | D7: 138350 | E7: 3205 | F7: 0.853 | G7: 16000 | H7: 0.016 | I7: 0.937260571
A8: Synthetic crude oil (SCO) | B8: 135084.9129 | C8: 135084.9129 | D8: 144475.8427 | E8: 3266 | F8: 0.855620685 | G8: 1800 | H8: 0.0018 | I8: 0.935
A9: Dilbit | B9: 145312.7377 | C9: 145312.7377 | D9: 155414.6927 | E9: 3513 | F9: 0.8344698361 | G9: 38000 | H9: 0.038 | I9: 0.935
A10: Diluent | B10: 128448.5269 | C10: 128448.5269 | D10: 137378.1037 | E10: 2709 | F10: 0.8405908354 | G10: 1600 | H10: 0.0016 | I10: 0.935
A11: Gasoline blendstock | B11: 116090 | C11: 116090 | D11: 124340 | E11: 2819 | F11: 0.863 | G11: 25.5 | H11: 2.55e-05 | I11: 0.9336496703 | J11: 122.4814336
A12: CARBOB | B12: 113300 | C12: 113300 | D12: 121351.7271 | E12: 2767 | F12: 0.859 | J12: 119.5378278
A13: Gasoline | B13: 112193.52 | C13: 112193.52 | D13: 120438.62 | E13: 2835.562 | F13: 0.8277854697 | G13: 22.86665536 | H13: 2.286665536e-05 | I13: 0.9315410622
A14: CA gasoline | B14: 109786.1863 | C14: 109786.1863 | D14: 117852.0061 | E14: 2788.004945 | F14: 0.824672169 | G14: 22.9024935 | H14: 2.29024935e-05 | I14: 0.9315597589 | J14: 115.8305582
A15: U.S. conventional diesel | B15: 128450 | C15: 128450 | D15: 137380 | E15: 3167 | F15: 0.865 | G15: 200 | H15: 0.0002 | I15: 0.9349978163
A16: CA conventional diesel | G16: 120 | H16: 0.00012
A17: Diesel for non-road engines | B17: 128450 | C17: 128450 | D17: 137380 | E17: 3167 | F17: 0.865 | G17: 163 | H17: 0.000163 | I17: 0.9349978163
A18: Low-sulfur diesel | B18: 127460 | C18: 127460 | D18: 133075.1388 | E18: 3142 | F18: 0.865 | G18: 11 | H18: 1.1e-05 | I18: 0.9578047497 | J18: 134.4774186
A19: Petroleum naphtha | B19: 116920 | C19: 116920 | D19: 125080 | E19: 2745 | F19: 0.85 | G19: 1 | H19: 1e-06 | I19: 0.9347617525
A20: Conventional Jet Fuel | B20: 124307.0342 | C20: 124307.0342 | D20: 132948.6944 | E20: 3035.899622 | F20: 0.862 | G20: 700 | H20: 0.0007 | I20: 0.9350000375
A21: ULS Jet Fuel | B21: 123041.2311 | C21: 123041.2311 | D21: 131594.8943 | E21: 2998.045512 | F21: 0.86 | G21: 11 | H21: 1.1e-05 | I21: 0.9350000375
A22: NG-based FT naphtha | B22: 111520 | C22: 111520 | D22: 119740 | E22: 2651 | F22: 0.842 | G22: 0 | H22: 0 | I22: 0.9313512611
A23: Residual oil | B23: 140352.5222 | C23: 140352.5222 | D23: 150110 | E23: 3752 | F23: 0.868 | G23: 5000 | H23: 0.005 | I23: 0.9349978163
A24: Bunker fuel for ocean tanker | B24: 140352.5222 | C24: 140352.5222 | D24: 150110 | E24: 3752 | F24: 0.868 | G24: 27000 | H24: 0.027 | I24: 0.9349978163
A25: Methanol | B25: 57250 | C25: 57250 | D25: 65200 | E25: 3006 | F25: 0.375 | G25: 0 | H25: 0 | I25: 0.8780674847
A26: Ethanol | B26: 76330 | C26: 76330 | D26: 84530 | E26: 2988 | F26: 0.522 | G26: 0 | H26: 0 | I26: 0.9029930202 | J26: 80.53241303
A27: Butanol | B27: 99837 | C27: 99837 | D27: 108458 | E27: 3065 | F27: 0.6486 | G27: 0 | H27: 0 | I27: 0.9205130096
A28: Acetone | B28: 83127 | C28: 83127 | D28: 89511 | E28: 2964 | F28: 0.6198 | G28: 0 | H28: 0 | I28: 0.9286791568
A29: E-Diesel Additives | B29: 116090 | C29: 116090 | D29: 124340 | E29: 2819 | F29: 0.863 | G29: 25.5 | H29: 2.55e-05 | I29: 0.9336496703
A30: Liquefied petroleum gas (LPG) | B30: 84950 | C30: 84950 | D30: 91410 | E30: 1923 | F30: 0.82 | G30: 0 | H30: 0 | I30: 0.929329395
A31: Liquefied natural gas (LNG) | B31: 74720 | C31: 74720 | D31: 84820 | E31: 1621 | F31: 0.75 | G31: 0 | H31: 0 | I31: 0.8809243103 | J31: 78.83377311
A32: Dimethyl ether (DME) | B32: 68930 | C32: 68930 | D32: 75610 | E32: 2518 | F32: 0.522 | G32: 0 | H32: 0 | I32: 0.9116518979
A33: Dimethoxy methane (DMM) | B33: 72200 | C33: 72200 | D33: 79196.8954 | E33: 3255 | F33: 0.474 | G33: 0 | H33: 0 | I33: 0.9116518979
A34: Methyl ester (biodiesel, BD) | B34: 119550 | C34: 119550 | D34: 127960 | E34: 3361 | F34: 0.776 | G34: 0 | H34: 0 | I34: 0.9342763364 | J34: 126.1319269
A35: Fischer-Tropsch diesel (FTD) | B35: 123670 | C35: 123670 | D35: 130030 | E35: 3017 | F35: 0.853 | G35: 0 | H35: 0 | I35: 0.9510882104
A36: Renewable Diesel I (SuperCetane) | B36: 117059 | C36: 117059 | D36: 125293.7653 | E36: 2835 | F36: 0.871 | G36: 0 | H36: 0 | I36: 0.9342763364
A37: Renewable Diesel II (UOP-HDO) | B37: 122887 | C37: 122887 | D37: 130817 | E37: 2948 | F37: 0.871 | G37: 0 | H37: 0 | I37: 0.9393809673 | J37: 129.6526482 | L37: 18907.84068
A38: Renewable Diesel III (PNNL-HTL) | B38: 123542.4264 | C38: 123542.4264 | D38: 133070.137 | E38: 3003.263948 | F38: 0.871 | G38: 0 | H38: 0 | I38: 0.9284008359
A39: Renewable Gasoline | B39: 115983 | C39: 115983 | D39: 124230 | E39: 2830 | F39: 0.84 | G39: 0 | H39: 0 | I39: 0.9336150688 | L39: 18589.65688
A40: SPK (FT Jet Fuel/HRJ) | B40: 119776.6215 | C40: 119776.6215 | D40: 128103.3334 | E40: 2865.556127 | F40: 0.847 | G40: 0 | H40: 0 | I40: 0.9350000375
A41: Liquid hydrogen | B41: 30500 | C41: 30500 | D41: 36020 | E41: 268 | F41: 0 | G41: 0 | H41: 0 | I41: 0.8467518046
A42: Methyl tertiary butyl ether (MTBE) | B42: 93540 | C42: 93540 | D42: 101130 | E42: 2811 | F42: 0.681 | G42: 0 | H42: 0 | I42: 0.9249480866
A43: Ethyl tertiary butyl ether (ETBE) | B43: 96720 | C43: 96720 | D43: 104530 | E43: 2810 | F43: 0.706 | G43: 0 | H43: 0 | I43: 0.9252846073
A44: Tertiary amyl methyl ether (TAME) | B44: 100480 | C44: 100480 | D44: 108570 | E44: 2913 | F44: 0.706 | G44: 0 | H44: 0 | I44: 0.9254858617
A45: Butane | B45: 94970 | C45: 94970 | D45: 103220 | E45: 2213 | F45: 0.828 | G45: 0 | H45: 0 | I45: 0.9200736291
A46: Isobutane | B46: 90060 | C46: 90060 | D46: 98560 | E46: 2118 | F46: 0.828 | G46: 0 | H46: 0 | I46: 0.9137581169
A47: Isobutylene | B47: 95720 | C47: 95720 | D47: 103010 | E47: 2253 | F47: 0.857 | G47: 0 | H47: 0 | I47: 0.9292301718
A48: Propane | B48: 84250 | C48: 84250 | D48: 91420 | E48: 1920 | F48: 0.818 | G48: 0 | H48: 0 | I48: 0.9215707723
A49: Natural gas liquids | B49: 83686.11202 | C49: 83686.11202 | D49: 90050 | G49: 0 | H49: 0 | I49: 0.929329395
A50: n-Hexane | B50: 105124.8 | C50: 105124.8 | D50: 112166.3 | E50: 2478.7 | F50: 0.836251 | G50: 0 | H50: 0 | I50: 0.9372226774
A51: Still gas (in refineries) | B51: 128590 | C51: 128590 | D51: 142860 | G51: 0 | H51: 0 | I51: 0.9001119978
A52: Gaseous Fuels (at 32F and 1atm): | B52: Btu/ft3 | C52: Btu/ft3 | D52: Btu/ft3 | E52: gms/ft3 | I52: LHV/HHV | J52: MJ/unit
A53: Natural gas | B53: 983 | C53: 983 | D53: 1088.593577 | E53: 22 | F53: 0.724 | G53: 6 | H53: 6e-06 | I53: =B53/D53 -> 0.903 | J53: 1.037119901
A54: Pure Methane | B54: 962 | C54: 962 | D54: 1068 | E54: 20.3 | F54: 0.75 | G54: 0 | H54: 0 | I54: 0.9007490637
A55: Gaseous hydrogen | B55: 290 | C55: 290 | D55: 343 | E55: 2.55 | F55: 0 | G55: 0 | H55: 0 | I55: 0.8454810496 | J55: 119.9867437
A56: Carbon Dioxide | E56: 55.97783 | F56: 0.2727272727 | G56: 0 | H56: 0
A57: Still gas (in refineries) | B57: 982 | C57: 982 | D57: 1055 | E57: 20.3 | F57: 0.758 | G57: 6 | H57: 6e-06 | I57: 0.9308056872
A58: Solid Fuels: | B58: Btu/ton | C58: Btu/ton | D58: Btu/ton | I58: LHV/HHV
A59: Coal Mix for Electricity Generation | B59: 19474169.22 | C59: 19474169.22 | D59: 20673610.12 | F59: 0.5857110988 | G59: 10455.98834 | H59: 0.01045598834
A60: Bituminous coal | B60: 22639319.98 | C60: 22639319.98 | D60: 23633492.96 | F60: 0.612 | G60: 15352.09272 | H60: 0.01535209272 | I60: 0.9579337264
A61: Subbituminous coal | B61: 16085444.01 | C61: 16085444.01 | D61: 17449319.67 | F61: 0.537 | G61: 3568.253688 | H61: 0.003568253688 | I61: 0.921837889
A62: Lignite coal | B62: 10805182.82 | C62: 10805182.82 | D62: 12992301.97 | F62: 0.491 | G62: 9064.234716 | H62: 0.009064234716 | I62: 0.8316603821
A63: Synthetic coal | B63: 22639319.98 | C63: 22639319.98 | D63: 23633492.96 | F63: 0.806420498 | G63: 16142.73925 | H63: 0.01614273925 | I63: 0.9579337264
A64: Waste coal | B64: 9945646.34 | C64: 9945646.34 | D64: 11958783.36 | F64: 0.326428585 | G64: 9064.234716 | H64: 0.009064234716 | I64: 0.8316603821
A65: Pet Coke | B65: 26949428.73 | C65: 26949428.73 | D65: 28595925.17 | F65: 0.8667 | G65: 45137.71441 | H65: 0.04513771441 | I65: 0.942421991
A66: Tire Derived Fuel | B66: 26664354.3 | C66: 26664354.3 | D66: 28293433.89 | F66: 0.48798697 | G66: 45137.71441 | H66: 0.04513771441 | I66: 0.942421991
A67: Coking coal | B67: 24599421.97 | C67: 24599421.97 | D67: 25679670 | F67: 0.747 | G67: 11800 | H67: 0.0118 | I67: 0.9579337264
A68: Willow | B68: 15396000 | C68: 15396000 | D68: 16524000 | F68: 0.487 | G68: 500 | H68: 0.0005 | I68: 0.9317356572
A69: Poplar | B69: 15929000 | C69: 15929000 | D69: 17062000 | F69: 0.501 | G69: 200 | H69: 0.0002 | I69: 0.9335951237
A70: Switchgrass | B70: 14447000 | C70: 14447000 | D70: 15583000 | F70: 0.466 | G70: 1100 | H70: 0.0011 | I70: 0.9271000449
A71: Miscanthus | B71: 15342000 | C71: 15342000 | D71: 16377000 | F71: 0.476 | G71: 800 | H71: 0.0008 | I71: 0.936801612
A72: Corn stover | B72: 14716000 | C72: 14716000 | D72: 15774000 | F72: 0.467 | G72: 1000 | H72: 0.001 | I72: 0.9329276024
A73: Forest residue | B73: 17289000 | C73: 17289000 | D73: 17906000 | F73: 0.503 | G73: 400 | H73: 0.0004 | I73: 0.9655422763
A74: Sugarcane straw | B74: 13454048.89 | C74: 13454048.89 | D74: 15774000 | F74: 0.5 | I74: 0.8529256303
A75: Sugarcane bagasse | B75: 12381771.31 | C75: 12381771.31 | D75: 14062678 | F75: 0.463 | I75: 0.8804703707
A76: Bio-char | B76: 18916910.57 | C76: 18916910.57 | D76: 18916910.57 | F76: 0.512 | G76: 0 | H76: 0 | I76: 1
A77: Grain sorghum bagasse | B77: 12781599.34 | C77: 12781599.34 | D77: 14131556.35 | F77: 0.3934 | G77: 0 | H77: 0 | I77: 0.9044721631
A78: Sweet sorghum bagasse | B78: 14409931.25 | C78: 14409931.25 | D78: 15305245.09 | F78: 0.41985 | G78: 0 | H78: 0 | I78: 0.941502809
A79: Forage sorghum bagasse | B79: 14409931.25 | C79: 14409931.25 | D79: 15305245.09 | F79: 0.41985 | G79: 0 | H79: 0 | I79: 0.941502809
A80: Municipal solid waste (defined by EISA) | B80: 11209638.73 | C80: 11209638.73 | D80: 13583444.58 | F80: 0.4916151809 | G80: 1765.225066 | H80: 0.001765225066 | I80: 0.8252427184
A81: Convertible municipal solid waste | B81: 14155275.21 | C81: 14155275.21 | D81: 16144032.89 | F81: 0.5049151028 | G81: 1787.310098 | H81: 0.001787310098 | I81: 0.8768115942
A83: 2) Global Warming Potentials of Greenhouse Gases: relative to CO2
A84: CO2 | B84: 1
A85: CH4 | B85: 25
A86: N2O | B86: 298
A87: VOC | B87: 3.116666667
A88: CO | B88: 1.571428571
A89: NO2 | B89: 0
A91: 3) Carbon and Sulfur Ratios of Pollutants
A92: Carbon ratio of VOC | B92: 0.85
A93: Carbon ratio of CO | B93: 0.4285714286
A94: Carbon ratio of CH4 | B94: 0.75
A95: Carbon ratio of CO2 | B95: 0.2727272727
A96: Sulfur ratio of SO2 | B96: 0.5
A98: 4) Regulated Sulfur Content in Gasoline Blendstock and Conventional Diesel over Time
B101: 25.5 | F101: 200 | J101: 120 | N101: 163
B102: 5-year period | C102: Sulfur Content in Gasoline Blendstock (ppm) | D102: Relative Change (to yr 2010) | F102: 5-year period | G102: Sulfur Content in Conventional Diesel (ppm) | H102: Relative Change (to yr 2010) | J102: 5-year period | K102: Sulfur Content in California Diesel (ppm) | L102: Relative Change (to yr 2010) | N102: 5-year period | O102: Sulfur Content in non-Road Diesel (ppm) | P102: Relative Change (to yr 2010)
B103: 1990 | C103: 500 | D103: 19.60784314 | F103: 1990 | G103: 600 | H103: 3 | J103: 1990 | K103: 350 | L103: 2.916666667 | N103: 1990 | O103: 2283 | P103: 14.00613497
B104: 1995 | C104: 340 | D104: 13.33333333 | F104: 1995 | G104: 350 | H104: 1.75 | J104: 1995 | K104: 200 | L104: 1.666666667 | N104: 1995 | O104: 2283 | P104: 14.00613497
B105: 2000 | C105: 200 | D105: 7.843137255 | F105: 2000 | G105: 200 | H105: 1 | J105: 2000 | K105: 120 | L105: 1 | N105: 2000 | O105: 2283 | P105: 14.00613497
B106: 2005 | C106: 25.5 | D106: 1 | F106: 2005 | G106: 200 | H106: 1 | J106: 2005 | K106: 120 | L106: 1 | N106: 2005 | O106: 2283 | P106: 14.00613497
B107: 2010 | C107: 25.5 | D107: 1 | F107: 2010 | G107: 200 | H107: 1 | J107: 2010 | K107: 120 | L107: 1 | N107: 2010 | O107: 163 | P107: 1
B108: 2015 | C108: 25.5 | D108: 1 | F108: 2015 | G108: 200 | H108: 1 | J108: 2015 | K108: 120 | L108: 1 | N108: 2015 | O108: 11 | P108: 0.06748466258
B109: 2020 | C109: 25.5 | D109: 1 | F109: 2020 | G109: 200 | H109: 1 | J109: 2020 | K109: 120 | L109: 1 | N109: 2020 | O109: 11 | P109: 0.06748466258
A112: 5) Unit Conversion
A113: Mass | B113: 1 g | C113: 1 kg | D113: 1 metric tonne | E113: 1 lb | F113: 1 short ton
A114: g | B114: 1 | C114: 1000 | D114: 1000000 | E114: 453.59237 | F114: 907184.74
A115: kg | B115: 0.001 | C115: 1 | D115: 1000 | E115: 0.45359237 | F115: 907.18474
A116: metric tonne | B116: 1e-06 | C116: 0.001 | D116: 1 | E116: 0.00045359237 | F116: 0.90718474
A117: lb | B117: 0.002204622622 | C117: 2.204622622 | D117: 2204.622622 | E117: 1 | F117: 2000
A118: short ton | B118: 1.102311311e-06 | C118: 0.001102311311 | D118: 1.102311311 | E118: 0.0005 | F118: 1
A120: Volume | B120: 1 m3 | C120: 1 ml | D120: 1 L | E120: 1 gal | F120: 1 ft3
A121: m3 | B121: 1 | C121: 1e-06 | D121: 0.001 | E121: 0.003785411 | F121: 0.028316847
A122: ml | B122: 1000000 | C122: 1 | D122: 1000 | E122: 3785.411 | F122: 28316.847
A123: L | B123: 1000 | C123: 0.001 | D123: 1 | E123: 3.785411 | F123: 28.316847
A124: gal | B124: 264.1721071 | C124: 0.0002641721071 | D124: 0.2641721071 | E124: 1 | F124: 7.480521138
A125: ft3 | B125: 35.31466621 | C125: 3.531466621e-05 | D125: 0.03531466621 | E125: 0.1336805259 | F125: 1
A127: Energy | B127: 1 J | C127: 1kJ | D127: 1 MJ | E127: 1Wh | F127: 1 kWh | G127: 1 BTU | H127: 1 mmBTU
A128: J | B128: 1 | C128: 1000 | D128: 1000000 | E128: 3600 | F128: 3600000 | G128: 1055.05585 | H128: 1055055850
A129: kJ | B129: 0.001 | C129: 1 | D129: 1000 | E129: 3.6 | F129: 3600 | G129: 1.05505585 | H129: 1055055.85
A130: MJ | B130: 1e-06 | C130: 0.001 | D130: 1 | E130: 0.0036 | F130: 3.6 | G130: 0.00105505585 | H130: 1055.05585
A131: Wh | B131: 0.0002777777778 | C131: 0.2777777778 | D131: 277.7777778 | E131: 1 | F131: 1000 | G131: 0.2930710694 | H131: 293071.0694
A132: kWh | B132: 2.777777778e-07 | C132: 0.0002777777778 | D132: 0.2777777778 | E132: 0.001 | F132: 1 | G132: 0.0002930710694 | H132: 293.0710694
A133: BTU | B133: 0.0009478171227 | C133: 0.9478171227 | D133: 947.8171227 | E133: 3.412141642 | F133: 3412.141642 | G133: 1 | H133: 1000000
A134: mmBTU | B134: 9.478171227e-10 | C134: 9.478171227e-07 | D134: 0.0009478171227 | E134: 3.412141642e-06 | F134: 0.003412141642 | G134: 1e-06 | H134: 1
A136: Corn Yield | B136: 56 | C136: Lbs./bushel of corn (wet basis)
A137: Corn Yield | B137: 48 | C137: Lbs./bushel of corn (dry basis)

Sheet EF (hidden)
A1: Emission Factors of Fuel Combustion: in grams per mmBtu of fuel burned, except as noted (based on lower heating values of fuels)
A3: 1) Emission Factors of Fuel Combustion for Stationary Applications (grams per mmBtu of fuel burned)
B4: Natural Gas | J4: Diluent | K4: Residual Oil | P4: Diesel Fuel | U4: Gasoline | W4: Crude | X4: Diesel-like fuel (SCO) | Y4: LPG | AA4: Coal | AE4: Willow | AJ4: Poplar | AS4: Corn Stover | AV4: Forest Residue | BA4: Sugarcane | BC4: Sugarcane Bagasse (grams/mmBtu fuel burned) | BF4: Hydrogen | BG4: Pet Coke | BH4: Biogas | BJ4: Char | BK4: Miscanthus | BP4: Grain Sorghum Bagasse or Lignin | BQ4: Sweet Sorghum Bagasse or Lignin | BR4: Forage Sorghum Bagasse or Lignin | BS4: Lignin in Sorghum Bagasse | BT4: Refinery Still Gas
B5: Utility/ Industrial Boiler (>100 mmBtu/hr input) | C5: Small Industrial Boiler (10-100 mmBtu/hr input) | D5: Large Gas Turbine | E5: CC Gas Turbine | F5: Small Turbine | G5: Stationary Reciprocating Engine | H5: NG Flaring in Oil Field | I5: NG Kiln | J5: Diluent Flaring in Oil Sand Field | K5: Utility Boiler | L5: Industrial Boiler | M5: Commercial Boiler | N5: Stationary Reciprocating Engine | O5: Turbine | P5: Industrial Boiler | Q5: Commercial Boiler | R5: Stationary Reciprocating Engine | S5: Turbine | T5: Farming Tractor | U5: Stationary Reciprocating Engine | V5: Farming Tractor | W5: Industrial Boiler | X5: Heavy Machinery | Y5: Industrial Boiler | Z5: Commercial Boiler | AA5: Utility Boiler | AB5: IGCC Turbine | AC5: Industrial Boiler | AD5: Kiln | AE5: Small Industrial Boiler | AF5: Large Industrial Boiler | AG5: Utility Boiler | AH5: Gasification Turbine | AI5: Gasifier | AJ5: Small Industrial Boiler | AK5: Large Industrial Boiler | AL5: Utility Boiler | AM5: Gasification Turbine | AN5: Gasifier | AO5: Large Industrial Boiler | AP5: Utility Boiler | AQ5: Gasification Turbine | AR5: Gasifier | AS5: Small Industrial Boiler | AT5: Large Industrial Boiler | AU5: Gasifier | AV5: Small Industrial Boiler | AW5: Large Industrial Boiler | AX5: Utility Boiler | AY5: Gasification Turbine | AZ5: Gasifier | BA5: Field Burning (grams/kg dry straw burnt) | BB5: Small Industrial Boiler (grams/mmBtu fuel burned) | BC5: Small Industrial Boiler | BD5: Large Industrial Boiler | BF5: Boiler | BG5: Industrial Boiler | BH5: Stationary Reciprocating Engine | BI5: RNG Flaring | BJ5: Boiler | BK5: Small Industrial Boiler | BL5: Large Industrial Boiler | BM5: Utility Boiler | BN5: Gasification Turbine | BO5: Gasifier | BP5: Utility Boiler | BQ5: Utility Boiler | BR5: Utility Boiler | BS5: Utility Boiler | BT5: Industrial Boiler
A6: VOC | B6: 2.54 | C6: 2.54 | D6: 1.056 | E6: 0.267 | F6: 1.056 | G6: 133.316 | H6: 2.5 | I6: 100 | J6: 2.5 | K6: 2.089 | L6: 0.905 | M6: 3.651 | N6: 2.027 | O6: 0.258 | P6: 0.8 | Q6: 1.201 | R6: 2.027 | S6: 0.258 | T6: 80.83 | U6: 598.35 | V6: 309.35 | W6: 0.8199999928 | X6: 16.78505255 | Y6: 4.272 | Z6: 4.272 | AA6: 1.495 | AB6: 0.122 | AC6: 1.251 | AD6: 10 | AE6: 7.986 | AF6: 7.986 | AG6: 7.986 | AH6: 1.2543962 | AI6: 2.417000055 | AJ6: 7.986 | AK6: 7.986 | AL6: 7.986 | AM6: 1.2543962 | AN6: 2.417000055 | AO6: 7.986 | AP6: 7.986 | AQ6: 1.2543962 | AR6: 2.417000055 | AS6: 7.986 | AT6: 7.986 | AU6: 2.417000055 | AV6: 7.986 | AW6: 7.986 | AX6: 7.986 | AY6: 1.254 | AZ6: 2.417000055 | BA6: 7 | BB6: 7.986 | BC6: 7.986 | BD6: 0 | BF6: 0 | BG6: 1.251 | BH6: 62.701 | BI6: 23.666 | BJ6: 1.495 | BK6: 7.986 | BL6: 7.986 | BM6: 7.986 | BN6: 1.254 | BO6: 2.417000055 | BP6: 7.986 | BQ6: 7.986 | BR6: 7.986 | BS6: 7.986 | BT6: 2.54
A7: CO | B7: 22.21 | C7: 24.97 | D7: 41.286 | E7: 14.533 | F7: 41.286 | G7: 705.993 | H7: 26 | I7: 50 | J7: 26 | K7: 16.209 | L7: 36.017 | M7: 16.153 | N7: 657.005 | O7: 1.56 | P7: 20.867 | Q7: 25.115 | R7: 657.005 | S7: 1.56 | T7: 443.46 | U7: 1520.438 | V7: 9030.2 | W7: 23.73999977 | X7: 69.36831452 | Y7: 3.531 | Z7: 3.531 | AA7: 12.417 | AB7: 2.235 | AC7: 145.765 | AD7: 100 | AE7: 281.866 | AF7: 281.866 | AG7: 281.866 | AH7: 10.48065662 | AI7: 28.8220005 | AJ7: 281.866 | AK7: 281.866 | AL7: 281.866 | AM7: 10.48065662 | AN7: 28.8220005 | AO7: 281.866 | AP7: 281.866 | AQ7: 10.48065662 | AR7: 28.8220005 | AS7: 281.866 | AT7: 281.866 | AU7: 28.8220005 | AV7: 281.866 | AW7: 281.866 | AX7: 281.866 | AY7: 10.481 | AZ7: 28.8220005 | BA7: 92 | BB7: 281.866 | BC7: 281.866 | BD7: 0 | BF7: 0 | BG7: 145.765 | BH7: 273.497 | BI7: 41.469 | BJ7: 12.417 | BK7: 281.866 | BL7: 281.866 | BM7: 281.866 | BN7: 10.481 | BO7: 28.8220005 | BP7: 281.866 | BQ7: 281.866 | BR7: 281.866 | BS7: 281.866 | BT7: 22.21
A8: NOx | B8: 36.4 | C8: 41.05 | D8: 31.969 | E8: 17.425 | F8: 31.969 | G8: 832.952 | H8: 48.90000153 | I8: 100 | J8: 48.90000153 | K8: 433.518 | L8: 137.081 | M8: 177.688 | N8: 2076.988 | O8: 256.412 | P8: 53.86 | Q8: 66.543 | R8: 2076.988 | S8: 256.412 | T8: 716.36 | U8: 98.588 | V8: 483.5 | W8: 181.6000061 | X8: 196.0566757 | Y8: 69.413 | Z8: 69.413 | AA8: 116.035 | AB8: 11.902 | AC8: 223.842 | AD8: 40 | AE8: 103.351 | AF8: 103.351 | AG8: 103.351 | AH8: 9.167643547 | AI8: 30 | AJ8: 103.351 | AK8: 103.351 | AL8: 103.351 | AM8: 9.167643547 | AN8: 30 | AO8: 103.351 | AP8: 103.351 | AQ8: 9.167643547 | AR8: 30 | AS8: 103.351 | AT8: 103.351 | AU8: 30 | AV8: 103.351 | AW8: 103.351 | AX8: 103.351 | AY8: 9.168 | AZ8: 30 | BA8: 2.5 | BB8: 103.351 | BC8: 76.411 | BD8: 0 | BF8: 60 | BG8: 223.842 | BH8: 20.137 | BI8: 16.204 | BJ8: 116.035 | BK8: 103.351 | BL8: 103.351 | BM8: 103.351 | BN8: 9.168 | BO8: 30 | BP8: 103.351 | BQ8: 103.351 | BR8: 103.351 | BS8: 103.351 | BT8: 36.4
A9: PM10 | B9: 3.507 | C9: 3.507 | D9: 3.575 | E9: 0.133 | F9: 3.575 | G9: 7.197 | H9: 3.700000048 | I9: 90 | J9: 3.700000048 | K9: 17.379 | L9: 35.345 | M9: 35.345 | N9: 54.608 | O9: 25.944 | P9: 8.122 | Q9: 8.404 | R9: 54.608 | S9: 25.944 | T9: 72.5 | U9: 52.558 | V9: 7.65 | W9: 29.71199989 | X9: 1.559673025 | Y9: 3.738 | Z9: 3.738 | AA9: 28.841 | AB9: 251.841 | AC9: 31.931 | AD9: 20 | AE9: 89.046 | AF9: 36.619 | AG9: 36.619 | AH9: 5.556858063 | AI9: 2.960000038 | AJ9: 89.046 | AK9: 36.619 | AL9: 36.619 | AM9: 5.556858063 | AN9: 2.960000038 | AO9: 36.619 | AP9: 36.619 | AQ9: 5.556858063 | AR9: 2.960000038 | AS9: 89.046 | AT9: 36.619 | AU9: 2.960000038 | AV9: 89.046 | AW9: 36.619 | AX9: 36.619 | AY9: 5.557 | AZ9: 2.960000038 | BA9: 7.8 | BB9: 158.315 | BC9: 86.599 | BD9: 0 | BF9: 0 | BG9: 31.931 | BH9: 8.496 | BI9: 5.041 | BJ9: 28.841 | BK9: 89.046 | BL9: 36.619 | BM9: 36.619 | BN9: 5.557 | BO9: 2.960000038 | BP9: 36.619 | BQ9: 36.619 | BR9: 36.619 | BS9: 36.619 | BT9: 3.507
A10: PM2.5 | B10: 3.507 | C10: 3.507 | D10: 3.575 | E10: 0.133 | F10: 3.575 | G10: 7.197 | H10: 3.700000048 | I10: 90 | J10: 3.700000048 | K10: 13.492 | L10: 16.173 | M10: 16.173 | N10: 54.043 | O10: 6.574 | P10: 5.473 | Q10: 7.522 | R10: 54.043 | S10: 6.574 | T10: 70.325 | U10: 52.558 | V10: 7.421 | W10: 19.31279945 | X10: 1.514285714 | Y10: 3.738 | Z10: 3.738 | AA10: 20.278 | AB10: 73.411 | AC10: 24.485 | AD10: 20 | AE10: 60.038 | AF10: 32.837 | AG10: 32.837 | AH10: 2.778429031 | AI10: 2.960000038 | AJ10: 60.038 | AK10: 32.837 | AL10: 32.837 | AM10: 2.778429031 | AN10: 2.960000038 | AO10: 32.837 | AP10: 32.837 | AQ10: 2.778429031 | AR10: 2.960000038 | AS10: 60.038 | AT10: 32.837 | AU10: 2.960000038 | AV10: 60.038 | AW10: 32.837 | AX10: 32.837 | AY10: 2.778 | AZ10: 2.960000038 | BA10: 3.9 | BB10: 32.837 | BC10: 43.3 | BD10: 0 | BF10: 0 | BG10: 24.485 | BH10: 8.496 | BI10: 5.041 | BJ10: 20.278 | BK10: 60.038 | BL10: 32.837 | BM10: 32.837 | BN10: 2.778 | BO10: 2.960000038 | BP10: 32.837 | BQ10: 32.837 | BR10: 32.837 | BS10: 32.837 | BT10: 3.507
A11: SOx | B11: 0.28 | C11: 0.28 | D11: 1.593 | E11: 0.608 | F11: 1.593 | G11: 0.295 | H11: 0 | I11: 30 | J11: 67.48851238 | K11: 739.297 | L11: 683.325 | M11: 667.785 | N11: 267.3268667 | O11: 267.3268667 | P11: 260.783 | Q11: 254.251 | R11: 107.347 | S11: 81.321 | T11: 7.9 | U11: 44.149 | V11: 1.38 | W11: 395.4649963 | X11: 87.0385874 | Y11: 8.174 | Z11: 8.174 | AA11: 325.406 | AB11: 4.11 | AC11: 544.401 | AD11: 20 | AE11: 11.744 | AF11: 11.744 | AG11: 11.744 | AH11: 0 | AI11: 58.92340478 | AJ11: 11.744 | AK11: 11.744 | AL11: 11.744 | AM11: 0 | AN11: 22.78070789 | AO11: 11.744 | AP11: 11.744 | AQ11: 0 | AR11: 138.1467729 | AS11: 11.744 | AT11: 11.744 | AU11: 123.2922995 | AV11: 11.744 | AW11: 11.744 | AX11: 11.744 | AY11: 0 | AZ11: 41.97743027 | BA11: 0.4 | BB11: 11.744 | BC11: 41.977 | BD11: 0 | BE11: 0 | BF11: 0 | BG11: 544.401 | BH11: 0.2685656155 | BI11: 0.2685656155 | BJ11: 0 | BK11: 11.744 | BL11: 11.744 | BM11: 11.744 | BN11: 0 | BO11: 94.60928067 | BP11: 11.744 | BQ11: 11.744 | BR11: 11.744 | BS11: 0 | BT11: 0.2480651731
A12: CH4 | B12: 1.06 | C12: 1.06 | D12: 1.056 | E12: 1.142 | F12: 1.056 | G12: 392.354 | H12: 49 | I12: 2.85 | J12: 49 | K12: 3.182 | L12: 3.231 | M12: 1.535 | N12: 4.221 | O12: 3.024 | P12: 0.198 | Q12: 0.763 | R12: 4.221 | S12: 3.024 | T12: 0.63 | U12: 3 | V12: 5.193 | W12: 0.3600000143 | X12: 10.02302826 | Y12: 1.068 | Z12: 1.068 | AA12: 1.058 | AB12: 1.05 | AC12: 1.246 | AD12: 0 | AE12: 9.865 | AF12: 9.865 | AG12: 9.865 | AH12: 3.834000111 | AI12: 1.100000024 | AJ12: 9.865 | AK12: 9.865 | AL12: 9.865 | AM12: 3.834000111 | AN12: 1.100000024 | AO12: 9.865 | AP12: 9.865 | AQ12: 3.834000111 | AR12: 1.100000024 | AS12: 9.865 | AT12: 9.865 | AU12: 1.100000024 | AV12: 9.865 | AW12: 9.865 | AX12: 9.865 | AY12: 3.834 | AZ12: 1.100000024 | BA12: 2.7 | BB12: 9.865 | BC12: 31.65 | BD12: 0 | BF12: 0 | BG12: 1.246 | BH12: 445.958 | BI12: 31.587 | BJ12: 1.058 | BK12: 9.865 | BL12: 9.865 | BM12: 9.865 | BN12: 3.834 | BO12: 1.100000024 | BP12: 9.865 | BQ12: 9.865 | BR12: 9.865 | BS12: 9.865 | BT12: 1.06
A13: N2O | B13: 0.75 | C13: 0.35 | D13: 0.102 | E13: 0.119 | F13: 0.102 | G13: 0.111 | H13: 1.100000024 | I13: 0 | J13: 1.100000024 | K13: 0.638 | L13: 1.712 | M13: 1.712 | N13: 0.6 | O13: 0.603 | P13: 0.918 | Q13: 0.918 | R13: 0.6 | S13: 0.603 | T13: 0.92 | U13: 0.6 | V13: 1.104 | W13: 2 | X13: 1.101673803 | Y13: 4.806 | Z13: 4.806 | AA13: 1.586 | AB13: 1.581 | AC13: 0.857 | AD13: 0 | AE13: 6.107 | AF13: 6.107 | AG13: 6.107 | AH13: 11 | AI13: 1.100000024 | AJ13: 6.107 | AK13: 6.107 | AL13: 6.107 | AM13: 11 | AN13: 1.100000024 | AO13: 6.107 | AP13: 6.107 | AQ13: 11 | AR13: 1.100000024 | AS13: 6.107 | AT13: 6.107 | AU13: 1.100000024 | AV13: 6.107 | AW13: 6.107 | AX13: 6.107 | AY13: 11 | AZ13: 1.100000024 | BA13: 0.07 | BB13: 6.107 | BC13: 4.22 | BD13: 0 | BF13: 0 | BG13: 0.857 | BH13: 0.867 | BI13: 1.1 | BJ13: 1.586 | BK13: 6.107 | BL13: 6.107 | BM13: 6.107 | BN13: 11 | BO13: 94.60928067 | BP13: 6.107 | BQ13: 6.107 | BR13: 6.107 | BS13: 6.107 | BT13: 0.75
A14: CO2 | B14: 59366.9495 | C14: 59362.61236 | D14: 59341.60907 | E14: 59385.87204 | F14: 59341.60907 | G14: 56808.78966 | H14: 59229.28346 | I14: 59014.60667 | J14: 64819.98401 | K14: 85040.49829 | L14: 85012.92681 | M14: 85040.2473 | N14: 84030.86913 | O14: 85069.65926 | P14: 78163.22398 | Q14: 78153.74501 | R14: 77148.69115 | S14: 78187.48128 | T14: 77248.53443 | U14: 72576.77196 | V14: 61670.4033 | W14: 77264.39784 | X14: 75662.24309 | Y14: 68039.6478 | Z14: 68039.6478 | AA14: 100017.0645 | AB14: 100037.366 | AC14: 99807.76115 | AD14: 99855.83637 | AE14: 104722.6091 | AF14: 104722.6091 | AG14: 104722.6091 | AH14: 105186.6372 | AI14: 105161.7101 | AJ14: 104125.4503 | AK14: 104125.4503 | AL14: 104125.4503 | AM14: 104589.4784 | AN14: 104564.5513 | AO14: 106799.0429 | AP14: 106799.0429 | AQ14: 107263.071 | AR14: 105161.7101 | AS14: 105063.8064 | AT14: 105063.8064 | AU14: 105502.9074 | AV14: 96280.51664 | AW14: 96280.51664 | AX14: 96280.51664 | AY14: 96744.54543 | AZ14: 96719.61768 | BA14: 1659.520238 | BB14: 123123.7485 | BC14: 123829.3869 | BD14: 0 | BF14: 0 | BG14: 106739.6263 | BH14: 57561.09865 | BI14: 59186.89341 | BJ14: 90002.84957 | BK14: 102708.0063 | BL14: 102708.0063 | BM14: 102708.0063 | BN14: 103172.0351 | BO14: 103147.1073 | BP14: 101885.3315 | BQ14: 96421.92721 | BR14: 96421.92721 | BS14: 144676.9381 | BT14: 57408.91761
A15: GHG, g/MMBtu | B15: =B6*Fuel_Specs!$B$87+B7*Fuel_Specs!$B$88+B12*Fuel_Specs!$B$85+B13*Fuel_Specs!$B$86+B14 -> 59659.76727 | C15: =C6*Fuel_Specs!$B$87+C7*Fuel_Specs!$B$88+C12*Fuel_Specs!$B$85+C13*Fuel_Specs!$B$86+C14 -> 59540.56727 | D15: =D6*Fuel_Specs!$B$87+D7*Fuel_Specs!$B$88+D12*Fuel_Specs!$B$85+D13*Fuel_Specs!$B$86+D14 -> 59466.57427 | E15: =E6*Fuel_Specs!$B$87+E7*Fuel_Specs!$B$88+E12*Fuel_Specs!$B$85+E13*Fuel_Specs!$B$86+E14 -> 59473.55377 | F15: =F6*Fuel_Specs!$B$87+F7*Fuel_Specs!$B$88+F12*Fuel_Specs!$B$85+F13*Fuel_Specs!$B$86+F14 -> 59466.57427 | G15: =G6*Fuel_Specs!$B$87+G7*Fuel_Specs!$B$88+G12*Fuel_Specs!$B$85+G13*Fuel_Specs!$B$86+G14 -> 68175.63677 | H15: =H6*Fuel_Specs!$B$87+H7*Fuel_Specs!$B$88+H12*Fuel_Specs!$B$85+H13*Fuel_Specs!$B$86+H14 -> 60830.73227 | I15: =I6*Fuel_Specs!$B$87+I7*Fuel_Specs!$B$88+I12*Fuel_Specs!$B$85+I13*Fuel_Specs!$B$86+I14 -> 59476.09477 | J15: =J6*Fuel_Specs!$B$87+J7*Fuel_Specs!$B$88+J12*Fuel_Specs!$B$85+J13*Fuel_Specs!$B$86+J14 -> 66421.43283 | K15: =K6*Fuel_Specs!$B$87+K7*Fuel_Specs!$B$88+K12*Fuel_Specs!$B$85+K13*Fuel_Specs!$B$86+K14 -> 85342.15429 | L15: =L6*Fuel_Specs!$B$87+L7*Fuel_Specs!$B$88+L12*Fuel_Specs!$B$85+L13*Fuel_Specs!$B$86+L14 -> 85663.29654 | M15: =M6*Fuel_Specs!$B$87+M7*Fuel_Specs!$B$88+M12*Fuel_Specs!$B$85+M13*Fuel_Specs!$B$86+M14 -> 85625.56054 | N15: =N6*Fuel_Specs!$B$87+N7*Fuel_Specs!$B$88+N12*Fuel_Specs!$B$85+N13*Fuel_Specs!$B$86+N14 -> 85353.94804 | O15: =O6*Fuel_Specs!$B$87+O7*Fuel_Specs!$B$88+O12*Fuel_Specs!$B$85+O13*Fuel_Specs!$B$86+O14 -> 85328.20879 | P15: =P6*Fuel_Specs!$B$87+P7*Fuel_Specs!$B$88+P12*Fuel_Specs!$B$85+P13*Fuel_Specs!$B$86+P14 -> 78477.02231 | Q15: =Q6*Fuel_Specs!$B$87+Q7*Fuel_Specs!$B$88+Q12*Fuel_Specs!$B$85+Q13*Fuel_Specs!$B$86+Q14 -> 78489.59356 | R15: =R6*Fuel_Specs!$B$87+R7*Fuel_Specs!$B$88+R12*Fuel_Specs!$B$85+R13*Fuel_Specs!$B$86+R14 -> 78471.77006 | S15: =S6*Fuel_Specs!$B$87+S7*Fuel_Specs!$B$88+S12*Fuel_Specs!$B$85+S13*Fuel_Specs!$B$86+S14 -> 78446.03081 | T15: =T6*Fuel_Specs!$B$87+T7*Fuel_Specs!$B$88+T12*Fuel_Specs!$B$85+T13*Fuel_Specs!$B$86+T14 -> 78487.23031 | U15: =U6*Fuel_Specs!$B$87+U7*Fuel_Specs!$B$88+U12*Fuel_Specs!$B$85+U13*Fuel_Specs!$B$86+U14 -> 77084.68917 | V15: =V6*Fuel_Specs!$B$87+V7*Fuel_Specs!$B$88+V12*Fuel_Specs!$B$85+V13*Fuel_Specs!$B$86+V14 -> 77283.67542 | W15: =W6*Fuel_Specs!$B$87+W7*Fuel_Specs!$B$88+W12*Fuel_Specs!$B$85+W13*Fuel_Specs!$B$86+W14 -> 77909.25922 | X15: =X6*Fuel_Specs!$B$87+X7*Fuel_Specs!$B$88+X12*Fuel_Specs!$B$85+X13*Fuel_Specs!$B$86+X14 -> 76402.43835 | Y15: =Y6*Fuel_Specs!$B$87+Y7*Fuel_Specs!$B$88+Y12*Fuel_Specs!$B$85+Y13*Fuel_Specs!$B$86+Y14 -> 69517.39891 | Z15: =Z6*Fuel_Specs!$B$87+Z7*Fuel_Specs!$B$88+Z12*Fuel_Specs!$B$85+Z13*Fuel_Specs!$B$86+Z14 -> 69517.39891 | AA15: =AA6*Fuel_Specs!$B$87+AA7*Fuel_Specs!$B$88+AA12*Fuel_Specs!$B$85+AA13*Fuel_Specs!$B$86+AA14 -> 100540.3144 | AB15: =AB6*Fuel_Specs!$B$87+AB7*Fuel_Specs!$B$88+AB12*Fuel_Specs!$B$85+AB13*Fuel_Specs!$B$86+AB14 -> 100538.6464 | AC15: =AC6*Fuel_Specs!$B$87+AC7*Fuel_Specs!$B$88+AC12*Fuel_Specs!$B$85+AC13*Fuel_Specs!$B$86+AC14 -> 100327.2554 | AD15: =AD6*Fuel_Specs!$B$87+AD7*Fuel_Specs!$B$88+AD12*Fuel_Specs!$B$85+AD13*Fuel_Specs!$B$86+AD14 -> 100044.1459 | AE15: =AE6*Fuel_Specs!$B$87+AE7*Fuel_Specs!$B$88+AE12*Fuel_Specs!$B$85+AE13*Fuel_Specs!$B$86+AE14 -> 107256.9421 | AF15: =AF6*Fuel_Specs!$B$87+AF7*Fuel_Specs!$B$88+AF12*Fuel_Specs!$B$85+AF13*Fuel_Specs!$B$86+AF14 -> 107256.9421 | AG15: =AG6*Fuel_Specs!$B$87+AG7*Fuel_Specs!$B$88+AG12*Fuel_Specs!$B$85+AG13*Fuel_Specs!$B$86+AG14 -> 107256.9421 | AH15: =AH6*Fuel_Specs!$B$87+AH7*Fuel_Specs!$B$88+AH12*Fuel_Specs!$B$85+AH13*Fuel_Specs!$B$86+AH14 -> 108580.8663 | AI15: =AI6*Fuel_Specs!$B$87+AI7*Fuel_Specs!$B$88+AI12*Fuel_Specs!$B$85+AI13*Fuel_Specs!$B$86+AI14 -> 105569.8348 | AJ15: =AJ6*Fuel_Specs!$B$87+AJ7*Fuel_Specs!$B$88+AJ12*Fuel_Specs!$B$85+AJ13*Fuel_Specs!$B$86+AJ14 -> 106659.7832 | AK15: =AK6*Fuel_Specs!$B$87+AK7*Fuel_Specs!$B$88+AK12*Fuel_Specs!$B$85+AK13*Fuel_Specs!$B$86+AK14 -> 106659.7832 | AL15: =AL6*Fuel_Specs!$B$87+AL7*Fuel_Specs!$B$88+AL12*Fuel_Specs!$B$85+AL13*Fuel_Specs!$B$86+AL14 -> 106659.7832 | AM15: =AM6*Fuel_Specs!$B$87+AM7*Fuel_Specs!$B$88+AM12*Fuel_Specs!$B$85+AM13*Fuel_Specs!$B$86+AM14 -> 107983.7075 | AN15: =AN6*Fuel_Specs!$B$87+AN7*Fuel_Specs!$B$88+AN12*Fuel_Specs!$B$85+AN13*Fuel_Specs!$B$86+AN14 -> 104972.676 | AO15: =AO6*Fuel_Specs!$B$87+AO7*Fuel_Specs!$B$88+AO12*Fuel_Specs!$B$85+AO13*Fuel_Specs!$B$86+AO14 -> 109333.3759 | AP15: =AP6*Fuel_Specs!$B$87+AP7*Fuel_Specs!$B$88+AP12*Fuel_Specs!$B$85+AP13*Fuel_Specs!$B$86+AP14 -> 109333.3759 | AQ15: =AQ6*Fuel_Specs!$B$87+AQ7*Fuel_Specs!$B$88+AQ12*Fuel_Specs!$B$85+AQ13*Fuel_Specs!$B$86+AQ14 -> 110657.3001 | AR15: =AR6*Fuel_Specs!$B$87+AR7*Fuel_Specs!$B$88+AR12*Fuel_Specs!$B$85+AR13*Fuel_Specs!$B$86+AR14 -> 105569.8348 | AS15: =AS6*Fuel_Specs!$B$87+AS7*Fuel_Specs!$B$88+AS12*Fuel_Specs!$B$85+AS13*Fuel_Specs!$B$86+AS14 -> 107598.1394 | AT15: =AT6*Fuel_Specs!$B$87+AT7*Fuel_Specs!$B$88+AT12*Fuel_Specs!$B$85+AT13*Fuel_Specs!$B$86+AT14 -> 107598.1394 | AU15: =AU6*Fuel_Specs!$B$87+AU7*Fuel_Specs!$B$88+AU12*Fuel_Specs!$B$85+AU13*Fuel_Specs!$B$86+AU14 -> 105911.0321 | AV15: =AV6*Fuel_Specs!$B$87+AV7*Fuel_Specs!$B$88+AV12*Fuel_Specs!$B$85+AV13*Fuel_Specs!$B$86+AV14 -> 98814.84963 | AW15: =AW6*Fuel_Specs!$B$87+AW7*Fuel_Specs!$B$88+AW12*Fuel_Specs!$B$85+AW13*Fuel_Specs!$B$86+AW14 -> 98814.84963 | AX15: =AX6*Fuel_Specs!$B$87+AX7*Fuel_Specs!$B$88+AX12*Fuel_Specs!$B$85+AX13*Fuel_Specs!$B$86+AX14 -> 98814.84963 | AY15: =AY6*Fuel_Specs!$B$87+AY7*Fuel_Specs!$B$88+AY12*Fuel_Specs!$B$85+AY13*Fuel_Specs!$B$86+AY14 -> 100138.7739 | AZ15: =AZ6*Fuel_Specs!$B$87+AZ7*Fuel_Specs!$B$88+AZ12*Fuel_Specs!$B$85+AZ13*Fuel_Specs!$B$86+AZ14 -> 97127.74238 | BA15: =BA6*Fuel_Specs!$B$87+BA7*Fuel_Specs!$B$88+BA12*Fuel_Specs!$B$85+BA13*Fuel_Specs!$B$86+BA14 -> 1914.268333 | BB15: =BB6*Fuel_Specs!$B$87+BB7*Fuel_Specs!$B$88+BB12*Fuel_Specs!$B$85+BB13*Fuel_Specs!$B$86+BB14 -> 125658.0815 | BC15: =BC6*Fuel_Specs!$B$87+BC7*Fuel_Specs!$B$88+BC12*Fuel_Specs!$B$85+BC13*Fuel_Specs!$B$86+BC14 -> 126346.0189 | BD15: =BD6*Fuel_Specs!$B$87+BD7*Fuel_Specs!$B$88+BD12*Fuel_Specs!$B$85+BD13*Fuel_Specs!$B$86+BD14 -> 0 | BE15: =BE6*Fuel_Specs!$B$87+BE7*Fuel_Specs!$B$88+BE12*Fuel_Specs!$B$85+BE13*Fuel_Specs!$B$86+BE14 -> 0 | BF15: =BF6*Fuel_Specs!$B$87+BF7*Fuel_Specs!$B$88+BF12*Fuel_Specs!$B$85+BF13*Fuel_Specs!$B$86+BF14 -> 0 | BG15: =BG6*Fuel_Specs!$B$87+BG7*Fuel_Specs!$B$88+BG12*Fuel_Specs!$B$85+BG13*Fuel_Specs!$B$86+BG14 -> 107259.1205 | BH15: =BH6*Fuel_Specs!$B$87+BH7*Fuel_Specs!$B$88+BH12*Fuel_Specs!$B$85+BH13*Fuel_Specs!$B$86+BH14 -> 69593.61377 | BI15: =BI6*Fuel_Specs!$B$87+BI7*Fuel_Specs!$B$88+BI12*Fuel_Specs!$B$85+BI13*Fuel_Specs!$B$86+BI14 -> 60443.29302 | BJ15: =BJ6*Fuel_Specs!$B$87+BJ7*Fuel_Specs!$B$88+BJ12*Fuel_Specs!$B$85+BJ13*Fuel_Specs!$B$86+BJ14 -> 90526.09942 | BK15: =BK6*Fuel_Specs!$B$87+BK7*Fuel_Specs!$B$88+BK12*Fuel_Specs!$B$85+BK13*Fuel_Specs!$B$86+BK14 -> 105242.3392 | BL15: =BL6*Fuel_Specs!$B$87+BL7*Fuel_Specs!$B$88+BL12*Fuel_Specs!$B$85+BL13*Fuel_Specs!$B$86+BL14 -> 105242.3392 | BM15: =BM6*Fuel_Specs!$B$87+BM7*Fuel_Specs!$B$88+BM12*Fuel_Specs!$B$85+BM13*Fuel_Specs!$B$86+BM14 -> 105242.3392 | BN15: =BN6*Fuel_Specs!$B$87+BN7*Fuel_Specs!$B$88+BN12*Fuel_Specs!$B$85+BN13*Fuel_Specs!$B$86+BN14 -> 106566.2635 | BO15: =BO6*Fuel_Specs!$B$87+BO7*Fuel_Specs!$B$88+BO12*Fuel_Specs!$B$85+BO13*Fuel_Specs!$B$86+BO14 -> 131420.9976 | BP15: =BP6*Fuel_Specs!$B$87+BP7*Fuel_Specs!$B$88+BP12*Fuel_Specs!$B$85+BP13*Fuel_Specs!$B$86+BP14 -> 104419.6645 | BQ15: =BQ6*Fuel_Specs!$B$87+BQ7*Fuel_Specs!$B$88+BQ12*Fuel_Specs!$B$85+BQ13*Fuel_Specs!$B$86+BQ14 -> 98956.2602 | BR15: =BR6*Fuel_Specs!$B$87+BR7*Fuel_Specs!$B$88+BR12*Fuel_Specs!$B$85+BR13*Fuel_Specs!$B$86+BR14 -> 98956.2602 | BS15: =BS6*Fuel_Specs!$B$87+BS7*Fuel_Specs!$B$88+BS12*Fuel_Specs!$B$85+BS13*Fuel_Specs!$B$86+BS14 -> 147211.2711 | BT15: =BT6*Fuel_Specs!$B$87+BT7*Fuel_Specs!$B$88+BT12*Fuel_Specs!$B$85+BT13*Fuel_Specs!$B$86+BT14 -> 57701.73537
A16: CI, g/MJ | B16: =B15/Fuel_Specs!$H$130 -> 56.54654895 | C16: =C15/Fuel_Specs!$H$130 -> 56.43356915 | D16: =D15/Fuel_Specs!$H$130 -> 56.36343731 | E16: =E15/Fuel_Specs!$H$130 -> 56.3700526 | F16: =F15/Fuel_Specs!$H$130 -> 56.36343731 | G16: =G15/Fuel_Specs!$H$130 -> 64.61803587 | H16: =H15/Fuel_Specs!$H$130 -> 57.65640963 | I16: =I15/Fuel_Specs!$H$130 -> 56.37246101 | J16: =J15/Fuel_Specs!$H$130 -> 62.95537135 | K16: =K15/Fuel_Specs!$H$130 -> 80.88875512 | L16: =L15/Fuel_Specs!$H$130 -> 81.19313924 | M16: =M15/Fuel_Specs!$H$130 -> 81.15737242 | N16: =N15/Fuel_Specs!$H$130 -> 80.89993344 | O16: =O15/Fuel_Specs!$H$130 -> 80.87553734 | P16: =P15/Fuel_Specs!$H$130 -> 74.38186548 | Q16: =Q15/Fuel_Specs!$H$130 -> 74.39378073 | R16: =R15/Fuel_Specs!$H$130 -> 74.37688731 | S16: =S15/Fuel_Specs!$H$130 -> 74.35249121 | T16: =T15/Fuel_Specs!$H$130 -> 74.3915408 | U16: =U15/Fuel_Specs!$H$130 -> 73.06218829 | V16: =V15/Fuel_Specs!$H$130 -> 73.25079087 | W16: =W15/Fuel_Specs!$H$130 -> 73.84372991 | X16: =X15/Fuel_Specs!$H$130 -> 72.41553928 | Y16: =Y15/Fuel_Specs!$H$130 -> 65.88978101 | Z16: =Z15/Fuel_Specs!$H$130 -> 65.88978101 | AA16: =AA15/Fuel_Specs!$H$130 -> 95.2938315 | AB16: =AB15/Fuel_Specs!$H$130 -> 95.29225054 | AC16: =AC15/Fuel_Specs!$H$130 -> 95.09189053 | AD16: =AD15/Fuel_Specs!$H$130 -> 94.8235545 | AE16: =AE15/Fuel_Specs!$H$130 -> 101.6599662 | AF16: =AF15/Fuel_Specs!$H$130 -> 101.6599662 | AG16: =AG15/Fuel_Specs!$H$130 -> 101.6599662 | AH16: =AH15/Fuel_Specs!$H$130 -> 102.9148043 | AI16: =AI15/Fuel_Specs!$H$130 -> 100.0608971 | AJ16: =AJ15/Fuel_Specs!$H$130 -> 101.0939689 | AK16: =AK15/Fuel_Specs!$H$130 -> 101.0939689 | AL16: =AL15/Fuel_Specs!$H$130 -> 101.0939689 | AM16: =AM15/Fuel_Specs!$H$130 -> 102.3488069 | AN16: =AN15/Fuel_Specs!$H$130 -> 99.49489972 | AO16: =AO15/Fuel_Specs!$H$130 -> 103.6280457 | AP16: =AP15/Fuel_Specs!$H$130 -> 103.6280457 | AQ16: =AQ15/Fuel_Specs!$H$130 -> 104.8828838 | AR16: =AR15/Fuel_Specs!$H$130 -> 100.0608971 | AS16: =AS15/Fuel_Specs!$H$130 -> 101.9833589 | AT16: =AT15/Fuel_Specs!$H$130 -> 101.9833589 | AU16: =AU15/Fuel_Specs!$H$130 -> 100.3842897 | AV16: =AV15/Fuel_Specs!$H$130 -> 93.65840645 | AW16: =AW15/Fuel_Specs!$H$130 -> 93.65840645 | AX16: =AX15/Fuel_Specs!$H$130 -> 93.65840645 | AY16: =AY15/Fuel_Specs!$H$130 -> 94.91324452 | AZ16: =AZ15/Fuel_Specs!$H$130 -> 92.05933732 | BA16: =BA15/Fuel_Specs!$H$130 -> 1.814376304 | BB16: =BB15/Fuel_Specs!$H$130 -> 119.1008812 | BC16: =BC15/Fuel_Specs!$H$130 -> 119.7529201 | BD16: =BD15/Fuel_Specs!$H$130 -> 0 | BE16: =BE15/Fuel_Specs!$H$130 -> 0 | BF16: =BF15/Fuel_Specs!$H$130 -> 0 | BG16: =BG15/Fuel_Specs!$H$130 -> 101.662031 | BH16: =BH15/Fuel_Specs!$H$130 -> 65.96201875 | BI16: =BI15/Fuel_Specs!$H$130 -> 57.28918807 | BJ16: =BJ15/Fuel_Specs!$H$130 -> 85.80218707 | BK16: =BK15/Fuel_Specs!$H$130 -> 99.75049117 | BL16: =BL15/Fuel_Specs!$H$130 -> 99.75049117 | BM16: =BM15/Fuel_Specs!$H$130 -> 99.75049117 | BN16: =BN15/Fuel_Specs!$H$130 -> 101.0053292 | BO16: =BO15/Fuel_Specs!$H$130 -> 124.5630718 | BP16: =BP15/Fuel_Specs!$H$130 -> 98.97074592 | BQ16: =BQ15/Fuel_Specs!$H$130 -> 93.79243781 | BR16: =BR15/Fuel_Specs!$H$130 -> 93.79243781 | BS16: =BS15/Fuel_Specs!$H$130 -> 139.5293634 | BT16: =BT15/Fuel_Specs!$H$130 -> 54.69069279
A18: 2) Emission Factors of Fuel Combustion: Feedstock and Fuel Transportation From Product Origin to Product Destination (grams per mmBtu of fuel burned)
A19: 2.1) Emission Ratios by Fuel Type Relative to Baseline Fuel
B20: Ocean Tanker: Bunker fuel as Baseline Fuel | H20: Barge: Residual Oil as Baseline Fuel | Q20: Locomotive: Diesel as Baseline Fuel | Z20: Heavy-Duty Truck: Diesel as Baseline Fuel | AJ20: Pipeline: Diesel as Baseline Fuel
B21: Diesel | C21: Natural Gas | D21: LPG | E21: DME | F21: FTD | G21: Hydrogen | H21: Diesel | I21: Natural Gas | J21: LPG | K21: DME | L21: FTD | M21: Biodiesel | N21: Renewable Diesel | O21: Renewable Gasoline | P21: Hydrogen | Q21: Natural Gas | R21: LPG | S21: DME | T21: FTD | U21: Biodiesel | V21: Renewable Diesel | W21: Renewable Gasoline | X21: Hydrogen | Y21: Electricity | Z21: LNG | AA21: DME | AB21: FTD | AC21: E90 | AD21: M90 | AE21: LPG | AF21: Biodiesel | AG21: Renewable Diesel | AH21: Renewable Gasoline | AI21: Hydrogen | AJ21: Residual Oil | AK21: LPG | AL21: DME | AM21: FTD | AN21: Biodiesel | AO21: Renewable Gasoline | AP21: Hydrogen
A23: VOC | B23: 1 | C23: 1 | D23: 1 | E23: 1 | F23: 1 | G23: 0 | H23: 1 | I23: 1 | J23: 1 | K23: 1 | L23: 1 | M23: 1 | N23: 1 | O23: 1 | P23: 0 | Q23: 1 | R23: 1 | S23: 1 | T23: 1 | U23: 1 | V23: 1 | W23: 1 | X23: 0 | Y23: 0 | Z23: 1 | AA23: 1 | AB23: 1 | AC23: 1.4 | AD23: 1.4 | AE23: 1 | AF23: 1 | AG23: 1 | AH23: 1 | AI23: 0 | AJ23: 1 | AK23: 1 | AL23: 1 | AM23: 1 | AN23: 1 | AO23: 1 | AP23: 0
A24: CO | B24: 1 | C24: 0.5 | D24: 0.5 | E24: 1 | F24: 1 | G24: 0 | H24: 1 | I24: 0.5 | J24: 0.5 | K24: 1 | L24: 1 | M24: 1 | N24: 1 | O24: 1 | P24: 0 | Q24: 0.5 | R24: 0.5 | S24: 1 | T24: 1 | U24: 1 | V24: 1 | W24: 1 | X24: 0 | Y24: 0 | Z24: 0.5 | AA24: 1 | AB24: 1 | AC24: 1 | AD24: 1 | AE24: 0.5 | AF24: 1 | AG24: 1 | AH24: 1 | AI24: 0 | AJ24: 1 | AK24: 0.5 | AL24: 1 | AM24: 1 | AN24: 1 | AO24: 1 | AP24: 0
A25: NOx | B25: 1 | C25: 1 | D25: 1 | E25: 0.5 | F25: 1 | G25: 1.75 | H25: 1 | I25: 1 | J25: 1 | K25: 0.5 | L25: 1 | M25: 1 | N25: 1 | O25: 1 | P25: 1.75 | Q25: 1 | R25: 1 | S25: 0.5 | T25: 1 | U25: 1 | V25: 1 | W25: 1 | X25: 0.75 | Y25: 0 | Z25: 1 | AA25: 0.5 | AB25: 1 | AC25: 1 | AD25: 1 | AE25: 1 | AF25: 1 | AG25: 1 | AH25: 1 | AI25: 0.75 | AJ25: 1 | AK25: 1 | AL25: 0.5 | AM25: 1 | AN25: 1 | AO25: 1 | AP25: 0.75
A26: PM10 | B26: 1 | C26: 0.1 | D26: 0.1 | E26: 0.7 | F26: 1 | G26: 0 | H26: 1 | I26: 0.1 | J26: 0.1 | K26: 0.7 | L26: 1 | M26: 1 | N26: 1 | O26: 1 | P26: 0 | Q26: 0.1 | R26: 0.1 | S26: 0.7 | T26: 1 | U26: 1 | V26: 1 | W26: 1 | X26: 0 | Y26: 0 | Z26: 0.1 | AA26: 0.7 | AB26: 1 | AC26: 0.1 | AD26: 0.1 | AE26: 0.1 | AF26: 1 | AG26: 1 | AH26: 1 | AI26: 0 | AJ26: 1 | AK26: 0.1 | AL26: 0.7 | AM26: 1 | AN26: 1 | AO26: 1 | AP26: 0
A27: PM2.5 | B27: 1 | C27: 0.1 | D27: 0.1 | E27: 0.7 | F27: 1 | G27: 0 | H27: 1 | I27: 0.1 | J27: 0.1 | K27: 0.7 | L27: 1 | M27: 1 | N27: 1 | O27: 1 | P27: 0 | Q27: 0.1 | R27: 0.1 | S27: 0.7 | T27: 1 | U27: 1 | V27: 1 | W27: 1 | X27: 0 | Y27: 0 | Z27: 0.1 | AA27: 0.7 | AB27: 1 | AC27: 0.1 | AD27: 0.1 | AE27: 0.1 | AF27: 1 | AG27: 1 | AH27: 1 | AI27: 0 | AJ27: 1 | AK27: 0.1 | AL27: 0.7 | AM27: 1 | AN27: 1 | AO27: 1 | AP27: 0
A28: CH4 | B28: 1 | C28: 20 | D28: 1 | E28: 1 | F28: 1 | G28: 0 | H28: 1 | I28: 20 | J28: 1 | K28: 1 | L28: 1 | M28: 1 | N28: 1 | O28: 1 | P28: 0 | Q28: 20 | R28: 1 | S28: 1 | T28: 1 | U28: 1 | V28: 1 | W28: 1 | X28: 0 | Y28: 0 | Z28: 20 | AA28: 1 | AB28: 1 | AC28: 0.65 | AD28: 0.65 | AE28: 1 | AF28: 1 | AG28: 1 | AH28: 1 | AI28: 0 | AJ28: 1 | AK28: 1 | AL28: 1 | AM28: 1 | AN28: 1 | AO28: 1 | AP28: 0
A29: N2O | B29: 1 | C29: 1 | D29: 1 | E29: 1 | F29: 1 | G29: 0 | H29: 1 | I29: 1 | J29: 1 | K29: 1 | L29: 1 | M29: 1 | N29: 1 | O29: 1 | P29: 0 | Q29: 1 | R29: 1 | S29: 1 | T29: 1 | U29: 1 | V29: 1 | W29: 1 | X29: 0 | Y29: 0 | Z29: 1 | AA29: 1 | AB29: 1 | AC29: 1 | AD29: 1 | AE29: 1 | AF29: 1 | AG29: 1 | AH29: 1 | AI29: 0 | AJ29: 1 | AK29: 1 | AL29: 1 | AM29: 1 | AN29: 1 | AO29: 1 | AP29: 0
A31: 2.2) Emission Factors of Fuel Combustion: Feedstock and Fuel Transportation from Product Origin to Product Destination (grams per mmBtu of fuel burned)
B32: Ocean Tanker | I32: Barge | S32: Locomotive | AC32: Class8B Diesel Truck Emission Factors (g/mi.) | AD32: Heavy Heavy-Duty Truck: grams per MMBtu | AO32: MediumHeavy-Duty Truck: grams per mmBtu | AY32: Pipeline Reciprocating Engine: Current | BJ32: Pipeline Turbine | BU32: Pipeline Reciprocating Engine: Future
B33: Bunker Fuel | C33: Diesel | D33: Natural Gas | E33: LPG | F33: DME | G33: FTD | H33: Hydrogen | I33: Residual Oil | J33: Diesel | K33: Natural Gas | L33: LPG | M33: DME | N33: FTD | O33: Biodiesel | P33: Renewable Diesel | Q33: Renewable Gasoline | R33: Hydrogen | S33: Diesel | T33: Natural Gas | U33: LPG | V33: DME | W33: FTD | X33: Biodiesel | Y33: Renewable Diesel | Z33: Renewable Gasoline | AA33: Hydrogen | AB33: Electricity | AD33: Diesel | AE33: LNG | AF33: DME | AG33: FTD | AH33: Ethanol | AI33: Methanol | AJ33: LPG | AK33: Biodiesel | AL33: Renewable Diesel | AM33: Renewable Gasoline | AN33: Hydrogen | AO33: Diesel | AP33: LNG | AQ33: DME | AR33: FTD | AS33: Ethanol | AT33: Methanol | AU33: LPG | AV33: Biodiesel | AW33: Renewable Diesel | AX33: Renewable Gasoline | AY33: NG | AZ33: Diesel | BA33: Electricity | BB33: Residual Oil | BC33: LPG | BD33: DME | BE33: FTD | BF33: Biodiesel | BG33: Renewable Diesel | BH33: Renewable Gasoline | BI33: Hydrogen | BJ33: NG | BK33: Diesel | BL33: Electricity | BM33: Residual Oil | BN33: LPG | BO33: DME | BP33: FTD | BQ33: Biodiesel | BR33: Renewable Diesel | BS33: Renewable Gasoline | BT33: Hydrogen | BU33: NG | BV33: Diesel | BW33: Electricity | BX33: Residual Oil | BY33: LPG | BZ33: DME | CA33: FTD | CB33: Biodiesel | CC33: Renewable Diesel | CD33: Renewable Gasoline | CE33: Hydrogen
A34: VOC | B34: 79.92500305 | C34: 79.92500305 | D34: 79.92500305 | E34: 79.92500305 | F34: 79.92500305 | G34: 79.92500305 | H34: 0 | I34: 24.74699974 | J34: 24.74699974 | K34: 24.74699974 | L34: 24.74699974 | M34: 24.74699974 | N34: 24.74699974 | O34: 24.74699974 | P34: 24.74699974 | Q34: 24.74699974 | R34: 0 | S34: 58.38795873 | T34: 58.38795873 | U34: 58.38795873 | V34: 58.38795873 | W34: 58.38795873 | X34: 58.38795873 | Y34: 58.38795873 | Z34: 58.38795873 | AA34: 0 | AB34: 0 | AC34: 0.4068 | AD34: 16.78505255 | AE34: 15.10654729 | AF34: 16.78505255 | AG34: 16.78505255 | AH34: 23.49907357 | AI34: 23.49907357 | AJ34: 16.78505255 | AK34: 16.78505255 | AL34: 16.78505255 | AM34: 16.78505255 | AN34: 0 | AO34: 6.380070066 | AP34: 5.423059556 | AQ34: 6.380070066 | AR34: 6.380070066 | AS34: 8.932098093 | AT34: 8.932098093 | AU34: 6.380070066 | AV34: 6.380070066 | AW34: 6.380070066 | AX34: 6.380070066 | AY34: 133.316 | AZ34: 40.86 | BA34: 0 | BB34: 40.86 | BC34: 40.86 | BD34: 40.86 | BE34: 40.86 | BF34: 40.86 | BG34: 40.86 | BH34: 40.86 | BI34: 0 | BJ34: 0.908 | BK34: 1.335 | BL34: 0 | BM34: 1.335 | BN34: 1.335 | BO34: 1.335 | BP34: 1.335 | BQ34: 1.335 | BR34: 1.335 | BS34: 1.335 | BT34: 0 | BU34: 61.29 | BV34: 40.86 | BW34: 0 | BX34: 40.86 | BY34: 40.86 | BZ34: 40.86 | CA34: 40.86 | CB34: 40.86 | CC34: 40.86 | CD34: 40.86 | CE34: 0
A35: CO | B35: 181.6690063 | C35: 181.6690063 | D35: 90.83450317 | E35: 90.83450317 | F35: 181.6690063 | G35: 181.6690063 | H35: 0 | I35: 219.9929962 | J35: 219.9929962 | K35: 109.9964981 | L35: 109.9964981 | M35: 219.9929962 | N35: 219.9929962 | O35: 219.9929962 | P35: 219.9929962 | Q35: 219.9929962 | R35: 0 | S35: 206.5303349 | T35: 103.2651674 | U35: 103.2651674 | V35: 206.5303349 | W35: 206.5303349 | X35: 206.5303349 | Y35: 206.5303349 | Z35: 206.5303349 | AA35: 0 | AB35: 0 | AC35: 1.6812 | AD35: 69.36831452 | AE35: 31.21574153 | AF35: 69.36831452 | AG35: 69.36831452 | AH35: 69.36831452 | AI35: 69.36831452 | AJ35: 34.68415726 | AK35: 69.36831452 | AL35: 69.36831452 | AM35: 69.36831452 | AN35: 0 | AO35: 83.87201246 | AP35: 35.64560529 | AQ35: 83.87201246 | AR35: 83.87201246 | AS35: 83.87201246 | AT35: 83.87201246 | AU35: 41.93600623 | AV35: 83.87201246 | AW35: 83.87201246 | AX35: 83.87201246 | AY35: 705.993 | AZ35: 459.6 | BA35: 0 | BB35: 459.6 | BC35: 229.8 | BD35: 459.6 | BE35: 459.6 | BF35: 459.6 | BG35: 459.6 | BH35: 459.6 | BI35: 0 | BJ35: 77.18 | BK35: 8.714 | BL35: 0 | BM35: 8.714 | BN35: 4.357 | BO35: 8.714 | BP35: 8.714 | BQ35: 8.714 | BR35: 8.714 | BS35: 8.714 | BT35: 0 | BU35: 331.42 | BV35: 459.6 | BW35: 0 | BX35: 459.6 | BY35: 229.8 | BZ35: 459.6 | CA35: 459.6 | CB35: 459.6 | CC35: 459.6 | CD35: 459.6 | CE35: 0
A36: NOx | B36: 2123.850098 | C36: 2123.850098 | D36: 2123.850098 | E36: 2123.850098 | F36: 1061.925049 | G36: 2123.850098 | H36: 3716.737671 | I36: 1101.121948 | J36: 1101.121948 | K36: 1101.121948 | L36: 1101.121948 | M36: 550.5609741 | N36: 1101.121948 | O36: 1101.121948 | P36: 1101.121948 | Q36: 1101.121948 | R36: 1926.963409 | S36: 1139.873965 | T36: 1139.873965 | U36: 1139.873965 | V36: 569.9369826 | W36: 1139.873965 | X36: 1139.873965 | Y36: 1139.873965 | Z36: 1139.873965 | AA36: 854.9054739 | AB36: 0 | AC36: 4.7516 | AD36: 196.0566757 | AE36: 176.4510082 | AF36: 98.02833787 | AG36: 196.0566757 | AH36: 196.0566757 | AI36: 196.0566757 | AJ36: 196.0566757 | AK36: 196.0566757 | AL36: 196.0566757 | AM36: 196.0566757 | AN36: 147.0425068 | AO36: 82.4956014 | AP36: 70.12126119 | AQ36: 41.2478007 | AR36: 82.4956014 | AS36: 82.4956014 | AT36: 82.4956014 | AU36: 82.4956014 | AV36: 82.4956014 | AW36: 82.4956014 | AX36: 82.4956014 | AY36: 832.952 | AZ36: 2133.6 | BA36: 0 | BB36: 2133.6 | BC36: 2133.6 | BD36: 1066.8 | BE36: 2133.6 | BF36: 2133.6 | BG36: 2133.6 | BH36: 2133.6 | BI36: 1600.2 | BJ36: 154.36 | BK36: 131.66 | BL36: 0 | BM36: 131.66 | BN36: 131.66 | BO36: 65.83 | BP36: 131.66 | BQ36: 131.66 | BR36: 131.66 | BS36: 131.66 | BT36: 98.745 | BU36: 871.68 | BV36: 2133.6 | BW36: 0 | BX36: 2133.6 | BY36: 2133.6 | BZ36: 1066.8 | CA36: 2133.6 | CB36: 2133.6 | CC36: 2133.6 | CD36: 2133.6 | CE36: 1600.2
A37: PM10 | B37: 181.3110046 | C37: 181.3110046 | D37: 18.13110046 | E37: 18.13110046 | F37: 126.9177032 | G37: 181.3110046 | H37: 0 | I37: 40.08800125 | J37: 40.08800125 | K37: 4.008800125 | L37: 4.008800125 | M37: 28.06160088 | N37: 40.08800125 | O37: 40.08800125 | P37: 40.08800125 | Q37: 40.08800125 | R37: 0 | S37: 30.2730755 | T37: 3.02730755 | U37: 3.02730755 | V37: 21.19115285 | W37: 30.2730755 | X37: 30.2730755 | Y37: 30.2730755 | Z37: 30.2730755 | AA37: 0 | AB37: 0 | AC37: 0.0378 | AD37: 1.559673025 | AE37: 0.1403705722 | AF37: 1.091771117 | AG37: 1.559673025 | AH37: 0.1559673025 | AI37: 0.1559673025 | AJ37: 0.1559673025 | AK37: 1.559673025 | AL37: 1.559673025 | AM37: 1.559673025 | AN37: 0 | AO37: 1.246866485 | AP37: 0.1059836512 | AQ37: 0.8728065395 | AR37: 1.246866485 | AS37: 0.1246866485 | AT37: 0.1246866485 | AU37: 0.1246866485 | AV37: 1.246866485 | AW37: 1.246866485 | AX37: 1.246866485 | AY37: 1.2 | AZ37: 16.989 | BA37: 0 | BB37: 16.989 | BC37: 1.6989 | BD37: 11.8923 | BE37: 16.989 | BF37: 16.989 | BG37: 16.989 | BH37: 16.989 | BI37: 0 | BJ37: 11.607 | BK37: 16.989 | BL37: 0 | BM37: 16.989 | BN37: 1.6989 | BO37: 11.8923 | BP37: 16.989 | BQ37: 16.989 | BR37: 16.989 | BS37: 16.989 | BT37: 0 | BU37: 11.607 | BV37: 16.989 | BW37: 0 | BX37: 16.989 | BY37: 1.6989 | BZ37: 11.8923 | CA37: 16.989 | CB37: 16.989 | CC37: 16.989 | CD37: 16.989 | CE37: 0
